Workbook

Sheet Report - ALL (DASHBOARD)
A2: Dashboard | B2: Select Parameter: | F2: Select Statistic: | I2: Select Seasonal Period: | L2: Do you want to convert CFS values to TAF/Mon? | W2: 25
W3: 1
W4: 16
L5: News | W5: TRUE
L6: - parameter list updated to include all items on the appendix list (in addition to other locations of interest)
L7: - year type sorting is now done by calendar year
L8: - year type sorting is provided for 60-20-20 index as well as 40-30-30 index
L9: - format modified to be consistent with appendix reports
L10: - check out the new spinners!
B13: =CONCATENATE('Report Data'!$P$7," / seasonal statistics (",$W$2,"-",$W$3,"-",$W$4,"-",IF(NOT($W$5),1,2),"a):") -> Total Sites Diversion to Fill (PRELIMINARY) / seasonal statistics (25-1-16-2a):
C17: ='Report Data'!P6 -> October-September
C18: ='Report Data'!P7 -> Total Sites Diversion to Fill (PRELIMINARY)
C19: ='Report Data'!P9 -> (C17601/FLOW-CHANNEL)
C20: ='Report Data'!P8 -> Averages
C21: ='Report Data'!P11 -> Volume (TAF) | F21: =CONCATENATE("Difference from ",'Report Data'!Q13) -> Difference from NAA 011221
C25: =IF('Report Data'!O14=0,"",'Report Data'!O14) -> NAA 011221 | E25: =IFERROR('Report Data'!P14,"") -> 0
C26: =IF('Report Data'!O15=0,"",'Report Data'!O15) -> Alt 1A 011221 | E26: =IFERROR('Report Data'!P15,"") -> 242.4095242 | F26: =IFERROR('Report Data'!Q15,"") -> 242.4095242
C27: =IF('Report Data'!O16=0,"",'Report Data'!O16) -> Alt 1B 011221 | E27: =IFERROR('Report Data'!P16,"") -> 257.4994204 | F27: =IFERROR('Report Data'!Q16,"") -> 257.4994204
C28: =IF('Report Data'!O17=0,"",'Report Data'!O17) -> Alt 2 011221 | E28: =IFERROR('Report Data'!P17,"") -> 231.4909536 | F28: =IFERROR('Report Data'!Q17,"") -> 231.4909536
C29: =IF('Report Data'!O18=0,"",'Report Data'!O18) ->  | E29: =IFERROR('Report Data'!P18,"") ->  | F29: =IFERROR('Report Data'!Q18,"") ->  | G29: =IFERROR('Report Data'!R18,"") -> 
C30: =IF('Report Data'!O19=0,"",'Report Data'!O19) ->  | E30: =IFERROR('Report Data'!P19,"") ->  | F30: =IFERROR('Report Data'!Q19,"") ->  | G30: =IFERROR('Report Data'!R19,"") -> 
B60: =CONCATENATE('Report Data'!$P$7," / monthly statistics (",$W$2,"-",$W$3,"-",$W$4,"-",IF(NOT($W$5),1,2),"b):") -> Total Sites Diversion to Fill (PRELIMINARY) / monthly statistics (25-1-16-2b):
B88: =CONCATENATE('Report Data'!$P$7," / time series (",$W$2,"-",$W$3,"-",$W$4,"-",IF(NOT($W$5),1,2),"c):") -> Total Sites Diversion to Fill (PRELIMINARY) / time series (25-1-16-2c):

Sheet Report Data
A2: Information, Tables and Calculations for Reports
A4: Table of Selected Values for Monthly Chart: | O4: Trend Evaluation: | U4: Water Year Type Averages:
A6: Title: | B6: ='Compile Data'!$B$5&" (PRELIMINARY)" -> Total Sites Diversion to Fill (PRELIMINARY) | O6: Title: | P6: =INDEX(Other!$B$9:$B$33,'Report - ALL (DASHBOARD)'!$W$4) -> October-September | U6: Title: | V6: =INDEX(Other!$B$9:$B$33,'Report - ALL (DASHBOARD)'!$W$4) -> October-September
B7: =INDEX(Other!$C$9:$C$33,'Report - ALL (DASHBOARD)'!$W$3) -> Averages | P7: ='Compile Data'!$B$5&" (PRELIMINARY)" -> Total Sites Diversion to Fill (PRELIMINARY) | V7: ='Compile Data'!$B$5&" (PRELIMINARY)" -> Total Sites Diversion to Fill (PRELIMINARY)
B8: =CONCATENATE("(",'Compile Data'!$B$6,"/",'Compile Data'!$B$7,")") -> (C17601/FLOW-CHANNEL) | P8: =CONCATENATE(INDEX(Other!$C$9:$C$33,'Report - ALL (DASHBOARD)'!$W$3)," ",IF('Report - ALL (DASHBOARD)'!$W$3>4,IF(AND('Compile Data'!$B$10="TAF",'Compile Data'!$B$8="PER-AVER"),"Totals","Averages"),"")) -> Averages | V8: =CONCATENATE(INDEX(Other!$C$9:$C$33,'Report - ALL (DASHBOARD)'!$W$3)," ",IF('Report - ALL (DASHBOARD)'!$W$3>4,IF(AND('Compile Data'!$B$10="TAF",'Compile Data'!$B$8="PER-AVER"),"Totals","Averages"),"")) -> Averages
P9: =CONCATENATE("(",'Compile Data'!$B$6,"/",'Compile Data'!$B$7,")") -> (C17601/FLOW-CHANNEL) | V9: =CONCATENATE("(",'Compile Data'!$B$6,"/",'Compile Data'!$B$7,")") -> (C17601/FLOW-CHANNEL)
A11: Y-axis: | B11: =IF('Compile Data'!$B$10="CFS","Flow (CFS)",IF('Compile Data'!$B$10="TAF","Volume (TAF)",IF('Compile Data'!$B$10="KM","POSITION (KM)",""))) -> Volume (TAF) | P11: =IF('Compile Data'!$B$10="CFS","Flow (CFS)",IF('Compile Data'!$B$10="TAF","Volume (TAF)",IF('Compile Data'!$B$10="KM","POSITION (KM)",""))) -> Volume (TAF) | V11: =IF('Compile Data'!$B$10="CFS","Flow (CFS)",IF('Compile Data'!$B$10="TAF","Volume (TAF)",IF('Compile Data'!$B$10="KM","POSITION (KM)",""))) -> Volume (TAF)
Q12: Diff from | R12: Diff from
B13: OCT | C13: NOV | D13: DEC | E13: JAN | F13: FEB | G13: MAR | H13: APR | I13: MAY | J13: JUN | K13: JUL | L13: AUG | M13: SEP | P13: Value | Q13: =$O$14 -> NAA 011221 | R13: =$O$15 -> Alt 1A 011221 | V13: Wet | W13: Above Normal | X13: Below Normal | Y13: Dry | Z13: Critically Dry
A14: ='Compile Data'!$B$1 -> NAA 011221 | B14: =INDEX('Compile Data'!L$95:L$118,'Report - ALL (DASHBOARD)'!$W$3) -> 0 | C14: =INDEX('Compile Data'!M$95:M$118,'Report - ALL (DASHBOARD)'!$W$3) -> 0 | D14: =INDEX('Compile Data'!N$95:N$118,'Report - ALL (DASHBOARD)'!$W$3) -> 0 | E14: =INDEX('Compile Data'!O$95:O$118,'Report - ALL (DASHBOARD)'!$W$3) -> 0 | F14: =INDEX('Compile Data'!P$95:P$118,'Report - ALL (DASHBOARD)'!$W$3) -> 0 | G14: =INDEX('Compile Data'!Q$95:Q$118,'Report - ALL (DASHBOARD)'!$W$3) -> 0 | H14: =INDEX('Compile Data'!R$95:R$118,'Report - ALL (DASHBOARD)'!$W$3) -> 0 | I14: =INDEX('Compile Data'!S$95:S$118,'Report - ALL (DASHBOARD)'!$W$3) -> 0 | J14: =INDEX('Compile Data'!T$95:T$118,'Report - ALL (DASHBOARD)'!$W$3) -> 0 | K14: =INDEX('Compile Data'!U$95:U$118,'Report - ALL (DASHBOARD)'!$W$3) -> 0 | L14: =INDEX('Compile Data'!V$95:V$118,'Report - ALL (DASHBOARD)'!$W$3) -> 0 | M14: =INDEX('Compile Data'!W$95:W$118,'Report - ALL (DASHBOARD)'!$W$3) -> 0 | O14: ='Compile Data'!$B$1 -> NAA 011221 | P14: =INDEX('Compile Data'!$L$95:$AI$118,'Report - ALL (DASHBOARD)'!$W$3,'Report - ALL (DASHBOARD)'!$W$4) -> 0 | U14: ='Compile Data'!$B$1 -> NAA 011221 | V14: =INDEX('Compile Data'!$L$95:$AI$118,12,'Report - ALL (DASHBOARD)'!$W$4) -> 0 | W14: =INDEX('Compile Data'!$L$95:$AI$118,13,'Report - ALL (DASHBOARD)'!$W$4) -> 0 | X14: =INDEX('Compile Data'!$L$95:$AI$118,14,'Report - ALL (DASHBOARD)'!$W$4) -> 0 | Y14: =INDEX('Compile Data'!$L$95:$AI$118,15,'Report - ALL (DASHBOARD)'!$W$4) -> 0 | Z14: =INDEX('Compile Data'!$L$95:$AI$118,16,'Report - ALL (DASHBOARD)'!$W$4) -> 0
A15: ='Compile Data'!$C$1 -> Alt 1A 011221 | B15: =INDEX('Compile Data'!AL$95:AL$118,'Report - ALL (DASHBOARD)'!$W$3) -> 2.920070561 | C15: =INDEX('Compile Data'!AM$95:AM$118,'Report - ALL (DASHBOARD)'!$W$3) -> 8.452075615 | D15: =INDEX('Compile Data'!AN$95:AN$118,'Report - ALL (DASHBOARD)'!$W$3) -> 16.26130255 | E15: =INDEX('Compile Data'!AO$95:AO$118,'Report - ALL (DASHBOARD)'!$W$3) -> 52.49586302 | F15: =INDEX('Compile Data'!AP$95:AP$118,'Report - ALL (DASHBOARD)'!$W$3) -> 55.2720182 | G15: =INDEX('Compile Data'!AQ$95:AQ$118,'Report - ALL (DASHBOARD)'!$W$3) -> 71.63585642 | H15: =INDEX('Compile Data'!AR$95:AR$118,'Report - ALL (DASHBOARD)'!$W$3) -> 20.95619229 | I15: =INDEX('Compile Data'!AS$95:AS$118,'Report - ALL (DASHBOARD)'!$W$3) -> 5.040772208 | J15: =INDEX('Compile Data'!AT$95:AT$118,'Report - ALL (DASHBOARD)'!$W$3) -> 5.80485357 | K15: =INDEX('Compile Data'!AU$95:AU$118,'Report - ALL (DASHBOARD)'!$W$3) -> 1.351913202 | L15: =INDEX('Compile Data'!AV$95:AV$118,'Report - ALL (DASHBOARD)'!$W$3) -> 1.644746394 | M15: =INDEX('Compile Data'!AW$95:AW$118,'Report - ALL (DASHBOARD)'!$W$3) -> 0.5738601574 | O15: ='Compile Data'!$C$1 -> Alt 1A 011221 | P15: =INDEX('Compile Data'!$AL$95:$BI$118,'Report - ALL (DASHBOARD)'!$W$3,'Report - ALL (DASHBOARD)'!$W$4) -> 242.4095242 | Q15: =$P15-$P$14 -> 242.4095242 | U15: ='Compile Data'!$C$1 -> Alt 1A 011221 | V15: =INDEX('Compile Data'!$AL$95:$BI$118,12,'Report - ALL (DASHBOARD)'!$W$4) -> 349.8149581 | W15: =INDEX('Compile Data'!$AL$95:$BI$118,13,'Report - ALL (DASHBOARD)'!$W$4) -> 397.1994704 | X15: =INDEX('Compile Data'!$AL$95:$BI$118,14,'Report - ALL (DASHBOARD)'!$W$4) -> 212.415324 | Y15: =INDEX('Compile Data'!$AL$95:$BI$118,15,'Report - ALL (DASHBOARD)'!$W$4) -> 128.7604691 | Z15: =INDEX('Compile Data'!$AL$95:$BI$118,16,'Report - ALL (DASHBOARD)'!$W$4) -> 60.37462058
A16: ='Compile Data'!$D$1 -> Alt 1B 011221 | B16: =INDEX('Compile Data'!BL$95:BL$118,'Report - ALL (DASHBOARD)'!$W$3) -> 3.587943018 | C16: =INDEX('Compile Data'!BM$95:BM$118,'Report - ALL (DASHBOARD)'!$W$3) -> 8.563535338 | D16: =INDEX('Compile Data'!BN$95:BN$118,'Report - ALL (DASHBOARD)'!$W$3) -> 16.7176489 | E16: =INDEX('Compile Data'!BO$95:BO$118,'Report - ALL (DASHBOARD)'!$W$3) -> 55.84842898 | F16: =INDEX('Compile Data'!BP$95:BP$118,'Report - ALL (DASHBOARD)'!$W$3) -> 60.48004023 | G16: =INDEX('Compile Data'!BQ$95:BQ$118,'Report - ALL (DASHBOARD)'!$W$3) -> 73.25422527 | H16: =INDEX('Compile Data'!BR$95:BR$118,'Report - ALL (DASHBOARD)'!$W$3) -> 23.18706208 | I16: =INDEX('Compile Data'!BS$95:BS$118,'Report - ALL (DASHBOARD)'!$W$3) -> 6.577624048 | J16: =INDEX('Compile Data'!BT$95:BT$118,'Report - ALL (DASHBOARD)'!$W$3) -> 6.304622374 | K16: =INDEX('Compile Data'!BU$95:BU$118,'Report - ALL (DASHBOARD)'!$W$3) -> 1.335470976 | L16: =INDEX('Compile Data'!BV$95:BV$118,'Report - ALL (DASHBOARD)'!$W$3) -> 1.642811234 | M16: =INDEX('Compile Data'!BW$95:BW$118,'Report - ALL (DASHBOARD)'!$W$3) -> 7.968260257e-06 | O16: ='Compile Data'!$D$1 -> Alt 1B 011221 | P16: =INDEX('Compile Data'!$BL$95:$CI$118,'Report - ALL (DASHBOARD)'!$W$3,'Report - ALL (DASHBOARD)'!$W$4) -> 257.4994204 | Q16: =$P16-$P$14 -> 257.4994204 | R16: =$P16-$P$15 -> 15.08989625 | U16: ='Compile Data'!$D$1 -> Alt 1B 011221 | V16: =INDEX('Compile Data'!$BL$95:$CI$118,12,'Report - ALL (DASHBOARD)'!$W$4) -> 389.5000013 | W16: =INDEX('Compile Data'!$BL$95:$CI$118,13,'Report - ALL (DASHBOARD)'!$W$4) -> 405.6987859 | X16: =INDEX('Compile Data'!$BL$95:$CI$118,14,'Report - ALL (DASHBOARD)'!$W$4) -> 213.1956831 | Y16: =INDEX('Compile Data'!$BL$95:$CI$118,15,'Report - ALL (DASHBOARD)'!$W$4) -> 133.5001423 | Z16: =INDEX('Compile Data'!$BL$95:$CI$118,16,'Report - ALL (DASHBOARD)'!$W$4) -> 60.98540705
A17: ='Compile Data'!$E$1 -> Alt 2 011221 | B17: =INDEX('Compile Data'!CL$95:CL$118,'Report - ALL (DASHBOARD)'!$W$3) -> 2.892338721 | C17: =INDEX('Compile Data'!CM$95:CM$118,'Report - ALL (DASHBOARD)'!$W$3) -> 9.043974795 | D17: =INDEX('Compile Data'!CN$95:CN$118,'Report - ALL (DASHBOARD)'!$W$3) -> 16.25850821 | E17: =INDEX('Compile Data'!CO$95:CO$118,'Report - ALL (DASHBOARD)'!$W$3) -> 51.71453565 | F17: =INDEX('Compile Data'!CP$95:CP$118,'Report - ALL (DASHBOARD)'!$W$3) -> 53.52507381 | G17: =INDEX('Compile Data'!CQ$95:CQ$118,'Report - ALL (DASHBOARD)'!$W$3) -> 66.29152639 | H17: =INDEX('Compile Data'!CR$95:CR$118,'Report - ALL (DASHBOARD)'!$W$3) -> 18.83367928 | I17: =INDEX('Compile Data'!CS$95:CS$118,'Report - ALL (DASHBOARD)'!$W$3) -> 4.991736491 | J17: =INDEX('Compile Data'!CT$95:CT$118,'Report - ALL (DASHBOARD)'!$W$3) -> 5.740096415 | K17: =INDEX('Compile Data'!CU$95:CU$118,'Report - ALL (DASHBOARD)'!$W$3) -> 1.329653443 | L17: =INDEX('Compile Data'!CV$95:CV$118,'Report - ALL (DASHBOARD)'!$W$3) -> 0.8697739713 | M17: =INDEX('Compile Data'!CW$95:CW$118,'Report - ALL (DASHBOARD)'!$W$3) -> 5.639491143e-05 | O17: ='Compile Data'!$E$1 -> Alt 2 011221 | P17: =INDEX('Compile Data'!$CL$95:$DI$118,'Report - ALL (DASHBOARD)'!$W$3,'Report - ALL (DASHBOARD)'!$W$4) -> 231.4909536 | Q17: =$P17-$P$14 -> 231.4909536 | R17: =$P17-$P$15 -> -10.9185706 | U17: ='Compile Data'!$E$1 -> Alt 2 011221 | V17: =INDEX('Compile Data'!$CL$95:$DI$118,12,'Report - ALL (DASHBOARD)'!$W$4) -> 316.6922232 | W17: =INDEX('Compile Data'!$CL$95:$DI$118,13,'Report - ALL (DASHBOARD)'!$W$4) -> 400.2272811 | X17: =INDEX('Compile Data'!$CL$95:$DI$118,14,'Report - ALL (DASHBOARD)'!$W$4) -> 211.8912184 | Y17: =INDEX('Compile Data'!$CL$95:$DI$118,15,'Report - ALL (DASHBOARD)'!$W$4) -> 125.0672713 | Z17: =INDEX('Compile Data'!$CL$95:$DI$118,16,'Report - ALL (DASHBOARD)'!$W$4) -> 60.6537565
A18: ='Compile Data'!$F$1 -> 0 | B18: =INDEX('Compile Data'!DL$95:DL$118,'Report - ALL (DASHBOARD)'!$W$3) ->  | C18: =INDEX('Compile Data'!DM$95:DM$118,'Report - ALL (DASHBOARD)'!$W$3) ->  | D18: =INDEX('Compile Data'!DN$95:DN$118,'Report - ALL (DASHBOARD)'!$W$3) ->  | E18: =INDEX('Compile Data'!DO$95:DO$118,'Report - ALL (DASHBOARD)'!$W$3) ->  | F18: =INDEX('Compile Data'!DP$95:DP$118,'Report - ALL (DASHBOARD)'!$W$3) ->  | G18: =INDEX('Compile Data'!DQ$95:DQ$118,'Report - ALL (DASHBOARD)'!$W$3) ->  | H18: =INDEX('Compile Data'!DR$95:DR$118,'Report - ALL (DASHBOARD)'!$W$3) ->  | I18: =INDEX('Compile Data'!DS$95:DS$118,'Report - ALL (DASHBOARD)'!$W$3) ->  | J18: =INDEX('Compile Data'!DT$95:DT$118,'Report - ALL (DASHBOARD)'!$W$3) ->  | K18: =INDEX('Compile Data'!DU$95:DU$118,'Report - ALL (DASHBOARD)'!$W$3) ->  | L18: =INDEX('Compile Data'!DV$95:DV$118,'Report - ALL (DASHBOARD)'!$W$3) ->  | M18: =INDEX('Compile Data'!DW$95:DW$118,'Report - ALL (DASHBOARD)'!$W$3) ->  | O18: ='Compile Data'!$F$1 -> 0 | P18: =INDEX('Compile Data'!$DL$95:$EI$118,'Report - ALL (DASHBOARD)'!$W$3,'Report - ALL (DASHBOARD)'!$W$4) ->  | Q18: =$P18-$P$14 ->  | R18: =$P18-$P$15 ->  | U18: ='Compile Data'!$F$1 -> 0 | V18: =INDEX('Compile Data'!$DL$95:$EI$118,12,'Report - ALL (DASHBOARD)'!$W$4) ->  | W18: =INDEX('Compile Data'!$DL$95:$EI$118,13,'Report - ALL (DASHBOARD)'!$W$4) ->  | X18: =INDEX('Compile Data'!$DL$95:$EI$118,14,'Report - ALL (DASHBOARD)'!$W$4) ->  | Y18: =INDEX('Compile Data'!$DL$95:$EI$118,15,'Report - ALL (DASHBOARD)'!$W$4) ->  | Z18: =INDEX('Compile Data'!$DL$95:$EI$118,16,'Report - ALL (DASHBOARD)'!$W$4) -> 
A19: ='Compile Data'!$G$1 -> 0 | B19: =INDEX('Compile Data'!EL$95:EL$118,'Report - ALL (DASHBOARD)'!$W$3) ->  | C19: =INDEX('Compile Data'!EM$95:EM$118,'Report - ALL (DASHBOARD)'!$W$3) ->  | D19: =INDEX('Compile Data'!EN$95:EN$118,'Report - ALL (DASHBOARD)'!$W$3) ->  | E19: =INDEX('Compile Data'!EO$95:EO$118,'Report - ALL (DASHBOARD)'!$W$3) ->  | F19: =INDEX('Compile Data'!EP$95:EP$118,'Report - ALL (DASHBOARD)'!$W$3) ->  | G19: =INDEX('Compile Data'!EQ$95:EQ$118,'Report - ALL (DASHBOARD)'!$W$3) ->  | H19: =INDEX('Compile Data'!ER$95:ER$118,'Report - ALL (DASHBOARD)'!$W$3) ->  | I19: =INDEX('Compile Data'!ES$95:ES$118,'Report - ALL (DASHBOARD)'!$W$3) ->  | J19: =INDEX('Compile Data'!ET$95:ET$118,'Report - ALL (DASHBOARD)'!$W$3) ->  | K19: =INDEX('Compile Data'!EU$95:EU$118,'Report - ALL (DASHBOARD)'!$W$3) ->  | L19: =INDEX('Compile Data'!EV$95:EV$118,'Report - ALL (DASHBOARD)'!$W$3) ->  | M19: =INDEX('Compile Data'!EW$95:EW$118,'Report - ALL (DASHBOARD)'!$W$3) ->  | O19: ='Compile Data'!$G$1 -> 0 | P19: =INDEX('Compile Data'!$EL$95:$FI$118,'Report - ALL (DASHBOARD)'!$W$3,'Report - ALL (DASHBOARD)'!$W$4) ->  | Q19: =$P19-$P$14 ->  | R19: =$P19-$P$15 ->  | U19: ='Compile Data'!$G$1 -> 0 | V19: =INDEX('Compile Data'!$EL$95:$FI$118,12,'Report - ALL (DASHBOARD)'!$W$4) ->  | W19: =INDEX('Compile Data'!$EL$95:$FI$118,13,'Report - ALL (DASHBOARD)'!$W$4) ->  | X19: =INDEX('Compile Data'!$EL$95:$FI$118,14,'Report - ALL (DASHBOARD)'!$W$4) ->  | Y19: =INDEX('Compile Data'!$EL$95:$FI$118,15,'Report - ALL (DASHBOARD)'!$W$4) ->  | Z19: =INDEX('Compile Data'!$EL$95:$FI$118,16,'Report - ALL (DASHBOARD)'!$W$4) -> 
A22: Annuals Plot: | O22: Exceedence Plot:
A24: Title: | B24: =INDEX(Other!$B$9:$B$33,'Report - ALL (DASHBOARD)'!$W$4) -> October-September | O24: Title: | P24: =INDEX(Other!$B$9:$B$33,'Report - ALL (DASHBOARD)'!$W$4) -> October-September
B25: ='Compile Data'!$B$5&" (PRELIMINARY)" -> Total Sites Diversion to Fill (PRELIMINARY) | P25: ='Compile Data'!$B$5&" (PRELIMINARY)" -> Total Sites Diversion to Fill (PRELIMINARY)
B26: =IF('Compile Data'!$B$10="CFS","Flow (CFS)",IF('Compile Data'!$B$10="TAF","Volume (TAF)",IF('Compile Data'!$B$10="KM","POSITION (KM)",""))) -> Volume (TAF) | P26: =IF('Compile Data'!$B$10="CFS","Flow (CFS)",IF('Compile Data'!$B$10="TAF","Volume (TAF)",IF('Compile Data'!$B$10="KM","POSITION (KM)",""))) -> Volume (TAF)
B28: ='Compile Data'!$B$1 -> NAA 011221 | C28: ='Compile Data'!$C$1 -> Alt 1A 011221 | D28: ='Compile Data'!$D$1 -> Alt 1B 011221 | E28: ='Compile Data'!$E$1 -> Alt 2 011221 | F28: ='Compile Data'!$F$1 -> 0 | G28: ='Compile Data'!$G$1 -> 0 | Q28: ='Compile Data'!$B$1 -> NAA 011221 | R28: ='Compile Data'!$C$1 -> Alt 1A 011221 | S28: ='Compile Data'!$D$1 -> Alt 1B 011221 | T28: ='Compile Data'!$E$1 -> Alt 2 011221 | U28: ='Compile Data'!$F$1 -> 0 | V28: ='Compile Data'!$G$1 -> 0
A29: 1922 | B29: =INDEX('Compile Data'!$L$12:$AI$93,$A29-1921,'Report - ALL (DASHBOARD)'!$W$4) -> 0 | C29: =INDEX('Compile Data'!$AL$12:$BI$93,$A29-1921,'Report - ALL (DASHBOARD)'!$W$4) -> 250.8859257 | D29: =INDEX('Compile Data'!$BL$12:$CI$93,$A29-1921,'Report - ALL (DASHBOARD)'!$W$4) -> 250.2483144 | E29: =INDEX('Compile Data'!$CL$12:$DI$93,$A29-1921,'Report - ALL (DASHBOARD)'!$W$4) -> 250.8859257 | F29: =INDEX('Compile Data'!$DL$12:$EI$93,$A29-1921,'Report - ALL (DASHBOARD)'!$W$4) ->  | G29: =INDEX('Compile Data'!$EL$12:$FI$93,$A29-1921,'Report - ALL (DASHBOARD)'!$W$4) ->  | O29: 1 | P29: =(O29-1)/81 -> 0 | Q29: =INDEX('Compile Data'!$L$121:$AI$202,$O29,'Report - ALL (DASHBOARD)'!$W$4) -> 0 | R29: =INDEX('Compile Data'!$AL$121:$BI$202,$O29,'Report - ALL (DASHBOARD)'!$W$4) -> 1210.523313 | S29: =INDEX('Compile Data'!$BL$121:$CI$202,$O29,'Report - ALL (DASHBOARD)'!$W$4) -> 1210.533708 | T29: =INDEX('Compile Data'!$CL$121:$DI$202,$O29,'Report - ALL (DASHBOARD)'!$W$4) -> 1148.130634 | U29: =INDEX('Compile Data'!$DL$121:$EI$202,$O29,'Report - ALL (DASHBOARD)'!$W$4) ->  | V29: =INDEX('Compile Data'!$EL$121:$FI$202,$O29,'Report - ALL (DASHBOARD)'!$W$4) -> 
A30: =A29+1 -> 1923 | B30: =INDEX('Compile Data'!$L$12:$AI$93,$A30-1921,'Report - ALL (DASHBOARD)'!$W$4) -> 0 | C30: =INDEX('Compile Data'!$AL$12:$BI$93,$A30-1921,'Report - ALL (DASHBOARD)'!$W$4) -> 35.57085308 | D30: =INDEX('Compile Data'!$BL$12:$CI$93,$A30-1921,'Report - ALL (DASHBOARD)'!$W$4) -> 35.58600181 | E30: =INDEX('Compile Data'!$CL$12:$DI$93,$A30-1921,'Report - ALL (DASHBOARD)'!$W$4) -> 35.57085281 | F30: =INDEX('Compile Data'!$DL$12:$EI$93,$A30-1921,'Report - ALL (DASHBOARD)'!$W$4) ->  | G30: =INDEX('Compile Data'!$EL$12:$FI$93,$A30-1921,'Report - ALL (DASHBOARD)'!$W$4) ->  | O30: 2 | P30: 0.01234567901 | Q30: =INDEX('Compile Data'!$L$121:$AI$202,$O30,'Report - ALL (DASHBOARD)'!$W$4) -> 0 | R30: =INDEX('Compile Data'!$AL$121:$BI$202,$O30,'Report - ALL (DASHBOARD)'!$W$4) -> 962.3541706 | S30: =INDEX('Compile Data'!$BL$121:$CI$202,$O30,'Report - ALL (DASHBOARD)'!$W$4) -> 962.3724092 | T30: =INDEX('Compile Data'!$CL$121:$DI$202,$O30,'Report - ALL (DASHBOARD)'!$W$4) -> 962.354781 | U30: =INDEX('Compile Data'!$DL$121:$EI$202,$O30,'Report - ALL (DASHBOARD)'!$W$4) ->  | V30: =INDEX('Compile Data'!$EL$121:$FI$202,$O30,'Report - ALL (DASHBOARD)'!$W$4) -> 
A31: =A30+1 -> 1924 | B31: =INDEX('Compile Data'!$L$12:$AI$93,$A31-1921,'Report - ALL (DASHBOARD)'!$W$4) -> 0 | C31: =INDEX('Compile Data'!$AL$12:$BI$93,$A31-1921,'Report - ALL (DASHBOARD)'!$W$4) -> 0 | D31: =INDEX('Compile Data'!$BL$12:$CI$93,$A31-1921,'Report - ALL (DASHBOARD)'!$W$4) -> 0 | E31: =INDEX('Compile Data'!$CL$12:$DI$93,$A31-1921,'Report - ALL (DASHBOARD)'!$W$4) -> 0 | F31: =INDEX('Compile Data'!$DL$12:$EI$93,$A31-1921,'Report - ALL (DASHBOARD)'!$W$4) ->  | G31: =INDEX('Compile Data'!$EL$12:$FI$93,$A31-1921,'Report - ALL (DASHBOARD)'!$W$4) ->  | O31: 3 | P31: 0.02469135802 | Q31: =INDEX('Compile Data'!$L$121:$AI$202,$O31,'Report - ALL (DASHBOARD)'!$W$4) -> 0 | R31: =INDEX('Compile Data'!$AL$121:$BI$202,$O31,'Report - ALL (DASHBOARD)'!$W$4) -> 763.5906358 | S31: =INDEX('Compile Data'!$BL$121:$CI$202,$O31,'Report - ALL (DASHBOARD)'!$W$4) -> 803.8176386 | T31: =INDEX('Compile Data'!$CL$121:$DI$202,$O31,'Report - ALL (DASHBOARD)'!$W$4) -> 778.165655 | U31: =INDEX('Compile Data'!$DL$121:$EI$202,$O31,'Report - ALL (DASHBOARD)'!$W$4) ->  | V31: =INDEX('Compile Data'!$EL$121:$FI$202,$O31,'Report - ALL (DASHBOARD)'!$W$4) -> 
A32: 1925 | B32: =INDEX('Compile Data'!$L$12:$AI$93,$A32-1921,'Report - ALL (DASHBOARD)'!$W$4) -> 0 | C32: =INDEX('Compile Data'!$AL$12:$BI$93,$A32-1921,'Report - ALL (DASHBOARD)'!$W$4) -> 223.5234065 | D32: =INDEX('Compile Data'!$BL$12:$CI$93,$A32-1921,'Report - ALL (DASHBOARD)'!$W$4) -> 223.6339546 | E32: =INDEX('Compile Data'!$CL$12:$DI$93,$A32-1921,'Report - ALL (DASHBOARD)'!$W$4) -> 223.2273033 | F32: =INDEX('Compile Data'!$DL$12:$EI$93,$A32-1921,'Report - ALL (DASHBOARD)'!$W$4) ->  | G32: =INDEX('Compile Data'!$EL$12:$FI$93,$A32-1921,'Report - ALL (DASHBOARD)'!$W$4) ->  | O32: 4 | P32: 0.03703703704 | Q32: =INDEX('Compile Data'!$L$121:$AI$202,$O32,'Report - ALL (DASHBOARD)'!$W$4) -> 0 | R32: =INDEX('Compile Data'!$AL$121:$BI$202,$O32,'Report - ALL (DASHBOARD)'!$W$4) -> 722.1027366 | S32: =INDEX('Compile Data'!$BL$121:$CI$202,$O32,'Report - ALL (DASHBOARD)'!$W$4) -> 785.1345865 | T32: =INDEX('Compile Data'!$CL$121:$DI$202,$O32,'Report - ALL (DASHBOARD)'!$W$4) -> 649.1559117 | U32: =INDEX('Compile Data'!$DL$121:$EI$202,$O32,'Report - ALL (DASHBOARD)'!$W$4) ->  | V32: =INDEX('Compile Data'!$EL$121:$FI$202,$O32,'Report - ALL (DASHBOARD)'!$W$4) -> 
A33: 1926 | B33: =INDEX('Compile Data'!$L$12:$AI$93,$A33-1921,'Report - ALL (DASHBOARD)'!$W$4) -> 0 | C33: =INDEX('Compile Data'!$AL$12:$BI$93,$A33-1921,'Report - ALL (DASHBOARD)'!$W$4) -> 142.0568431 | D33: =INDEX('Compile Data'!$BL$12:$CI$93,$A33-1921,'Report - ALL (DASHBOARD)'!$W$4) -> 142.1137618 | E33: =INDEX('Compile Data'!$CL$12:$DI$93,$A33-1921,'Report - ALL (DASHBOARD)'!$W$4) -> 142.352635 | F33: =INDEX('Compile Data'!$DL$12:$EI$93,$A33-1921,'Report - ALL (DASHBOARD)'!$W$4) ->  | G33: =INDEX('Compile Data'!$EL$12:$FI$93,$A33-1921,'Report - ALL (DASHBOARD)'!$W$4) ->  | O33: 5 | P33: 0.04938271605 | Q33: =INDEX('Compile Data'!$L$121:$AI$202,$O33,'Report - ALL (DASHBOARD)'!$W$4) -> 0 | R33: =INDEX('Compile Data'!$AL$121:$BI$202,$O33,'Report - ALL (DASHBOARD)'!$W$4) -> 648.9303827 | S33: =INDEX('Compile Data'!$BL$121:$CI$202,$O33,'Report - ALL (DASHBOARD)'!$W$4) -> 732.3291052 | T33: =INDEX('Compile Data'!$CL$121:$DI$202,$O33,'Report - ALL (DASHBOARD)'!$W$4) -> 626.4499549 | U33: =INDEX('Compile Data'!$DL$121:$EI$202,$O33,'Report - ALL (DASHBOARD)'!$W$4) ->  | V33: =INDEX('Compile Data'!$EL$121:$FI$202,$O33,'Report - ALL (DASHBOARD)'!$W$4) -> 
A34: 1927 | B34: =INDEX('Compile Data'!$L$12:$AI$93,$A34-1921,'Report - ALL (DASHBOARD)'!$W$4) -> 0 | C34: =INDEX('Compile Data'!$AL$12:$BI$93,$A34-1921,'Report - ALL (DASHBOARD)'!$W$4) -> 648.9303827 | D34: =INDEX('Compile Data'!$BL$12:$CI$93,$A34-1921,'Report - ALL (DASHBOARD)'!$W$4) -> 634.3195297 | E34: =INDEX('Compile Data'!$CL$12:$DI$93,$A34-1921,'Report - ALL (DASHBOARD)'!$W$4) -> 649.1559117 | F34: =INDEX('Compile Data'!$DL$12:$EI$93,$A34-1921,'Report - ALL (DASHBOARD)'!$W$4) ->  | G34: =INDEX('Compile Data'!$EL$12:$FI$93,$A34-1921,'Report - ALL (DASHBOARD)'!$W$4) ->  | O34: 6 | P34: 0.06172839506 | Q34: =INDEX('Compile Data'!$L$121:$AI$202,$O34,'Report - ALL (DASHBOARD)'!$W$4) -> 0 | R34: =INDEX('Compile Data'!$AL$121:$BI$202,$O34,'Report - ALL (DASHBOARD)'!$W$4) -> 630.5160827 | S34: =INDEX('Compile Data'!$BL$121:$CI$202,$O34,'Report - ALL (DASHBOARD)'!$W$4) -> 722.1760401 | T34: =INDEX('Compile Data'!$CL$121:$DI$202,$O34,'Report - ALL (DASHBOARD)'!$W$4) -> 620.795628 | U34: =INDEX('Compile Data'!$DL$121:$EI$202,$O34,'Report - ALL (DASHBOARD)'!$W$4) ->  | V34: =INDEX('Compile Data'!$EL$121:$FI$202,$O34,'Report - ALL (DASHBOARD)'!$W$4) -> 
A35: 1928 | B35: =INDEX('Compile Data'!$L$12:$AI$93,$A35-1921,'Report - ALL (DASHBOARD)'!$W$4) -> 0 | C35: =INDEX('Compile Data'!$AL$12:$BI$93,$A35-1921,'Report - ALL (DASHBOARD)'!$W$4) -> 285.4005875 | D35: =INDEX('Compile Data'!$BL$12:$CI$93,$A35-1921,'Report - ALL (DASHBOARD)'!$W$4) -> 285.2644033 | E35: =INDEX('Compile Data'!$CL$12:$DI$93,$A35-1921,'Report - ALL (DASHBOARD)'!$W$4) -> 285.1582371 | F35: =INDEX('Compile Data'!$DL$12:$EI$93,$A35-1921,'Report - ALL (DASHBOARD)'!$W$4) ->  | G35: =INDEX('Compile Data'!$EL$12:$FI$93,$A35-1921,'Report - ALL (DASHBOARD)'!$W$4) ->  | O35: 7 | P35: 0.07407407407 | Q35: =INDEX('Compile Data'!$L$121:$AI$202,$O35,'Report - ALL (DASHBOARD)'!$W$4) -> 0 | R35: =INDEX('Compile Data'!$AL$121:$BI$202,$O35,'Report - ALL (DASHBOARD)'!$W$4) -> 625.7963394 | S35: =INDEX('Compile Data'!$BL$121:$CI$202,$O35,'Report - ALL (DASHBOARD)'!$W$4) -> 635.0991869 | T35: =INDEX('Compile Data'!$CL$121:$DI$202,$O35,'Report - ALL (DASHBOARD)'!$W$4) -> 566.8626997 | U35: =INDEX('Compile Data'!$DL$121:$EI$202,$O35,'Report - ALL (DASHBOARD)'!$W$4) ->  | V35: =INDEX('Compile Data'!$EL$121:$FI$202,$O35,'Report - ALL (DASHBOARD)'!$W$4) -> 
A36: 1929 | B36: =INDEX('Compile Data'!$L$12:$AI$93,$A36-1921,'Report - ALL (DASHBOARD)'!$W$4) -> 0 | C36: =INDEX('Compile Data'!$AL$12:$BI$93,$A36-1921,'Report - ALL (DASHBOARD)'!$W$4) -> 15.05442456 | D36: =INDEX('Compile Data'!$BL$12:$CI$93,$A36-1921,'Report - ALL (DASHBOARD)'!$W$4) -> 15.05476575 | E36: =INDEX('Compile Data'!$CL$12:$DI$93,$A36-1921,'Report - ALL (DASHBOARD)'!$W$4) -> 15.05418443 | F36: =INDEX('Compile Data'!$DL$12:$EI$93,$A36-1921,'Report - ALL (DASHBOARD)'!$W$4) ->  | G36: =INDEX('Compile Data'!$EL$12:$FI$93,$A36-1921,'Report - ALL (DASHBOARD)'!$W$4) ->  | O36: 8 | P36: 0.08641975309 | Q36: =INDEX('Compile Data'!$L$121:$AI$202,$O36,'Report - ALL (DASHBOARD)'!$W$4) -> 0 | R36: =INDEX('Compile Data'!$AL$121:$BI$202,$O36,'Report - ALL (DASHBOARD)'!$W$4) -> 620.8547458 | S36: =INDEX('Compile Data'!$BL$121:$CI$202,$O36,'Report - ALL (DASHBOARD)'!$W$4) -> 634.3195297 | T36: =INDEX('Compile Data'!$CL$121:$DI$202,$O36,'Report - ALL (DASHBOARD)'!$W$4) -> 540.8812674 | U36: =INDEX('Compile Data'!$DL$121:$EI$202,$O36,'Report - ALL (DASHBOARD)'!$W$4) ->  | V36: =INDEX('Compile Data'!$EL$121:$FI$202,$O36,'Report - ALL (DASHBOARD)'!$W$4) -> 
A37: 1930 | B37: =INDEX('Compile Data'!$L$12:$AI$93,$A37-1921,'Report - ALL (DASHBOARD)'!$W$4) -> 0 | C37: =INDEX('Compile Data'!$AL$12:$BI$93,$A37-1921,'Report - ALL (DASHBOARD)'!$W$4) -> 187.7159337 | D37: =INDEX('Compile Data'!$BL$12:$CI$93,$A37-1921,'Report - ALL (DASHBOARD)'!$W$4) -> 187.7209274 | E37: =INDEX('Compile Data'!$CL$12:$DI$93,$A37-1921,'Report - ALL (DASHBOARD)'!$W$4) -> 187.7165605 | F37: =INDEX('Compile Data'!$DL$12:$EI$93,$A37-1921,'Report - ALL (DASHBOARD)'!$W$4) ->  | G37: =INDEX('Compile Data'!$EL$12:$FI$93,$A37-1921,'Report - ALL (DASHBOARD)'!$W$4) ->  | O37: 9 | P37: 0.0987654321 | Q37: =INDEX('Compile Data'!$L$121:$AI$202,$O37,'Report - ALL (DASHBOARD)'!$W$4) -> 0 | R37: =INDEX('Compile Data'!$AL$121:$BI$202,$O37,'Report - ALL (DASHBOARD)'!$W$4) -> 600.7763373 | S37: =INDEX('Compile Data'!$BL$121:$CI$202,$O37,'Report - ALL (DASHBOARD)'!$W$4) -> 621.1740263 | T37: =INDEX('Compile Data'!$CL$121:$DI$202,$O37,'Report - ALL (DASHBOARD)'!$W$4) -> 533.550596 | U37: =INDEX('Compile Data'!$DL$121:$EI$202,$O37,'Report - ALL (DASHBOARD)'!$W$4) ->  | V37: =INDEX('Compile Data'!$EL$121:$FI$202,$O37,'Report - ALL (DASHBOARD)'!$W$4) -> 
A38: 1931 | B38: =INDEX('Compile Data'!$L$12:$AI$93,$A38-1921,'Report - ALL (DASHBOARD)'!$W$4) -> 0 | C38: =INDEX('Compile Data'!$AL$12:$BI$93,$A38-1921,'Report - ALL (DASHBOARD)'!$W$4) -> 0 | D38: =INDEX('Compile Data'!$BL$12:$CI$93,$A38-1921,'Report - ALL (DASHBOARD)'!$W$4) -> 0 | E38: =INDEX('Compile Data'!$CL$12:$DI$93,$A38-1921,'Report - ALL (DASHBOARD)'!$W$4) -> 0 | F38: =INDEX('Compile Data'!$DL$12:$EI$93,$A38-1921,'Report - ALL (DASHBOARD)'!$W$4) ->  | G38: =INDEX('Compile Data'!$EL$12:$FI$93,$A38-1921,'Report - ALL (DASHBOARD)'!$W$4) ->  | O38: 10 | P38: 0.1111111111 | Q38: =INDEX('Compile Data'!$L$121:$AI$202,$O38,'Report - ALL (DASHBOARD)'!$W$4) -> 0 | R38: =INDEX('Compile Data'!$AL$121:$BI$202,$O38,'Report - ALL (DASHBOARD)'!$W$4) -> 566.098723 | S38: =INDEX('Compile Data'!$BL$121:$CI$202,$O38,'Report - ALL (DASHBOARD)'!$W$4) -> 614.816505 | T38: =INDEX('Compile Data'!$CL$121:$DI$202,$O38,'Report - ALL (DASHBOARD)'!$W$4) -> 533.1485722 | U38: =INDEX('Compile Data'!$DL$121:$EI$202,$O38,'Report - ALL (DASHBOARD)'!$W$4) ->  | V38: =INDEX('Compile Data'!$EL$121:$FI$202,$O38,'Report - ALL (DASHBOARD)'!$W$4) -> 
A39: 1932 | B39: =INDEX('Compile Data'!$L$12:$AI$93,$A39-1921,'Report - ALL (DASHBOARD)'!$W$4) -> 0 | C39: =INDEX('Compile Data'!$AL$12:$BI$93,$A39-1921,'Report - ALL (DASHBOARD)'!$W$4) -> 124.5302478 | D39: =INDEX('Compile Data'!$BL$12:$CI$93,$A39-1921,'Report - ALL (DASHBOARD)'!$W$4) -> 125.0061924 | E39: =INDEX('Compile Data'!$CL$12:$DI$93,$A39-1921,'Report - ALL (DASHBOARD)'!$W$4) -> 124.5272269 | F39: =INDEX('Compile Data'!$DL$12:$EI$93,$A39-1921,'Report - ALL (DASHBOARD)'!$W$4) ->  | G39: =INDEX('Compile Data'!$EL$12:$FI$93,$A39-1921,'Report - ALL (DASHBOARD)'!$W$4) ->  | O39: 11 | P39: 0.1234567901 | Q39: =INDEX('Compile Data'!$L$121:$AI$202,$O39,'Report - ALL (DASHBOARD)'!$W$4) -> 0 | R39: =INDEX('Compile Data'!$AL$121:$BI$202,$O39,'Report - ALL (DASHBOARD)'!$W$4) -> 550.4867425 | S39: =INDEX('Compile Data'!$BL$121:$CI$202,$O39,'Report - ALL (DASHBOARD)'!$W$4) -> 564.3345474 | T39: =INDEX('Compile Data'!$CL$121:$DI$202,$O39,'Report - ALL (DASHBOARD)'!$W$4) -> 528.7914281 | U39: =INDEX('Compile Data'!$DL$121:$EI$202,$O39,'Report - ALL (DASHBOARD)'!$W$4) ->  | V39: =INDEX('Compile Data'!$EL$121:$FI$202,$O39,'Report - ALL (DASHBOARD)'!$W$4) -> 
A40: 1933 | B40: =INDEX('Compile Data'!$L$12:$AI$93,$A40-1921,'Report - ALL (DASHBOARD)'!$W$4) -> 0 | C40: =INDEX('Compile Data'!$AL$12:$BI$93,$A40-1921,'Report - ALL (DASHBOARD)'!$W$4) -> 93.18726816 | D40: =INDEX('Compile Data'!$BL$12:$CI$93,$A40-1921,'Report - ALL (DASHBOARD)'!$W$4) -> 93.21164122 | E40: =INDEX('Compile Data'!$CL$12:$DI$93,$A40-1921,'Report - ALL (DASHBOARD)'!$W$4) -> 93.18695317 | F40: =INDEX('Compile Data'!$DL$12:$EI$93,$A40-1921,'Report - ALL (DASHBOARD)'!$W$4) ->  | G40: =INDEX('Compile Data'!$EL$12:$FI$93,$A40-1921,'Report - ALL (DASHBOARD)'!$W$4) ->  | O40: 12 | P40: 0.1358024691 | Q40: =INDEX('Compile Data'!$L$121:$AI$202,$O40,'Report - ALL (DASHBOARD)'!$W$4) -> 0 | R40: =INDEX('Compile Data'!$AL$121:$BI$202,$O40,'Report - ALL (DASHBOARD)'!$W$4) -> 533.5520379 | S40: =INDEX('Compile Data'!$BL$121:$CI$202,$O40,'Report - ALL (DASHBOARD)'!$W$4) -> 553.7699172 | T40: =INDEX('Compile Data'!$CL$121:$DI$202,$O40,'Report - ALL (DASHBOARD)'!$W$4) -> 520.5456469 | U40: =INDEX('Compile Data'!$DL$121:$EI$202,$O40,'Report - ALL (DASHBOARD)'!$W$4) ->  | V40: =INDEX('Compile Data'!$EL$121:$FI$202,$O40,'Report - ALL (DASHBOARD)'!$W$4) -> 
A41: 1934 | B41: =INDEX('Compile Data'!$L$12:$AI$93,$A41-1921,'Report - ALL (DASHBOARD)'!$W$4) -> 0 | C41: =INDEX('Compile Data'!$AL$12:$BI$93,$A41-1921,'Report - ALL (DASHBOARD)'!$W$4) -> 76.47698424 | D41: =INDEX('Compile Data'!$BL$12:$CI$93,$A41-1921,'Report - ALL (DASHBOARD)'!$W$4) -> 82.3142259 | E41: =INDEX('Compile Data'!$CL$12:$DI$93,$A41-1921,'Report - ALL (DASHBOARD)'!$W$4) -> 79.00883 | F41: =INDEX('Compile Data'!$DL$12:$EI$93,$A41-1921,'Report - ALL (DASHBOARD)'!$W$4) ->  | G41: =INDEX('Compile Data'!$EL$12:$FI$93,$A41-1921,'Report - ALL (DASHBOARD)'!$W$4) ->  | O41: 13 | P41: 0.1481481481 | Q41: =INDEX('Compile Data'!$L$121:$AI$202,$O41,'Report - ALL (DASHBOARD)'!$W$4) -> 0 | R41: =INDEX('Compile Data'!$AL$121:$BI$202,$O41,'Report - ALL (DASHBOARD)'!$W$4) -> 533.4002691 | S41: =INDEX('Compile Data'!$BL$121:$CI$202,$O41,'Report - ALL (DASHBOARD)'!$W$4) -> 541.7605228 | T41: =INDEX('Compile Data'!$CL$121:$DI$202,$O41,'Report - ALL (DASHBOARD)'!$W$4) -> 482.6235831 | U41: =INDEX('Compile Data'!$DL$121:$EI$202,$O41,'Report - ALL (DASHBOARD)'!$W$4) ->  | V41: =INDEX('Compile Data'!$EL$121:$FI$202,$O41,'Report - ALL (DASHBOARD)'!$W$4) -> 
A42: 1935 | B42: =INDEX('Compile Data'!$L$12:$AI$93,$A42-1921,'Report - ALL (DASHBOARD)'!$W$4) -> 0 | C42: =INDEX('Compile Data'!$AL$12:$BI$93,$A42-1921,'Report - ALL (DASHBOARD)'!$W$4) -> 482.5934103 | D42: =INDEX('Compile Data'!$BL$12:$CI$93,$A42-1921,'Report - ALL (DASHBOARD)'!$W$4) -> 483.6060379 | E42: =INDEX('Compile Data'!$CL$12:$DI$93,$A42-1921,'Report - ALL (DASHBOARD)'!$W$4) -> 482.6235831 | F42: =INDEX('Compile Data'!$DL$12:$EI$93,$A42-1921,'Report - ALL (DASHBOARD)'!$W$4) ->  | G42: =INDEX('Compile Data'!$EL$12:$FI$93,$A42-1921,'Report - ALL (DASHBOARD)'!$W$4) ->  | O42: 14 | P42: 0.1604938272 | Q42: =INDEX('Compile Data'!$L$121:$AI$202,$O42,'Report - ALL (DASHBOARD)'!$W$4) -> 0 | R42: =INDEX('Compile Data'!$AL$121:$BI$202,$O42,'Report - ALL (DASHBOARD)'!$W$4) -> 520.5442775 | S42: =INDEX('Compile Data'!$BL$121:$CI$202,$O42,'Report - ALL (DASHBOARD)'!$W$4) -> 533.5780972 | T42: =INDEX('Compile Data'!$CL$121:$DI$202,$O42,'Report - ALL (DASHBOARD)'!$W$4) -> 476.7440734 | U42: =INDEX('Compile Data'!$DL$121:$EI$202,$O42,'Report - ALL (DASHBOARD)'!$W$4) ->  | V42: =INDEX('Compile Data'!$EL$121:$FI$202,$O42,'Report - ALL (DASHBOARD)'!$W$4) -> 
A43: 1936 | B43: =INDEX('Compile Data'!$L$12:$AI$93,$A43-1921,'Report - ALL (DASHBOARD)'!$W$4) -> 0 | C43: =INDEX('Compile Data'!$AL$12:$BI$93,$A43-1921,'Report - ALL (DASHBOARD)'!$W$4) -> 335.4398963 | D43: =INDEX('Compile Data'!$BL$12:$CI$93,$A43-1921,'Report - ALL (DASHBOARD)'!$W$4) -> 335.4469626 | E43: =INDEX('Compile Data'!$CL$12:$DI$93,$A43-1921,'Report - ALL (DASHBOARD)'!$W$4) -> 336.3193495 | F43: =INDEX('Compile Data'!$DL$12:$EI$93,$A43-1921,'Report - ALL (DASHBOARD)'!$W$4) ->  | G43: =INDEX('Compile Data'!$EL$12:$FI$93,$A43-1921,'Report - ALL (DASHBOARD)'!$W$4) ->  | O43: 15 | P43: 0.1728395062 | Q43: =INDEX('Compile Data'!$L$121:$AI$202,$O43,'Report - ALL (DASHBOARD)'!$W$4) -> 0 | R43: =INDEX('Compile Data'!$AL$121:$BI$202,$O43,'Report - ALL (DASHBOARD)'!$W$4) -> 482.5934103 | S43: =INDEX('Compile Data'!$BL$121:$CI$202,$O43,'Report - ALL (DASHBOARD)'!$W$4) -> 520.7272867 | T43: =INDEX('Compile Data'!$CL$121:$DI$202,$O43,'Report - ALL (DASHBOARD)'!$W$4) -> 472.5769882 | U43: =INDEX('Compile Data'!$DL$121:$EI$202,$O43,'Report - ALL (DASHBOARD)'!$W$4) ->  | V43: =INDEX('Compile Data'!$EL$121:$FI$202,$O43,'Report - ALL (DASHBOARD)'!$W$4) -> 
A44: 1937 | B44: =INDEX('Compile Data'!$L$12:$AI$93,$A44-1921,'Report - ALL (DASHBOARD)'!$W$4) -> 0 | C44: =INDEX('Compile Data'!$AL$12:$BI$93,$A44-1921,'Report - ALL (DASHBOARD)'!$W$4) -> 213.2852136 | D44: =INDEX('Compile Data'!$BL$12:$CI$93,$A44-1921,'Report - ALL (DASHBOARD)'!$W$4) -> 213.3073271 | E44: =INDEX('Compile Data'!$CL$12:$DI$93,$A44-1921,'Report - ALL (DASHBOARD)'!$W$4) -> 213.2898928 | F44: =INDEX('Compile Data'!$DL$12:$EI$93,$A44-1921,'Report - ALL (DASHBOARD)'!$W$4) ->  | G44: =INDEX('Compile Data'!$EL$12:$FI$93,$A44-1921,'Report - ALL (DASHBOARD)'!$W$4) ->  | O44: 16 | P44: 0.1851851852 | Q44: =INDEX('Compile Data'!$L$121:$AI$202,$O44,'Report - ALL (DASHBOARD)'!$W$4) -> 0 | R44: =INDEX('Compile Data'!$AL$121:$BI$202,$O44,'Report - ALL (DASHBOARD)'!$W$4) -> 471.9036416 | S44: =INDEX('Compile Data'!$BL$121:$CI$202,$O44,'Report - ALL (DASHBOARD)'!$W$4) -> 483.6060379 | T44: =INDEX('Compile Data'!$CL$121:$DI$202,$O44,'Report - ALL (DASHBOARD)'!$W$4) -> 431.7649047 | U44: =INDEX('Compile Data'!$DL$121:$EI$202,$O44,'Report - ALL (DASHBOARD)'!$W$4) ->  | V44: =INDEX('Compile Data'!$EL$121:$FI$202,$O44,'Report - ALL (DASHBOARD)'!$W$4) -> 
A45: 1938 | B45: =INDEX('Compile Data'!$L$12:$AI$93,$A45-1921,'Report - ALL (DASHBOARD)'!$W$4) -> 0 | C45: =INDEX('Compile Data'!$AL$12:$BI$93,$A45-1921,'Report - ALL (DASHBOARD)'!$W$4) -> 962.3541706 | D45: =INDEX('Compile Data'!$BL$12:$CI$93,$A45-1921,'Report - ALL (DASHBOARD)'!$W$4) -> 962.3724092 | E45: =INDEX('Compile Data'!$CL$12:$DI$93,$A45-1921,'Report - ALL (DASHBOARD)'!$W$4) -> 962.354781 | F45: =INDEX('Compile Data'!$DL$12:$EI$93,$A45-1921,'Report - ALL (DASHBOARD)'!$W$4) ->  | G45: =INDEX('Compile Data'!$EL$12:$FI$93,$A45-1921,'Report - ALL (DASHBOARD)'!$W$4) ->  | O45: 17 | P45: 0.1975308642 | Q45: =INDEX('Compile Data'!$L$121:$AI$202,$O45,'Report - ALL (DASHBOARD)'!$W$4) -> 0 | R45: =INDEX('Compile Data'!$AL$121:$BI$202,$O45,'Report - ALL (DASHBOARD)'!$W$4) -> 431.764631 | S45: =INDEX('Compile Data'!$BL$121:$CI$202,$O45,'Report - ALL (DASHBOARD)'!$W$4) -> 471.8959486 | T45: =INDEX('Compile Data'!$CL$121:$DI$202,$O45,'Report - ALL (DASHBOARD)'!$W$4) -> 407.7598494 | U45: =INDEX('Compile Data'!$DL$121:$EI$202,$O45,'Report - ALL (DASHBOARD)'!$W$4) ->  | V45: =INDEX('Compile Data'!$EL$121:$FI$202,$O45,'Report - ALL (DASHBOARD)'!$W$4) -> 
A46: 1939 | B46: =INDEX('Compile Data'!$L$12:$AI$93,$A46-1921,'Report - ALL (DASHBOARD)'!$W$4) -> 0 | C46: =INDEX('Compile Data'!$AL$12:$BI$93,$A46-1921,'Report - ALL (DASHBOARD)'!$W$4) -> 0 | D46: =INDEX('Compile Data'!$BL$12:$CI$93,$A46-1921,'Report - ALL (DASHBOARD)'!$W$4) -> 0 | E46: =INDEX('Compile Data'!$CL$12:$DI$93,$A46-1921,'Report - ALL (DASHBOARD)'!$W$4) -> 0 | F46: =INDEX('Compile Data'!$DL$12:$EI$93,$A46-1921,'Report - ALL (DASHBOARD)'!$W$4) ->  | G46: =INDEX('Compile Data'!$EL$12:$FI$93,$A46-1921,'Report - ALL (DASHBOARD)'!$W$4) ->  | O46: 18 | P46: 0.2098765432 | Q46: =INDEX('Compile Data'!$L$121:$AI$202,$O46,'Report - ALL (DASHBOARD)'!$W$4) -> 0 | R46: =INDEX('Compile Data'!$AL$121:$BI$202,$O46,'Report - ALL (DASHBOARD)'!$W$4) -> 369.3123104 | S46: =INDEX('Compile Data'!$BL$121:$CI$202,$O46,'Report - ALL (DASHBOARD)'!$W$4) -> 431.846208 | T46: =INDEX('Compile Data'!$CL$121:$DI$202,$O46,'Report - ALL (DASHBOARD)'!$W$4) -> 368.188634 | U46: =INDEX('Compile Data'!$DL$121:$EI$202,$O46,'Report - ALL (DASHBOARD)'!$W$4) ->  | V46: =INDEX('Compile Data'!$EL$121:$FI$202,$O46,'Report - ALL (DASHBOARD)'!$W$4) -> 
A47: 1940 | B47: =INDEX('Compile Data'!$L$12:$AI$93,$A47-1921,'Report - ALL (DASHBOARD)'!$W$4) -> 0 | C47: =INDEX('Compile Data'!$AL$12:$BI$93,$A47-1921,'Report - ALL (DASHBOARD)'!$W$4) -> 566.098723 | D47: =INDEX('Compile Data'!$BL$12:$CI$93,$A47-1921,'Report - ALL (DASHBOARD)'!$W$4) -> 564.3345474 | E47: =INDEX('Compile Data'!$CL$12:$DI$93,$A47-1921,'Report - ALL (DASHBOARD)'!$W$4) -> 566.8626997 | F47: =INDEX('Compile Data'!$DL$12:$EI$93,$A47-1921,'Report - ALL (DASHBOARD)'!$W$4) ->  | G47: =INDEX('Compile Data'!$EL$12:$FI$93,$A47-1921,'Report - ALL (DASHBOARD)'!$W$4) ->  | O47: 19 | P47: 0.2222222222 | Q47: =INDEX('Compile Data'!$L$121:$AI$202,$O47,'Report - ALL (DASHBOARD)'!$W$4) -> 0 | R47: =INDEX('Compile Data'!$AL$121:$BI$202,$O47,'Report - ALL (DASHBOARD)'!$W$4) -> 360.7439456 | S47: =INDEX('Compile Data'!$BL$121:$CI$202,$O47,'Report - ALL (DASHBOARD)'!$W$4) -> 368.9068923 | T47: =INDEX('Compile Data'!$CL$121:$DI$202,$O47,'Report - ALL (DASHBOARD)'!$W$4) -> 336.3193495 | U47: =INDEX('Compile Data'!$DL$121:$EI$202,$O47,'Report - ALL (DASHBOARD)'!$W$4) ->  | V47: =INDEX('Compile Data'!$EL$121:$FI$202,$O47,'Report - ALL (DASHBOARD)'!$W$4) -> 
A48: 1941 | B48: =INDEX('Compile Data'!$L$12:$AI$93,$A48-1921,'Report - ALL (DASHBOARD)'!$W$4) -> 0 | C48: =INDEX('Compile Data'!$AL$12:$BI$93,$A48-1921,'Report - ALL (DASHBOARD)'!$W$4) -> 600.7763373 | D48: =INDEX('Compile Data'!$BL$12:$CI$93,$A48-1921,'Report - ALL (DASHBOARD)'!$W$4) -> 732.3291052 | E48: =INDEX('Compile Data'!$CL$12:$DI$93,$A48-1921,'Report - ALL (DASHBOARD)'!$W$4) -> 407.7598494 | F48: =INDEX('Compile Data'!$DL$12:$EI$93,$A48-1921,'Report - ALL (DASHBOARD)'!$W$4) ->  | G48: =INDEX('Compile Data'!$EL$12:$FI$93,$A48-1921,'Report - ALL (DASHBOARD)'!$W$4) ->  | O48: 20 | P48: 0.2345679012 | Q48: =INDEX('Compile Data'!$L$121:$AI$202,$O48,'Report - ALL (DASHBOARD)'!$W$4) -> 0 | R48: =INDEX('Compile Data'!$AL$121:$BI$202,$O48,'Report - ALL (DASHBOARD)'!$W$4) -> 335.4398963 | S48: =INDEX('Compile Data'!$BL$121:$CI$202,$O48,'Report - ALL (DASHBOARD)'!$W$4) -> 342.0689107 | T48: =INDEX('Compile Data'!$CL$121:$DI$202,$O48,'Report - ALL (DASHBOARD)'!$W$4) -> 327.1375971 | U48: =INDEX('Compile Data'!$DL$121:$EI$202,$O48,'Report - ALL (DASHBOARD)'!$W$4) ->  | V48: =INDEX('Compile Data'!$EL$121:$FI$202,$O48,'Report - ALL (DASHBOARD)'!$W$4) -> 
A49: 1942 | B49: =INDEX('Compile Data'!$L$12:$AI$93,$A49-1921,'Report - ALL (DASHBOARD)'!$W$4) -> 0 | C49: =INDEX('Compile Data'!$AL$12:$BI$93,$A49-1921,'Report - ALL (DASHBOARD)'!$W$4) -> 118.1396524 | D49: =INDEX('Compile Data'!$BL$12:$CI$93,$A49-1921,'Report - ALL (DASHBOARD)'!$W$4) -> 117.9854096 | E49: =INDEX('Compile Data'!$CL$12:$DI$93,$A49-1921,'Report - ALL (DASHBOARD)'!$W$4) -> 116.0513316 | F49: =INDEX('Compile Data'!$DL$12:$EI$93,$A49-1921,'Report - ALL (DASHBOARD)'!$W$4) ->  | G49: =INDEX('Compile Data'!$EL$12:$FI$93,$A49-1921,'Report - ALL (DASHBOARD)'!$W$4) ->  | O49: 21 | P49: 0.2469135802 | Q49: =INDEX('Compile Data'!$L$121:$AI$202,$O49,'Report - ALL (DASHBOARD)'!$W$4) -> 0 | R49: =INDEX('Compile Data'!$AL$121:$BI$202,$O49,'Report - ALL (DASHBOARD)'!$W$4) -> 285.4005875 | S49: =INDEX('Compile Data'!$BL$121:$CI$202,$O49,'Report - ALL (DASHBOARD)'!$W$4) -> 335.4469626 | T49: =INDEX('Compile Data'!$CL$121:$DI$202,$O49,'Report - ALL (DASHBOARD)'!$W$4) -> 285.1582371 | U49: =INDEX('Compile Data'!$DL$121:$EI$202,$O49,'Report - ALL (DASHBOARD)'!$W$4) ->  | V49: =INDEX('Compile Data'!$EL$121:$FI$202,$O49,'Report - ALL (DASHBOARD)'!$W$4) -> 
A50: 1943 | B50: =INDEX('Compile Data'!$L$12:$AI$93,$A50-1921,'Report - ALL (DASHBOARD)'!$W$4) -> 0 | C50: =INDEX('Compile Data'!$AL$12:$BI$93,$A50-1921,'Report - ALL (DASHBOARD)'!$W$4) -> 106.5901706 | D50: =INDEX('Compile Data'!$BL$12:$CI$93,$A50-1921,'Report - ALL (DASHBOARD)'!$W$4) -> 113.4675237 | E50: =INDEX('Compile Data'!$CL$12:$DI$93,$A50-1921,'Report - ALL (DASHBOARD)'!$W$4) -> 105.3300499 | F50: =INDEX('Compile Data'!$DL$12:$EI$93,$A50-1921,'Report - ALL (DASHBOARD)'!$W$4) ->  | G50: =INDEX('Compile Data'!$EL$12:$FI$93,$A50-1921,'Report - ALL (DASHBOARD)'!$W$4) ->  | O50: 22 | P50: 0.2592592593 | Q50: =INDEX('Compile Data'!$L$121:$AI$202,$O50,'Report - ALL (DASHBOARD)'!$W$4) -> 0 | R50: =INDEX('Compile Data'!$AL$121:$BI$202,$O50,'Report - ALL (DASHBOARD)'!$W$4) -> 280.1358075 | S50: =INDEX('Compile Data'!$BL$121:$CI$202,$O50,'Report - ALL (DASHBOARD)'!$W$4) -> 310.5850721 | T50: =INDEX('Compile Data'!$CL$121:$DI$202,$O50,'Report - ALL (DASHBOARD)'!$W$4) -> 280.1380857 | U50: =INDEX('Compile Data'!$DL$121:$EI$202,$O50,'Report - ALL (DASHBOARD)'!$W$4) ->  | V50: =INDEX('Compile Data'!$EL$121:$FI$202,$O50,'Report - ALL (DASHBOARD)'!$W$4) -> 
A51: 1944 | B51: =INDEX('Compile Data'!$L$12:$AI$93,$A51-1921,'Report - ALL (DASHBOARD)'!$W$4) -> 0 | C51: =INDEX('Compile Data'!$AL$12:$BI$93,$A51-1921,'Report - ALL (DASHBOARD)'!$W$4) -> 132.2293797 | D51: =INDEX('Compile Data'!$BL$12:$CI$93,$A51-1921,'Report - ALL (DASHBOARD)'!$W$4) -> 132.2129595 | E51: =INDEX('Compile Data'!$CL$12:$DI$93,$A51-1921,'Report - ALL (DASHBOARD)'!$W$4) -> 132.229334 | F51: =INDEX('Compile Data'!$DL$12:$EI$93,$A51-1921,'Report - ALL (DASHBOARD)'!$W$4) ->  | G51: =INDEX('Compile Data'!$EL$12:$FI$93,$A51-1921,'Report - ALL (DASHBOARD)'!$W$4) ->  | O51: 23 | P51: 0.2716049383 | Q51: =INDEX('Compile Data'!$L$121:$AI$202,$O51,'Report - ALL (DASHBOARD)'!$W$4) -> 0 | R51: =INDEX('Compile Data'!$AL$121:$BI$202,$O51,'Report - ALL (DASHBOARD)'!$W$4) -> 272.1129409 | S51: =INDEX('Compile Data'!$BL$121:$CI$202,$O51,'Report - ALL (DASHBOARD)'!$W$4) -> 286.4130414 | T51: =INDEX('Compile Data'!$CL$121:$DI$202,$O51,'Report - ALL (DASHBOARD)'!$W$4) -> 268.6783825 | U51: =INDEX('Compile Data'!$DL$121:$EI$202,$O51,'Report - ALL (DASHBOARD)'!$W$4) ->  | V51: =INDEX('Compile Data'!$EL$121:$FI$202,$O51,'Report - ALL (DASHBOARD)'!$W$4) -> 
A52: 1945 | B52: =INDEX('Compile Data'!$L$12:$AI$93,$A52-1921,'Report - ALL (DASHBOARD)'!$W$4) -> 0 | C52: =INDEX('Compile Data'!$AL$12:$BI$93,$A52-1921,'Report - ALL (DASHBOARD)'!$W$4) -> 202.6255366 | D52: =INDEX('Compile Data'!$BL$12:$CI$93,$A52-1921,'Report - ALL (DASHBOARD)'!$W$4) -> 209.4831376 | E52: =INDEX('Compile Data'!$CL$12:$DI$93,$A52-1921,'Report - ALL (DASHBOARD)'!$W$4) -> 202.6300671 | F52: =INDEX('Compile Data'!$DL$12:$EI$93,$A52-1921,'Report - ALL (DASHBOARD)'!$W$4) ->  | G52: =INDEX('Compile Data'!$EL$12:$FI$93,$A52-1921,'Report - ALL (DASHBOARD)'!$W$4) ->  | O52: 24 | P52: 0.2839506173 | Q52: =INDEX('Compile Data'!$L$121:$AI$202,$O52,'Report - ALL (DASHBOARD)'!$W$4) -> 0 | R52: =INDEX('Compile Data'!$AL$121:$BI$202,$O52,'Report - ALL (DASHBOARD)'!$W$4) -> 258.4000646 | S52: =INDEX('Compile Data'!$BL$121:$CI$202,$O52,'Report - ALL (DASHBOARD)'!$W$4) -> 285.2644033 | T52: =INDEX('Compile Data'!$CL$121:$DI$202,$O52,'Report - ALL (DASHBOARD)'!$W$4) -> 250.8859257 | U52: =INDEX('Compile Data'!$DL$121:$EI$202,$O52,'Report - ALL (DASHBOARD)'!$W$4) ->  | V52: =INDEX('Compile Data'!$EL$121:$FI$202,$O52,'Report - ALL (DASHBOARD)'!$W$4) -> 
A53: 1946 | B53: =INDEX('Compile Data'!$L$12:$AI$93,$A53-1921,'Report - ALL (DASHBOARD)'!$W$4) -> 0 | C53: =INDEX('Compile Data'!$AL$12:$BI$93,$A53-1921,'Report - ALL (DASHBOARD)'!$W$4) -> 127.710281 | D53: =INDEX('Compile Data'!$BL$12:$CI$93,$A53-1921,'Report - ALL (DASHBOARD)'!$W$4) -> 127.745545 | E53: =INDEX('Compile Data'!$CL$12:$DI$93,$A53-1921,'Report - ALL (DASHBOARD)'!$W$4) -> 127.7114413 | F53: =INDEX('Compile Data'!$DL$12:$EI$93,$A53-1921,'Report - ALL (DASHBOARD)'!$W$4) ->  | G53: =INDEX('Compile Data'!$EL$12:$FI$93,$A53-1921,'Report - ALL (DASHBOARD)'!$W$4) ->  | O53: 25 | P53: 0.2962962963 | Q53: =INDEX('Compile Data'!$L$121:$AI$202,$O53,'Report - ALL (DASHBOARD)'!$W$4) -> 0 | R53: =INDEX('Compile Data'!$AL$121:$BI$202,$O53,'Report - ALL (DASHBOARD)'!$W$4) -> 250.8859257 | S53: =INDEX('Compile Data'!$BL$121:$CI$202,$O53,'Report - ALL (DASHBOARD)'!$W$4) -> 280.1574976 | T53: =INDEX('Compile Data'!$CL$121:$DI$202,$O53,'Report - ALL (DASHBOARD)'!$W$4) -> 242.5037346 | U53: =INDEX('Compile Data'!$DL$121:$EI$202,$O53,'Report - ALL (DASHBOARD)'!$W$4) ->  | V53: =INDEX('Compile Data'!$EL$121:$FI$202,$O53,'Report - ALL (DASHBOARD)'!$W$4) -> 
A54: 1947 | B54: =INDEX('Compile Data'!$L$12:$AI$93,$A54-1921,'Report - ALL (DASHBOARD)'!$W$4) -> 0 | C54: =INDEX('Compile Data'!$AL$12:$BI$93,$A54-1921,'Report - ALL (DASHBOARD)'!$W$4) -> 92.69291541 | D54: =INDEX('Compile Data'!$BL$12:$CI$93,$A54-1921,'Report - ALL (DASHBOARD)'!$W$4) -> 89.02223514 | E54: =INDEX('Compile Data'!$CL$12:$DI$93,$A54-1921,'Report - ALL (DASHBOARD)'!$W$4) -> 92.7493197 | F54: =INDEX('Compile Data'!$DL$12:$EI$93,$A54-1921,'Report - ALL (DASHBOARD)'!$W$4) ->  | G54: =INDEX('Compile Data'!$EL$12:$FI$93,$A54-1921,'Report - ALL (DASHBOARD)'!$W$4) ->  | O54: 26 | P54: 0.3086419753 | Q54: =INDEX('Compile Data'!$L$121:$AI$202,$O54,'Report - ALL (DASHBOARD)'!$W$4) -> 0 | R54: =INDEX('Compile Data'!$AL$121:$BI$202,$O54,'Report - ALL (DASHBOARD)'!$W$4) -> 242.5028613 | S54: =INDEX('Compile Data'!$BL$121:$CI$202,$O54,'Report - ALL (DASHBOARD)'!$W$4) -> 279.0325689 | T54: =INDEX('Compile Data'!$CL$121:$DI$202,$O54,'Report - ALL (DASHBOARD)'!$W$4) -> 231.623589 | U54: =INDEX('Compile Data'!$DL$121:$EI$202,$O54,'Report - ALL (DASHBOARD)'!$W$4) ->  | V54: =INDEX('Compile Data'!$EL$121:$FI$202,$O54,'Report - ALL (DASHBOARD)'!$W$4) -> 
A55: 1948 | B55: =INDEX('Compile Data'!$L$12:$AI$93,$A55-1921,'Report - ALL (DASHBOARD)'!$W$4) -> 0 | C55: =INDEX('Compile Data'!$AL$12:$BI$93,$A55-1921,'Report - ALL (DASHBOARD)'!$W$4) -> 191.2508698 | D55: =INDEX('Compile Data'!$BL$12:$CI$93,$A55-1921,'Report - ALL (DASHBOARD)'!$W$4) -> 191.3280787 | E55: =INDEX('Compile Data'!$CL$12:$DI$93,$A55-1921,'Report - ALL (DASHBOARD)'!$W$4) -> 191.258717 | F55: =INDEX('Compile Data'!$DL$12:$EI$93,$A55-1921,'Report - ALL (DASHBOARD)'!$W$4) ->  | G55: =INDEX('Compile Data'!$EL$12:$FI$93,$A55-1921,'Report - ALL (DASHBOARD)'!$W$4) ->  | O55: 27 | P55: 0.3209876543 | Q55: =INDEX('Compile Data'!$L$121:$AI$202,$O55,'Report - ALL (DASHBOARD)'!$W$4) -> 0 | R55: =INDEX('Compile Data'!$AL$121:$BI$202,$O55,'Report - ALL (DASHBOARD)'!$W$4) -> 229.6224407 | S55: =INDEX('Compile Data'!$BL$121:$CI$202,$O55,'Report - ALL (DASHBOARD)'!$W$4) -> 250.2483144 | T55: =INDEX('Compile Data'!$CL$121:$DI$202,$O55,'Report - ALL (DASHBOARD)'!$W$4) -> 223.2273033 | U55: =INDEX('Compile Data'!$DL$121:$EI$202,$O55,'Report - ALL (DASHBOARD)'!$W$4) ->  | V55: =INDEX('Compile Data'!$EL$121:$FI$202,$O55,'Report - ALL (DASHBOARD)'!$W$4) -> 
A56: 1949 | B56: =INDEX('Compile Data'!$L$12:$AI$93,$A56-1921,'Report - ALL (DASHBOARD)'!$W$4) -> 0 | C56: =INDEX('Compile Data'!$AL$12:$BI$93,$A56-1921,'Report - ALL (DASHBOARD)'!$W$4) -> 176.9717526 | D56: =INDEX('Compile Data'!$BL$12:$CI$93,$A56-1921,'Report - ALL (DASHBOARD)'!$W$4) -> 177.0338276 | E56: =INDEX('Compile Data'!$CL$12:$DI$93,$A56-1921,'Report - ALL (DASHBOARD)'!$W$4) -> 176.9447809 | F56: =INDEX('Compile Data'!$DL$12:$EI$93,$A56-1921,'Report - ALL (DASHBOARD)'!$W$4) ->  | G56: =INDEX('Compile Data'!$EL$12:$FI$93,$A56-1921,'Report - ALL (DASHBOARD)'!$W$4) ->  | O56: 28 | P56: 0.3333333333 | Q56: =INDEX('Compile Data'!$L$121:$AI$202,$O56,'Report - ALL (DASHBOARD)'!$W$4) -> 0 | R56: =INDEX('Compile Data'!$AL$121:$BI$202,$O56,'Report - ALL (DASHBOARD)'!$W$4) -> 223.5234065 | S56: =INDEX('Compile Data'!$BL$121:$CI$202,$O56,'Report - ALL (DASHBOARD)'!$W$4) -> 243.0854849 | T56: =INDEX('Compile Data'!$CL$121:$DI$202,$O56,'Report - ALL (DASHBOARD)'!$W$4) -> 216.2665485 | U56: =INDEX('Compile Data'!$DL$121:$EI$202,$O56,'Report - ALL (DASHBOARD)'!$W$4) ->  | V56: =INDEX('Compile Data'!$EL$121:$FI$202,$O56,'Report - ALL (DASHBOARD)'!$W$4) -> 
A57: 1950 | B57: =INDEX('Compile Data'!$L$12:$AI$93,$A57-1921,'Report - ALL (DASHBOARD)'!$W$4) -> 0 | C57: =INDEX('Compile Data'!$AL$12:$BI$93,$A57-1921,'Report - ALL (DASHBOARD)'!$W$4) -> 150.8811319 | D57: =INDEX('Compile Data'!$BL$12:$CI$93,$A57-1921,'Report - ALL (DASHBOARD)'!$W$4) -> 151.6457778 | E57: =INDEX('Compile Data'!$CL$12:$DI$93,$A57-1921,'Report - ALL (DASHBOARD)'!$W$4) -> 151.488475 | F57: =INDEX('Compile Data'!$DL$12:$EI$93,$A57-1921,'Report - ALL (DASHBOARD)'!$W$4) ->  | G57: =INDEX('Compile Data'!$EL$12:$FI$93,$A57-1921,'Report - ALL (DASHBOARD)'!$W$4) ->  | O57: 29 | P57: 0.3456790123 | Q57: =INDEX('Compile Data'!$L$121:$AI$202,$O57,'Report - ALL (DASHBOARD)'!$W$4) -> 0 | R57: =INDEX('Compile Data'!$AL$121:$BI$202,$O57,'Report - ALL (DASHBOARD)'!$W$4) -> 216.2650991 | S57: =INDEX('Compile Data'!$BL$121:$CI$202,$O57,'Report - ALL (DASHBOARD)'!$W$4) -> 230.9567662 | T57: =INDEX('Compile Data'!$CL$121:$DI$202,$O57,'Report - ALL (DASHBOARD)'!$W$4) -> 213.2898928 | U57: =INDEX('Compile Data'!$DL$121:$EI$202,$O57,'Report - ALL (DASHBOARD)'!$W$4) ->  | V57: =INDEX('Compile Data'!$EL$121:$FI$202,$O57,'Report - ALL (DASHBOARD)'!$W$4) -> 
A58: 1951 | B58: =INDEX('Compile Data'!$L$12:$AI$93,$A58-1921,'Report - ALL (DASHBOARD)'!$W$4) -> 0 | C58: =INDEX('Compile Data'!$AL$12:$BI$93,$A58-1921,'Report - ALL (DASHBOARD)'!$W$4) -> 722.1027366 | D58: =INDEX('Compile Data'!$BL$12:$CI$93,$A58-1921,'Report - ALL (DASHBOARD)'!$W$4) -> 722.1760401 | E58: =INDEX('Compile Data'!$CL$12:$DI$93,$A58-1921,'Report - ALL (DASHBOARD)'!$W$4) -> 778.165655 | F58: =INDEX('Compile Data'!$DL$12:$EI$93,$A58-1921,'Report - ALL (DASHBOARD)'!$W$4) ->  | G58: =INDEX('Compile Data'!$EL$12:$FI$93,$A58-1921,'Report - ALL (DASHBOARD)'!$W$4) ->  | O58: 30 | P58: 0.3580246914 | Q58: =INDEX('Compile Data'!$L$121:$AI$202,$O58,'Report - ALL (DASHBOARD)'!$W$4) -> 0 | R58: =INDEX('Compile Data'!$AL$121:$BI$202,$O58,'Report - ALL (DASHBOARD)'!$W$4) -> 213.2852136 | S58: =INDEX('Compile Data'!$BL$121:$CI$202,$O58,'Report - ALL (DASHBOARD)'!$W$4) -> 223.6339546 | T58: =INDEX('Compile Data'!$CL$121:$DI$202,$O58,'Report - ALL (DASHBOARD)'!$W$4) -> 202.6300671 | U58: =INDEX('Compile Data'!$DL$121:$EI$202,$O58,'Report - ALL (DASHBOARD)'!$W$4) ->  | V58: =INDEX('Compile Data'!$EL$121:$FI$202,$O58,'Report - ALL (DASHBOARD)'!$W$4) -> 
A59: 1952 | B59: =INDEX('Compile Data'!$L$12:$AI$93,$A59-1921,'Report - ALL (DASHBOARD)'!$W$4) -> 0 | C59: =INDEX('Compile Data'!$AL$12:$BI$93,$A59-1921,'Report - ALL (DASHBOARD)'!$W$4) -> 763.5906358 | D59: =INDEX('Compile Data'!$BL$12:$CI$93,$A59-1921,'Report - ALL (DASHBOARD)'!$W$4) -> 785.1345865 | E59: =INDEX('Compile Data'!$CL$12:$DI$93,$A59-1921,'Report - ALL (DASHBOARD)'!$W$4) -> 476.7440734 | F59: =INDEX('Compile Data'!$DL$12:$EI$93,$A59-1921,'Report - ALL (DASHBOARD)'!$W$4) ->  | G59: =INDEX('Compile Data'!$EL$12:$FI$93,$A59-1921,'Report - ALL (DASHBOARD)'!$W$4) ->  | O59: 31 | P59: 0.3703703704 | Q59: =INDEX('Compile Data'!$L$121:$AI$202,$O59,'Report - ALL (DASHBOARD)'!$W$4) -> 0 | R59: =INDEX('Compile Data'!$AL$121:$BI$202,$O59,'Report - ALL (DASHBOARD)'!$W$4) -> 205.8620385 | S59: =INDEX('Compile Data'!$BL$121:$CI$202,$O59,'Report - ALL (DASHBOARD)'!$W$4) -> 215.2589874 | T59: =INDEX('Compile Data'!$CL$121:$DI$202,$O59,'Report - ALL (DASHBOARD)'!$W$4) -> 197.2913848 | U59: =INDEX('Compile Data'!$DL$121:$EI$202,$O59,'Report - ALL (DASHBOARD)'!$W$4) ->  | V59: =INDEX('Compile Data'!$EL$121:$FI$202,$O59,'Report - ALL (DASHBOARD)'!$W$4) -> 
A60: 1953 | B60: =INDEX('Compile Data'!$L$12:$AI$93,$A60-1921,'Report - ALL (DASHBOARD)'!$W$4) -> 0 | C60: =INDEX('Compile Data'!$AL$12:$BI$93,$A60-1921,'Report - ALL (DASHBOARD)'!$W$4) -> 46.51038228 | D60: =INDEX('Compile Data'!$BL$12:$CI$93,$A60-1921,'Report - ALL (DASHBOARD)'!$W$4) -> 130.4004992 | E60: =INDEX('Compile Data'!$CL$12:$DI$93,$A60-1921,'Report - ALL (DASHBOARD)'!$W$4) -> 110.7739508 | F60: =INDEX('Compile Data'!$DL$12:$EI$93,$A60-1921,'Report - ALL (DASHBOARD)'!$W$4) ->  | G60: =INDEX('Compile Data'!$EL$12:$FI$93,$A60-1921,'Report - ALL (DASHBOARD)'!$W$4) ->  | O60: 32 | P60: 0.3827160494 | Q60: =INDEX('Compile Data'!$L$121:$AI$202,$O60,'Report - ALL (DASHBOARD)'!$W$4) -> 0 | R60: =INDEX('Compile Data'!$AL$121:$BI$202,$O60,'Report - ALL (DASHBOARD)'!$W$4) -> 202.6255366 | S60: =INDEX('Compile Data'!$BL$121:$CI$202,$O60,'Report - ALL (DASHBOARD)'!$W$4) -> 213.3073271 | T60: =INDEX('Compile Data'!$CL$121:$DI$202,$O60,'Report - ALL (DASHBOARD)'!$W$4) -> 191.3693878 | U60: =INDEX('Compile Data'!$DL$121:$EI$202,$O60,'Report - ALL (DASHBOARD)'!$W$4) ->  | V60: =INDEX('Compile Data'!$EL$121:$FI$202,$O60,'Report - ALL (DASHBOARD)'!$W$4) -> 
A61: 1954 | B61: =INDEX('Compile Data'!$L$12:$AI$93,$A61-1921,'Report - ALL (DASHBOARD)'!$W$4) -> 0 | C61: =INDEX('Compile Data'!$AL$12:$BI$93,$A61-1921,'Report - ALL (DASHBOARD)'!$W$4) -> 112.7120811 | D61: =INDEX('Compile Data'!$BL$12:$CI$93,$A61-1921,'Report - ALL (DASHBOARD)'!$W$4) -> 117.1617639 | E61: =INDEX('Compile Data'!$CL$12:$DI$93,$A61-1921,'Report - ALL (DASHBOARD)'!$W$4) -> 112.2017333 | F61: =INDEX('Compile Data'!$DL$12:$EI$93,$A61-1921,'Report - ALL (DASHBOARD)'!$W$4) ->  | G61: =INDEX('Compile Data'!$EL$12:$FI$93,$A61-1921,'Report - ALL (DASHBOARD)'!$W$4) ->  | O61: 33 | P61: 0.3950617284 | Q61: =INDEX('Compile Data'!$L$121:$AI$202,$O61,'Report - ALL (DASHBOARD)'!$W$4) -> 0 | R61: =INDEX('Compile Data'!$AL$121:$BI$202,$O61,'Report - ALL (DASHBOARD)'!$W$4) -> 197.2906495 | S61: =INDEX('Compile Data'!$BL$121:$CI$202,$O61,'Report - ALL (DASHBOARD)'!$W$4) -> 209.4831376 | T61: =INDEX('Compile Data'!$CL$121:$DI$202,$O61,'Report - ALL (DASHBOARD)'!$W$4) -> 191.258717 | U61: =INDEX('Compile Data'!$DL$121:$EI$202,$O61,'Report - ALL (DASHBOARD)'!$W$4) ->  | V61: =INDEX('Compile Data'!$EL$121:$FI$202,$O61,'Report - ALL (DASHBOARD)'!$W$4) -> 
A62: 1955 | B62: =INDEX('Compile Data'!$L$12:$AI$93,$A62-1921,'Report - ALL (DASHBOARD)'!$W$4) -> 0 | C62: =INDEX('Compile Data'!$AL$12:$BI$93,$A62-1921,'Report - ALL (DASHBOARD)'!$W$4) -> 11.74118413 | D62: =INDEX('Compile Data'!$BL$12:$CI$93,$A62-1921,'Report - ALL (DASHBOARD)'!$W$4) -> 18.30534437 | E62: =INDEX('Compile Data'!$CL$12:$DI$93,$A62-1921,'Report - ALL (DASHBOARD)'!$W$4) -> 11.74222784 | F62: =INDEX('Compile Data'!$DL$12:$EI$93,$A62-1921,'Report - ALL (DASHBOARD)'!$W$4) ->  | G62: =INDEX('Compile Data'!$EL$12:$FI$93,$A62-1921,'Report - ALL (DASHBOARD)'!$W$4) ->  | O62: 34 | P62: 0.4074074074 | Q62: =INDEX('Compile Data'!$L$121:$AI$202,$O62,'Report - ALL (DASHBOARD)'!$W$4) -> 0 | R62: =INDEX('Compile Data'!$AL$121:$BI$202,$O62,'Report - ALL (DASHBOARD)'!$W$4) -> 192.9218801 | S62: =INDEX('Compile Data'!$BL$121:$CI$202,$O62,'Report - ALL (DASHBOARD)'!$W$4) -> 209.3401222 | T62: =INDEX('Compile Data'!$CL$121:$DI$202,$O62,'Report - ALL (DASHBOARD)'!$W$4) -> 187.7165605 | U62: =INDEX('Compile Data'!$DL$121:$EI$202,$O62,'Report - ALL (DASHBOARD)'!$W$4) ->  | V62: =INDEX('Compile Data'!$EL$121:$FI$202,$O62,'Report - ALL (DASHBOARD)'!$W$4) -> 
A63: 1956 | B63: =INDEX('Compile Data'!$L$12:$AI$93,$A63-1921,'Report - ALL (DASHBOARD)'!$W$4) -> 0 | C63: =INDEX('Compile Data'!$AL$12:$BI$93,$A63-1921,'Report - ALL (DASHBOARD)'!$W$4) -> 520.5442775 | D63: =INDEX('Compile Data'!$BL$12:$CI$93,$A63-1921,'Report - ALL (DASHBOARD)'!$W$4) -> 520.7272867 | E63: =INDEX('Compile Data'!$CL$12:$DI$93,$A63-1921,'Report - ALL (DASHBOARD)'!$W$4) -> 520.5456469 | F63: =INDEX('Compile Data'!$DL$12:$EI$93,$A63-1921,'Report - ALL (DASHBOARD)'!$W$4) ->  | G63: =INDEX('Compile Data'!$EL$12:$FI$93,$A63-1921,'Report - ALL (DASHBOARD)'!$W$4) ->  | O63: 35 | P63: 0.4197530864 | Q63: =INDEX('Compile Data'!$L$121:$AI$202,$O63,'Report - ALL (DASHBOARD)'!$W$4) -> 0 | R63: =INDEX('Compile Data'!$AL$121:$BI$202,$O63,'Report - ALL (DASHBOARD)'!$W$4) -> 191.2508698 | S63: =INDEX('Compile Data'!$BL$121:$CI$202,$O63,'Report - ALL (DASHBOARD)'!$W$4) -> 206.9726239 | T63: =INDEX('Compile Data'!$CL$121:$DI$202,$O63,'Report - ALL (DASHBOARD)'!$W$4) -> 178.2950417 | U63: =INDEX('Compile Data'!$DL$121:$EI$202,$O63,'Report - ALL (DASHBOARD)'!$W$4) ->  | V63: =INDEX('Compile Data'!$EL$121:$FI$202,$O63,'Report - ALL (DASHBOARD)'!$W$4) -> 
A64: 1957 | B64: =INDEX('Compile Data'!$L$12:$AI$93,$A64-1921,'Report - ALL (DASHBOARD)'!$W$4) -> 0 | C64: =INDEX('Compile Data'!$AL$12:$BI$93,$A64-1921,'Report - ALL (DASHBOARD)'!$W$4) -> 242.5028613 | D64: =INDEX('Compile Data'!$BL$12:$CI$93,$A64-1921,'Report - ALL (DASHBOARD)'!$W$4) -> 243.0854849 | E64: =INDEX('Compile Data'!$CL$12:$DI$93,$A64-1921,'Report - ALL (DASHBOARD)'!$W$4) -> 242.5037346 | F64: =INDEX('Compile Data'!$DL$12:$EI$93,$A64-1921,'Report - ALL (DASHBOARD)'!$W$4) ->  | G64: =INDEX('Compile Data'!$EL$12:$FI$93,$A64-1921,'Report - ALL (DASHBOARD)'!$W$4) ->  | O64: 36 | P64: 0.4320987654 | Q64: =INDEX('Compile Data'!$L$121:$AI$202,$O64,'Report - ALL (DASHBOARD)'!$W$4) -> 0 | R64: =INDEX('Compile Data'!$AL$121:$BI$202,$O64,'Report - ALL (DASHBOARD)'!$W$4) -> 187.7159337 | S64: =INDEX('Compile Data'!$BL$121:$CI$202,$O64,'Report - ALL (DASHBOARD)'!$W$4) -> 197.2941908 | T64: =INDEX('Compile Data'!$CL$121:$DI$202,$O64,'Report - ALL (DASHBOARD)'!$W$4) -> 176.9447809 | U64: =INDEX('Compile Data'!$DL$121:$EI$202,$O64,'Report - ALL (DASHBOARD)'!$W$4) ->  | V64: =INDEX('Compile Data'!$EL$121:$FI$202,$O64,'Report - ALL (DASHBOARD)'!$W$4) -> 
A65: 1958 | B65: =INDEX('Compile Data'!$L$12:$AI$93,$A65-1921,'Report - ALL (DASHBOARD)'!$W$4) -> 0 | C65: =INDEX('Compile Data'!$AL$12:$BI$93,$A65-1921,'Report - ALL (DASHBOARD)'!$W$4) -> 272.1129409 | D65: =INDEX('Compile Data'!$BL$12:$CI$93,$A65-1921,'Report - ALL (DASHBOARD)'!$W$4) -> 342.0689107 | E65: =INDEX('Compile Data'!$CL$12:$DI$93,$A65-1921,'Report - ALL (DASHBOARD)'!$W$4) -> 268.6783825 | F65: =INDEX('Compile Data'!$DL$12:$EI$93,$A65-1921,'Report - ALL (DASHBOARD)'!$W$4) ->  | G65: =INDEX('Compile Data'!$EL$12:$FI$93,$A65-1921,'Report - ALL (DASHBOARD)'!$W$4) ->  | O65: 37 | P65: 0.4444444444 | Q65: =INDEX('Compile Data'!$L$121:$AI$202,$O65,'Report - ALL (DASHBOARD)'!$W$4) -> 0 | R65: =INDEX('Compile Data'!$AL$121:$BI$202,$O65,'Report - ALL (DASHBOARD)'!$W$4) -> 178.31088 | S65: =INDEX('Compile Data'!$BL$121:$CI$202,$O65,'Report - ALL (DASHBOARD)'!$W$4) -> 191.3280787 | T65: =INDEX('Compile Data'!$CL$121:$DI$202,$O65,'Report - ALL (DASHBOARD)'!$W$4) -> 176.2013159 | U65: =INDEX('Compile Data'!$DL$121:$EI$202,$O65,'Report - ALL (DASHBOARD)'!$W$4) ->  | V65: =INDEX('Compile Data'!$EL$121:$FI$202,$O65,'Report - ALL (DASHBOARD)'!$W$4) -> 
A66: 1959 | B66: =INDEX('Compile Data'!$L$12:$AI$93,$A66-1921,'Report - ALL (DASHBOARD)'!$W$4) -> 0 | C66: =INDEX('Compile Data'!$AL$12:$BI$93,$A66-1921,'Report - ALL (DASHBOARD)'!$W$4) -> 110.8029826 | D66: =INDEX('Compile Data'!$BL$12:$CI$93,$A66-1921,'Report - ALL (DASHBOARD)'!$W$4) -> 129.3205002 | E66: =INDEX('Compile Data'!$CL$12:$DI$93,$A66-1921,'Report - ALL (DASHBOARD)'!$W$4) -> 109.1905506 | F66: =INDEX('Compile Data'!$DL$12:$EI$93,$A66-1921,'Report - ALL (DASHBOARD)'!$W$4) ->  | G66: =INDEX('Compile Data'!$EL$12:$FI$93,$A66-1921,'Report - ALL (DASHBOARD)'!$W$4) ->  | O66: 38 | P66: 0.4567901235 | Q66: =INDEX('Compile Data'!$L$121:$AI$202,$O66,'Report - ALL (DASHBOARD)'!$W$4) -> 0 | R66: =INDEX('Compile Data'!$AL$121:$BI$202,$O66,'Report - ALL (DASHBOARD)'!$W$4) -> 176.9717526 | S66: =INDEX('Compile Data'!$BL$121:$CI$202,$O66,'Report - ALL (DASHBOARD)'!$W$4) -> 187.7209274 | T66: =INDEX('Compile Data'!$CL$121:$DI$202,$O66,'Report - ALL (DASHBOARD)'!$W$4) -> 166.2712463 | U66: =INDEX('Compile Data'!$DL$121:$EI$202,$O66,'Report - ALL (DASHBOARD)'!$W$4) ->  | V66: =INDEX('Compile Data'!$EL$121:$FI$202,$O66,'Report - ALL (DASHBOARD)'!$W$4) -> 
A67: 1960 | B67: =INDEX('Compile Data'!$L$12:$AI$93,$A67-1921,'Report - ALL (DASHBOARD)'!$W$4) -> 0 | C67: =INDEX('Compile Data'!$AL$12:$BI$93,$A67-1921,'Report - ALL (DASHBOARD)'!$W$4) -> 197.2906495 | D67: =INDEX('Compile Data'!$BL$12:$CI$93,$A67-1921,'Report - ALL (DASHBOARD)'!$W$4) -> 197.2941908 | E67: =INDEX('Compile Data'!$CL$12:$DI$93,$A67-1921,'Report - ALL (DASHBOARD)'!$W$4) -> 197.2913848 | F67: =INDEX('Compile Data'!$DL$12:$EI$93,$A67-1921,'Report - ALL (DASHBOARD)'!$W$4) ->  | G67: =INDEX('Compile Data'!$EL$12:$FI$93,$A67-1921,'Report - ALL (DASHBOARD)'!$W$4) ->  | O67: 39 | P67: 0.4691358025 | Q67: =INDEX('Compile Data'!$L$121:$AI$202,$O67,'Report - ALL (DASHBOARD)'!$W$4) -> 0 | R67: =INDEX('Compile Data'!$AL$121:$BI$202,$O67,'Report - ALL (DASHBOARD)'!$W$4) -> 175.3799119 | S67: =INDEX('Compile Data'!$BL$121:$CI$202,$O67,'Report - ALL (DASHBOARD)'!$W$4) -> 178.252286 | T67: =INDEX('Compile Data'!$CL$121:$DI$202,$O67,'Report - ALL (DASHBOARD)'!$W$4) -> 165.7745813 | U67: =INDEX('Compile Data'!$DL$121:$EI$202,$O67,'Report - ALL (DASHBOARD)'!$W$4) ->  | V67: =INDEX('Compile Data'!$EL$121:$FI$202,$O67,'Report - ALL (DASHBOARD)'!$W$4) -> 
A68: 1961 | B68: =INDEX('Compile Data'!$L$12:$AI$93,$A68-1921,'Report - ALL (DASHBOARD)'!$W$4) -> 0 | C68: =INDEX('Compile Data'!$AL$12:$BI$93,$A68-1921,'Report - ALL (DASHBOARD)'!$W$4) -> 70.97961333 | D68: =INDEX('Compile Data'!$BL$12:$CI$93,$A68-1921,'Report - ALL (DASHBOARD)'!$W$4) -> 90.45720029 | E68: =INDEX('Compile Data'!$CL$12:$DI$93,$A68-1921,'Report - ALL (DASHBOARD)'!$W$4) -> 70.99076933 | F68: =INDEX('Compile Data'!$DL$12:$EI$93,$A68-1921,'Report - ALL (DASHBOARD)'!$W$4) ->  | G68: =INDEX('Compile Data'!$EL$12:$FI$93,$A68-1921,'Report - ALL (DASHBOARD)'!$W$4) ->  | O68: 40 | P68: 0.4814814815 | Q68: =INDEX('Compile Data'!$L$121:$AI$202,$O68,'Report - ALL (DASHBOARD)'!$W$4) -> 0 | R68: =INDEX('Compile Data'!$AL$121:$BI$202,$O68,'Report - ALL (DASHBOARD)'!$W$4) -> 168.7325712 | S68: =INDEX('Compile Data'!$BL$121:$CI$202,$O68,'Report - ALL (DASHBOARD)'!$W$4) -> 177.0338276 | T68: =INDEX('Compile Data'!$CL$121:$DI$202,$O68,'Report - ALL (DASHBOARD)'!$W$4) -> 151.488475 | U68: =INDEX('Compile Data'!$DL$121:$EI$202,$O68,'Report - ALL (DASHBOARD)'!$W$4) ->  | V68: =INDEX('Compile Data'!$EL$121:$FI$202,$O68,'Report - ALL (DASHBOARD)'!$W$4) -> 
A69: 1962 | B69: =INDEX('Compile Data'!$L$12:$AI$93,$A69-1921,'Report - ALL (DASHBOARD)'!$W$4) -> 0 | C69: =INDEX('Compile Data'!$AL$12:$BI$93,$A69-1921,'Report - ALL (DASHBOARD)'!$W$4) -> 369.3123104 | D69: =INDEX('Compile Data'!$BL$12:$CI$93,$A69-1921,'Report - ALL (DASHBOARD)'!$W$4) -> 368.9068923 | E69: =INDEX('Compile Data'!$CL$12:$DI$93,$A69-1921,'Report - ALL (DASHBOARD)'!$W$4) -> 368.188634 | F69: =INDEX('Compile Data'!$DL$12:$EI$93,$A69-1921,'Report - ALL (DASHBOARD)'!$W$4) ->  | G69: =INDEX('Compile Data'!$EL$12:$FI$93,$A69-1921,'Report - ALL (DASHBOARD)'!$W$4) ->  | O69: 41 | P69: 0.4938271605 | Q69: =INDEX('Compile Data'!$L$121:$AI$202,$O69,'Report - ALL (DASHBOARD)'!$W$4) -> 0 | R69: =INDEX('Compile Data'!$AL$121:$BI$202,$O69,'Report - ALL (DASHBOARD)'!$W$4) -> 165.7743188 | S69: =INDEX('Compile Data'!$BL$121:$CI$202,$O69,'Report - ALL (DASHBOARD)'!$W$4) -> 176.7243651 | T69: =INDEX('Compile Data'!$CL$121:$DI$202,$O69,'Report - ALL (DASHBOARD)'!$W$4) -> 146.7677925 | U69: =INDEX('Compile Data'!$DL$121:$EI$202,$O69,'Report - ALL (DASHBOARD)'!$W$4) ->  | V69: =INDEX('Compile Data'!$EL$121:$FI$202,$O69,'Report - ALL (DASHBOARD)'!$W$4) -> 
A70: 1963 | B70: =INDEX('Compile Data'!$L$12:$AI$93,$A70-1921,'Report - ALL (DASHBOARD)'!$W$4) -> 0 | C70: =INDEX('Compile Data'!$AL$12:$BI$93,$A70-1921,'Report - ALL (DASHBOARD)'!$W$4) -> 533.4002691 | D70: =INDEX('Compile Data'!$BL$12:$CI$93,$A70-1921,'Report - ALL (DASHBOARD)'!$W$4) -> 541.7605228 | E70: =INDEX('Compile Data'!$CL$12:$DI$93,$A70-1921,'Report - ALL (DASHBOARD)'!$W$4) -> 540.8812674 | F70: =INDEX('Compile Data'!$DL$12:$EI$93,$A70-1921,'Report - ALL (DASHBOARD)'!$W$4) ->  | G70: =INDEX('Compile Data'!$EL$12:$FI$93,$A70-1921,'Report - ALL (DASHBOARD)'!$W$4) ->  | O70: 42 | P70: 0.5061728395 | Q70: =INDEX('Compile Data'!$L$121:$AI$202,$O70,'Report - ALL (DASHBOARD)'!$W$4) -> 0 | R70: =INDEX('Compile Data'!$AL$121:$BI$202,$O70,'Report - ALL (DASHBOARD)'!$W$4) -> 151.5424017 | S70: =INDEX('Compile Data'!$BL$121:$CI$202,$O70,'Report - ALL (DASHBOARD)'!$W$4) -> 171.8246428 | T70: =INDEX('Compile Data'!$CL$121:$DI$202,$O70,'Report - ALL (DASHBOARD)'!$W$4) -> 144.0333243 | U70: =INDEX('Compile Data'!$DL$121:$EI$202,$O70,'Report - ALL (DASHBOARD)'!$W$4) ->  | V70: =INDEX('Compile Data'!$EL$121:$FI$202,$O70,'Report - ALL (DASHBOARD)'!$W$4) -> 
A71: 1964 | B71: =INDEX('Compile Data'!$L$12:$AI$93,$A71-1921,'Report - ALL (DASHBOARD)'!$W$4) -> 0 | C71: =INDEX('Compile Data'!$AL$12:$BI$93,$A71-1921,'Report - ALL (DASHBOARD)'!$W$4) -> 47.62894601 | D71: =INDEX('Compile Data'!$BL$12:$CI$93,$A71-1921,'Report - ALL (DASHBOARD)'!$W$4) -> 47.61606684 | E71: =INDEX('Compile Data'!$CL$12:$DI$93,$A71-1921,'Report - ALL (DASHBOARD)'!$W$4) -> 47.59843084 | F71: =INDEX('Compile Data'!$DL$12:$EI$93,$A71-1921,'Report - ALL (DASHBOARD)'!$W$4) ->  | G71: =INDEX('Compile Data'!$EL$12:$FI$93,$A71-1921,'Report - ALL (DASHBOARD)'!$W$4) ->  | O71: 43 | P71: 0.5185185185 | Q71: =INDEX('Compile Data'!$L$121:$AI$202,$O71,'Report - ALL (DASHBOARD)'!$W$4) -> 0 | R71: =INDEX('Compile Data'!$AL$121:$BI$202,$O71,'Report - ALL (DASHBOARD)'!$W$4) -> 150.8811319 | S71: =INDEX('Compile Data'!$BL$121:$CI$202,$O71,'Report - ALL (DASHBOARD)'!$W$4) -> 165.7679732 | T71: =INDEX('Compile Data'!$CL$121:$DI$202,$O71,'Report - ALL (DASHBOARD)'!$W$4) -> 142.352635 | U71: =INDEX('Compile Data'!$DL$121:$EI$202,$O71,'Report - ALL (DASHBOARD)'!$W$4) ->  | V71: =INDEX('Compile Data'!$EL$121:$FI$202,$O71,'Report - ALL (DASHBOARD)'!$W$4) -> 
A72: 1965 | B72: =INDEX('Compile Data'!$L$12:$AI$93,$A72-1921,'Report - ALL (DASHBOARD)'!$W$4) -> 0 | C72: =INDEX('Compile Data'!$AL$12:$BI$93,$A72-1921,'Report - ALL (DASHBOARD)'!$W$4) -> 533.5520379 | D72: =INDEX('Compile Data'!$BL$12:$CI$93,$A72-1921,'Report - ALL (DASHBOARD)'!$W$4) -> 533.5780972 | E72: =INDEX('Compile Data'!$CL$12:$DI$93,$A72-1921,'Report - ALL (DASHBOARD)'!$W$4) -> 533.550596 | F72: =INDEX('Compile Data'!$DL$12:$EI$93,$A72-1921,'Report - ALL (DASHBOARD)'!$W$4) ->  | G72: =INDEX('Compile Data'!$EL$12:$FI$93,$A72-1921,'Report - ALL (DASHBOARD)'!$W$4) ->  | O72: 44 | P72: 0.5308641975 | Q72: =INDEX('Compile Data'!$L$121:$AI$202,$O72,'Report - ALL (DASHBOARD)'!$W$4) -> 0 | R72: =INDEX('Compile Data'!$AL$121:$BI$202,$O72,'Report - ALL (DASHBOARD)'!$W$4) -> 144.0336899 | S72: =INDEX('Compile Data'!$BL$121:$CI$202,$O72,'Report - ALL (DASHBOARD)'!$W$4) -> 151.6457778 | T72: =INDEX('Compile Data'!$CL$121:$DI$202,$O72,'Report - ALL (DASHBOARD)'!$W$4) -> 141.8506669 | U72: =INDEX('Compile Data'!$DL$121:$EI$202,$O72,'Report - ALL (DASHBOARD)'!$W$4) ->  | V72: =INDEX('Compile Data'!$EL$121:$FI$202,$O72,'Report - ALL (DASHBOARD)'!$W$4) -> 
A73: 1966 | B73: =INDEX('Compile Data'!$L$12:$AI$93,$A73-1921,'Report - ALL (DASHBOARD)'!$W$4) -> 0 | C73: =INDEX('Compile Data'!$AL$12:$BI$93,$A73-1921,'Report - ALL (DASHBOARD)'!$W$4) -> 280.1358075 | D73: =INDEX('Compile Data'!$BL$12:$CI$93,$A73-1921,'Report - ALL (DASHBOARD)'!$W$4) -> 280.1574976 | E73: =INDEX('Compile Data'!$CL$12:$DI$93,$A73-1921,'Report - ALL (DASHBOARD)'!$W$4) -> 280.1380857 | F73: =INDEX('Compile Data'!$DL$12:$EI$93,$A73-1921,'Report - ALL (DASHBOARD)'!$W$4) ->  | G73: =INDEX('Compile Data'!$EL$12:$FI$93,$A73-1921,'Report - ALL (DASHBOARD)'!$W$4) ->  | O73: 45 | P73: 0.5432098765 | Q73: =INDEX('Compile Data'!$L$121:$AI$202,$O73,'Report - ALL (DASHBOARD)'!$W$4) -> 0 | R73: =INDEX('Compile Data'!$AL$121:$BI$202,$O73,'Report - ALL (DASHBOARD)'!$W$4) -> 142.0568431 | S73: =INDEX('Compile Data'!$BL$121:$CI$202,$O73,'Report - ALL (DASHBOARD)'!$W$4) -> 145.4639171 | T73: =INDEX('Compile Data'!$CL$121:$DI$202,$O73,'Report - ALL (DASHBOARD)'!$W$4) -> 132.229334 | U73: =INDEX('Compile Data'!$DL$121:$EI$202,$O73,'Report - ALL (DASHBOARD)'!$W$4) ->  | V73: =INDEX('Compile Data'!$EL$121:$FI$202,$O73,'Report - ALL (DASHBOARD)'!$W$4) -> 
A74: 1967 | B74: =INDEX('Compile Data'!$L$12:$AI$93,$A74-1921,'Report - ALL (DASHBOARD)'!$W$4) -> 0 | C74: =INDEX('Compile Data'!$AL$12:$BI$93,$A74-1921,'Report - ALL (DASHBOARD)'!$W$4) -> 630.5160827 | D74: =INDEX('Compile Data'!$BL$12:$CI$93,$A74-1921,'Report - ALL (DASHBOARD)'!$W$4) -> 803.8176386 | E74: =INDEX('Compile Data'!$CL$12:$DI$93,$A74-1921,'Report - ALL (DASHBOARD)'!$W$4) -> 528.7914281 | F74: =INDEX('Compile Data'!$DL$12:$EI$93,$A74-1921,'Report - ALL (DASHBOARD)'!$W$4) ->  | G74: =INDEX('Compile Data'!$EL$12:$FI$93,$A74-1921,'Report - ALL (DASHBOARD)'!$W$4) ->  | O74: 46 | P74: 0.5555555556 | Q74: =INDEX('Compile Data'!$L$121:$AI$202,$O74,'Report - ALL (DASHBOARD)'!$W$4) -> 0 | R74: =INDEX('Compile Data'!$AL$121:$BI$202,$O74,'Report - ALL (DASHBOARD)'!$W$4) -> 132.2293797 | S74: =INDEX('Compile Data'!$BL$121:$CI$202,$O74,'Report - ALL (DASHBOARD)'!$W$4) -> 144.0333853 | T74: =INDEX('Compile Data'!$CL$121:$DI$202,$O74,'Report - ALL (DASHBOARD)'!$W$4) -> 127.7114413 | U74: =INDEX('Compile Data'!$DL$121:$EI$202,$O74,'Report - ALL (DASHBOARD)'!$W$4) ->  | V74: =INDEX('Compile Data'!$EL$121:$FI$202,$O74,'Report - ALL (DASHBOARD)'!$W$4) -> 
A75: 1968 | B75: =INDEX('Compile Data'!$L$12:$AI$93,$A75-1921,'Report - ALL (DASHBOARD)'!$W$4) -> 0 | C75: =INDEX('Compile Data'!$AL$12:$BI$93,$A75-1921,'Report - ALL (DASHBOARD)'!$W$4) -> 106.3987421 | D75: =INDEX('Compile Data'!$BL$12:$CI$93,$A75-1921,'Report - ALL (DASHBOARD)'!$W$4) -> 97.48289996 | E75: =INDEX('Compile Data'!$CL$12:$DI$93,$A75-1921,'Report - ALL (DASHBOARD)'!$W$4) -> 105.033068 | F75: =INDEX('Compile Data'!$DL$12:$EI$93,$A75-1921,'Report - ALL (DASHBOARD)'!$W$4) ->  | G75: =INDEX('Compile Data'!$EL$12:$FI$93,$A75-1921,'Report - ALL (DASHBOARD)'!$W$4) ->  | O75: 47 | P75: 0.5679012346 | Q75: =INDEX('Compile Data'!$L$121:$AI$202,$O75,'Report - ALL (DASHBOARD)'!$W$4) -> 0 | R75: =INDEX('Compile Data'!$AL$121:$BI$202,$O75,'Report - ALL (DASHBOARD)'!$W$4) -> 127.710281 | S75: =INDEX('Compile Data'!$BL$121:$CI$202,$O75,'Report - ALL (DASHBOARD)'!$W$4) -> 142.1137618 | T75: =INDEX('Compile Data'!$CL$121:$DI$202,$O75,'Report - ALL (DASHBOARD)'!$W$4) -> 124.5272269 | U75: =INDEX('Compile Data'!$DL$121:$EI$202,$O75,'Report - ALL (DASHBOARD)'!$W$4) ->  | V75: =INDEX('Compile Data'!$EL$121:$FI$202,$O75,'Report - ALL (DASHBOARD)'!$W$4) -> 
A76: 1969 | B76: =INDEX('Compile Data'!$L$12:$AI$93,$A76-1921,'Report - ALL (DASHBOARD)'!$W$4) -> 0 | C76: =INDEX('Compile Data'!$AL$12:$BI$93,$A76-1921,'Report - ALL (DASHBOARD)'!$W$4) -> 229.6224407 | D76: =INDEX('Compile Data'!$BL$12:$CI$93,$A76-1921,'Report - ALL (DASHBOARD)'!$W$4) -> 310.5850721 | E76: =INDEX('Compile Data'!$CL$12:$DI$93,$A76-1921,'Report - ALL (DASHBOARD)'!$W$4) -> 231.623589 | F76: =INDEX('Compile Data'!$DL$12:$EI$93,$A76-1921,'Report - ALL (DASHBOARD)'!$W$4) ->  | G76: =INDEX('Compile Data'!$EL$12:$FI$93,$A76-1921,'Report - ALL (DASHBOARD)'!$W$4) ->  | O76: 48 | P76: 0.5802469136 | Q76: =INDEX('Compile Data'!$L$121:$AI$202,$O76,'Report - ALL (DASHBOARD)'!$W$4) -> 0 | R76: =INDEX('Compile Data'!$AL$121:$BI$202,$O76,'Report - ALL (DASHBOARD)'!$W$4) -> 124.7273799 | S76: =INDEX('Compile Data'!$BL$121:$CI$202,$O76,'Report - ALL (DASHBOARD)'!$W$4) -> 132.2129595 | T76: =INDEX('Compile Data'!$CL$121:$DI$202,$O76,'Report - ALL (DASHBOARD)'!$W$4) -> 122.6088565 | U76: =INDEX('Compile Data'!$DL$121:$EI$202,$O76,'Report - ALL (DASHBOARD)'!$W$4) ->  | V76: =INDEX('Compile Data'!$EL$121:$FI$202,$O76,'Report - ALL (DASHBOARD)'!$W$4) -> 
A77: 1970 | B77: =INDEX('Compile Data'!$L$12:$AI$93,$A77-1921,'Report - ALL (DASHBOARD)'!$W$4) -> 0 | C77: =INDEX('Compile Data'!$AL$12:$BI$93,$A77-1921,'Report - ALL (DASHBOARD)'!$W$4) -> 115.7577621 | D77: =INDEX('Compile Data'!$BL$12:$CI$93,$A77-1921,'Report - ALL (DASHBOARD)'!$W$4) -> 115.6084582 | E77: =INDEX('Compile Data'!$CL$12:$DI$93,$A77-1921,'Report - ALL (DASHBOARD)'!$W$4) -> 114.1997424 | F77: =INDEX('Compile Data'!$DL$12:$EI$93,$A77-1921,'Report - ALL (DASHBOARD)'!$W$4) ->  | G77: =INDEX('Compile Data'!$EL$12:$FI$93,$A77-1921,'Report - ALL (DASHBOARD)'!$W$4) ->  | O77: 49 | P77: 0.5925925926 | Q77: =INDEX('Compile Data'!$L$121:$AI$202,$O77,'Report - ALL (DASHBOARD)'!$W$4) -> 0 | R77: =INDEX('Compile Data'!$AL$121:$BI$202,$O77,'Report - ALL (DASHBOARD)'!$W$4) -> 124.5302478 | S77: =INDEX('Compile Data'!$BL$121:$CI$202,$O77,'Report - ALL (DASHBOARD)'!$W$4) -> 130.4004992 | T77: =INDEX('Compile Data'!$CL$121:$DI$202,$O77,'Report - ALL (DASHBOARD)'!$W$4) -> 121.1616955 | U77: =INDEX('Compile Data'!$DL$121:$EI$202,$O77,'Report - ALL (DASHBOARD)'!$W$4) ->  | V77: =INDEX('Compile Data'!$EL$121:$FI$202,$O77,'Report - ALL (DASHBOARD)'!$W$4) -> 
A78: 1971 | B78: =INDEX('Compile Data'!$L$12:$AI$93,$A78-1921,'Report - ALL (DASHBOARD)'!$W$4) -> 0 | C78: =INDEX('Compile Data'!$AL$12:$BI$93,$A78-1921,'Report - ALL (DASHBOARD)'!$W$4) -> 97.33924901 | D78: =INDEX('Compile Data'!$BL$12:$CI$93,$A78-1921,'Report - ALL (DASHBOARD)'!$W$4) -> 96.66818528 | E78: =INDEX('Compile Data'!$CL$12:$DI$93,$A78-1921,'Report - ALL (DASHBOARD)'!$W$4) -> 93.21983993 | F78: =INDEX('Compile Data'!$DL$12:$EI$93,$A78-1921,'Report - ALL (DASHBOARD)'!$W$4) ->  | G78: =INDEX('Compile Data'!$EL$12:$FI$93,$A78-1921,'Report - ALL (DASHBOARD)'!$W$4) ->  | O78: 50 | P78: 0.6049382716 | Q78: =INDEX('Compile Data'!$L$121:$AI$202,$O78,'Report - ALL (DASHBOARD)'!$W$4) -> 0 | R78: =INDEX('Compile Data'!$AL$121:$BI$202,$O78,'Report - ALL (DASHBOARD)'!$W$4) -> 124.1669794 | S78: =INDEX('Compile Data'!$BL$121:$CI$202,$O78,'Report - ALL (DASHBOARD)'!$W$4) -> 129.3205002 | T78: =INDEX('Compile Data'!$CL$121:$DI$202,$O78,'Report - ALL (DASHBOARD)'!$W$4) -> 119.9429852 | U78: =INDEX('Compile Data'!$DL$121:$EI$202,$O78,'Report - ALL (DASHBOARD)'!$W$4) ->  | V78: =INDEX('Compile Data'!$EL$121:$FI$202,$O78,'Report - ALL (DASHBOARD)'!$W$4) -> 
A79: 1972 | B79: =INDEX('Compile Data'!$L$12:$AI$93,$A79-1921,'Report - ALL (DASHBOARD)'!$W$4) -> 0 | C79: =INDEX('Compile Data'!$AL$12:$BI$93,$A79-1921,'Report - ALL (DASHBOARD)'!$W$4) -> 151.5424017 | D79: =INDEX('Compile Data'!$BL$12:$CI$93,$A79-1921,'Report - ALL (DASHBOARD)'!$W$4) -> 145.4639171 | E79: =INDEX('Compile Data'!$CL$12:$DI$93,$A79-1921,'Report - ALL (DASHBOARD)'!$W$4) -> 146.7677925 | F79: =INDEX('Compile Data'!$DL$12:$EI$93,$A79-1921,'Report - ALL (DASHBOARD)'!$W$4) ->  | G79: =INDEX('Compile Data'!$EL$12:$FI$93,$A79-1921,'Report - ALL (DASHBOARD)'!$W$4) ->  | O79: 51 | P79: 0.6172839506 | Q79: =INDEX('Compile Data'!$L$121:$AI$202,$O79,'Report - ALL (DASHBOARD)'!$W$4) -> 0 | R79: =INDEX('Compile Data'!$AL$121:$BI$202,$O79,'Report - ALL (DASHBOARD)'!$W$4) -> 120.2745389 | S79: =INDEX('Compile Data'!$BL$121:$CI$202,$O79,'Report - ALL (DASHBOARD)'!$W$4) -> 127.745545 | T79: =INDEX('Compile Data'!$CL$121:$DI$202,$O79,'Report - ALL (DASHBOARD)'!$W$4) -> 118.0022566 | U79: =INDEX('Compile Data'!$DL$121:$EI$202,$O79,'Report - ALL (DASHBOARD)'!$W$4) ->  | V79: =INDEX('Compile Data'!$EL$121:$FI$202,$O79,'Report - ALL (DASHBOARD)'!$W$4) -> 
A80: 1973 | B80: =INDEX('Compile Data'!$L$12:$AI$93,$A80-1921,'Report - ALL (DASHBOARD)'!$W$4) -> 0 | C80: =INDEX('Compile Data'!$AL$12:$BI$93,$A80-1921,'Report - ALL (DASHBOARD)'!$W$4) -> 192.9218801 | D80: =INDEX('Compile Data'!$BL$12:$CI$93,$A80-1921,'Report - ALL (DASHBOARD)'!$W$4) -> 279.0325689 | E80: =INDEX('Compile Data'!$CL$12:$DI$93,$A80-1921,'Report - ALL (DASHBOARD)'!$W$4) -> 191.3693878 | F80: =INDEX('Compile Data'!$DL$12:$EI$93,$A80-1921,'Report - ALL (DASHBOARD)'!$W$4) ->  | G80: =INDEX('Compile Data'!$EL$12:$FI$93,$A80-1921,'Report - ALL (DASHBOARD)'!$W$4) ->  | O80: 52 | P80: 0.6296296296 | Q80: =INDEX('Compile Data'!$L$121:$AI$202,$O80,'Report - ALL (DASHBOARD)'!$W$4) -> 0 | R80: =INDEX('Compile Data'!$AL$121:$BI$202,$O80,'Report - ALL (DASHBOARD)'!$W$4) -> 119.942611 | S80: =INDEX('Compile Data'!$BL$121:$CI$202,$O80,'Report - ALL (DASHBOARD)'!$W$4) -> 125.1432293 | T80: =INDEX('Compile Data'!$CL$121:$DI$202,$O80,'Report - ALL (DASHBOARD)'!$W$4) -> 116.0513316 | U80: =INDEX('Compile Data'!$DL$121:$EI$202,$O80,'Report - ALL (DASHBOARD)'!$W$4) ->  | V80: =INDEX('Compile Data'!$EL$121:$FI$202,$O80,'Report - ALL (DASHBOARD)'!$W$4) -> 
A81: 1974 | B81: =INDEX('Compile Data'!$L$12:$AI$93,$A81-1921,'Report - ALL (DASHBOARD)'!$W$4) -> 0 | C81: =INDEX('Compile Data'!$AL$12:$BI$93,$A81-1921,'Report - ALL (DASHBOARD)'!$W$4) -> 124.1669794 | D81: =INDEX('Compile Data'!$BL$12:$CI$93,$A81-1921,'Report - ALL (DASHBOARD)'!$W$4) -> 209.3401222 | E81: =INDEX('Compile Data'!$CL$12:$DI$93,$A81-1921,'Report - ALL (DASHBOARD)'!$W$4) -> 121.1616955 | F81: =INDEX('Compile Data'!$DL$12:$EI$93,$A81-1921,'Report - ALL (DASHBOARD)'!$W$4) ->  | G81: =INDEX('Compile Data'!$EL$12:$FI$93,$A81-1921,'Report - ALL (DASHBOARD)'!$W$4) ->  | O81: 53 | P81: 0.6419753086 | Q81: =INDEX('Compile Data'!$L$121:$AI$202,$O81,'Report - ALL (DASHBOARD)'!$W$4) -> 0 | R81: =INDEX('Compile Data'!$AL$121:$BI$202,$O81,'Report - ALL (DASHBOARD)'!$W$4) -> 118.1396524 | S81: =INDEX('Compile Data'!$BL$121:$CI$202,$O81,'Report - ALL (DASHBOARD)'!$W$4) -> 125.0061924 | T81: =INDEX('Compile Data'!$CL$121:$DI$202,$O81,'Report - ALL (DASHBOARD)'!$W$4) -> 114.1997424 | U81: =INDEX('Compile Data'!$DL$121:$EI$202,$O81,'Report - ALL (DASHBOARD)'!$W$4) ->  | V81: =INDEX('Compile Data'!$EL$121:$FI$202,$O81,'Report - ALL (DASHBOARD)'!$W$4) -> 
A82: 1975 | B82: =INDEX('Compile Data'!$L$12:$AI$93,$A82-1921,'Report - ALL (DASHBOARD)'!$W$4) -> 0 | C82: =INDEX('Compile Data'!$AL$12:$BI$93,$A82-1921,'Report - ALL (DASHBOARD)'!$W$4) -> 120.2745389 | D82: =INDEX('Compile Data'!$BL$12:$CI$93,$A82-1921,'Report - ALL (DASHBOARD)'!$W$4) -> 120.1307377 | E82: =INDEX('Compile Data'!$CL$12:$DI$93,$A82-1921,'Report - ALL (DASHBOARD)'!$W$4) -> 118.0022566 | F82: =INDEX('Compile Data'!$DL$12:$EI$93,$A82-1921,'Report - ALL (DASHBOARD)'!$W$4) ->  | G82: =INDEX('Compile Data'!$EL$12:$FI$93,$A82-1921,'Report - ALL (DASHBOARD)'!$W$4) ->  | O82: 54 | P82: 0.6543209877 | Q82: =INDEX('Compile Data'!$L$121:$AI$202,$O82,'Report - ALL (DASHBOARD)'!$W$4) -> 0 | R82: =INDEX('Compile Data'!$AL$121:$BI$202,$O82,'Report - ALL (DASHBOARD)'!$W$4) -> 117.4999052 | S82: =INDEX('Compile Data'!$BL$121:$CI$202,$O82,'Report - ALL (DASHBOARD)'!$W$4) -> 120.1307377 | T82: =INDEX('Compile Data'!$CL$121:$DI$202,$O82,'Report - ALL (DASHBOARD)'!$W$4) -> 114.1228096 | U82: =INDEX('Compile Data'!$DL$121:$EI$202,$O82,'Report - ALL (DASHBOARD)'!$W$4) ->  | V82: =INDEX('Compile Data'!$EL$121:$FI$202,$O82,'Report - ALL (DASHBOARD)'!$W$4) -> 
A83: 1976 | B83: =INDEX('Compile Data'!$L$12:$AI$93,$A83-1921,'Report - ALL (DASHBOARD)'!$W$4) -> 0 | C83: =INDEX('Compile Data'!$AL$12:$BI$93,$A83-1921,'Report - ALL (DASHBOARD)'!$W$4) -> 93.28363689 | D83: =INDEX('Compile Data'!$BL$12:$CI$93,$A83-1921,'Report - ALL (DASHBOARD)'!$W$4) -> 93.3338667 | E83: =INDEX('Compile Data'!$CL$12:$DI$93,$A83-1921,'Report - ALL (DASHBOARD)'!$W$4) -> 93.28310336 | F83: =INDEX('Compile Data'!$DL$12:$EI$93,$A83-1921,'Report - ALL (DASHBOARD)'!$W$4) ->  | G83: =INDEX('Compile Data'!$EL$12:$FI$93,$A83-1921,'Report - ALL (DASHBOARD)'!$W$4) ->  | O83: 55 | P83: 0.6666666667 | Q83: =INDEX('Compile Data'!$L$121:$AI$202,$O83,'Report - ALL (DASHBOARD)'!$W$4) -> 0 | R83: =INDEX('Compile Data'!$AL$121:$BI$202,$O83,'Report - ALL (DASHBOARD)'!$W$4) -> 117.4053217 | S83: =INDEX('Compile Data'!$BL$121:$CI$202,$O83,'Report - ALL (DASHBOARD)'!$W$4) -> 119.8540146 | T83: =INDEX('Compile Data'!$CL$121:$DI$202,$O83,'Report - ALL (DASHBOARD)'!$W$4) -> 112.2017333 | U83: =INDEX('Compile Data'!$DL$121:$EI$202,$O83,'Report - ALL (DASHBOARD)'!$W$4) ->  | V83: =INDEX('Compile Data'!$EL$121:$FI$202,$O83,'Report - ALL (DASHBOARD)'!$W$4) -> 
A84: 1977 | B84: =INDEX('Compile Data'!$L$12:$AI$93,$A84-1921,'Report - ALL (DASHBOARD)'!$W$4) -> 0 | C84: =INDEX('Compile Data'!$AL$12:$BI$93,$A84-1921,'Report - ALL (DASHBOARD)'!$W$4) -> 0 | D84: =INDEX('Compile Data'!$BL$12:$CI$93,$A84-1921,'Report - ALL (DASHBOARD)'!$W$4) -> 0 | E84: =INDEX('Compile Data'!$CL$12:$DI$93,$A84-1921,'Report - ALL (DASHBOARD)'!$W$4) -> 0 | F84: =INDEX('Compile Data'!$DL$12:$EI$93,$A84-1921,'Report - ALL (DASHBOARD)'!$W$4) ->  | G84: =INDEX('Compile Data'!$EL$12:$FI$93,$A84-1921,'Report - ALL (DASHBOARD)'!$W$4) ->  | O84: 56 | P84: 0.6790123457 | Q84: =INDEX('Compile Data'!$L$121:$AI$202,$O84,'Report - ALL (DASHBOARD)'!$W$4) -> 0 | R84: =INDEX('Compile Data'!$AL$121:$BI$202,$O84,'Report - ALL (DASHBOARD)'!$W$4) -> 115.7577621 | S84: =INDEX('Compile Data'!$BL$121:$CI$202,$O84,'Report - ALL (DASHBOARD)'!$W$4) -> 118.9331405 | T84: =INDEX('Compile Data'!$CL$121:$DI$202,$O84,'Report - ALL (DASHBOARD)'!$W$4) -> 110.7739508 | U84: =INDEX('Compile Data'!$DL$121:$EI$202,$O84,'Report - ALL (DASHBOARD)'!$W$4) ->  | V84: =INDEX('Compile Data'!$EL$121:$FI$202,$O84,'Report - ALL (DASHBOARD)'!$W$4) -> 
A85: 1978 | B85: =INDEX('Compile Data'!$L$12:$AI$93,$A85-1921,'Report - ALL (DASHBOARD)'!$W$4) -> 0 | C85: =INDEX('Compile Data'!$AL$12:$BI$93,$A85-1921,'Report - ALL (DASHBOARD)'!$W$4) -> 625.7963394 | D85: =INDEX('Compile Data'!$BL$12:$CI$93,$A85-1921,'Report - ALL (DASHBOARD)'!$W$4) -> 635.0991869 | E85: =INDEX('Compile Data'!$CL$12:$DI$93,$A85-1921,'Report - ALL (DASHBOARD)'!$W$4) -> 626.4499549 | F85: =INDEX('Compile Data'!$DL$12:$EI$93,$A85-1921,'Report - ALL (DASHBOARD)'!$W$4) ->  | G85: =INDEX('Compile Data'!$EL$12:$FI$93,$A85-1921,'Report - ALL (DASHBOARD)'!$W$4) ->  | O85: 57 | P85: 0.6913580247 | Q85: =INDEX('Compile Data'!$L$121:$AI$202,$O85,'Report - ALL (DASHBOARD)'!$W$4) -> 0 | R85: =INDEX('Compile Data'!$AL$121:$BI$202,$O85,'Report - ALL (DASHBOARD)'!$W$4) -> 112.7120811 | S85: =INDEX('Compile Data'!$BL$121:$CI$202,$O85,'Report - ALL (DASHBOARD)'!$W$4) -> 117.9854096 | T85: =INDEX('Compile Data'!$CL$121:$DI$202,$O85,'Report - ALL (DASHBOARD)'!$W$4) -> 109.1905506 | U85: =INDEX('Compile Data'!$DL$121:$EI$202,$O85,'Report - ALL (DASHBOARD)'!$W$4) ->  | V85: =INDEX('Compile Data'!$EL$121:$FI$202,$O85,'Report - ALL (DASHBOARD)'!$W$4) -> 
A86: 1979 | B86: =INDEX('Compile Data'!$L$12:$AI$93,$A86-1921,'Report - ALL (DASHBOARD)'!$W$4) -> 0 | C86: =INDEX('Compile Data'!$AL$12:$BI$93,$A86-1921,'Report - ALL (DASHBOARD)'!$W$4) -> 216.2650991 | D86: =INDEX('Compile Data'!$BL$12:$CI$93,$A86-1921,'Report - ALL (DASHBOARD)'!$W$4) -> 215.2589874 | E86: =INDEX('Compile Data'!$CL$12:$DI$93,$A86-1921,'Report - ALL (DASHBOARD)'!$W$4) -> 216.2665485 | F86: =INDEX('Compile Data'!$DL$12:$EI$93,$A86-1921,'Report - ALL (DASHBOARD)'!$W$4) ->  | G86: =INDEX('Compile Data'!$EL$12:$FI$93,$A86-1921,'Report - ALL (DASHBOARD)'!$W$4) ->  | O86: 58 | P86: 0.7037037037 | Q86: =INDEX('Compile Data'!$L$121:$AI$202,$O86,'Report - ALL (DASHBOARD)'!$W$4) -> 0 | R86: =INDEX('Compile Data'!$AL$121:$BI$202,$O86,'Report - ALL (DASHBOARD)'!$W$4) -> 110.8029826 | S86: =INDEX('Compile Data'!$BL$121:$CI$202,$O86,'Report - ALL (DASHBOARD)'!$W$4) -> 117.1617639 | T86: =INDEX('Compile Data'!$CL$121:$DI$202,$O86,'Report - ALL (DASHBOARD)'!$W$4) -> 108.8478595 | U86: =INDEX('Compile Data'!$DL$121:$EI$202,$O86,'Report - ALL (DASHBOARD)'!$W$4) ->  | V86: =INDEX('Compile Data'!$EL$121:$FI$202,$O86,'Report - ALL (DASHBOARD)'!$W$4) -> 
A87: 1980 | B87: =INDEX('Compile Data'!$L$12:$AI$93,$A87-1921,'Report - ALL (DASHBOARD)'!$W$4) -> 0 | C87: =INDEX('Compile Data'!$AL$12:$BI$93,$A87-1921,'Report - ALL (DASHBOARD)'!$W$4) -> 550.4867425 | D87: =INDEX('Compile Data'!$BL$12:$CI$93,$A87-1921,'Report - ALL (DASHBOARD)'!$W$4) -> 553.7699172 | E87: =INDEX('Compile Data'!$CL$12:$DI$93,$A87-1921,'Report - ALL (DASHBOARD)'!$W$4) -> 533.1485722 | F87: =INDEX('Compile Data'!$DL$12:$EI$93,$A87-1921,'Report - ALL (DASHBOARD)'!$W$4) ->  | G87: =INDEX('Compile Data'!$EL$12:$FI$93,$A87-1921,'Report - ALL (DASHBOARD)'!$W$4) ->  | O87: 59 | P87: 0.7160493827 | Q87: =INDEX('Compile Data'!$L$121:$AI$202,$O87,'Report - ALL (DASHBOARD)'!$W$4) -> 0 | R87: =INDEX('Compile Data'!$AL$121:$BI$202,$O87,'Report - ALL (DASHBOARD)'!$W$4) -> 106.5901706 | S87: =INDEX('Compile Data'!$BL$121:$CI$202,$O87,'Report - ALL (DASHBOARD)'!$W$4) -> 115.6084582 | T87: =INDEX('Compile Data'!$CL$121:$DI$202,$O87,'Report - ALL (DASHBOARD)'!$W$4) -> 105.3300499 | U87: =INDEX('Compile Data'!$DL$121:$EI$202,$O87,'Report - ALL (DASHBOARD)'!$W$4) ->  | V87: =INDEX('Compile Data'!$EL$121:$FI$202,$O87,'Report - ALL (DASHBOARD)'!$W$4) -> 
A88: 1981 | B88: =INDEX('Compile Data'!$L$12:$AI$93,$A88-1921,'Report - ALL (DASHBOARD)'!$W$4) -> 0 | C88: =INDEX('Compile Data'!$AL$12:$BI$93,$A88-1921,'Report - ALL (DASHBOARD)'!$W$4) -> 205.8620385 | D88: =INDEX('Compile Data'!$BL$12:$CI$93,$A88-1921,'Report - ALL (DASHBOARD)'!$W$4) -> 206.9726239 | E88: =INDEX('Compile Data'!$CL$12:$DI$93,$A88-1921,'Report - ALL (DASHBOARD)'!$W$4) -> 141.8506669 | F88: =INDEX('Compile Data'!$DL$12:$EI$93,$A88-1921,'Report - ALL (DASHBOARD)'!$W$4) ->  | G88: =INDEX('Compile Data'!$EL$12:$FI$93,$A88-1921,'Report - ALL (DASHBOARD)'!$W$4) ->  | O88: 60 | P88: 0.7283950617 | Q88: =INDEX('Compile Data'!$L$121:$AI$202,$O88,'Report - ALL (DASHBOARD)'!$W$4) -> 0 | R88: =INDEX('Compile Data'!$AL$121:$BI$202,$O88,'Report - ALL (DASHBOARD)'!$W$4) -> 106.3987421 | S88: =INDEX('Compile Data'!$BL$121:$CI$202,$O88,'Report - ALL (DASHBOARD)'!$W$4) -> 113.4675237 | T88: =INDEX('Compile Data'!$CL$121:$DI$202,$O88,'Report - ALL (DASHBOARD)'!$W$4) -> 105.033068 | U88: =INDEX('Compile Data'!$DL$121:$EI$202,$O88,'Report - ALL (DASHBOARD)'!$W$4) ->  | V88: =INDEX('Compile Data'!$EL$121:$FI$202,$O88,'Report - ALL (DASHBOARD)'!$W$4) -> 
A89: 1982 | B89: =INDEX('Compile Data'!$L$12:$AI$93,$A89-1921,'Report - ALL (DASHBOARD)'!$W$4) -> 0 | C89: =INDEX('Compile Data'!$AL$12:$BI$93,$A89-1921,'Report - ALL (DASHBOARD)'!$W$4) -> 360.7439456 | D89: =INDEX('Compile Data'!$BL$12:$CI$93,$A89-1921,'Report - ALL (DASHBOARD)'!$W$4) -> 614.816505 | E89: =INDEX('Compile Data'!$CL$12:$DI$93,$A89-1921,'Report - ALL (DASHBOARD)'!$W$4) -> 327.1375971 | F89: =INDEX('Compile Data'!$DL$12:$EI$93,$A89-1921,'Report - ALL (DASHBOARD)'!$W$4) ->  | G89: =INDEX('Compile Data'!$EL$12:$FI$93,$A89-1921,'Report - ALL (DASHBOARD)'!$W$4) ->  | O89: 61 | P89: 0.7407407407 | Q89: =INDEX('Compile Data'!$L$121:$AI$202,$O89,'Report - ALL (DASHBOARD)'!$W$4) -> 0 | R89: =INDEX('Compile Data'!$AL$121:$BI$202,$O89,'Report - ALL (DASHBOARD)'!$W$4) -> 97.33924901 | S89: =INDEX('Compile Data'!$BL$121:$CI$202,$O89,'Report - ALL (DASHBOARD)'!$W$4) -> 97.48289996 | T89: =INDEX('Compile Data'!$CL$121:$DI$202,$O89,'Report - ALL (DASHBOARD)'!$W$4) -> 94.13411997 | U89: =INDEX('Compile Data'!$DL$121:$EI$202,$O89,'Report - ALL (DASHBOARD)'!$W$4) ->  | V89: =INDEX('Compile Data'!$EL$121:$FI$202,$O89,'Report - ALL (DASHBOARD)'!$W$4) -> 
A90: 1983 | B90: =INDEX('Compile Data'!$L$12:$AI$93,$A90-1921,'Report - ALL (DASHBOARD)'!$W$4) -> 0 | C90: =INDEX('Compile Data'!$AL$12:$BI$93,$A90-1921,'Report - ALL (DASHBOARD)'!$W$4) -> 117.4053217 | D90: =INDEX('Compile Data'!$BL$12:$CI$93,$A90-1921,'Report - ALL (DASHBOARD)'!$W$4) -> 171.8246428 | E90: =INDEX('Compile Data'!$CL$12:$DI$93,$A90-1921,'Report - ALL (DASHBOARD)'!$W$4) -> 108.8478595 | F90: =INDEX('Compile Data'!$DL$12:$EI$93,$A90-1921,'Report - ALL (DASHBOARD)'!$W$4) ->  | G90: =INDEX('Compile Data'!$EL$12:$FI$93,$A90-1921,'Report - ALL (DASHBOARD)'!$W$4) ->  | O90: 62 | P90: 0.7530864198 | Q90: =INDEX('Compile Data'!$L$121:$AI$202,$O90,'Report - ALL (DASHBOARD)'!$W$4) -> 0 | R90: =INDEX('Compile Data'!$AL$121:$BI$202,$O90,'Report - ALL (DASHBOARD)'!$W$4) -> 96.6464017 | S90: =INDEX('Compile Data'!$BL$121:$CI$202,$O90,'Report - ALL (DASHBOARD)'!$W$4) -> 96.66818528 | T90: =INDEX('Compile Data'!$CL$121:$DI$202,$O90,'Report - ALL (DASHBOARD)'!$W$4) -> 93.28310336 | U90: =INDEX('Compile Data'!$DL$121:$EI$202,$O90,'Report - ALL (DASHBOARD)'!$W$4) ->  | V90: =INDEX('Compile Data'!$EL$121:$FI$202,$O90,'Report - ALL (DASHBOARD)'!$W$4) -> 
A91: 1984 | B91: =INDEX('Compile Data'!$L$12:$AI$93,$A91-1921,'Report - ALL (DASHBOARD)'!$W$4) -> 0 | C91: =INDEX('Compile Data'!$AL$12:$BI$93,$A91-1921,'Report - ALL (DASHBOARD)'!$W$4) -> 40.75050232 | D91: =INDEX('Compile Data'!$BL$12:$CI$93,$A91-1921,'Report - ALL (DASHBOARD)'!$W$4) -> 87.43467847 | E91: =INDEX('Compile Data'!$CL$12:$DI$93,$A91-1921,'Report - ALL (DASHBOARD)'!$W$4) -> 39.90646992 | F91: =INDEX('Compile Data'!$DL$12:$EI$93,$A91-1921,'Report - ALL (DASHBOARD)'!$W$4) ->  | G91: =INDEX('Compile Data'!$EL$12:$FI$93,$A91-1921,'Report - ALL (DASHBOARD)'!$W$4) ->  | O91: 63 | P91: 0.7654320988 | Q91: =INDEX('Compile Data'!$L$121:$AI$202,$O91,'Report - ALL (DASHBOARD)'!$W$4) -> 0 | R91: =INDEX('Compile Data'!$AL$121:$BI$202,$O91,'Report - ALL (DASHBOARD)'!$W$4) -> 93.28363689 | S91: =INDEX('Compile Data'!$BL$121:$CI$202,$O91,'Report - ALL (DASHBOARD)'!$W$4) -> 96.14439891 | T91: =INDEX('Compile Data'!$CL$121:$DI$202,$O91,'Report - ALL (DASHBOARD)'!$W$4) -> 93.21983993 | U91: =INDEX('Compile Data'!$DL$121:$EI$202,$O91,'Report - ALL (DASHBOARD)'!$W$4) ->  | V91: =INDEX('Compile Data'!$EL$121:$FI$202,$O91,'Report - ALL (DASHBOARD)'!$W$4) -> 
A92: 1985 | B92: =INDEX('Compile Data'!$L$12:$AI$93,$A92-1921,'Report - ALL (DASHBOARD)'!$W$4) -> 0 | C92: =INDEX('Compile Data'!$AL$12:$BI$93,$A92-1921,'Report - ALL (DASHBOARD)'!$W$4) -> 71.70515259 | D92: =INDEX('Compile Data'!$BL$12:$CI$93,$A92-1921,'Report - ALL (DASHBOARD)'!$W$4) -> 71.70311161 | E92: =INDEX('Compile Data'!$CL$12:$DI$93,$A92-1921,'Report - ALL (DASHBOARD)'!$W$4) -> 71.70638827 | F92: =INDEX('Compile Data'!$DL$12:$EI$93,$A92-1921,'Report - ALL (DASHBOARD)'!$W$4) ->  | G92: =INDEX('Compile Data'!$EL$12:$FI$93,$A92-1921,'Report - ALL (DASHBOARD)'!$W$4) ->  | O92: 64 | P92: 0.7777777778 | Q92: =INDEX('Compile Data'!$L$121:$AI$202,$O92,'Report - ALL (DASHBOARD)'!$W$4) -> 0 | R92: =INDEX('Compile Data'!$AL$121:$BI$202,$O92,'Report - ALL (DASHBOARD)'!$W$4) -> 93.18726816 | S92: =INDEX('Compile Data'!$BL$121:$CI$202,$O92,'Report - ALL (DASHBOARD)'!$W$4) -> 93.3338667 | T92: =INDEX('Compile Data'!$CL$121:$DI$202,$O92,'Report - ALL (DASHBOARD)'!$W$4) -> 93.18695317 | U92: =INDEX('Compile Data'!$DL$121:$EI$202,$O92,'Report - ALL (DASHBOARD)'!$W$4) ->  | V92: =INDEX('Compile Data'!$EL$121:$FI$202,$O92,'Report - ALL (DASHBOARD)'!$W$4) -> 
A93: 1986 | B93: =INDEX('Compile Data'!$L$12:$AI$93,$A93-1921,'Report - ALL (DASHBOARD)'!$W$4) -> 0 | C93: =INDEX('Compile Data'!$AL$12:$BI$93,$A93-1921,'Report - ALL (DASHBOARD)'!$W$4) -> 431.764631 | D93: =INDEX('Compile Data'!$BL$12:$CI$93,$A93-1921,'Report - ALL (DASHBOARD)'!$W$4) -> 431.846208 | E93: =INDEX('Compile Data'!$CL$12:$DI$93,$A93-1921,'Report - ALL (DASHBOARD)'!$W$4) -> 431.7649047 | F93: =INDEX('Compile Data'!$DL$12:$EI$93,$A93-1921,'Report - ALL (DASHBOARD)'!$W$4) ->  | G93: =INDEX('Compile Data'!$EL$12:$FI$93,$A93-1921,'Report - ALL (DASHBOARD)'!$W$4) ->  | O93: 65 | P93: =(O93-1)/81 -> 0.7901234568 | Q93: =INDEX('Compile Data'!$L$121:$AI$202,$O93,'Report - ALL (DASHBOARD)'!$W$4) -> 0 | R93: =INDEX('Compile Data'!$AL$121:$BI$202,$O93,'Report - ALL (DASHBOARD)'!$W$4) -> 92.69291541 | S93: =INDEX('Compile Data'!$BL$121:$CI$202,$O93,'Report - ALL (DASHBOARD)'!$W$4) -> 93.21164122 | T93: =INDEX('Compile Data'!$CL$121:$DI$202,$O93,'Report - ALL (DASHBOARD)'!$W$4) -> 92.7493197 | U93: =INDEX('Compile Data'!$DL$121:$EI$202,$O93,'Report - ALL (DASHBOARD)'!$W$4) ->  | V93: =INDEX('Compile Data'!$EL$121:$FI$202,$O93,'Report - ALL (DASHBOARD)'!$W$4) -> 
A94: 1987 | B94: =INDEX('Compile Data'!$L$12:$AI$93,$A94-1921,'Report - ALL (DASHBOARD)'!$W$4) -> 0 | C94: =INDEX('Compile Data'!$AL$12:$BI$93,$A94-1921,'Report - ALL (DASHBOARD)'!$W$4) -> 165.7743188 | D94: =INDEX('Compile Data'!$BL$12:$CI$93,$A94-1921,'Report - ALL (DASHBOARD)'!$W$4) -> 165.7679732 | E94: =INDEX('Compile Data'!$CL$12:$DI$93,$A94-1921,'Report - ALL (DASHBOARD)'!$W$4) -> 165.7745813 | F94: =INDEX('Compile Data'!$DL$12:$EI$93,$A94-1921,'Report - ALL (DASHBOARD)'!$W$4) ->  | G94: =INDEX('Compile Data'!$EL$12:$FI$93,$A94-1921,'Report - ALL (DASHBOARD)'!$W$4) ->  | O94: 66 | P94: 0.8024691358 | Q94: =INDEX('Compile Data'!$L$121:$AI$202,$O94,'Report - ALL (DASHBOARD)'!$W$4) -> 0 | R94: =INDEX('Compile Data'!$AL$121:$BI$202,$O94,'Report - ALL (DASHBOARD)'!$W$4) -> 76.47698424 | S94: =INDEX('Compile Data'!$BL$121:$CI$202,$O94,'Report - ALL (DASHBOARD)'!$W$4) -> 90.45720029 | T94: =INDEX('Compile Data'!$CL$121:$DI$202,$O94,'Report - ALL (DASHBOARD)'!$W$4) -> 79.00883 | U94: =INDEX('Compile Data'!$DL$121:$EI$202,$O94,'Report - ALL (DASHBOARD)'!$W$4) ->  | V94: =INDEX('Compile Data'!$EL$121:$FI$202,$O94,'Report - ALL (DASHBOARD)'!$W$4) -> 
A95: =A94+1 -> 1988 | B95: =INDEX('Compile Data'!$L$12:$AI$93,$A95-1921,'Report - ALL (DASHBOARD)'!$W$4) -> 0 | C95: =INDEX('Compile Data'!$AL$12:$BI$93,$A95-1921,'Report - ALL (DASHBOARD)'!$W$4) -> 34.92722312 | D95: =INDEX('Compile Data'!$BL$12:$CI$93,$A95-1921,'Report - ALL (DASHBOARD)'!$W$4) -> 35.00236906 | E95: =INDEX('Compile Data'!$CL$12:$DI$93,$A95-1921,'Report - ALL (DASHBOARD)'!$W$4) -> 34.92744619 | F95: =INDEX('Compile Data'!$DL$12:$EI$93,$A95-1921,'Report - ALL (DASHBOARD)'!$W$4) ->  | G95: =INDEX('Compile Data'!$EL$12:$FI$93,$A95-1921,'Report - ALL (DASHBOARD)'!$W$4) ->  | O95: 67 | P95: 0.8148148148 | Q95: =INDEX('Compile Data'!$L$121:$AI$202,$O95,'Report - ALL (DASHBOARD)'!$W$4) -> 0 | R95: =INDEX('Compile Data'!$AL$121:$BI$202,$O95,'Report - ALL (DASHBOARD)'!$W$4) -> 71.70515259 | S95: =INDEX('Compile Data'!$BL$121:$CI$202,$O95,'Report - ALL (DASHBOARD)'!$W$4) -> 89.02223514 | T95: =INDEX('Compile Data'!$CL$121:$DI$202,$O95,'Report - ALL (DASHBOARD)'!$W$4) -> 71.70638827 | U95: =INDEX('Compile Data'!$DL$121:$EI$202,$O95,'Report - ALL (DASHBOARD)'!$W$4) ->  | V95: =INDEX('Compile Data'!$EL$121:$FI$202,$O95,'Report - ALL (DASHBOARD)'!$W$4) -> 
A96: 1989 | B96: =INDEX('Compile Data'!$L$12:$AI$93,$A96-1921,'Report - ALL (DASHBOARD)'!$W$4) -> 0 | C96: =INDEX('Compile Data'!$AL$12:$BI$93,$A96-1921,'Report - ALL (DASHBOARD)'!$W$4) -> 178.31088 | D96: =INDEX('Compile Data'!$BL$12:$CI$93,$A96-1921,'Report - ALL (DASHBOARD)'!$W$4) -> 178.252286 | E96: =INDEX('Compile Data'!$CL$12:$DI$93,$A96-1921,'Report - ALL (DASHBOARD)'!$W$4) -> 178.2950417 | F96: =INDEX('Compile Data'!$DL$12:$EI$93,$A96-1921,'Report - ALL (DASHBOARD)'!$W$4) ->  | G96: =INDEX('Compile Data'!$EL$12:$FI$93,$A96-1921,'Report - ALL (DASHBOARD)'!$W$4) ->  | O96: 68 | P96: 0.8271604938 | Q96: =INDEX('Compile Data'!$L$121:$AI$202,$O96,'Report - ALL (DASHBOARD)'!$W$4) -> 0 | R96: =INDEX('Compile Data'!$AL$121:$BI$202,$O96,'Report - ALL (DASHBOARD)'!$W$4) -> 70.97961333 | S96: =INDEX('Compile Data'!$BL$121:$CI$202,$O96,'Report - ALL (DASHBOARD)'!$W$4) -> 87.43467847 | T96: =INDEX('Compile Data'!$CL$121:$DI$202,$O96,'Report - ALL (DASHBOARD)'!$W$4) -> 70.99076933 | U96: =INDEX('Compile Data'!$DL$121:$EI$202,$O96,'Report - ALL (DASHBOARD)'!$W$4) ->  | V96: =INDEX('Compile Data'!$EL$121:$FI$202,$O96,'Report - ALL (DASHBOARD)'!$W$4) -> 
A97: 1990 | B97: =INDEX('Compile Data'!$L$12:$AI$93,$A97-1921,'Report - ALL (DASHBOARD)'!$W$4) -> 0 | C97: =INDEX('Compile Data'!$AL$12:$BI$93,$A97-1921,'Report - ALL (DASHBOARD)'!$W$4) -> 63.88710105 | D97: =INDEX('Compile Data'!$BL$12:$CI$93,$A97-1921,'Report - ALL (DASHBOARD)'!$W$4) -> 63.88547559 | E97: =INDEX('Compile Data'!$CL$12:$DI$93,$A97-1921,'Report - ALL (DASHBOARD)'!$W$4) -> 63.8848796 | F97: =INDEX('Compile Data'!$DL$12:$EI$93,$A97-1921,'Report - ALL (DASHBOARD)'!$W$4) ->  | G97: =INDEX('Compile Data'!$EL$12:$FI$93,$A97-1921,'Report - ALL (DASHBOARD)'!$W$4) ->  | O97: 69 | P97: 0.8395061728 | Q97: =INDEX('Compile Data'!$L$121:$AI$202,$O97,'Report - ALL (DASHBOARD)'!$W$4) -> 0 | R97: =INDEX('Compile Data'!$AL$121:$BI$202,$O97,'Report - ALL (DASHBOARD)'!$W$4) -> 63.88710105 | S97: =INDEX('Compile Data'!$BL$121:$CI$202,$O97,'Report - ALL (DASHBOARD)'!$W$4) -> 82.3142259 | T97: =INDEX('Compile Data'!$CL$121:$DI$202,$O97,'Report - ALL (DASHBOARD)'!$W$4) -> 63.8848796 | U97: =INDEX('Compile Data'!$DL$121:$EI$202,$O97,'Report - ALL (DASHBOARD)'!$W$4) ->  | V97: =INDEX('Compile Data'!$EL$121:$FI$202,$O97,'Report - ALL (DASHBOARD)'!$W$4) -> 
A98: 1991 | B98: =INDEX('Compile Data'!$L$12:$AI$93,$A98-1921,'Report - ALL (DASHBOARD)'!$W$4) -> 0 | C98: =INDEX('Compile Data'!$AL$12:$BI$93,$A98-1921,'Report - ALL (DASHBOARD)'!$W$4) -> 144.0336899 | D98: =INDEX('Compile Data'!$BL$12:$CI$93,$A98-1921,'Report - ALL (DASHBOARD)'!$W$4) -> 144.0333853 | E98: =INDEX('Compile Data'!$CL$12:$DI$93,$A98-1921,'Report - ALL (DASHBOARD)'!$W$4) -> 144.0333243 | F98: =INDEX('Compile Data'!$DL$12:$EI$93,$A98-1921,'Report - ALL (DASHBOARD)'!$W$4) ->  | G98: =INDEX('Compile Data'!$EL$12:$FI$93,$A98-1921,'Report - ALL (DASHBOARD)'!$W$4) ->  | O98: 70 | P98: 0.8518518519 | Q98: =INDEX('Compile Data'!$L$121:$AI$202,$O98,'Report - ALL (DASHBOARD)'!$W$4) -> 0 | R98: =INDEX('Compile Data'!$AL$121:$BI$202,$O98,'Report - ALL (DASHBOARD)'!$W$4) -> 47.62894601 | S98: =INDEX('Compile Data'!$BL$121:$CI$202,$O98,'Report - ALL (DASHBOARD)'!$W$4) -> 71.70311161 | T98: =INDEX('Compile Data'!$CL$121:$DI$202,$O98,'Report - ALL (DASHBOARD)'!$W$4) -> 47.59843084 | U98: =INDEX('Compile Data'!$DL$121:$EI$202,$O98,'Report - ALL (DASHBOARD)'!$W$4) ->  | V98: =INDEX('Compile Data'!$EL$121:$FI$202,$O98,'Report - ALL (DASHBOARD)'!$W$4) -> 
A99: 1992 | B99: =INDEX('Compile Data'!$L$12:$AI$93,$A99-1921,'Report - ALL (DASHBOARD)'!$W$4) -> 0 | C99: =INDEX('Compile Data'!$AL$12:$BI$93,$A99-1921,'Report - ALL (DASHBOARD)'!$W$4) -> 175.3799119 | D99: =INDEX('Compile Data'!$BL$12:$CI$93,$A99-1921,'Report - ALL (DASHBOARD)'!$W$4) -> 176.7243651 | E99: =INDEX('Compile Data'!$CL$12:$DI$93,$A99-1921,'Report - ALL (DASHBOARD)'!$W$4) -> 176.2013159 | F99: =INDEX('Compile Data'!$DL$12:$EI$93,$A99-1921,'Report - ALL (DASHBOARD)'!$W$4) ->  | G99: =INDEX('Compile Data'!$EL$12:$FI$93,$A99-1921,'Report - ALL (DASHBOARD)'!$W$4) ->  | O99: 71 | P99: 0.8641975309 | Q99: =INDEX('Compile Data'!$L$121:$AI$202,$O99,'Report - ALL (DASHBOARD)'!$W$4) -> 0 | R99: =INDEX('Compile Data'!$AL$121:$BI$202,$O99,'Report - ALL (DASHBOARD)'!$W$4) -> 46.51038228 | S99: =INDEX('Compile Data'!$BL$121:$CI$202,$O99,'Report - ALL (DASHBOARD)'!$W$4) -> 63.88547559 | T99: =INDEX('Compile Data'!$CL$121:$DI$202,$O99,'Report - ALL (DASHBOARD)'!$W$4) -> 39.90646992 | U99: =INDEX('Compile Data'!$DL$121:$EI$202,$O99,'Report - ALL (DASHBOARD)'!$W$4) ->  | V99: =INDEX('Compile Data'!$EL$121:$FI$202,$O99,'Report - ALL (DASHBOARD)'!$W$4) -> 
A100: 1993 | B100: =INDEX('Compile Data'!$L$12:$AI$93,$A100-1921,'Report - ALL (DASHBOARD)'!$W$4) -> 0 | C100: =INDEX('Compile Data'!$AL$12:$BI$93,$A100-1921,'Report - ALL (DASHBOARD)'!$W$4) -> 620.8547458 | D100: =INDEX('Compile Data'!$BL$12:$CI$93,$A100-1921,'Report - ALL (DASHBOARD)'!$W$4) -> 621.1740263 | E100: =INDEX('Compile Data'!$CL$12:$DI$93,$A100-1921,'Report - ALL (DASHBOARD)'!$W$4) -> 620.795628 | F100: =INDEX('Compile Data'!$DL$12:$EI$93,$A100-1921,'Report - ALL (DASHBOARD)'!$W$4) ->  | G100: =INDEX('Compile Data'!$EL$12:$FI$93,$A100-1921,'Report - ALL (DASHBOARD)'!$W$4) ->  | O100: 72 | P100: 0.8765432099 | Q100: =INDEX('Compile Data'!$L$121:$AI$202,$O100,'Report - ALL (DASHBOARD)'!$W$4) -> 0 | R100: =INDEX('Compile Data'!$AL$121:$BI$202,$O100,'Report - ALL (DASHBOARD)'!$W$4) -> 40.75050232 | S100: =INDEX('Compile Data'!$BL$121:$CI$202,$O100,'Report - ALL (DASHBOARD)'!$W$4) -> 47.61606684 | T100: =INDEX('Compile Data'!$CL$121:$DI$202,$O100,'Report - ALL (DASHBOARD)'!$W$4) -> 36.65217868 | U100: =INDEX('Compile Data'!$DL$121:$EI$202,$O100,'Report - ALL (DASHBOARD)'!$W$4) ->  | V100: =INDEX('Compile Data'!$EL$121:$FI$202,$O100,'Report - ALL (DASHBOARD)'!$W$4) -> 
A101: 1994 | B101: =INDEX('Compile Data'!$L$12:$AI$93,$A101-1921,'Report - ALL (DASHBOARD)'!$W$4) -> 0 | C101: =INDEX('Compile Data'!$AL$12:$BI$93,$A101-1921,'Report - ALL (DASHBOARD)'!$W$4) -> 28.26520721 | D101: =INDEX('Compile Data'!$BL$12:$CI$93,$A101-1921,'Report - ALL (DASHBOARD)'!$W$4) -> 28.2647899 | E101: =INDEX('Compile Data'!$CL$12:$DI$93,$A101-1921,'Report - ALL (DASHBOARD)'!$W$4) -> 28.26504115 | F101: =INDEX('Compile Data'!$DL$12:$EI$93,$A101-1921,'Report - ALL (DASHBOARD)'!$W$4) ->  | G101: =INDEX('Compile Data'!$EL$12:$FI$93,$A101-1921,'Report - ALL (DASHBOARD)'!$W$4) ->  | O101: 73 | P101: 0.8888888889 | Q101: =INDEX('Compile Data'!$L$121:$AI$202,$O101,'Report - ALL (DASHBOARD)'!$W$4) -> 0 | R101: =INDEX('Compile Data'!$AL$121:$BI$202,$O101,'Report - ALL (DASHBOARD)'!$W$4) -> 37.27651634 | S101: =INDEX('Compile Data'!$BL$121:$CI$202,$O101,'Report - ALL (DASHBOARD)'!$W$4) -> 37.83874204 | T101: =INDEX('Compile Data'!$CL$121:$DI$202,$O101,'Report - ALL (DASHBOARD)'!$W$4) -> 35.57085281 | U101: =INDEX('Compile Data'!$DL$121:$EI$202,$O101,'Report - ALL (DASHBOARD)'!$W$4) ->  | V101: =INDEX('Compile Data'!$EL$121:$FI$202,$O101,'Report - ALL (DASHBOARD)'!$W$4) -> 
A102: 1995 | B102: =INDEX('Compile Data'!$L$12:$AI$93,$A102-1921,'Report - ALL (DASHBOARD)'!$W$4) -> 0 | C102: =INDEX('Compile Data'!$AL$12:$BI$93,$A102-1921,'Report - ALL (DASHBOARD)'!$W$4) -> 1210.523313 | D102: =INDEX('Compile Data'!$BL$12:$CI$93,$A102-1921,'Report - ALL (DASHBOARD)'!$W$4) -> 1210.533708 | E102: =INDEX('Compile Data'!$CL$12:$DI$93,$A102-1921,'Report - ALL (DASHBOARD)'!$W$4) -> 1148.130634 | F102: =INDEX('Compile Data'!$DL$12:$EI$93,$A102-1921,'Report - ALL (DASHBOARD)'!$W$4) ->  | G102: =INDEX('Compile Data'!$EL$12:$FI$93,$A102-1921,'Report - ALL (DASHBOARD)'!$W$4) ->  | O102: 74 | P102: 0.9012345679 | Q102: =INDEX('Compile Data'!$L$121:$AI$202,$O102,'Report - ALL (DASHBOARD)'!$W$4) -> 0 | R102: =INDEX('Compile Data'!$AL$121:$BI$202,$O102,'Report - ALL (DASHBOARD)'!$W$4) -> 35.57085308 | S102: =INDEX('Compile Data'!$BL$121:$CI$202,$O102,'Report - ALL (DASHBOARD)'!$W$4) -> 35.58600181 | T102: =INDEX('Compile Data'!$CL$121:$DI$202,$O102,'Report - ALL (DASHBOARD)'!$W$4) -> 34.92744619 | U102: =INDEX('Compile Data'!$DL$121:$EI$202,$O102,'Report - ALL (DASHBOARD)'!$W$4) ->  | V102: =INDEX('Compile Data'!$EL$121:$FI$202,$O102,'Report - ALL (DASHBOARD)'!$W$4) -> 
A103: 1996 | B103: =INDEX('Compile Data'!$L$12:$AI$93,$A103-1921,'Report - ALL (DASHBOARD)'!$W$4) -> 0 | C103: =INDEX('Compile Data'!$AL$12:$BI$93,$A103-1921,'Report - ALL (DASHBOARD)'!$W$4) -> 258.4000646 | D103: =INDEX('Compile Data'!$BL$12:$CI$93,$A103-1921,'Report - ALL (DASHBOARD)'!$W$4) -> 286.4130414 | E103: =INDEX('Compile Data'!$CL$12:$DI$93,$A103-1921,'Report - ALL (DASHBOARD)'!$W$4) -> 34.47683613 | F103: =INDEX('Compile Data'!$DL$12:$EI$93,$A103-1921,'Report - ALL (DASHBOARD)'!$W$4) ->  | G103: =INDEX('Compile Data'!$EL$12:$FI$93,$A103-1921,'Report - ALL (DASHBOARD)'!$W$4) ->  | O103: 75 | P103: 0.9135802469 | Q103: =INDEX('Compile Data'!$L$121:$AI$202,$O103,'Report - ALL (DASHBOARD)'!$W$4) -> 0 | R103: =INDEX('Compile Data'!$AL$121:$BI$202,$O103,'Report - ALL (DASHBOARD)'!$W$4) -> 34.92722312 | S103: =INDEX('Compile Data'!$BL$121:$CI$202,$O103,'Report - ALL (DASHBOARD)'!$W$4) -> 35.00236906 | T103: =INDEX('Compile Data'!$CL$121:$DI$202,$O103,'Report - ALL (DASHBOARD)'!$W$4) -> 34.47683613 | U103: =INDEX('Compile Data'!$DL$121:$EI$202,$O103,'Report - ALL (DASHBOARD)'!$W$4) ->  | V103: =INDEX('Compile Data'!$EL$121:$FI$202,$O103,'Report - ALL (DASHBOARD)'!$W$4) -> 
A104: 1997 | B104: =INDEX('Compile Data'!$L$12:$AI$93,$A104-1921,'Report - ALL (DASHBOARD)'!$W$4) -> 0 | C104: =INDEX('Compile Data'!$AL$12:$BI$93,$A104-1921,'Report - ALL (DASHBOARD)'!$W$4) -> 96.6464017 | D104: =INDEX('Compile Data'!$BL$12:$CI$93,$A104-1921,'Report - ALL (DASHBOARD)'!$W$4) -> 96.14439891 | E104: =INDEX('Compile Data'!$CL$12:$DI$93,$A104-1921,'Report - ALL (DASHBOARD)'!$W$4) -> 94.13411997 | F104: =INDEX('Compile Data'!$DL$12:$EI$93,$A104-1921,'Report - ALL (DASHBOARD)'!$W$4) ->  | G104: =INDEX('Compile Data'!$EL$12:$FI$93,$A104-1921,'Report - ALL (DASHBOARD)'!$W$4) ->  | O104: 76 | P104: 0.9259259259 | Q104: =INDEX('Compile Data'!$L$121:$AI$202,$O104,'Report - ALL (DASHBOARD)'!$W$4) -> 0 | R104: =INDEX('Compile Data'!$AL$121:$BI$202,$O104,'Report - ALL (DASHBOARD)'!$W$4) -> 28.26520721 | S104: =INDEX('Compile Data'!$BL$121:$CI$202,$O104,'Report - ALL (DASHBOARD)'!$W$4) -> 28.2647899 | T104: =INDEX('Compile Data'!$CL$121:$DI$202,$O104,'Report - ALL (DASHBOARD)'!$W$4) -> 28.26504115 | U104: =INDEX('Compile Data'!$DL$121:$EI$202,$O104,'Report - ALL (DASHBOARD)'!$W$4) ->  | V104: =INDEX('Compile Data'!$EL$121:$FI$202,$O104,'Report - ALL (DASHBOARD)'!$W$4) -> 
A105: 1998 | B105: =INDEX('Compile Data'!$L$12:$AI$93,$A105-1921,'Report - ALL (DASHBOARD)'!$W$4) -> 0 | C105: =INDEX('Compile Data'!$AL$12:$BI$93,$A105-1921,'Report - ALL (DASHBOARD)'!$W$4) -> 117.4999052 | D105: =INDEX('Compile Data'!$BL$12:$CI$93,$A105-1921,'Report - ALL (DASHBOARD)'!$W$4) -> 119.8540146 | E105: =INDEX('Compile Data'!$CL$12:$DI$93,$A105-1921,'Report - ALL (DASHBOARD)'!$W$4) -> 114.1228096 | F105: =INDEX('Compile Data'!$DL$12:$EI$93,$A105-1921,'Report - ALL (DASHBOARD)'!$W$4) ->  | G105: =INDEX('Compile Data'!$EL$12:$FI$93,$A105-1921,'Report - ALL (DASHBOARD)'!$W$4) ->  | O105: 77 | P105: 0.9382716049 | Q105: =INDEX('Compile Data'!$L$121:$AI$202,$O105,'Report - ALL (DASHBOARD)'!$W$4) -> 0 | R105: =INDEX('Compile Data'!$AL$121:$BI$202,$O105,'Report - ALL (DASHBOARD)'!$W$4) -> 15.05442456 | S105: =INDEX('Compile Data'!$BL$121:$CI$202,$O105,'Report - ALL (DASHBOARD)'!$W$4) -> 18.30534437 | T105: =INDEX('Compile Data'!$CL$121:$DI$202,$O105,'Report - ALL (DASHBOARD)'!$W$4) -> 15.05418443 | U105: =INDEX('Compile Data'!$DL$121:$EI$202,$O105,'Report - ALL (DASHBOARD)'!$W$4) ->  | V105: =INDEX('Compile Data'!$EL$121:$FI$202,$O105,'Report - ALL (DASHBOARD)'!$W$4) -> 
A106: 1999 | B106: =INDEX('Compile Data'!$L$12:$AI$93,$A106-1921,'Report - ALL (DASHBOARD)'!$W$4) -> 0 | C106: =INDEX('Compile Data'!$AL$12:$BI$93,$A106-1921,'Report - ALL (DASHBOARD)'!$W$4) -> 37.27651634 | D106: =INDEX('Compile Data'!$BL$12:$CI$93,$A106-1921,'Report - ALL (DASHBOARD)'!$W$4) -> 37.83874204 | E106: =INDEX('Compile Data'!$CL$12:$DI$93,$A106-1921,'Report - ALL (DASHBOARD)'!$W$4) -> 36.65217868 | F106: =INDEX('Compile Data'!$DL$12:$EI$93,$A106-1921,'Report - ALL (DASHBOARD)'!$W$4) ->  | G106: =INDEX('Compile Data'!$EL$12:$FI$93,$A106-1921,'Report - ALL (DASHBOARD)'!$W$4) ->  | O106: 78 | P106: 0.950617284 | Q106: =INDEX('Compile Data'!$L$121:$AI$202,$O106,'Report - ALL (DASHBOARD)'!$W$4) -> 0 | R106: =INDEX('Compile Data'!$AL$121:$BI$202,$O106,'Report - ALL (DASHBOARD)'!$W$4) -> 11.74118413 | S106: =INDEX('Compile Data'!$BL$121:$CI$202,$O106,'Report - ALL (DASHBOARD)'!$W$4) -> 15.05476575 | T106: =INDEX('Compile Data'!$CL$121:$DI$202,$O106,'Report - ALL (DASHBOARD)'!$W$4) -> 11.74222784 | U106: =INDEX('Compile Data'!$DL$121:$EI$202,$O106,'Report - ALL (DASHBOARD)'!$W$4) ->  | V106: =INDEX('Compile Data'!$EL$121:$FI$202,$O106,'Report - ALL (DASHBOARD)'!$W$4) -> 
A107: 2000 | B107: =INDEX('Compile Data'!$L$12:$AI$93,$A107-1921,'Report - ALL (DASHBOARD)'!$W$4) -> 0 | C107: =INDEX('Compile Data'!$AL$12:$BI$93,$A107-1921,'Report - ALL (DASHBOARD)'!$W$4) -> 124.7273799 | D107: =INDEX('Compile Data'!$BL$12:$CI$93,$A107-1921,'Report - ALL (DASHBOARD)'!$W$4) -> 125.1432293 | E107: =INDEX('Compile Data'!$CL$12:$DI$93,$A107-1921,'Report - ALL (DASHBOARD)'!$W$4) -> 122.6088565 | F107: =INDEX('Compile Data'!$DL$12:$EI$93,$A107-1921,'Report - ALL (DASHBOARD)'!$W$4) ->  | G107: =INDEX('Compile Data'!$EL$12:$FI$93,$A107-1921,'Report - ALL (DASHBOARD)'!$W$4) ->  | O107: 79 | P107: 0.962962963 | Q107: =INDEX('Compile Data'!$L$121:$AI$202,$O107,'Report - ALL (DASHBOARD)'!$W$4) -> 0 | R107: =INDEX('Compile Data'!$AL$121:$BI$202,$O107,'Report - ALL (DASHBOARD)'!$W$4) -> 0 | S107: =INDEX('Compile Data'!$BL$121:$CI$202,$O107,'Report - ALL (DASHBOARD)'!$W$4) -> 0 | T107: =INDEX('Compile Data'!$CL$121:$DI$202,$O107,'Report - ALL (DASHBOARD)'!$W$4) -> 0 | U107: =INDEX('Compile Data'!$DL$121:$EI$202,$O107,'Report - ALL (DASHBOARD)'!$W$4) ->  | V107: =INDEX('Compile Data'!$EL$121:$FI$202,$O107,'Report - ALL (DASHBOARD)'!$W$4) -> 
A108: 2001 | B108: =INDEX('Compile Data'!$L$12:$AI$93,$A108-1921,'Report - ALL (DASHBOARD)'!$W$4) -> 0 | C108: =INDEX('Compile Data'!$AL$12:$BI$93,$A108-1921,'Report - ALL (DASHBOARD)'!$W$4) -> 168.7325712 | D108: =INDEX('Compile Data'!$BL$12:$CI$93,$A108-1921,'Report - ALL (DASHBOARD)'!$W$4) -> 230.9567662 | E108: =INDEX('Compile Data'!$CL$12:$DI$93,$A108-1921,'Report - ALL (DASHBOARD)'!$W$4) -> 166.2712463 | F108: =INDEX('Compile Data'!$DL$12:$EI$93,$A108-1921,'Report - ALL (DASHBOARD)'!$W$4) ->  | G108: =INDEX('Compile Data'!$EL$12:$FI$93,$A108-1921,'Report - ALL (DASHBOARD)'!$W$4) ->  | O108: 80 | P108: 0.975308642 | Q108: =INDEX('Compile Data'!$L$121:$AI$202,$O108,'Report - ALL (DASHBOARD)'!$W$4) -> 0 | R108: =INDEX('Compile Data'!$AL$121:$BI$202,$O108,'Report - ALL (DASHBOARD)'!$W$4) -> 0 | S108: =INDEX('Compile Data'!$BL$121:$CI$202,$O108,'Report - ALL (DASHBOARD)'!$W$4) -> 0 | T108: =INDEX('Compile Data'!$CL$121:$DI$202,$O108,'Report - ALL (DASHBOARD)'!$W$4) -> 0 | U108: =INDEX('Compile Data'!$DL$121:$EI$202,$O108,'Report - ALL (DASHBOARD)'!$W$4) ->  | V108: =INDEX('Compile Data'!$EL$121:$FI$202,$O108,'Report - ALL (DASHBOARD)'!$W$4) -> 
A109: 2002 | B109: =INDEX('Compile Data'!$L$12:$AI$93,$A109-1921,'Report - ALL (DASHBOARD)'!$W$4) -> 0 | C109: =INDEX('Compile Data'!$AL$12:$BI$93,$A109-1921,'Report - ALL (DASHBOARD)'!$W$4) -> 119.942611 | D109: =INDEX('Compile Data'!$BL$12:$CI$93,$A109-1921,'Report - ALL (DASHBOARD)'!$W$4) -> 118.9331405 | E109: =INDEX('Compile Data'!$CL$12:$DI$93,$A109-1921,'Report - ALL (DASHBOARD)'!$W$4) -> 119.9429852 | F109: =INDEX('Compile Data'!$DL$12:$EI$93,$A109-1921,'Report - ALL (DASHBOARD)'!$W$4) ->  | G109: =INDEX('Compile Data'!$EL$12:$FI$93,$A109-1921,'Report - ALL (DASHBOARD)'!$W$4) ->  | O109: 81 | P109: 0.987654321 | Q109: =INDEX('Compile Data'!$L$121:$AI$202,$O109,'Report - ALL (DASHBOARD)'!$W$4) -> 0 | R109: =INDEX('Compile Data'!$AL$121:$BI$202,$O109,'Report - ALL (DASHBOARD)'!$W$4) -> 0 | S109: =INDEX('Compile Data'!$BL$121:$CI$202,$O109,'Report - ALL (DASHBOARD)'!$W$4) -> 0 | T109: =INDEX('Compile Data'!$CL$121:$DI$202,$O109,'Report - ALL (DASHBOARD)'!$W$4) -> 0 | U109: =INDEX('Compile Data'!$DL$121:$EI$202,$O109,'Report - ALL (DASHBOARD)'!$W$4) ->  | V109: =INDEX('Compile Data'!$EL$121:$FI$202,$O109,'Report - ALL (DASHBOARD)'!$W$4) -> 
A110: 2003 | B110: =INDEX('Compile Data'!$L$12:$AI$93,$A110-1921,'Report - ALL (DASHBOARD)'!$W$4) -> 0 | C110: =INDEX('Compile Data'!$AL$12:$BI$93,$A110-1921,'Report - ALL (DASHBOARD)'!$W$4) -> 471.9036416 | D110: =INDEX('Compile Data'!$BL$12:$CI$93,$A110-1921,'Report - ALL (DASHBOARD)'!$W$4) -> 471.8959486 | E110: =INDEX('Compile Data'!$CL$12:$DI$93,$A110-1921,'Report - ALL (DASHBOARD)'!$W$4) -> 472.5769882 | F110: =INDEX('Compile Data'!$DL$12:$EI$93,$A110-1921,'Report - ALL (DASHBOARD)'!$W$4) ->  | G110: =INDEX('Compile Data'!$EL$12:$FI$93,$A110-1921,'Report - ALL (DASHBOARD)'!$W$4) ->  | O110: 82 | P110: 1 | Q110: =INDEX('Compile Data'!$L$121:$AI$202,$O110,'Report - ALL (DASHBOARD)'!$W$4) -> 0 | R110: =INDEX('Compile Data'!$AL$121:$BI$202,$O110,'Report - ALL (DASHBOARD)'!$W$4) -> 0 | S110: =INDEX('Compile Data'!$BL$121:$CI$202,$O110,'Report - ALL (DASHBOARD)'!$W$4) -> 0 | T110: =INDEX('Compile Data'!$CL$121:$DI$202,$O110,'Report - ALL (DASHBOARD)'!$W$4) -> 0 | U110: =INDEX('Compile Data'!$DL$121:$EI$202,$O110,'Report - ALL (DASHBOARD)'!$W$4) ->  | V110: =INDEX('Compile Data'!$EL$121:$FI$202,$O110,'Report - ALL (DASHBOARD)'!$W$4) -> 

Sheet Compile Data
B1: =Control!$B$5 -> NAA 011221 | C1: =Control!$B$6 -> Alt 1A 011221 | D1: =Control!$B$7 -> Alt 1B 011221 | E1: =Control!$B$8 -> Alt 2 011221 | F1: =Control!$B$9 -> 0 | G1: =Control!$B$10 -> 0 | AE1: =$B$8 -> PER-AVER | BE1: =$C$8 -> PER-AVER | CE1: =$D$8 -> PER-AVER | DE1: =$E$8 -> PER-AVER | EE1: =$F$8 -> PER-AVER | FE1: =$G$8 -> PER-AVER
A2: Index: | B2: ='Report - ALL (DASHBOARD)'!W2 -> 25 | C2: =B2 -> 25 | D2: 25 | E2: 25 | F2: 25 | G2: 25
A3: Convert? | B3: =IF('Report - ALL (DASHBOARD)'!W5,1,0) -> 1 | C3: 1 | D3: 1 | E3: 1 | F3: 1 | G3: 1
A4: Column: | B4: =TRIM(VLOOKUP(B$2+2,DSSPathnames!$H$7:$K$163,2)) -> AA | C4: AA | D4: AA | E4: AA | F4: AA | G4: AA
A5: Title: | B5: =TRIM(VLOOKUP(B$2+2,DSSPathnames!$H$7:$K$163,4)) -> Total Sites Diversion to Fill | C5: =TRIM(VLOOKUP(C$2+2,DSSPathnames!$H$7:$K$163,4)) -> Total Sites Diversion to Fill | D5: =TRIM(VLOOKUP(D$2+2,DSSPathnames!$H$7:$K$163,4)) -> Total Sites Diversion to Fill | E5: =TRIM(VLOOKUP(E$2+2,DSSPathnames!$H$7:$K$163,4)) -> Total Sites Diversion to Fill | F5: =TRIM(VLOOKUP(F$2+2,DSSPathnames!$H$7:$K$163,4)) -> Total Sites Diversion to Fill | G5: =TRIM(VLOOKUP(G$2+2,DSSPathnames!$H$7:$K$163,4)) -> Total Sites Diversion to Fill
A6: Parameter: | B6: =INDIRECT(CONCATENATE("'",B$1,"'!",B$4,2)) -> C17601 | C6: C17601 | D6: C17601 | E6: C17601
B7: =INDIRECT(CONCATENATE("'",B$1,"'!",B$4,3)) -> FLOW-CHANNEL | C7: FLOW-CHANNEL | D7: FLOW-CHANNEL | E7: FLOW-CHANNEL
A8: Type: | B8: =TRIM(VLOOKUP(B$2+2,DSSPathnames!$H$7:$K$163,3)) -> PER-AVER | C8: =TRIM(VLOOKUP(C$2+2,DSSPathnames!$H$7:$K$163,3)) -> PER-AVER | D8: =TRIM(VLOOKUP(D$2+2,DSSPathnames!$H$7:$K$163,3)) -> PER-AVER | E8: =TRIM(VLOOKUP(E$2+2,DSSPathnames!$H$7:$K$163,3)) -> PER-AVER | F8: =TRIM(VLOOKUP(F$2+2,DSSPathnames!$H$7:$K$163,3)) -> PER-AVER | G8: =TRIM(VLOOKUP(G$2+2,DSSPathnames!$H$7:$K$163,3)) -> PER-AVER | K8: =CONCATENATE(TRIM(B$1),": ",TRIM(B$5)," - ",TRIM(B$6)," ",TRIM(B$7)," (",TRIM(B$10),") ",TRIM(B$11)) -> NAA 011221: Total Sites Diversion to Fill - C17601 FLOW-CHANNEL (TAF) | AK8: =CONCATENATE(TRIM(C$1),": ",TRIM(C$5)," - ",TRIM(C$6)," ",TRIM(C$7)," (",TRIM(C$10),") ",TRIM(C$11)) -> Alt 1A 011221: Total Sites Diversion to Fill - C17601 FLOW-CHANNEL (TAF) | BK8: =CONCATENATE(TRIM(D$1),": ",TRIM(D$5)," - ",TRIM(D$6)," ",TRIM(D$7)," (",TRIM(D$10),") ",TRIM(D$11)) -> Alt 1B 011221: Total Sites Diversion to Fill - C17601 FLOW-CHANNEL (TAF) | CK8: =CONCATENATE(TRIM(E$1),": ",TRIM(E$5)," - ",TRIM(E$6)," ",TRIM(E$7)," (",TRIM(E$10),") ",TRIM(E$11)) -> Alt 2 011221: Total Sites Diversion to Fill - C17601 FLOW-CHANNEL (TAF) | DK8: =CONCATENATE(TRIM(F$1),": ",TRIM(F$5)," - ",TRIM(F$6)," ",TRIM(F$7)," (",TRIM(F$10),") ",TRIM(F$11)) ->  | EK8: =CONCATENATE(TRIM(G$1),": ",TRIM(G$5)," - ",TRIM(G$6)," ",TRIM(G$7)," (",TRIM(G$10),") ",TRIM(G$11)) -> 
A9: Units-native: | B9: =TRIM(INDIRECT(CONCATENATE("'",B$1,"'!",B$4,11))) -> CFS | C9: CFS | D9: CFS | E9: CFS
A10: Units-shown: | B10: =IF(AND(B$3>0,B$9="CFS"),"TAF",B$9) -> TAF | C10: TAF | D10: TAF | E10: TAF | Y10: Jan-Dec | Z10: Mar-Feb | AA10: Oct-Sep | AC10: Nov-Mar | AD10: Aug-Oct | AE10: Oct-Jan | AF10: Dec-Feb | AG10: Mar-Jun | AH10: Jun-Sep | AI10: Sep-Nov | AY10: Jan-Dec | AZ10: Mar-Feb | BA10: Oct-Sep | BC10: Nov-Mar | BD10: Aug-Oct | BE10: Oct-Jan | BF10: Dec-Feb | BG10: Mar-Jun | BH10: Jun-Sep | BI10: Sep-Nov | BY10: Jan-Dec | BZ10: Mar-Feb | CA10: Oct-Sep | CC10: Nov-Mar | CD10: Aug-Oct | CE10: Oct-Jan | CF10: Dec-Feb | CG10: Mar-Jun | CH10: Jun-Sep | CI10: Sep-Nov | CY10: Jan-Dec | CZ10: Mar-Feb | DA10: Oct-Sep | DC10: Nov-Mar | DD10: Aug-Oct | DE10: Oct-Jan | DF10: Dec-Feb | DG10: Mar-Jun | DH10: Jun-Sep | DI10: Sep-Nov | DY10: Jan-Dec | DZ10: Mar-Feb | EA10: Oct-Sep | EC10: Nov-Mar | ED10: Aug-Oct | EE10: Oct-Jan | EF10: Dec-Feb | EG10: Mar-Jun | EH10: Jun-Sep | EI10: Sep-Nov | EY10: Jan-Dec | EZ10: Mar-Feb | FA10: Oct-Sep | FC10: Nov-Mar | FD10: Aug-Oct | FE10: Oct-Jan | FF10: Dec-Feb | FG10: Mar-Jun | FH10: Jun-Sep | FI10: Sep-Nov
A11: Date | B11: =IF(ISNUMBER(FIND("PRV",B$6)),"SHIFTED","") ->  | C11: =IF(ISNUMBER(FIND("PRV",C$6)),"SHIFTED","") ->  | D11: =IF(ISNUMBER(FIND("PRV",D$6)),"SHIFTED","") ->  | E11: =IF(ISNUMBER(FIND("PRV",E$6)),"SHIFTED","") ->  | F11: =IF(ISNUMBER(FIND("PRV",F$6)),"SHIFTED","") ->  | K11: YEAR | L11: OCT | M11: NOV | N11: DEC | O11: JAN | P11: FEB | Q11: MAR | R11: APR | S11: MAY | T11: JUN | U11: JUL | V11: AUG | W11: SEP | Y11: =IF(AND($B$10="TAF",$B$8="PER-AVER"),"TOT","AVG") -> TOT | Z11: =IF(AND($B$10="TAF",$B$8="PER-AVER"),"TOT","AVG") -> TOT | AA11: =IF(AND($B$10="TAF",$B$8="PER-AVER"),"TOT","AVG") -> TOT | AC11: =IF(AND($B$10="TAF",$B$8="PER-AVER"),"TOT","AVG") -> TOT | AD11: TOT | AE11: TOT | AF11: TOT | AG11: TOT | AH11: TOT | AI11: TOT | AK11: YEAR | AL11: OCT | AM11: NOV | AN11: DEC | AO11: JAN | AP11: FEB | AQ11: MAR | AR11: APR | AS11: MAY | AT11: JUN | AU11: JUL | AV11: AUG | AW11: SEP | AY11: =IF(AND($C$10="TAF",$C$8="PER-AVER"),"TOT","AVG") -> TOT | AZ11: =IF(AND($C$10="TAF",$C$8="PER-AVER"),"TOT","AVG") -> TOT | BA11: =IF(AND($C$10="TAF",$C$8="PER-AVER"),"TOT","AVG") -> TOT | BC11: =IF(AND($B$10="TAF",$B$8="PER-AVER"),"TOT","AVG") -> TOT | BD11: =IF(AND($B$10="TAF",$B$8="PER-AVER"),"TOT","AVG") -> TOT | BE11: =IF(AND($C$10="TAF",$C$8="PER-AVER"),"TOT","AVG") -> TOT | BF11: =IF(AND($C$10="TAF",$C$8="PER-AVER"),"TOT","AVG") -> TOT | BG11: =IF(AND($C$10="TAF",$C$8="PER-AVER"),"TOT","AVG") -> TOT | BH11: =IF(AND($C$10="TAF",$C$8="PER-AVER"),"TOT","AVG") -> TOT | BI11: =IF(AND($C$10="TAF",$C$8="PER-AVER"),"TOT","AVG") -> TOT | BK11: YEAR | BL11: OCT | BM11: NOV | BN11: DEC | BO11: JAN | BP11: FEB | BQ11: MAR | BR11: APR | BS11: MAY | BT11: JUN | BU11: JUL | BV11: AUG | BW11: SEP | BY11: =IF(AND($D$10="TAF",$D$8="PER-AVER"),"TOT","AVG") -> TOT | BZ11: =IF(AND($D$10="TAF",$D$8="PER-AVER"),"TOT","AVG") -> TOT | CA11: =IF(AND($D$10="TAF",$D$8="PER-AVER"),"TOT","AVG") -> TOT | CC11: =IF(AND($B$10="TAF",$B$8="PER-AVER"),"TOT","AVG") -> TOT | CD11: =IF(AND($B$10="TAF",$B$8="PER-AVER"),"TOT","AVG") -> TOT | CE11: =IF(AND($D$10="TAF",$D$8="PER-AVER"),"TOT","AVG") -> TOT | CF11: =IF(AND($D$10="TAF",$D$8="PER-AVER"),"TOT","AVG") -> TOT | CG11: =IF(AND($D$10="TAF",$D$8="PER-AVER"),"TOT","AVG") -> TOT | CH11: =IF(AND($D$10="TAF",$D$8="PER-AVER"),"TOT","AVG") -> TOT | CI11: =IF(AND($D$10="TAF",$D$8="PER-AVER"),"TOT","AVG") -> TOT | CK11: YEAR | CL11: OCT | CM11: NOV | CN11: DEC | CO11: JAN | CP11: FEB | CQ11: MAR | CR11: APR | CS11: MAY | CT11: JUN | CU11: JUL | CV11: AUG | CW11: SEP | CY11: =IF(AND($E$10="TAF",$E$8="PER-AVER"),"TOT","AVG") -> TOT | CZ11: =IF(AND($E$10="TAF",$E$8="PER-AVER"),"TOT","AVG") -> TOT | DA11: =IF(AND($E$10="TAF",$E$8="PER-AVER"),"TOT","AVG") -> TOT | DC11: =IF(AND($B$10="TAF",$B$8="PER-AVER"),"TOT","AVG") -> TOT | DD11: =IF(AND($B$10="TAF",$B$8="PER-AVER"),"TOT","AVG") -> TOT | DE11: =IF(AND($E$10="TAF",$E$8="PER-AVER"),"TOT","AVG") -> TOT | DF11: =IF(AND($E$10="TAF",$E$8="PER-AVER"),"TOT","AVG") -> TOT | DG11: =IF(AND($E$10="TAF",$E$8="PER-AVER"),"TOT","AVG") -> TOT | DH11: =IF(AND($E$10="TAF",$E$8="PER-AVER"),"TOT","AVG") -> TOT | DI11: =IF(AND($E$10="TAF",$E$8="PER-AVER"),"TOT","AVG") -> TOT | DK11: YEAR | DL11: OCT | DM11: NOV | DN11: DEC | DO11: JAN | DP11: FEB | DQ11: MAR | DR11: APR | DS11: MAY | DT11: JUN | DU11: JUL | DV11: AUG | DW11: SEP | DY11: =IF(AND($F$10="TAF",$F$8="PER-AVER"),"TOT","AVG") ->  | DZ11: =IF(AND($F$10="TAF",$F$8="PER-AVER"),"TOT","AVG") ->  | EA11: =IF(AND($F$10="TAF",$F$8="PER-AVER"),"TOT","AVG") ->  | EC11: =IF(AND($B$10="TAF",$B$8="PER-AVER"),"TOT","AVG") -> TOT | ED11: =IF(AND($B$10="TAF",$B$8="PER-AVER"),"TOT","AVG") -> TOT | EE11: =IF(AND($F$10="TAF",$F$8="PER-AVER"),"TOT","AVG") ->  | EF11: =IF(AND($F$10="TAF",$F$8="PER-AVER"),"TOT","AVG") ->  | EG11: =IF(AND($F$10="TAF",$F$8="PER-AVER"),"TOT","AVG") ->  | EH11: =IF(AND($F$10="TAF",$F$8="PER-AVER"),"TOT","AVG") ->  | EI11: =IF(AND($F$10="TAF",$F$8="PER-AVER"),"TOT","AVG") ->  | EK11: YEAR | EL11: OCT | EM11: NOV | EN11: DEC | EO11: JAN | EP11: FEB | EQ11: MAR | ER11: APR | ES11: MAY | ET11: JUN | EU11: JUL | EV11: AUG | EW11: SEP | EY11: =IF(AND($F$10="TAF",$F$8="PER-AVER"),"TOT","AVG") ->  | EZ11: =IF(AND($F$10="TAF",$F$8="PER-AVER"),"TOT","AVG") ->  | FA11: =IF(AND($F$10="TAF",$F$8="PER-AVER"),"TOT","AVG") ->  | FC11: =IF(AND($B$10="TAF",$B$8="PER-AVER"),"TOT","AVG") -> TOT | FD11: =IF(AND($B$10="TAF",$B$8="PER-AVER"),"TOT","AVG") -> TOT | FE11: =IF(AND($F$10="TAF",$F$8="PER-AVER"),"TOT","AVG") ->  | FF11: =IF(AND($F$10="TAF",$F$8="PER-AVER"),"TOT","AVG") ->  | FG11: =IF(AND($F$10="TAF",$F$8="PER-AVER"),"TOT","AVG") ->  | FH11: =IF(AND($F$10="TAF",$F$8="PER-AVER"),"TOT","AVG") ->  | FI11: =IF(AND($F$10="TAF",$F$8="PER-AVER"),"TOT","AVG") -> 
A12: 1921-09-30 | K12: 1922 | L12: =B13 -> 0 | M12: =B14 -> 0 | N12: =B15 -> 0 | O12: =B16 -> 0 | P12: =B17 -> 0 | Q12: =B18 -> 0 | R12: =B19 -> 0 | S12: =B20 -> 0 | T12: =B21 -> 0 | U12: =B22 -> 0 | V12: =B23 -> 0 | W12: =B24 -> 0 | Y12: =IF(Y$11="AVG",AVERAGE(O12:W12,L13:N13),SUM(O12:W12,L13:N13)) -> 0 | Z12: =IF(Z$11="AVG",AVERAGE(Q12:W12,L13:P13),SUM(Q12:W12,L13:P13)) -> 0 | AA12: =IF(AA$11="AVG",AVERAGE(L12:W12),SUM(L12:W12)) -> 0 | AC12: =IF(AC$11="AVG",IF(AE$1="INST-VAL",AVERAGE(L12:P12,M12:Q12),AVERAGE(M12:Q12)),SUM(M12:Q12)) -> 0 | AD12: =IF(AD$11="AVG",IF(AE$1="INST-VAL",AVERAGE(U12:W12,V12:W12,L13),AVERAGE(V12:W12,L13)),SUM(V12:W12,L13)) -> 0 | AE12: =IF(AE$11="AVG",IF(AE$1="INST-VAL",AVERAGE(W11,L12:N12,L12:O12),AVERAGE(L12:O12)),SUM(L12:O12)) -> 0 | AF12: =IF(AF$11="AVG",IF(AE$1="INST-VAL",AVERAGE(M12:O12,N12:P12),AVERAGE(N12:P12)),SUM(N12:P12)) -> 0 | AG12: =IF(AG$11="AVG",IF(AE$1="INST-VAL",AVERAGE(P12:S12,Q12:T12),AVERAGE(Q12:T12)),SUM(Q12:T12)) -> 0 | AH12: =IF(AH$11="AVG",IF(AE$1="INST-VAL",AVERAGE(S12:V12,T12:W12),AVERAGE(T12:W12)),SUM(T12:W12)) -> 0 | AI12: =IF(AI$11="AVG",IF(AE$1="INST-VAL",AVERAGE(V12:W12,L13,W12,L13:M13),AVERAGE(W12,L13:M13)),SUM(W12,L13:M13)) -> 0 | AK12: 1922 | AL12: =C13 -> 0 | AM12: =C14 -> 0 | AN12: =C15 -> 93.70660702 | AO12: =C16 -> 0 | AP12: =C17 -> 31.13573506 | AQ12: =C18 -> 95.71403843 | AR12: =C19 -> 0 | AS12: =C20 -> 30.32954517 | AT12: =C21 -> 0 | AU12: =C22 -> 0 | AV12: =C23 -> 0 | AW12: =C24 -> 0 | AY12: =IF(AY$11="AVG",AVERAGE(AO12:AW12,AL13:AN13),SUM(AO12:AW12,AL13:AN13)) -> 163.8556823 | AZ12: =IF(AZ$11="AVG",AVERAGE(AQ12:AW12,AL13:AP13),SUM(AQ12:AW12,AL13:AP13)) -> 161.6144367 | BA12: =IF(BA$11="AVG",AVERAGE(AL12:AW12),SUM(AL12:AW12)) -> 250.8859257 | BC12: =IF(BC$11="AVG",IF(BE$1="INST-VAL",AVERAGE(AL12:AP12,AM12:AQ12),AVERAGE(AM12:AQ12)),SUM(AM12:AQ12)) -> 220.5563805 | BD12: =IF(BD$11="AVG",IF(BE$1="INST-VAL",AVERAGE(AU12:AW12,AV12:AW12,AL13),AVERAGE(AV12:AW12,AL13)),SUM(AV12:AW12,AL13)) -> 0 | BE12: =IF(BE$11="AVG",IF(BE$1="INST-VAL",AVERAGE(AW11,AL12:AN12,AL12:AO12),AVERAGE(AL12:AO12)),SUM(AL12:AO12)) -> 93.70660702 | BF12: =IF(BF$11="AVG",IF(BE$1="INST-VAL",AVERAGE(AM12:AO12,AN12:AP12),AVERAGE(AN12:AP12)),SUM(AN12:AP12)) -> 124.8423421 | BG12: =IF(BG$11="AVG",IF(BE$1="INST-VAL",AVERAGE(AP12:AS12,AQ12:AT12),AVERAGE(AQ12:AT12)),SUM(AQ12:AT12)) -> 126.0435836 | BH12: =IF(BH$11="AVG",IF(BE$1="INST-VAL",AVERAGE(AS12:AV12,AT12:AW12),AVERAGE(AT12:AW12)),SUM(AT12:AW12)) -> 0 | BI12: =IF(BI$11="AVG",IF(BE$1="INST-VAL",AVERAGE(AV12:AW12,AL13,AW12,AL13:AM13),AVERAGE(AW12,AL13:AM13)),SUM(AW12,AL13:AM13)) -> 6.676363636 | BK12: 1922 | BL12: =D13 -> 0 | BM12: =D14 -> 0 | BN12: =D15 -> 93.80915655 | BO12: =D16 -> 0 | BP12: =D17 -> 31.13491297 | BQ12: =D18 -> 95.70701565 | BR12: =D19 -> 0 | BS12: =D20 -> 29.59722922 | BT12: =D21 -> 0 | BU12: =D22 -> 0 | BV12: =D23 -> 0 | BW12: =D24 -> 0 | BY12: =IF(BY$11="AVG",AVERAGE(BO12:BW12,BL13:BN13),SUM(BO12:BW12,BL13:BN13)) -> 163.1155215 | BZ12: =IF(BZ$11="AVG",AVERAGE(BQ12:BW12,BL13:BP13),SUM(BQ12:BW12,BL13:BP13)) -> 160.8902467 | CA12: =IF(CA$11="AVG",AVERAGE(BL12:BW12),SUM(BL12:BW12)) -> 250.2483144 | CC12: =IF(CC$11="AVG",IF(CE$1="INST-VAL",AVERAGE(BL12:BP12,BM12:BQ12),AVERAGE(BM12:BQ12)),SUM(BM12:BQ12)) -> 220.6510852 | CD12: =IF(CD$11="AVG",IF(CE$1="INST-VAL",AVERAGE(BU12:BW12,BV12:BW12,BL13),AVERAGE(BV12:BW12,BL13)),SUM(BV12:BW12,BL13)) -> 0 | CE12: =IF(CE$11="AVG",IF(CE$1="INST-VAL",AVERAGE(BW11,BL12:BN12,BL12:BO12),AVERAGE(BL12:BO12)),SUM(BL12:BO12)) -> 93.80915655 | CF12: =IF(CF$11="AVG",IF(CE$1="INST-VAL",AVERAGE(BM12:BO12,BN12:BP12),AVERAGE(BN12:BP12)),SUM(BN12:BP12)) -> 124.9440695 | CG12: =IF(CG$11="AVG",IF(CE$1="INST-VAL",AVERAGE(BP12:BS12,BQ12:BT12),AVERAGE(BQ12:BT12)),SUM(BQ12:BT12)) -> 125.3042449 | CH12: =IF(CH$11="AVG",IF(CE$1="INST-VAL",AVERAGE(BS12:BV12,BT12:BW12),AVERAGE(BT12:BW12)),SUM(BT12:BW12)) -> 0 | CI12: =IF(CI$11="AVG",IF(CE$1="INST-VAL",AVERAGE(BV12:BW12,BL13,BW12,BL13:BM13),AVERAGE(BW12,BL13:BM13)),SUM(BW12,BL13:BM13)) -> 6.676363636 | CK12: 1922 | CL12: =E13 -> 0 | CM12: =E14 -> 0 | CN12: =E15 -> 93.70660702 | CO12: =E16 -> 0 | CP12: =E17 -> 31.13573506 | CQ12: =E18 -> 95.71403843 | CR12: =E19 -> 0 | CS12: =E20 -> 30.32954517 | CT12: =E21 -> 0 | CU12: =E22 -> 0 | CV12: =E23 -> 0 | CW12: =E24 -> 0 | CY12: =IF(CY$11="AVG",AVERAGE(CO12:CW12,CL13:CN13),SUM(CO12:CW12,CL13:CN13)) -> 163.8556823 | CZ12: =IF(CZ$11="AVG",AVERAGE(CQ12:CW12,CL13:CP13),SUM(CQ12:CW12,CL13:CP13)) -> 161.6144364 | DA12: =IF(DA$11="AVG",AVERAGE(CL12:CW12),SUM(CL12:CW12)) -> 250.8859257 | DC12: =IF(DC$11="AVG",IF(DE$1="INST-VAL",AVERAGE(CL12:CP12,CM12:CQ12),AVERAGE(CM12:CQ12)),SUM(CM12:CQ12)) -> 220.5563805 | DD12: =IF(DD$11="AVG",IF(DE$1="INST-VAL",AVERAGE(CU12:CW12,CV12:CW12,CL13),AVERAGE(CV12:CW12,CL13)),SUM(CV12:CW12,CL13)) -> 0 | DE12: =IF(DE$11="AVG",IF(DE$1="INST-VAL",AVERAGE(CW11,CL12:CN12,CL12:CO12),AVERAGE(CL12:CO12)),SUM(CL12:CO12)) -> 93.70660702 | DF12: =IF(DF$11="AVG",IF(DE$1="INST-VAL",AVERAGE(CM12:CO12,CN12:CP12),AVERAGE(CN12:CP12)),SUM(CN12:CP12)) -> 124.8423421 | DG12: =IF(DG$11="AVG",IF(DE$1="INST-VAL",AVERAGE(CP12:CS12,CQ12:CT12),AVERAGE(CQ12:CT12)),SUM(CQ12:CT12)) -> 126.0435836 | DH12: =IF(DH$11="AVG",IF(DE$1="INST-VAL",AVERAGE(CS12:CV12,CT12:CW12),AVERAGE(CT12:CW12)),SUM(CT12:CW12)) -> 0 | DI12: =IF(DI$11="AVG",IF(DE$1="INST-VAL",AVERAGE(CV12:CW12,CL13,CW12,CL13:CM13),AVERAGE(CW12,CL13:CM13)),SUM(CW12,CL13:CM13)) -> 6.676363636 | DK12: 1922 | DL12: =F13 ->  | DM12: =F14 ->  | DN12: =F15 ->  | DO12: =F16 ->  | DP12: =F17 ->  | DQ12: =F18 ->  | DR12: =F19 ->  | DS12: =F20 ->  | DT12: =F21 ->  | DU12: =F22 ->  | DV12: =F23 ->  | DW12: =F24 ->  | DY12: =IF(DY$11="AVG",AVERAGE(DO12:DW12,DL13:DN13),SUM(DO12:DW12,DL13:DN13)) ->  | DZ12: =IF(DZ$11="AVG",AVERAGE(DQ12:DW12,DL13:DP13),SUM(DQ12:DW12,DL13:DP13)) ->  | EA12: =IF(EA$11="AVG",AVERAGE(DL12:DW12),SUM(DL12:DW12)) ->  | EC12: =IF(EC$11="AVG",IF(EE$1="INST-VAL",AVERAGE(DL12:DP12,DM12:DQ12),AVERAGE(DM12:DQ12)),SUM(DM12:DQ12)) ->  | ED12: =IF(ED$11="AVG",IF(EE$1="INST-VAL",AVERAGE(DU12:DW12,DV12:DW12,DL13),AVERAGE(DV12:DW12,DL13)),SUM(DV12:DW12,DL13)) ->  | EE12: =IF(EE$11="AVG",IF(EE$1="INST-VAL",AVERAGE(DW11,DL12:DN12,DL12:DO12),AVERAGE(DL12:DO12)),SUM(DL12:DO12)) ->  | EF12: =IF(EF$11="AVG",IF(EE$1="INST-VAL",AVERAGE(DM12:DO12,DN12:DP12),AVERAGE(DN12:DP12)),SUM(DN12:DP12)) ->  | EG12: =IF(EG$11="AVG",IF(EE$1="INST-VAL",AVERAGE(DP12:DS12,DQ12:DT12),AVERAGE(DQ12:DT12)),SUM(DQ12:DT12)) ->  | EH12: =IF(EH$11="AVG",IF(EE$1="INST-VAL",AVERAGE(DS12:DV12,DT12:DW12),AVERAGE(DT12:DW12)),SUM(DT12:DW12)) ->  | EI12: =IF(EI$11="AVG",IF(EE$1="INST-VAL",AVERAGE(DV12:DW12,DL13,DW12,DL13:DM13),AVERAGE(DW12,DL13:DM13)),SUM(DW12,DL13:DM13)) ->  | EK12: 1922 | EL12: =G13 ->  | EM12: =G14 ->  | EN12: =G15 ->  | EO12: =G16 ->  | EP12: =G17 ->  | EQ12: =G18 ->  | ER12: =G19 ->  | ES12: =G20 ->  | ET12: =G21 ->  | EU12: =G22 ->  | EV12: =G23 ->  | EW12: =G24 ->  | EY12: =IF(EY$11="AVG",AVERAGE(EO12:EW12,EL13:EN13),SUM(EO12:EW12,EL13:EN13)) ->  | EZ12: =IF(EZ$11="AVG",AVERAGE(EQ12:EW12,EL13:EP13),SUM(EQ12:EW12,EL13:EP13)) ->  | FA12: =IF(FA$11="AVG",AVERAGE(EL12:EW12),SUM(EL12:EW12)) ->  | FC12: =IF(FC$11="AVG",IF(FE$1="INST-VAL",AVERAGE(EL12:EP12,EM12:EQ12),AVERAGE(EM12:EQ12)),SUM(EM12:EQ12)) ->  | FD12: =IF(FD$11="AVG",IF(FE$1="INST-VAL",AVERAGE(EU12:EW12,EV12:EW12,EL13),AVERAGE(EV12:EW12,EL13)),SUM(EV12:EW12,EL13)) ->  | FE12: =IF(FE$11="AVG",IF(FE$1="INST-VAL",AVERAGE(EW11,EL12:EN12,EL12:EO12),AVERAGE(EL12:EO12)),SUM(EL12:EO12)) ->  | FF12: =IF(FF$11="AVG",IF(FE$1="INST-VAL",AVERAGE(EM12:EO12,EN12:EP12),AVERAGE(EN12:EP12)),SUM(EN12:EP12)) ->  | FG12: =IF(FG$11="AVG",IF(FE$1="INST-VAL",AVERAGE(EP12:ES12,EQ12:ET12),AVERAGE(EQ12:ET12)),SUM(EQ12:ET12)) ->  | FH12: =IF(FH$11="AVG",IF(FE$1="INST-VAL",AVERAGE(ES12:EV12,ET12:EW12),AVERAGE(ET12:EW12)),SUM(ET12:EW12)) ->  | FI12: =IF(FI$11="AVG",IF(FE$1="INST-VAL",AVERAGE(EV12:EW12,EL13,EW12,EL13:EM13),AVERAGE(EW12,EL13:EM13)),SUM(EW12,EL13:EM13)) -> 
A13: 1921-10-31 | B13: =INDIRECT(CONCATENATE("'",B$1,"'!",B$4,(YEAR($A13)-1921)*12+MONTH($A13)+3+IF(ISNUMBER(FIND("PRV",B$6)),1,0)))*IF(AND(B$3>0,TRIM(B$9)="CFS"),Conv_Flags!$C13,1) -> 0 | C13: =INDIRECT(CONCATENATE("'",C$1,"'!",C$4,(YEAR($A13)-1921)*12+MONTH($A13)+3+IF(ISNUMBER(FIND("PRV",C$6)),1,0)))*IF(AND(C$3>0,TRIM(C$9)="CFS"),Conv_Flags!$C13,1) -> 0 | D13: =INDIRECT(CONCATENATE("'",D$1,"'!",D$4,(YEAR($A13)-1921)*12+MONTH($A13)+3+IF(ISNUMBER(FIND("PRV",D$6)),1,0)))*IF(AND(D$3>0,TRIM(D$9)="CFS"),Conv_Flags!$C13,1) -> 0 | E13: =INDIRECT(CONCATENATE("'",E$1,"'!",E$4,(YEAR($A13)-1921)*12+MONTH($A13)+3+IF(ISNUMBER(FIND("PRV",E$6)),1,0)))*IF(AND(E$3>0,TRIM(E$9)="CFS"),Conv_Flags!$C13,1) -> 0 | F13: =INDIRECT(CONCATENATE("'",F$1,"'!",F$4,(YEAR($A13)-1921)*12+MONTH($A13)+3+IF(ISNUMBER(FIND("PRV",F$6)),1,0)))*IF(AND(F$3>0,TRIM(F$9)="CFS"),Conv_Flags!$C13,1) ->  | G13: =INDIRECT(CONCATENATE("'",G$1,"'!",G$4,(YEAR($A13)-1921)*12+MONTH($A13)+3+IF(ISNUMBER(FIND("PRV",G$6)),1,0)))*IF(AND(G$3>0,TRIM(G$9)="CFS"),Conv_Flags!$C13,1) ->  | K13: 1923 | L13: =B25 -> 0 | M13: =B26 -> 0 | N13: =B27 -> 0 | O13: =B28 -> 0 | P13: =B29 -> 0 | Q13: =B30 -> 0 | R13: =B31 -> 0 | S13: =B32 -> 0 | T13: =B33 -> 0 | U13: =B34 -> 0 | V13: =B35 -> 0 | W13: =B36 -> 0 | Y13: 0 | Z13: 0 | AA13: 0 | AC13: =IF(AC$11="AVG",IF(AE$1="INST-VAL",AVERAGE(L13:P13,M13:Q13),AVERAGE(M13:Q13)),SUM(M13:Q13)) -> 0 | AD13: =IF(AD$11="AVG",IF(AE$1="INST-VAL",AVERAGE(U13:W13,V13:W13,L14),AVERAGE(V13:W13,L14)),SUM(V13:W13,L14)) -> 0 | AE13: =IF(AE$11="AVG",IF(AE$1="INST-VAL",AVERAGE(W12,L13:N13,L13:O13),AVERAGE(L13:O13)),SUM(L13:O13)) -> 0 | AF13: 0 | AG13: 0 | AH13: 0 | AI13: 0 | AK13: 1923 | AL13: =C25 -> 0 | AM13: =C26 -> 6.676363636 | AN13: =C27 -> 0 | AO13: =C28 -> 28.89448944 | AP13: =C29 -> 0 | AQ13: =C30 -> 0 | AR13: =C31 -> 0 | AS13: =C32 -> 0 | AT13: =C33 -> 0 | AU13: =C34 -> 0 | AV13: =C35 -> 0 | AW13: =C36 -> 0 | AY13: 28.89448944 | AZ13: 0 | BA13: 35.57085308 | BC13: =IF(BC$11="AVG",IF(BE$1="INST-VAL",AVERAGE(AL13:AP13,AM13:AQ13),AVERAGE(AM13:AQ13)),SUM(AM13:AQ13)) -> 35.57085308 | BD13: =IF(BD$11="AVG",IF(BE$1="INST-VAL",AVERAGE(AU13:AW13,AV13:AW13,AL14),AVERAGE(AV13:AW13,AL14)),SUM(AV13:AW13,AL14)) -> 0 | BE13: 35.57085308 | BF13: 28.89448944 | BG13: 0 | BH13: 0 | BI13: 0 | BK13: 1923 | BL13: =D25 -> 0 | BM13: =D26 -> 6.676363636 | BN13: =D27 -> 0 | BO13: =D28 -> 28.90963818 | BP13: =D29 -> 0 | BQ13: =D30 -> 0 | BR13: =D31 -> 0 | BS13: =D32 -> 0 | BT13: =D33 -> 0 | BU13: =D34 -> 0 | BV13: =D35 -> 0 | BW13: =D36 -> 0 | BY13: 28.90963818 | BZ13: 0 | CA13: 35.58600181 | CC13: =IF(CC$11="AVG",IF(CE$1="INST-VAL",AVERAGE(BL13:BP13,BM13:BQ13),AVERAGE(BM13:BQ13)),SUM(BM13:BQ13)) -> 35.58600181 | CD13: =IF(CD$11="AVG",IF(CE$1="INST-VAL",AVERAGE(BU13:BW13,BV13:BW13,BL14),AVERAGE(BV13:BW13,BL14)),SUM(BV13:BW13,BL14)) -> 0 | CE13: 35.58600181 | CF13: 28.90963818 | CG13: 0 | CH13: 0 | CI13: 0 | CK13: 1923 | CL13: =E25 -> 0 | CM13: =E26 -> 6.676363636 | CN13: =E27 -> 0 | CO13: =E28 -> 28.89448917 | CP13: =E29 -> 0 | CQ13: =E30 -> 0 | CR13: =E31 -> 0 | CS13: =E32 -> 0 | CT13: =E33 -> 0 | CU13: =E34 -> 0 | CV13: =E35 -> 0 | CW13: =E36 -> 0 | CY13: 28.89448917 | CZ13: 0 | DA13: 35.57085281 | DC13: 35.57085281 | DD13: 0 | DE13: 35.57085281 | DF13: 28.89448917 | DG13: 0 | DH13: 0 | DI13: 0 | DK13: 1923 | DL13: =F25 ->  | DM13: =F26 ->  | DN13: =F27 ->  | DO13: =F28 ->  | DP13: =F29 ->  | DQ13: =F30 ->  | DR13: =F31 ->  | DS13: =F32 ->  | DT13: =F33 ->  | DU13: =F34 ->  | DV13: =F35 ->  | DW13: =F36 ->  | EK13: 1923 | EL13: =G25 ->  | EM13: =G26 ->  | EN13: =G27 ->  | EO13: =G28 ->  | EP13: =G29 ->  | EQ13: =G30 ->  | ER13: =G31 ->  | ES13: =G32 ->  | ET13: =G33 ->  | EU13: =G34 ->  | EV13: =G35 ->  | EW13: =G36 -> 
A14: 1921-11-30 | B14: =INDIRECT(CONCATENATE("'",B$1,"'!",B$4,(YEAR($A14)-1921)*12+MONTH($A14)+3+IF(ISNUMBER(FIND("PRV",B$6)),1,0)))*IF(AND(B$3>0,TRIM(B$9)="CFS"),Conv_Flags!$C14,1) -> 0 | C14: =INDIRECT(CONCATENATE("'",C$1,"'!",C$4,(YEAR($A14)-1921)*12+MONTH($A14)+3+IF(ISNUMBER(FIND("PRV",C$6)),1,0)))*IF(AND(C$3>0,TRIM(C$9)="CFS"),Conv_Flags!$C14,1) -> 0 | D14: =INDIRECT(CONCATENATE("'",D$1,"'!",D$4,(YEAR($A14)-1921)*12+MONTH($A14)+3+IF(ISNUMBER(FIND("PRV",D$6)),1,0)))*IF(AND(D$3>0,TRIM(D$9)="CFS"),Conv_Flags!$C14,1) -> 0 | E14: =INDIRECT(CONCATENATE("'",E$1,"'!",E$4,(YEAR($A14)-1921)*12+MONTH($A14)+3+IF(ISNUMBER(FIND("PRV",E$6)),1,0)))*IF(AND(E$3>0,TRIM(E$9)="CFS"),Conv_Flags!$C14,1) -> 0 | F14: =INDIRECT(CONCATENATE("'",F$1,"'!",F$4,(YEAR($A14)-1921)*12+MONTH($A14)+3+IF(ISNUMBER(FIND("PRV",F$6)),1,0)))*IF(AND(F$3>0,TRIM(F$9)="CFS"),Conv_Flags!$C14,1) ->  | G14: =INDIRECT(CONCATENATE("'",G$1,"'!",G$4,(YEAR($A14)-1921)*12+MONTH($A14)+3+IF(ISNUMBER(FIND("PRV",G$6)),1,0)))*IF(AND(G$3>0,TRIM(G$9)="CFS"),Conv_Flags!$C14,1) ->  | K14: 1924 | L14: =B37 -> 0 | M14: =B38 -> 0 | N14: =B39 -> 0 | O14: =B40 -> 0 | P14: =B41 -> 0 | Q14: =B42 -> 0 | R14: =B43 -> 0 | S14: =B44 -> 0 | T14: =B45 -> 0 | U14: =B46 -> 0 | V14: =B47 -> 0 | W14: =B48 -> 0 | Y14: 0 | Z14: 0 | AA14: 0 | AC14: =IF(AC$11="AVG",IF(AE$1="INST-VAL",AVERAGE(L14:P14,M14:Q14),AVERAGE(M14:Q14)),SUM(M14:Q14)) -> 0 | AD14: =IF(AD$11="AVG",IF(AE$1="INST-VAL",AVERAGE(U14:W14,V14:W14,L15),AVERAGE(V14:W14,L15)),SUM(V14:W14,L15)) -> 0 | AE14: =IF(AE$11="AVG",IF(AE$1="INST-VAL",AVERAGE(W13,L14:N14,L14:O14),AVERAGE(L14:O14)),SUM(L14:O14)) -> 0 | AF14: 0 | AG14: 0 | AH14: 0 | AI14: 0 | AK14: 1924 | AL14: =C37 -> 0 | AM14: =C38 -> 0 | AN14: =C39 -> 0 | AO14: =C40 -> 0 | AP14: =C41 -> 0 | AQ14: =C42 -> 0 | AR14: =C43 -> 0 | AS14: =C44 -> 0 | AT14: =C45 -> 0 | AU14: =C46 -> 0 | AV14: =C47 -> 0 | AW14: =C48 -> 0 | AY14: 72.97795196 | AZ14: 223.5234065 | BA14: 0 | BC14: =IF(BC$11="AVG",IF(BE$1="INST-VAL",AVERAGE(AL14:AP14,AM14:AQ14),AVERAGE(AM14:AQ14)),SUM(AM14:AQ14)) -> 0 | BD14: 0 | BE14: 0 | BF14: 0 | BG14: 0 | BH14: 0 | BI14: 0 | BK14: 1924 | BL14: =D37 -> 0 | BM14: =D38 -> 0 | BN14: =D39 -> 0 | BO14: =D40 -> 0 | BP14: =D41 -> 0 | BQ14: =D42 -> 0 | BR14: =D43 -> 0 | BS14: =D44 -> 0 | BT14: =D45 -> 0 | BU14: =D46 -> 0 | BV14: =D47 -> 0 | BW14: =D48 -> 0 | BY14: 73.08850007 | BZ14: 223.6339546 | CA14: 0 | CC14: =IF(CC$11="AVG",IF(CE$1="INST-VAL",AVERAGE(BL14:BP14,BM14:BQ14),AVERAGE(BM14:BQ14)),SUM(BM14:BQ14)) -> 0 | CD14: 0 | CE14: 0 | CF14: 0 | CG14: 0 | CH14: 0 | CI14: 0 | CK14: 1924 | CL14: =E37 -> 0 | CM14: =E38 -> 0 | CN14: =E39 -> 0 | CO14: =E40 -> 0 | CP14: =E41 -> 0 | CQ14: =E42 -> 0 | CR14: =E43 -> 0 | CS14: =E44 -> 0 | CT14: =E45 -> 0 | CU14: =E46 -> 0 | CV14: =E47 -> 0 | CW14: =E48 -> 0 | CY14: 72.68184878 | CZ14: 223.2273033 | DA14: 0 | DC14: 0 | DD14: 0 | DE14: 0 | DF14: 0 | DG14: 0 | DH14: 0 | DI14: 0 | DK14: 1924 | DL14: =F37 ->  | DM14: =F38 ->  | DN14: =F39 ->  | DO14: =F40 ->  | DP14: =F41 ->  | DQ14: =F42 ->  | DR14: =F43 ->  | DS14: =F44 ->  | DT14: =F45 ->  | DU14: =F46 ->  | DV14: =F47 ->  | DW14: =F48 ->  | EK14: 1924 | EL14: =G37 ->  | EM14: =G38 ->  | EN14: =G39 ->  | EO14: =G40 ->  | EP14: =G41 ->  | EQ14: =G42 ->  | ER14: =G43 ->  | ES14: =G44 ->  | ET14: =G45 ->  | EU14: =G46 ->  | EV14: =G47 ->  | EW14: =G48 -> 
A15: 1921-12-31 | B15: =INDIRECT(CONCATENATE("'",B$1,"'!",B$4,(YEAR($A15)-1921)*12+MONTH($A15)+3+IF(ISNUMBER(FIND("PRV",B$6)),1,0)))*IF(AND(B$3>0,TRIM(B$9)="CFS"),Conv_Flags!$C15,1) -> 0 | C15: =INDIRECT(CONCATENATE("'",C$1,"'!",C$4,(YEAR($A15)-1921)*12+MONTH($A15)+3+IF(ISNUMBER(FIND("PRV",C$6)),1,0)))*IF(AND(C$3>0,TRIM(C$9)="CFS"),Conv_Flags!$C15,1) -> 93.70660702 | D15: =INDIRECT(CONCATENATE("'",D$1,"'!",D$4,(YEAR($A15)-1921)*12+MONTH($A15)+3+IF(ISNUMBER(FIND("PRV",D$6)),1,0)))*IF(AND(D$3>0,TRIM(D$9)="CFS"),Conv_Flags!$C15,1) -> 93.80915655 | E15: =INDIRECT(CONCATENATE("'",E$1,"'!",E$4,(YEAR($A15)-1921)*12+MONTH($A15)+3+IF(ISNUMBER(FIND("PRV",E$6)),1,0)))*IF(AND(E$3>0,TRIM(E$9)="CFS"),Conv_Flags!$C15,1) -> 93.70660702 | F15: =INDIRECT(CONCATENATE("'",F$1,"'!",F$4,(YEAR($A15)-1921)*12+MONTH($A15)+3+IF(ISNUMBER(FIND("PRV",F$6)),1,0)))*IF(AND(F$3>0,TRIM(F$9)="CFS"),Conv_Flags!$C15,1) ->  | G15: =INDIRECT(CONCATENATE("'",G$1,"'!",G$4,(YEAR($A15)-1921)*12+MONTH($A15)+3+IF(ISNUMBER(FIND("PRV",G$6)),1,0)))*IF(AND(G$3>0,TRIM(G$9)="CFS"),Conv_Flags!$C15,1) ->  | K15: 1925 | L15: =B49 -> 0 | M15: =B50 -> 0 | N15: =B51 -> 0 | O15: =B52 -> 0 | P15: =B53 -> 0 | Q15: =B54 -> 0 | R15: =B55 -> 0 | S15: =B56 -> 0 | T15: =B57 -> 0 | U15: =B58 -> 0 | V15: =B59 -> 0 | W15: =B60 -> 0 | Y15: 0 | Z15: 0 | AA15: 0 | AC15: =IF(AC$11="AVG",IF(AE$1="INST-VAL",AVERAGE(L15:P15,M15:Q15),AVERAGE(M15:Q15)),SUM(M15:Q15)) -> 0 | AD15: 0 | AE15: 0 | AF15: 0 | AG15: 0 | AH15: 0 | AI15: 0 | AK15: 1925 | AL15: =C49 -> 0 | AM15: =C50 -> 0 | AN15: =C51 -> 72.97795196 | AO15: =C52 -> 0 | AP15: =C53 -> 150.5454545 | AQ15: =C54 -> 0 | AR15: =C55 -> 0 | AS15: =C56 -> 0 | AT15: =C57 -> 0 | AU15: =C58 -> 0 | AV15: =C59 -> 0 | AW15: =C60 -> 0 | AY15: 150.5454545 | AZ15: 142.0568431 | BA15: 223.5234065 | BC15: =IF(BC$11="AVG",IF(BE$1="INST-VAL",AVERAGE(AL15:AP15,AM15:AQ15),AVERAGE(AM15:AQ15)),SUM(AM15:AQ15)) -> 223.5234065 | BD15: =IF(BD$11="AVG",IF(BE$1="INST-VAL",AVERAGE(AU15:AW15,AV15:AW15,AL16),AVERAGE(AV15:AW15,AL16)),SUM(AV15:AW15,AL16)) -> 0 | BE15: 72.97795196 | BF15: 223.5234065 | BG15: 0 | BH15: 0 | BI15: 0 | BK15: 1925 | BL15: =D49 -> 0 | BM15: =D50 -> 0 | BN15: =D51 -> 73.08850007 | BO15: =D52 -> 0 | BP15: =D53 -> 150.5454545 | BQ15: =D54 -> 0 | BR15: =D55 -> 0 | BS15: =D56 -> 0 | BT15: =D57 -> 0 | BU15: =D58 -> 0 | BV15: =D59 -> 0 | BW15: =D60 -> 0 | BY15: 150.5454545 | BZ15: 142.1137618 | CA15: 223.6339546 | CC15: 223.6339546 | CD15: 0 | CE15: 73.08850007 | CF15: 223.6339546 | CG15: 0 | CH15: 0 | CI15: 0 | CK15: 1925 | CL15: =E49 -> 0 | CM15: =E50 -> 0 | CN15: =E51 -> 72.68184878 | CO15: =E52 -> 0 | CP15: =E53 -> 150.5454545 | CQ15: =E54 -> 0 | CR15: =E55 -> 0 | CS15: =E56 -> 0 | CT15: =E57 -> 0 | CU15: =E58 -> 0 | CV15: =E59 -> 0 | CW15: =E60 -> 0 | CY15: 150.5454545 | CZ15: 142.352635 | DA15: 223.2273033 | DC15: 223.2273033 | DD15: 0 | DE15: 72.68184878 | DF15: 223.2273033 | DG15: 0 | DH15: 0 | DI15: 0 | DK15: 1925 | DL15: =F49 ->  | DM15: =F50 ->  | DN15: =F51 ->  | DO15: =F52 ->  | DP15: =F53 ->  | DQ15: =F54 ->  | DR15: =F55 ->  | DS15: =F56 ->  | DT15: =F57 ->  | DU15: =F58 ->  | DV15: =F59 ->  | DW15: =F60 ->  | EK15: 1925 | EL15: =G49 ->  | EM15: =G50 ->  | EN15: =G51 ->  | EO15: =G52 ->  | EP15: =G53 ->  | EQ15: =G54 ->  | ER15: =G55 ->  | ES15: =G56 ->  | ET15: =G57 ->  | EU15: =G58 ->  | EV15: =G59 ->  | EW15: =G60 -> 
A16: 1922-01-31 | B16: =INDIRECT(CONCATENATE("'",B$1,"'!",B$4,(YEAR($A16)-1921)*12+MONTH($A16)+3+IF(ISNUMBER(FIND("PRV",B$6)),1,0)))*IF(AND(B$3>0,TRIM(B$9)="CFS"),Conv_Flags!$C16,1) -> 0 | C16: =INDIRECT(CONCATENATE("'",C$1,"'!",C$4,(YEAR($A16)-1921)*12+MONTH($A16)+3+IF(ISNUMBER(FIND("PRV",C$6)),1,0)))*IF(AND(C$3>0,TRIM(C$9)="CFS"),Conv_Flags!$C16,1) -> 0 | D16: =INDIRECT(CONCATENATE("'",D$1,"'!",D$4,(YEAR($A16)-1921)*12+MONTH($A16)+3+IF(ISNUMBER(FIND("PRV",D$6)),1,0)))*IF(AND(D$3>0,TRIM(D$9)="CFS"),Conv_Flags!$C16,1) -> 0 | E16: =INDIRECT(CONCATENATE("'",E$1,"'!",E$4,(YEAR($A16)-1921)*12+MONTH($A16)+3+IF(ISNUMBER(FIND("PRV",E$6)),1,0)))*IF(AND(E$3>0,TRIM(E$9)="CFS"),Conv_Flags!$C16,1) -> 0 | F16: =INDIRECT(CONCATENATE("'",F$1,"'!",F$4,(YEAR($A16)-1921)*12+MONTH($A16)+3+IF(ISNUMBER(FIND("PRV",F$6)),1,0)))*IF(AND(F$3>0,TRIM(F$9)="CFS"),Conv_Flags!$C16,1) ->  | G16: =INDIRECT(CONCATENATE("'",G$1,"'!",G$4,(YEAR($A16)-1921)*12+MONTH($A16)+3+IF(ISNUMBER(FIND("PRV",G$6)),1,0)))*IF(AND(G$3>0,TRIM(G$9)="CFS"),Conv_Flags!$C16,1) ->  | K16: 1926 | L16: =B61 -> 0 | M16: =B62 -> 0 | N16: =B63 -> 0 | O16: =B64 -> 0 | P16: =B65 -> 0 | Q16: =B66 -> 0 | R16: =B67 -> 0 | S16: =B68 -> 0 | T16: =B69 -> 0 | U16: =B70 -> 0 | V16: =B71 -> 0 | W16: =B72 -> 0 | Y16: 0 | Z16: 0 | AA16: 0 | AC16: 0 | AD16: 0 | AE16: 0 | AF16: 0 | AG16: 0 | AH16: 0 | AI16: 0 | AK16: 1926 | AL16: =C61 -> 0 | AM16: =C62 -> 0 | AN16: =C63 -> 0 | AO16: =C64 -> 60.65849393 | AP16: =C65 -> 81.39834917 | AQ16: =C66 -> 0 | AR16: =C67 -> 0 | AS16: =C68 -> 0 | AT16: =C69 -> 0 | AU16: =C70 -> 0 | AV16: =C71 -> 0 | AW16: =C72 -> 0 | AY16: 196.5029114 | AZ16: 293.3022637 | BA16: 142.0568431 | BC16: 142.0568431 | BD16: 0 | BE16: 60.65849393 | BF16: 142.0568431 | BG16: 0 | BH16: 0 | BI16: 20.89734647 | BK16: 1926 | BL16: =D61 -> 0 | BM16: =D62 -> 0 | BN16: =D63 -> 0 | BO16: =D64 -> 60.7153419 | BP16: =D65 -> 81.39841991 | BQ16: =D66 -> 0 | BR16: =D67 -> 0 | BS16: =D68 -> 0 | BT16: =D69 -> 0 | BU16: =D70 -> 0 | BV16: =D71 -> 0 | BW16: =D72 -> 0 | BY16: 181.4650371 | BZ16: 278.7130599 | CA16: 142.1137618 | CC16: 142.1137618 | CD16: 0 | CE16: 60.7153419 | CF16: 142.1137618 | CG16: 0 | CH16: 0 | CI16: 20.15210279 | CK16: 1926 | CL16: =E61 -> 0 | CM16: =E62 -> 0 | CN16: =E63 -> 0 | CO16: =E64 -> 60.9123763 | CP16: =E65 -> 81.44025874 | CQ16: =E66 -> 0 | CR16: =E67 -> 0 | CS16: =E68 -> 0 | CT16: =E69 -> 0 | CU16: =E70 -> 0 | CV16: =E71 -> 0 | CW16: =E72 -> 0 | CY16: 197.0307646 | CZ16: 293.5275848 | DA16: 142.352635 | DC16: 142.352635 | DD16: 0 | DE16: 60.9123763 | DF16: 142.352635 | DG16: 0 | DH16: 0 | DI16: 20.8982482 | DK16: 1926 | DL16: =F61 ->  | DM16: =F62 ->  | DN16: =F63 ->  | DO16: =F64 ->  | DP16: =F65 ->  | DQ16: =F66 ->  | DR16: =F67 ->  | DS16: =F68 ->  | DT16: =F69 ->  | DU16: =F70 ->  | DV16: =F71 ->  | DW16: =F72 ->  | EK16: 1926 | EL16: =G61 ->  | EM16: =G62 ->  | EN16: =G63 ->  | EO16: =G64 ->  | EP16: =G65 ->  | EQ16: =G66 ->  | ER16: =G67 ->  | ES16: =G68 ->  | ET16: =G69 ->  | EU16: =G70 ->  | EV16: =G71 ->  | EW16: =G72 -> 
A17: 1922-02-28 | B17: =INDIRECT(CONCATENATE("'",B$1,"'!",B$4,(YEAR($A17)-1921)*12+MONTH($A17)+3+IF(ISNUMBER(FIND("PRV",B$6)),1,0)))*IF(AND(B$3>0,TRIM(B$9)="CFS"),Conv_Flags!$C17,1) -> 0 | C17: =INDIRECT(CONCATENATE("'",C$1,"'!",C$4,(YEAR($A17)-1921)*12+MONTH($A17)+3+IF(ISNUMBER(FIND("PRV",C$6)),1,0)))*IF(AND(C$3>0,TRIM(C$9)="CFS"),Conv_Flags!$C17,1) -> 31.13573506 | D17: =INDIRECT(CONCATENATE("'",D$1,"'!",D$4,(YEAR($A17)-1921)*12+MONTH($A17)+3+IF(ISNUMBER(FIND("PRV",D$6)),1,0)))*IF(AND(D$3>0,TRIM(D$9)="CFS"),Conv_Flags!$C17,1) -> 31.13491297 | E17: =INDIRECT(CONCATENATE("'",E$1,"'!",E$4,(YEAR($A17)-1921)*12+MONTH($A17)+3+IF(ISNUMBER(FIND("PRV",E$6)),1,0)))*IF(AND(E$3>0,TRIM(E$9)="CFS"),Conv_Flags!$C17,1) -> 31.13573506 | F17: =INDIRECT(CONCATENATE("'",F$1,"'!",F$4,(YEAR($A17)-1921)*12+MONTH($A17)+3+IF(ISNUMBER(FIND("PRV",F$6)),1,0)))*IF(AND(F$3>0,TRIM(F$9)="CFS"),Conv_Flags!$C17,1) ->  | G17: =INDIRECT(CONCATENATE("'",G$1,"'!",G$4,(YEAR($A17)-1921)*12+MONTH($A17)+3+IF(ISNUMBER(FIND("PRV",G$6)),1,0)))*IF(AND(G$3>0,TRIM(G$9)="CFS"),Conv_Flags!$C17,1) ->  | K17: 1927 | L17: =B73 -> 0 | M17: =B74 -> 0 | N17: =B75 -> 0 | O17: =B76 -> 0 | P17: =B77 -> 0 | Q17: =B78 -> 0 | R17: =B79 -> 0 | S17: =B80 -> 0 | T17: =B81 -> 0 | U17: =B82 -> 0 | V17: =B83 -> 0 | W17: =B84 -> 0 | Y17: 0 | Z17: 0 | AA17: 0 | AC17: 0 | AD17: 0 | AE17: 0 | AF17: 0 | AG17: 0 | AH17: 0 | AI17: 0 | AK17: 1927 | AL17: =C73 -> 0 | AM17: =C74 -> 20.89734647 | AN17: =C75 -> 33.54872187 | AO17: =C76 -> 49.58545151 | AP17: =C77 -> 189.2707438 | AQ17: =C78 -> 156.285107 | AR17: =C79 -> 199.3428015 | AS17: =C80 -> 0 | AT17: =C81 -> 0 | AU17: =C82 -> 0.0002105348001 | AV17: =C83 -> 0 | AW17: =C84 -> 0 | AY17: 690.6539355 | AZ17: 511.1427886 | BA17: 648.9303827 | BC17: 449.5873706 | BD17: 0 | BE17: 104.0315198 | BF17: 272.4049172 | BG17: 355.6279085 | BH17: 0.0002105348001 | BI17: 96.16962112 | BK17: 1927 | BL17: =D73 -> 0 | BM17: =D74 -> 20.15210279 | BN17: =D75 -> 19.1991725 | BO17: =D76 -> 50.09104085 | BP17: =D77 -> 189.2707438 | BQ17: =D78 -> 156.2634479 | BR17: =D79 -> 199.3428015 | BS17: =D80 -> 0 | BT17: =D81 -> 0 | BU17: =D82 -> 0.0002204178716 | BV17: =D83 -> 0 | BW17: =D84 -> 0 | BY17: 691.0036718 | BZ17: 510.9849433 | CA17: 634.3195297 | CC17: =IF(CC$11="AVG",IF(CE$1="INST-VAL",AVERAGE(BL17:BP17,BM17:BQ17),AVERAGE(BM17:BQ17)),SUM(BM17:BQ17)) -> 434.9765078 | CD17: =IF(CD$11="AVG",IF(CE$1="INST-VAL",AVERAGE(BU17:BW17,BV17:BW17,BL18),AVERAGE(BV17:BW17,BL18)),SUM(BV17:BW17,BL18)) -> 0 | CE17: 89.44231613 | CF17: 258.5609571 | CG17: 355.6062494 | CH17: 0.0002204178716 | CI17: 96.03541736 | CK17: 1927 | CL17: =E73 -> 0 | CM17: =E74 -> 20.8982482 | CN17: =E75 -> 33.77988134 | CO17: =E76 -> 49.57871146 | CP17: =E77 -> 189.2707438 | CQ17: =E78 -> 156.2853127 | CR17: =E79 -> 199.3428015 | CS17: =E80 -> 0 | CT17: =E81 -> 0 | CU17: =E82 -> 0.0002127274302 | CV17: =E83 -> 0 | CW17: =E84 -> 0 | CY17: 690.409316 | CZ17: 510.9009442 | DA17: 649.1559117 | DC17: 449.8128975 | DD17: 0 | DE17: 104.256841 | DF17: 272.6293366 | DG17: 355.6281142 | DH17: 0.0002127274302 | DI17: 95.93153381 | DK17: 1927 | DL17: =F73 ->  | DM17: =F74 ->  | DN17: =F75 ->  | DO17: =F76 ->  | DP17: =F77 ->  | DQ17: =F78 ->  | DR17: =F79 ->  | DS17: =F80 ->  | DT17: =F81 ->  | DU17: =F82 ->  | DV17: =F83 ->  | DW17: =F84 ->  | EK17: 1927 | EL17: =G73 ->  | EM17: =G74 ->  | EN17: =G75 ->  | EO17: =G76 ->  | EP17: =G77 ->  | EQ17: =G78 ->  | ER17: =G79 ->  | ES17: =G80 ->  | ET17: =G81 ->  | EU17: =G82 ->  | EV17: =G83 ->  | EW17: =G84 -> 
A18: 1922-03-31 | B18: =INDIRECT(CONCATENATE("'",B$1,"'!",B$4,(YEAR($A18)-1921)*12+MONTH($A18)+3+IF(ISNUMBER(FIND("PRV",B$6)),1,0)))*IF(AND(B$3>0,TRIM(B$9)="CFS"),Conv_Flags!$C18,1) -> 0 | C18: =INDIRECT(CONCATENATE("'",C$1,"'!",C$4,(YEAR($A18)-1921)*12+MONTH($A18)+3+IF(ISNUMBER(FIND("PRV",C$6)),1,0)))*IF(AND(C$3>0,TRIM(C$9)="CFS"),Conv_Flags!$C18,1) -> 95.71403843 | D18: =INDIRECT(CONCATENATE("'",D$1,"'!",D$4,(YEAR($A18)-1921)*12+MONTH($A18)+3+IF(ISNUMBER(FIND("PRV",D$6)),1,0)))*IF(AND(D$3>0,TRIM(D$9)="CFS"),Conv_Flags!$C18,1) -> 95.70701565 | E18: =INDIRECT(CONCATENATE("'",E$1,"'!",E$4,(YEAR($A18)-1921)*12+MONTH($A18)+3+IF(ISNUMBER(FIND("PRV",E$6)),1,0)))*IF(AND(E$3>0,TRIM(E$9)="CFS"),Conv_Flags!$C18,1) -> 95.71403843 | F18: =INDIRECT(CONCATENATE("'",F$1,"'!",F$4,(YEAR($A18)-1921)*12+MONTH($A18)+3+IF(ISNUMBER(FIND("PRV",F$6)),1,0)))*IF(AND(F$3>0,TRIM(F$9)="CFS"),Conv_Flags!$C18,1) ->  | G18: =INDIRECT(CONCATENATE("'",G$1,"'!",G$4,(YEAR($A18)-1921)*12+MONTH($A18)+3+IF(ISNUMBER(FIND("PRV",G$6)),1,0)))*IF(AND(G$3>0,TRIM(G$9)="CFS"),Conv_Flags!$C18,1) ->  | K18: 1928 | L18: =B85 -> 0 | M18: =B86 -> 0 | N18: =B87 -> 0 | O18: =B88 -> 0 | P18: =B89 -> 0 | Q18: =B90 -> 0 | R18: =B91 -> 0 | S18: =B92 -> 0 | T18: =B93 -> 0 | U18: =B94 -> 0 | V18: =B95 -> 0 | W18: =B96 -> 0 | Y18: 0 | Z18: 0 | AA18: 0 | AC18: 0 | AD18: 0 | AE18: 0 | AF18: 0 | AG18: 0 | AH18: 0 | AI18: 0 | AK18: 1928 | AL18: =C85 -> 0 | AM18: =C86 -> 96.16962112 | AN18: =C87 -> 0 | AO18: =C88 -> 27.20347517 | AP18: =C89 -> 32.1415733 | AQ18: =C90 -> 129.8856198 | AR18: =C91 -> 0 | AS18: =C92 -> 0 | AT18: =C93 -> 0 | AU18: =C94 -> 0 | AV18: =C95 -> 0.0002980795675 | AW18: =C96 -> 0 | AY18: 189.2309664 | AZ18: 144.9403425 | BA18: 285.4005875 | BC18: 285.4002894 | BD18: 0.0002980795675 | BE18: 123.3730963 | BF18: 59.34504847 | BG18: 129.8856198 | BH18: 0.0002980795675 | BI18: 0 | BK18: 1928 | BL18: =D85 -> 0 | BM18: =D86 -> 96.03541736 | BN18: =D87 -> 0 | BO18: =D88 -> 27.20135541 | BP18: =D89 -> 32.14170069 | BQ18: =D90 -> 129.8856198 | BR18: =D91 -> 0 | BS18: =D92 -> 0 | BT18: =D93 -> 0 | BU18: =D94 -> 0 | BV18: =D95 -> 0.0003099832973 | BW18: =D96 -> 0 | BY18: 189.2289859 | BZ18: 144.9406956 | CA18: 285.2644033 | CC18: 285.2640933 | CD18: 0.0003099832973 | CE18: 123.2367728 | CF18: 59.3430561 | CG18: 129.8856198 | CH18: 0.0003099832973 | CI18: 0 | CK18: 1928 | CL18: =E85 -> 0 | CM18: =E86 -> 95.93153381 | CN18: =E87 -> 0 | CO18: =E88 -> 27.20092595 | CP18: =E89 -> 32.14015752 | CQ18: =E90 -> 129.8856198 | CR18: =E91 -> 0 | CS18: =E92 -> 0 | CT18: =E93 -> 0 | CU18: =E94 -> 0 | CV18: =E95 -> 0 | CW18: =E96 -> 0 | CY18: 189.2267033 | CZ18: 144.9398043 | DA18: 285.1582371 | DC18: =IF(DC$11="AVG",IF(DE$1="INST-VAL",AVERAGE(CL18:CP18,CM18:CQ18),AVERAGE(CM18:CQ18)),SUM(CM18:CQ18)) -> 285.1582371 | DD18: =IF(DD$11="AVG",IF(DE$1="INST-VAL",AVERAGE(CU18:CW18,CV18:CW18,CL19),AVERAGE(CV18:CW18,CL19)),SUM(CV18:CW18,CL19)) -> 0 | DE18: 123.1324598 | DF18: 59.34108348 | DG18: 129.8856198 | DH18: 0 | DI18: 0 | DK18: 1928 | DL18: =F85 ->  | DM18: =F86 ->  | DN18: =F87 ->  | DO18: =F88 ->  | DP18: =F89 ->  | DQ18: =F90 ->  | DR18: =F91 ->  | DS18: =F92 ->  | DT18: =F93 ->  | DU18: =F94 ->  | DV18: =F95 ->  | DW18: =F96 ->  | EC18: =IF(EC$11="AVG",IF(EE$1="INST-VAL",AVERAGE(DL18:DP18,DM18:DQ18),AVERAGE(DM18:DQ18)),SUM(DM18:DQ18)) ->  | ED18: =IF(ED$11="AVG",IF(EE$1="INST-VAL",AVERAGE(DU18:DW18,DV18:DW18,DL19),AVERAGE(DV18:DW18,DL19)),SUM(DV18:DW18,DL19)) ->  | EK18: 1928 | EL18: =G85 ->  | EM18: =G86 ->  | EN18: =G87 ->  | EO18: =G88 ->  | EP18: =G89 ->  | EQ18: =G90 ->  | ER18: =G91 ->  | ES18: =G92 ->  | ET18: =G93 ->  | EU18: =G94 ->  | EV18: =G95 ->  | EW18: =G96 ->  | FC18: =IF(FC$11="AVG",IF(FE$1="INST-VAL",AVERAGE(EL18:EP18,EM18:EQ18),AVERAGE(EM18:EQ18)),SUM(EM18:EQ18)) -> 
A19: 1922-04-30 | B19: =INDIRECT(CONCATENATE("'",B$1,"'!",B$4,(YEAR($A19)-1921)*12+MONTH($A19)+3+IF(ISNUMBER(FIND("PRV",B$6)),1,0)))*IF(AND(B$3>0,TRIM(B$9)="CFS"),Conv_Flags!$C19,1) -> 0 | C19: =INDIRECT(CONCATENATE("'",C$1,"'!",C$4,(YEAR($A19)-1921)*12+MONTH($A19)+3+IF(ISNUMBER(FIND("PRV",C$6)),1,0)))*IF(AND(C$3>0,TRIM(C$9)="CFS"),Conv_Flags!$C19,1) -> 0 | D19: =INDIRECT(CONCATENATE("'",D$1,"'!",D$4,(YEAR($A19)-1921)*12+MONTH($A19)+3+IF(ISNUMBER(FIND("PRV",D$6)),1,0)))*IF(AND(D$3>0,TRIM(D$9)="CFS"),Conv_Flags!$C19,1) -> 0 | E19: =INDIRECT(CONCATENATE("'",E$1,"'!",E$4,(YEAR($A19)-1921)*12+MONTH($A19)+3+IF(ISNUMBER(FIND("PRV",E$6)),1,0)))*IF(AND(E$3>0,TRIM(E$9)="CFS"),Conv_Flags!$C19,1) -> 0 | F19: =INDIRECT(CONCATENATE("'",F$1,"'!",F$4,(YEAR($A19)-1921)*12+MONTH($A19)+3+IF(ISNUMBER(FIND("PRV",F$6)),1,0)))*IF(AND(F$3>0,TRIM(F$9)="CFS"),Conv_Flags!$C19,1) ->  | G19: =INDIRECT(CONCATENATE("'",G$1,"'!",G$4,(YEAR($A19)-1921)*12+MONTH($A19)+3+IF(ISNUMBER(FIND("PRV",G$6)),1,0)))*IF(AND(G$3>0,TRIM(G$9)="CFS"),Conv_Flags!$C19,1) ->  | K19: 1929 | L19: =B97 -> 0 | M19: =B98 -> 0 | N19: =B99 -> 0 | O19: =B100 -> 0 | P19: =B101 -> 0 | Q19: =B102 -> 0 | R19: =B103 -> 0 | S19: =B104 -> 0 | T19: =B105 -> 0 | U19: =B106 -> 0 | V19: =B107 -> 0 | W19: =B108 -> 0 | Y19: 0 | Z19: 0 | AA19: 0 | AC19: 0 | AD19: 0 | AE19: 0 | AF19: 0 | AG19: 0 | AH19: 0 | AI19: 0 | AK19: 1929 | AL19: =C97 -> 0 | AM19: =C98 -> 0 | AN19: =C99 -> 0 | AO19: =C100 -> 0 | AP19: =C101 -> 15.05442456 | AQ19: =C102 -> 0 | AR19: =C103 -> 0 | AS19: =C104 -> 0 | AT19: =C105 -> 0 | AU19: =C106 -> 0 | AV19: =C107 -> 0 | AW19: =C108 -> 0 | AY19: 15.05442456 | AZ19: 40.20578655 | BA19: 15.05442456 | BC19: 15.05442456 | BD19: 0 | BE19: 0 | BF19: 15.05442456 | BG19: 0 | BH19: 0 | BI19: 0 | BK19: 1929 | BL19: =D97 -> 0 | BM19: =D98 -> 0 | BN19: =D99 -> 0 | BO19: =D100 -> 0 | BP19: =D101 -> 15.05476575 | BQ19: =D102 -> 0 | BR19: =D103 -> 0 | BS19: =D104 -> 0 | BT19: =D105 -> 0 | BU19: =D106 -> 0 | BV19: =D107 -> 0 | BW19: =D108 -> 0 | BY19: 15.05476575 | BZ19: 40.21021642 | CA19: 15.05476575 | CC19: 15.05476575 | CD19: 0 | CE19: 0 | CF19: 15.05476575 | CG19: 0 | CH19: 0 | CI19: 0 | CK19: 1929 | CL19: =E97 -> 0 | CM19: =E98 -> 0 | CN19: =E99 -> 0 | CO19: =E100 -> 0 | CP19: =E101 -> 15.05418443 | CQ19: =E102 -> 0 | CR19: =E103 -> 0 | CS19: =E104 -> 0 | CT19: =E105 -> 0 | CU19: =E106 -> 0 | CV19: =E107 -> 0 | CW19: =E108 -> 0 | CY19: 15.05418443 | CZ19: 40.20647723 | DA19: 15.05418443 | DC19: 15.05418443 | DD19: 0 | DE19: 0 | DF19: 15.05418443 | DG19: 0 | DH19: 0 | DI19: 0 | DK19: 1929 | DL19: =F97 ->  | DM19: =F98 ->  | DN19: =F99 ->  | DO19: =F100 ->  | DP19: =F101 ->  | DQ19: =F102 ->  | DR19: =F103 ->  | DS19: =F104 ->  | DT19: =F105 ->  | DU19: =F106 ->  | DV19: =F107 ->  | DW19: =F108 ->  | EK19: 1929 | EL19: =G97 ->  | EM19: =G98 ->  | EN19: =G99 ->  | EO19: =G100 ->  | EP19: =G101 ->  | EQ19: =G102 ->  | ER19: =G103 ->  | ES19: =G104 ->  | ET19: =G105 ->  | EU19: =G106 ->  | EV19: =G107 ->  | EW19: =G108 -> 
A20: 1922-05-31 | B20: =INDIRECT(CONCATENATE("'",B$1,"'!",B$4,(YEAR($A20)-1921)*12+MONTH($A20)+3+IF(ISNUMBER(FIND("PRV",B$6)),1,0)))*IF(AND(B$3>0,TRIM(B$9)="CFS"),Conv_Flags!$C20,1) -> 0 | C20: =INDIRECT(CONCATENATE("'",C$1,"'!",C$4,(YEAR($A20)-1921)*12+MONTH($A20)+3+IF(ISNUMBER(FIND("PRV",C$6)),1,0)))*IF(AND(C$3>0,TRIM(C$9)="CFS"),Conv_Flags!$C20,1) -> 30.32954517 | D20: =INDIRECT(CONCATENATE("'",D$1,"'!",D$4,(YEAR($A20)-1921)*12+MONTH($A20)+3+IF(ISNUMBER(FIND("PRV",D$6)),1,0)))*IF(AND(D$3>0,TRIM(D$9)="CFS"),Conv_Flags!$C20,1) -> 29.59722922 | E20: =INDIRECT(CONCATENATE("'",E$1,"'!",E$4,(YEAR($A20)-1921)*12+MONTH($A20)+3+IF(ISNUMBER(FIND("PRV",E$6)),1,0)))*IF(AND(E$3>0,TRIM(E$9)="CFS"),Conv_Flags!$C20,1) -> 30.32954517 | F20: =INDIRECT(CONCATENATE("'",F$1,"'!",F$4,(YEAR($A20)-1921)*12+MONTH($A20)+3+IF(ISNUMBER(FIND("PRV",F$6)),1,0)))*IF(AND(F$3>0,TRIM(F$9)="CFS"),Conv_Flags!$C20,1) ->  | G20: =INDIRECT(CONCATENATE("'",G$1,"'!",G$4,(YEAR($A20)-1921)*12+MONTH($A20)+3+IF(ISNUMBER(FIND("PRV",G$6)),1,0)))*IF(AND(G$3>0,TRIM(G$9)="CFS"),Conv_Flags!$C20,1) ->  | K20: 1930 | L20: =B109 -> 0 | M20: =B110 -> 0 | N20: =B111 -> 0 | O20: =B112 -> 0 | P20: =B113 -> 0 | Q20: =B114 -> 0 | R20: =B115 -> 0 | S20: =B116 -> 0 | T20: =B117 -> 0 | U20: =B118 -> 0 | V20: =B119 -> 0 | W20: =B120 -> 0 | Y20: 0 | Z20: 0 | AA20: 0 | AC20: 0 | AD20: 0 | AE20: 0 | AF20: 0 | AG20: 0 | AH20: 0 | AI20: 0 | AK20: 1930 | AL20: =C109 -> 0 | AM20: =C110 -> 0 | AN20: =C111 -> 0 | AO20: =C112 -> 23.82733805 | AP20: =C113 -> 16.3784485 | AQ20: =C114 -> 147.5101471 | AR20: =C115 -> 0 | AS20: =C116 -> 0 | AT20: =C117 -> 0 | AU20: =C118 -> 0 | AV20: =C119 -> 0 | AW20: =C120 -> 0 | AY20: 187.7159337 | AZ20: 147.5101471 | BA20: 187.7159337 | BC20: 187.7159337 | BD20: 0 | BE20: 23.82733805 | BF20: 40.20578655 | BG20: 147.5101471 | BH20: 0 | BI20: 0 | BK20: 1930 | BL20: =D109 -> 0 | BM20: =D110 -> 0 | BN20: =D111 -> 0 | BO20: =D112 -> 23.82993457 | BP20: =D113 -> 16.38028186 | BQ20: =D114 -> 147.510711 | BR20: =D115 -> 0 | BS20: =D116 -> 0 | BT20: =D117 -> 0 | BU20: =D118 -> 0 | BV20: =D119 -> 0 | BW20: =D120 -> 0 | BY20: 187.7209274 | BZ20: 147.510711 | CA20: 187.7209274 | CC20: 187.7209274 | CD20: 0 | CE20: 23.82993457 | CF20: 40.21021642 | CG20: 147.510711 | CH20: 0 | CI20: 0 | CK20: 1930 | CL20: =E109 -> 0 | CM20: =E110 -> 0 | CN20: =E111 -> 0 | CO20: =E112 -> 23.82809178 | CP20: =E113 -> 16.37838545 | CQ20: =E114 -> 147.5100833 | CR20: =E115 -> 0 | CS20: =E116 -> 0 | CT20: =E117 -> 0 | CU20: =E118 -> 0 | CV20: =E119 -> 0 | CW20: =E120 -> 0 | CY20: 187.7165605 | CZ20: 147.5100833 | DA20: 187.7165605 | DC20: 187.7165605 | DD20: 0 | DE20: 23.82809178 | DF20: 40.20647723 | DG20: 147.5100833 | DH20: 0 | DI20: 0 | DK20: 1930 | DL20: =F109 ->  | DM20: =F110 ->  | DN20: =F111 ->  | DO20: =F112 ->  | DP20: =F113 ->  | DQ20: =F114 ->  | DR20: =F115 ->  | DS20: =F116 ->  | DT20: =F117 ->  | DU20: =F118 ->  | DV20: =F119 ->  | DW20: =F120 ->  | EK20: 1930 | EL20: =G109 ->  | EM20: =G110 ->  | EN20: =G111 ->  | EO20: =G112 ->  | EP20: =G113 ->  | EQ20: =G114 ->  | ER20: =G115 ->  | ES20: =G116 ->  | ET20: =G117 ->  | EU20: =G118 ->  | EV20: =G119 ->  | EW20: =G120 -> 
A21: 1922-06-30 | B21: =INDIRECT(CONCATENATE("'",B$1,"'!",B$4,(YEAR($A21)-1921)*12+MONTH($A21)+3+IF(ISNUMBER(FIND("PRV",B$6)),1,0)))*IF(AND(B$3>0,TRIM(B$9)="CFS"),Conv_Flags!$C21,1) -> 0 | C21: =INDIRECT(CONCATENATE("'",C$1,"'!",C$4,(YEAR($A21)-1921)*12+MONTH($A21)+3+IF(ISNUMBER(FIND("PRV",C$6)),1,0)))*IF(AND(C$3>0,TRIM(C$9)="CFS"),Conv_Flags!$C21,1) -> 0 | D21: =INDIRECT(CONCATENATE("'",D$1,"'!",D$4,(YEAR($A21)-1921)*12+MONTH($A21)+3+IF(ISNUMBER(FIND("PRV",D$6)),1,0)))*IF(AND(D$3>0,TRIM(D$9)="CFS"),Conv_Flags!$C21,1) -> 0 | E21: =INDIRECT(CONCATENATE("'",E$1,"'!",E$4,(YEAR($A21)-1921)*12+MONTH($A21)+3+IF(ISNUMBER(FIND("PRV",E$6)),1,0)))*IF(AND(E$3>0,TRIM(E$9)="CFS"),Conv_Flags!$C21,1) -> 0 | F21: =INDIRECT(CONCATENATE("'",F$1,"'!",F$4,(YEAR($A21)-1921)*12+MONTH($A21)+3+IF(ISNUMBER(FIND("PRV",F$6)),1,0)))*IF(AND(F$3>0,TRIM(F$9)="CFS"),Conv_Flags!$C21,1) ->  | G21: =INDIRECT(CONCATENATE("'",G$1,"'!",G$4,(YEAR($A21)-1921)*12+MONTH($A21)+3+IF(ISNUMBER(FIND("PRV",G$6)),1,0)))*IF(AND(G$3>0,TRIM(G$9)="CFS"),Conv_Flags!$C21,1) ->  | K21: 1931 | L21: =B121 -> 0 | M21: =B122 -> 0 | N21: =B123 -> 0 | O21: =B124 -> 0 | P21: =B125 -> 0 | Q21: =B126 -> 0 | R21: =B127 -> 0 | S21: =B128 -> 0 | T21: =B129 -> 0 | U21: =B130 -> 0 | V21: =B131 -> 0 | W21: =B132 -> 0 | Y21: 0 | Z21: 0 | AA21: 0 | AC21: 0 | AD21: 0 | AE21: 0 | AF21: 0 | AG21: 0 | AH21: 0 | AI21: 0 | AK21: 1931 | AL21: =C121 -> 0 | AM21: =C122 -> 0 | AN21: =C123 -> 0 | AO21: =C124 -> 0 | AP21: =C125 -> 0 | AQ21: =C126 -> 0 | AR21: =C127 -> 0 | AS21: =C128 -> 0 | AT21: =C129 -> 0 | AU21: =C130 -> 0 | AV21: =C131 -> 0 | AW21: =C132 -> 0 | AY21: 42.23091017 | AZ21: 124.5302478 | BA21: 0 | BC21: 0 | BD21: 0 | BE21: 0 | BF21: 0 | BG21: 0 | BH21: 0 | BI21: 0 | BK21: 1931 | BL21: =D121 -> 0 | BM21: =D122 -> 0 | BN21: =D123 -> 0 | BO21: =D124 -> 0 | BP21: =D125 -> 0 | BQ21: =D126 -> 0 | BR21: =D127 -> 0 | BS21: =D128 -> 0 | BT21: =D129 -> 0 | BU21: =D130 -> 0 | BV21: =D131 -> 0 | BW21: =D132 -> 0 | BY21: 42.72884169 | BZ21: 125.0061924 | CA21: 0 | CC21: 0 | CD21: 0 | CE21: 0 | CF21: 0 | CG21: 0 | CH21: 0 | CI21: 0 | CK21: 1931 | CL21: =E121 -> 0 | CM21: =E122 -> 0 | CN21: =E123 -> 0 | CO21: =E124 -> 0 | CP21: =E125 -> 0 | CQ21: =E126 -> 0 | CR21: =E127 -> 0 | CS21: =E128 -> 0 | CT21: =E129 -> 0 | CU21: =E130 -> 0 | CV21: =E131 -> 0 | CW21: =E132 -> 0 | CY21: 42.23042273 | CZ21: 124.5272269 | DA21: 0 | DC21: 0 | DD21: 0 | DE21: 0 | DF21: 0 | DG21: 0 | DH21: 0 | DI21: 0 | DK21: 1931 | DL21: =F121 ->  | DM21: =F122 ->  | DN21: =F123 ->  | DO21: =F124 ->  | DP21: =F125 ->  | DQ21: =F126 ->  | DR21: =F127 ->  | DS21: =F128 ->  | DT21: =F129 ->  | DU21: =F130 ->  | DV21: =F131 ->  | DW21: =F132 ->  | EK21: 1931 | EL21: =G121 ->  | EM21: =G122 ->  | EN21: =G123 ->  | EO21: =G124 ->  | EP21: =G125 ->  | EQ21: =G126 ->  | ER21: =G127 ->  | ES21: =G128 ->  | ET21: =G129 ->  | EU21: =G130 ->  | EV21: =G131 ->  | EW21: =G132 -> 
A22: 1922-07-31 | B22: =INDIRECT(CONCATENATE("'",B$1,"'!",B$4,(YEAR($A22)-1921)*12+MONTH($A22)+3+IF(ISNUMBER(FIND("PRV",B$6)),1,0)))*IF(AND(B$3>0,TRIM(B$9)="CFS"),Conv_Flags!$C22,1) -> 0 | C22: =INDIRECT(CONCATENATE("'",C$1,"'!",C$4,(YEAR($A22)-1921)*12+MONTH($A22)+3+IF(ISNUMBER(FIND("PRV",C$6)),1,0)))*IF(AND(C$3>0,TRIM(C$9)="CFS"),Conv_Flags!$C22,1) -> 0 | D22: =INDIRECT(CONCATENATE("'",D$1,"'!",D$4,(YEAR($A22)-1921)*12+MONTH($A22)+3+IF(ISNUMBER(FIND("PRV",D$6)),1,0)))*IF(AND(D$3>0,TRIM(D$9)="CFS"),Conv_Flags!$C22,1) -> 0 | E22: =INDIRECT(CONCATENATE("'",E$1,"'!",E$4,(YEAR($A22)-1921)*12+MONTH($A22)+3+IF(ISNUMBER(FIND("PRV",E$6)),1,0)))*IF(AND(E$3>0,TRIM(E$9)="CFS"),Conv_Flags!$C22,1) -> 0 | F22: =INDIRECT(CONCATENATE("'",F$1,"'!",F$4,(YEAR($A22)-1921)*12+MONTH($A22)+3+IF(ISNUMBER(FIND("PRV",F$6)),1,0)))*IF(AND(F$3>0,TRIM(F$9)="CFS"),Conv_Flags!$C22,1) ->  | G22: =INDIRECT(CONCATENATE("'",G$1,"'!",G$4,(YEAR($A22)-1921)*12+MONTH($A22)+3+IF(ISNUMBER(FIND("PRV",G$6)),1,0)))*IF(AND(G$3>0,TRIM(G$9)="CFS"),Conv_Flags!$C22,1) ->  | K22: 1932 | L22: =B133 -> 0 | M22: =B134 -> 0 | N22: =B135 -> 0 | O22: =B136 -> 0 | P22: =B137 -> 0 | Q22: =B138 -> 0 | R22: =B139 -> 0 | S22: =B140 -> 0 | T22: =B141 -> 0 | U22: =B142 -> 0 | V22: =B143 -> 0 | W22: =B144 -> 0 | Y22: 0 | Z22: 0 | AA22: 0 | AC22: 0 | AD22: 0 | AE22: 0 | AF22: 0 | AG22: 0 | AH22: 0 | AI22: 0 | AK22: 1932 | AL22: =C133 -> 0 | AM22: =C134 -> 0 | AN22: =C135 -> 42.23091017 | AO22: =C136 -> 27.48548623 | AP22: =C137 -> 54.81385136 | AQ22: =C138 -> 0 | AR22: =C139 -> 0 | AS22: =C140 -> 0 | AT22: =C141 -> 0 | AU22: =C142 -> 0 | AV22: =C143 -> 0 | AW22: =C144 -> 0 | AY22: 82.29933759 | AZ22: 88.23569151 | BA22: 124.5302478 | BC22: 124.5302478 | BD22: 0 | BE22: 69.71639639 | BF22: 124.5302478 | BG22: 0 | BH22: 0 | BI22: 0 | BK22: 1932 | BL22: =D133 -> 0 | BM22: =D134 -> 0 | BN22: =D135 -> 42.72884169 | BO22: =D136 -> 27.44831581 | BP22: =D137 -> 54.82903495 | BQ22: =D138 -> 0 | BR22: =D139 -> 0 | BS22: =D140 -> 0 | BT22: =D141 -> 0 | BU22: =D142 -> 0 | BV22: =D143 -> 0 | BW22: =D144 -> 0 | BY22: 82.27735075 | BZ22: 88.24379127 | CA22: 125.0061924 | CC22: 125.0061924 | CD22: 0 | CE22: 70.17715749 | CF22: 125.0061924 | CG22: 0 | CH22: 0 | CI22: 0 | CK22: 1932 | CL22: =E133 -> 0 | CM22: =E134 -> 0 | CN22: =E135 -> 42.23042273 | CO22: =E136 -> 27.48506296 | CP22: =E137 -> 54.81174121 | CQ22: =E138 -> 0 | CR22: =E139 -> 0 | CS22: =E140 -> 0 | CT22: =E141 -> 0 | CU22: =E142 -> 0 | CV22: =E143 -> 0 | CW22: =E144 -> 0 | CY22: 82.29680417 | CZ22: 88.23051619 | DA22: 124.5272269 | DC22: 124.5272269 | DD22: 0 | DE22: 69.71548569 | DF22: 124.5272269 | DG22: 0 | DH22: 0 | DI22: 0 | DK22: 1932 | DL22: =F133 ->  | DM22: =F134 ->  | DN22: =F135 ->  | DO22: =F136 ->  | DP22: =F137 ->  | DQ22: =F138 ->  | DR22: =F139 ->  | DS22: =F140 ->  | DT22: =F141 ->  | DU22: =F142 ->  | DV22: =F143 ->  | DW22: =F144 ->  | EK22: 1932 | EL22: =G133 ->  | EM22: =G134 ->  | EN22: =G135 ->  | EO22: =G136 ->  | EP22: =G137 ->  | EQ22: =G138 ->  | ER22: =G139 ->  | ES22: =G140 ->  | ET22: =G141 ->  | EU22: =G142 ->  | EV22: =G143 ->  | EW22: =G144 -> 
A23: 1922-08-31 | B23: =INDIRECT(CONCATENATE("'",B$1,"'!",B$4,(YEAR($A23)-1921)*12+MONTH($A23)+3+IF(ISNUMBER(FIND("PRV",B$6)),1,0)))*IF(AND(B$3>0,TRIM(B$9)="CFS"),Conv_Flags!$C23,1) -> 0 | C23: =INDIRECT(CONCATENATE("'",C$1,"'!",C$4,(YEAR($A23)-1921)*12+MONTH($A23)+3+IF(ISNUMBER(FIND("PRV",C$6)),1,0)))*IF(AND(C$3>0,TRIM(C$9)="CFS"),Conv_Flags!$C23,1) -> 0 | D23: =INDIRECT(CONCATENATE("'",D$1,"'!",D$4,(YEAR($A23)-1921)*12+MONTH($A23)+3+IF(ISNUMBER(FIND("PRV",D$6)),1,0)))*IF(AND(D$3>0,TRIM(D$9)="CFS"),Conv_Flags!$C23,1) -> 0 | E23: =INDIRECT(CONCATENATE("'",E$1,"'!",E$4,(YEAR($A23)-1921)*12+MONTH($A23)+3+IF(ISNUMBER(FIND("PRV",E$6)),1,0)))*IF(AND(E$3>0,TRIM(E$9)="CFS"),Conv_Flags!$C23,1) -> 0 | F23: =INDIRECT(CONCATENATE("'",F$1,"'!",F$4,(YEAR($A23)-1921)*12+MONTH($A23)+3+IF(ISNUMBER(FIND("PRV",F$6)),1,0)))*IF(AND(F$3>0,TRIM(F$9)="CFS"),Conv_Flags!$C23,1) ->  | G23: =INDIRECT(CONCATENATE("'",G$1,"'!",G$4,(YEAR($A23)-1921)*12+MONTH($A23)+3+IF(ISNUMBER(FIND("PRV",G$6)),1,0)))*IF(AND(G$3>0,TRIM(G$9)="CFS"),Conv_Flags!$C23,1) ->  | K23: 1933 | L23: =B145 -> 0 | M23: =B146 -> 0 | N23: =B147 -> 0 | O23: =B148 -> 0 | P23: =B149 -> 0 | Q23: =B150 -> 0 | R23: =B151 -> 0 | S23: =B152 -> 0 | T23: =B153 -> 0 | U23: =B154 -> 0 | V23: =B155 -> 0 | W23: =B156 -> 0 | Y23: 0 | Z23: 0 | AA23: 0 | AC23: 0 | AD23: 0 | AE23: 0 | AF23: 0 | AG23: 0 | AH23: 0 | AI23: 0 | AK23: 1933 | AL23: =C145 -> 0 | AM23: =C146 -> 0 | AN23: =C147 -> 0 | AO23: =C148 -> 88.23569151 | AP23: =C149 -> 0 | AQ23: =C150 -> 4.95157665 | AR23: =C151 -> 0 | AS23: =C152 -> 0 | AT23: =C153 -> 0 | AU23: =C154 -> 0 | AV23: =C155 -> 0 | AW23: =C156 -> 0 | AY23: 149.7935753 | AZ23: 81.42856089 | BA23: 93.18726816 | BC23: 93.18726816 | BD23: 0 | BE23: 88.23569151 | BF23: 88.23569151 | BG23: 4.95157665 | BH23: 0 | BI23: 0.04442902236 | BK23: 1933 | BL23: =D145 -> 0 | BM23: =D146 -> 0 | BN23: =D147 -> 0 | BO23: =D148 -> 88.24379127 | BP23: =D149 -> 0 | BQ23: =D150 -> 4.967849951 | BR23: =D151 -> 0 | BS23: =D152 -> 0 | BT23: =D153 -> 0 | BU23: =D154 -> 0 | BV23: =D155 -> 0 | BW23: =D156 -> 0 | BY23: 155.64986 | BZ23: 87.28207585 | CA23: 93.21164122 | CC23: 93.21164122 | CD23: 4.598386739 | CE23: 88.24379127 | CF23: 88.24379127 | CG23: 4.967849951 | CH23: 0 | CI23: 5.283109664 | CK23: 1933 | CL23: =E145 -> 0 | CM23: =E146 -> 0 | CN23: =E147 -> 0 | CO23: =E148 -> 88.23051619 | CP23: =E149 -> 0 | CQ23: =E150 -> 4.956436986 | CR23: =E151 -> 0 | CS23: =E152 -> 0 | CT23: =E153 -> 0 | CU23: =E154 -> 0 | CV23: =E155 -> 0 | CW23: =E156 -> 0 | CY23: 152.3204179 | CZ23: 83.96526698 | DA23: 93.18695317 | DC23: 93.18695317 | DD23: 1.313989595 | DE23: 88.23051619 | DF23: 88.23051619 | DG23: 4.956436986 | DH23: 0 | DI23: 1.981832042 | DK23: 1933 | DL23: =F145 ->  | DM23: =F146 ->  | DN23: =F147 ->  | DO23: =F148 ->  | DP23: =F149 ->  | DQ23: =F150 ->  | DR23: =F151 ->  | DS23: =F152 ->  | DT23: =F153 ->  | DU23: =F154 ->  | DV23: =F155 ->  | DW23: =F156 ->  | EK23: 1933 | EL23: =G145 ->  | EM23: =G146 ->  | EN23: =G147 ->  | EO23: =G148 ->  | EP23: =G149 ->  | EQ23: =G150 ->  | ER23: =G151 ->  | ES23: =G152 ->  | ET23: =G153 ->  | EU23: =G154 ->  | EV23: =G155 ->  | EW23: =G156 -> 
A24: 1922-09-30 | B24: =INDIRECT(CONCATENATE("'",B$1,"'!",B$4,(YEAR($A24)-1921)*12+MONTH($A24)+3+IF(ISNUMBER(FIND("PRV",B$6)),1,0)))*IF(AND(B$3>0,TRIM(B$9)="CFS"),Conv_Flags!$C24,1) -> 0 | C24: =INDIRECT(CONCATENATE("'",C$1,"'!",C$4,(YEAR($A24)-1921)*12+MONTH($A24)+3+IF(ISNUMBER(FIND("PRV",C$6)),1,0)))*IF(AND(C$3>0,TRIM(C$9)="CFS"),Conv_Flags!$C24,1) -> 0 | D24: =INDIRECT(CONCATENATE("'",D$1,"'!",D$4,(YEAR($A24)-1921)*12+MONTH($A24)+3+IF(ISNUMBER(FIND("PRV",D$6)),1,0)))*IF(AND(D$3>0,TRIM(D$9)="CFS"),Conv_Flags!$C24,1) -> 0 | E24: =INDIRECT(CONCATENATE("'",E$1,"'!",E$4,(YEAR($A24)-1921)*12+MONTH($A24)+3+IF(ISNUMBER(FIND("PRV",E$6)),1,0)))*IF(AND(E$3>0,TRIM(E$9)="CFS"),Conv_Flags!$C24,1) -> 0 | F24: =INDIRECT(CONCATENATE("'",F$1,"'!",F$4,(YEAR($A24)-1921)*12+MONTH($A24)+3+IF(ISNUMBER(FIND("PRV",F$6)),1,0)))*IF(AND(F$3>0,TRIM(F$9)="CFS"),Conv_Flags!$C24,1) ->  | G24: =INDIRECT(CONCATENATE("'",G$1,"'!",G$4,(YEAR($A24)-1921)*12+MONTH($A24)+3+IF(ISNUMBER(FIND("PRV",G$6)),1,0)))*IF(AND(G$3>0,TRIM(G$9)="CFS"),Conv_Flags!$C24,1) ->  | K24: 1934 | L24: =B157 -> 0 | M24: =B158 -> 0 | N24: =B159 -> 0 | O24: =B160 -> 0 | P24: =B161 -> 0 | Q24: =B162 -> 0 | R24: =B163 -> 0 | S24: =B164 -> 0 | T24: =B165 -> 0 | U24: =B166 -> 0 | V24: =B167 -> 0 | W24: =B168 -> 0 | Y24: 0 | Z24: 0 | AA24: 0 | AC24: 0 | AD24: 0 | AE24: 0 | AF24: 0 | AG24: 0 | AH24: 0 | AI24: 0 | AK24: 1934 | AL24: =C157 -> 0 | AM24: =C158 -> 0.04442902236 | AN24: =C159 -> 56.56187812 | AO24: =C160 -> 19.8706771 | AP24: =C161 -> 0 | AQ24: =C162 -> 0 | AR24: =C163 -> 0 | AS24: =C164 -> 0 | AT24: =C165 -> 0 | AU24: =C166 -> 0 | AV24: =C167 -> 0 | AW24: =C168 -> 0 | AY24: 23.86429952 | AZ24: 163.9995682 | BA24: 76.47698424 | BC24: 76.47698424 | BD24: 3.574961409 | BE24: 76.47698424 | BF24: 76.43255522 | BG24: 0 | BH24: 0 | BI24: 3.993622425 | BK24: 1934 | BL24: =D157 -> 4.598386739 | BM24: =D158 -> 0.6847229254 | BN24: =D159 -> 57.15510907 | BO24: =D160 -> 19.87600716 | BP24: =D161 -> 0 | BQ24: =D162 -> 0 | BR24: =D163 -> 0 | BS24: =D164 -> 0 | BT24: =D165 -> 0 | BU24: =D166 -> 0 | BV24: =D167 -> 0 | BW24: =D168 -> 0 | BY24: 24.90000082 | BZ24: 165.012168 | CA24: 82.3142259 | CC24: 77.71583916 | CD24: 4.579467433 | CE24: 82.3142259 | CF24: 77.03111623 | CG24: 0 | CH24: 0 | CI24: 5.023993668 | CK24: 1934 | CL24: =E157 -> 1.313989595 | CM24: =E158 -> 0.6678424462 | CN24: =E159 -> 57.15163272 | CO24: =E160 -> 19.87536523 | CP24: =E161 -> 0 | CQ24: =E162 -> 0 | CR24: =E163 -> 0 | CS24: =E164 -> 0 | CT24: =E165 -> 0 | CU24: =E166 -> 0 | CV24: =E167 -> 0 | CW24: =E168 -> 0 | CY24: 23.8998238 | CZ24: 164.0302925 | DA24: 79.00883 | DC24: 77.6948404 | DD24: 3.617481606 | DE24: 79.00883 | DF24: 77.02699796 | DG24: 0 | DH24: 0 | DI24: 4.024458565 | DK24: 1934 | DL24: =F157 ->  | DM24: =F158 ->  | DN24: =F159 ->  | DO24: =F160 ->  | DP24: =F161 ->  | DQ24: =F162 ->  | DR24: =F163 ->  | DS24: =F164 ->  | DT24: =F165 ->  | DU24: =F166 ->  | DV24: =F167 ->  | DW24: =F168 ->  | EK24: 1934 | EL24: =G157 ->  | EM24: =G158 ->  | EN24: =G159 ->  | EO24: =G160 ->  | EP24: =G161 ->  | EQ24: =G162 ->  | ER24: =G163 ->  | ES24: =G164 ->  | ET24: =G165 ->  | EU24: =G166 ->  | EV24: =G167 ->  | EW24: =G168 -> 
A25: 1922-10-31 | B25: =INDIRECT(CONCATENATE("'",B$1,"'!",B$4,(YEAR($A25)-1921)*12+MONTH($A25)+3+IF(ISNUMBER(FIND("PRV",B$6)),1,0)))*IF(AND(B$3>0,TRIM(B$9)="CFS"),Conv_Flags!$C25,1) -> 0 | C25: =INDIRECT(CONCATENATE("'",C$1,"'!",C$4,(YEAR($A25)-1921)*12+MONTH($A25)+3+IF(ISNUMBER(FIND("PRV",C$6)),1,0)))*IF(AND(C$3>0,TRIM(C$9)="CFS"),Conv_Flags!$C25,1) -> 0 | D25: =INDIRECT(CONCATENATE("'",D$1,"'!",D$4,(YEAR($A25)-1921)*12+MONTH($A25)+3+IF(ISNUMBER(FIND("PRV",D$6)),1,0)))*IF(AND(D$3>0,TRIM(D$9)="CFS"),Conv_Flags!$C25,1) -> 0 | E25: =INDIRECT(CONCATENATE("'",E$1,"'!",E$4,(YEAR($A25)-1921)*12+MONTH($A25)+3+IF(ISNUMBER(FIND("PRV",E$6)),1,0)))*IF(AND(E$3>0,TRIM(E$9)="CFS"),Conv_Flags!$C25,1) -> 0 | F25: =INDIRECT(CONCATENATE("'",F$1,"'!",F$4,(YEAR($A25)-1921)*12+MONTH($A25)+3+IF(ISNUMBER(FIND("PRV",F$6)),1,0)))*IF(AND(F$3>0,TRIM(F$9)="CFS"),Conv_Flags!$C25,1) ->  | G25: =INDIRECT(CONCATENATE("'",G$1,"'!",G$4,(YEAR($A25)-1921)*12+MONTH($A25)+3+IF(ISNUMBER(FIND("PRV",G$6)),1,0)))*IF(AND(G$3>0,TRIM(G$9)="CFS"),Conv_Flags!$C25,1) ->  | K25: 1935 | L25: =B169 -> 0 | M25: =B170 -> 0 | N25: =B171 -> 0 | O25: =B172 -> 0 | P25: =B173 -> 0 | Q25: =B174 -> 0 | R25: =B175 -> 0 | S25: =B176 -> 0 | T25: =B177 -> 0 | U25: =B178 -> 0 | V25: =B179 -> 0 | W25: =B180 -> 0 | Y25: 0 | Z25: 0 | AA25: 0 | AC25: 0 | AD25: 0 | AE25: 0 | AF25: 0 | AG25: 0 | AH25: 0 | AI25: 0 | AK25: 1935 | AL25: =C169 -> 3.574961409 | AM25: =C170 -> 0.4186610159 | AN25: =C171 -> 0 | AO25: =C172 -> 38.29533437 | AP25: =C173 -> 121.7106114 | AQ25: =C174 -> 140.6764868 | AR25: =C175 -> 177.9173554 | AS25: =C176 -> 0 | AT25: =C177 -> 0 | AU25: =C178 -> 0 | AV25: =C179 -> 0 | AW25: =C180 -> 0 | AY25: 478.5997879 | AZ25: 545.3262505 | BA25: 482.5934103 | BC25: 301.1010935 | BD25: 0 | BE25: 42.2889568 | BF25: 160.0059457 | BG25: 318.5938421 | BH25: 0 | BI25: 0 | BK25: 1935 | BL25: =D169 -> 4.579467433 | BM25: =D170 -> 0.4445262346 | BN25: =D171 -> 0 | BO25: =D172 -> 38.29841712 | BP25: =D173 -> 121.6897572 | BQ25: =D174 -> 140.6765145 | BR25: =D175 -> 177.9173554 | BS25: =D176 -> 0 | BT25: =D177 -> 0 | BU25: =D178 -> 0 | BV25: =D179 -> 0 | BW25: =D180 -> 0 | BY25: 478.5820442 | BZ25: 545.345275 | CA25: 483.6060379 | CC25: 301.1092151 | CD25: 0 | CE25: 43.32241079 | CF25: 159.9881744 | CG25: 318.5938699 | CH25: 0 | CI25: 0 | CK25: 1935 | CL25: =E169 -> 3.617481606 | CM25: =E170 -> 0.4069769591 | CN25: =E171 -> 0 | CO25: =E172 -> 38.293984 | CP25: =E173 -> 121.7118499 | CQ25: =E174 -> 140.6759352 | CR25: =E175 -> 177.9173554 | CS25: =E176 -> 0 | CT25: =E177 -> 0 | CU25: =E178 -> 0 | CV25: =E179 -> 0 | CW25: =E180 -> 0 | CY25: 478.5991245 | CZ25: 545.3291516 | DA25: 482.6235831 | DC25: 301.0887461 | DD25: 0 | DE25: 42.31844257 | DF25: 160.0058339 | DG25: 318.5932906 | DH25: 0 | DI25: 0 | DK25: 1935 | DL25: =F169 ->  | DM25: =F170 ->  | DN25: =F171 ->  | DO25: =F172 ->  | DP25: =F173 ->  | DQ25: =F174 ->  | DR25: =F175 ->  | DS25: =F176 ->  | DT25: =F177 ->  | DU25: =F178 ->  | DV25: =F179 ->  | DW25: =F180 ->  | EK25: 1935 | EL25: =G169 ->  | EM25: =G170 ->  | EN25: =G171 ->  | EO25: =G172 ->  | EP25: =G173 ->  | EQ25: =G174 ->  | ER25: =G175 ->  | ES25: =G176 ->  | ET25: =G177 ->  | EU25: =G178 ->  | EV25: =G179 ->  | EW25: =G180 -> 
A26: 1922-11-30 | B26: =INDIRECT(CONCATENATE("'",B$1,"'!",B$4,(YEAR($A26)-1921)*12+MONTH($A26)+3+IF(ISNUMBER(FIND("PRV",B$6)),1,0)))*IF(AND(B$3>0,TRIM(B$9)="CFS"),Conv_Flags!$C26,1) -> 0 | C26: =INDIRECT(CONCATENATE("'",C$1,"'!",C$4,(YEAR($A26)-1921)*12+MONTH($A26)+3+IF(ISNUMBER(FIND("PRV",C$6)),1,0)))*IF(AND(C$3>0,TRIM(C$9)="CFS"),Conv_Flags!$C26,1) -> 6.676363636 | D26: =INDIRECT(CONCATENATE("'",D$1,"'!",D$4,(YEAR($A26)-1921)*12+MONTH($A26)+3+IF(ISNUMBER(FIND("PRV",D$6)),1,0)))*IF(AND(D$3>0,TRIM(D$9)="CFS"),Conv_Flags!$C26,1) -> 6.676363636 | E26: =INDIRECT(CONCATENATE("'",E$1,"'!",E$4,(YEAR($A26)-1921)*12+MONTH($A26)+3+IF(ISNUMBER(FIND("PRV",E$6)),1,0)))*IF(AND(E$3>0,TRIM(E$9)="CFS"),Conv_Flags!$C26,1) -> 6.676363636 | F26: =INDIRECT(CONCATENATE("'",F$1,"'!",F$4,(YEAR($A26)-1921)*12+MONTH($A26)+3+IF(ISNUMBER(FIND("PRV",F$6)),1,0)))*IF(AND(F$3>0,TRIM(F$9)="CFS"),Conv_Flags!$C26,1) ->  | G26: =INDIRECT(CONCATENATE("'",G$1,"'!",G$4,(YEAR($A26)-1921)*12+MONTH($A26)+3+IF(ISNUMBER(FIND("PRV",G$6)),1,0)))*IF(AND(G$3>0,TRIM(G$9)="CFS"),Conv_Flags!$C26,1) ->  | K26: 1936 | L26: =B181 -> 0 | M26: =B182 -> 0 | N26: =B183 -> 0 | O26: =B184 -> 0 | P26: =B185 -> 0 | Q26: =B186 -> 0 | R26: =B187 -> 0 | S26: =B188 -> 0 | T26: =B189 -> 0 | U26: =B190 -> 0 | V26: =B191 -> 0 | W26: =B192 -> 0 | Y26: 0 | Z26: 0 | AA26: 0 | AC26: 0 | AD26: 0 | AE26: 0 | AF26: 0 | AG26: 0 | AH26: 0 | AI26: 0 | AK26: 1936 | AL26: =C181 -> 0 | AM26: =C182 -> 0 | AN26: =C183 -> 0 | AO26: =C184 -> 78.21830182 | AP26: =C185 -> 148.5141066 | AQ26: =C186 -> 108.7071933 | AR26: =C187 -> 0 | AS26: =C188 -> 0 | AT26: =C189 -> 0 | AU26: =C190 -> 0.0002946032938 | AV26: =C191 -> 0 | AW26: =C192 -> 0 | AY26: 335.4398963 | AZ26: 173.1937135 | BA26: 335.4398963 | BC26: 335.4396017 | BD26: 0 | BE26: 78.21830182 | BF26: 226.7324084 | BG26: 108.7071933 | BH26: 0.0002946032938 | BI26: 0 | BK26: 1936 | BL26: =D181 -> 0 | BM26: =D182 -> 0 | BN26: =D183 -> 0 | BO26: =D184 -> 78.23729854 | BP26: =D185 -> 148.5141066 | BQ26: =D186 -> 108.6955574 | BR26: =D187 -> 0 | BS26: =D188 -> 0 | BT26: =D189 -> 0 | BU26: =D190 -> 0 | BV26: =D191 -> 0 | BW26: =D192 -> 0 | BY26: 335.4469626 | BZ26: 173.199764 | CA26: 335.4469626 | CC26: 335.4469626 | CD26: 6.167227807e-08 | CE26: 78.23729854 | CF26: 226.7514051 | CG26: 108.6955574 | CH26: 0 | CI26: 6.167227807e-08 | CK26: 1936 | CL26: =E181 -> 0 | CM26: =E182 -> 0 | CN26: =E183 -> 0 | CO26: =E184 -> 78.22175443 | CP26: =E185 -> 148.5141066 | CQ26: =E186 -> 109.5831856 | CR26: =E187 -> 0 | CS26: =E188 -> 0 | CT26: =E189 -> 0 | CU26: =E190 -> 0.0003029242109 | CV26: =E191 -> 0 | CW26: =E192 -> 0 | CY26: 336.3193495 | CZ26: 174.0735386 | DA26: 336.3193495 | DC26: 336.3190466 | DD26: 0 | DE26: 78.22175443 | DF26: 226.735861 | DG26: 109.5831856 | DH26: 0.0003029242109 | DI26: 0 | DK26: 1936 | DL26: =F181 ->  | DM26: =F182 ->  | DN26: =F183 ->  | DO26: =F184 ->  | DP26: =F185 ->  | DQ26: =F186 ->  | DR26: =F187 ->  | DS26: =F188 ->  | DT26: =F189 ->  | DU26: =F190 ->  | DV26: =F191 ->  | DW26: =F192 ->  | EK26: 1936 | EL26: =G181 ->  | EM26: =G182 ->  | EN26: =G183 ->  | EO26: =G184 ->  | EP26: =G185 ->  | EQ26: =G186 ->  | ER26: =G187 ->  | ES26: =G188 ->  | ET26: =G189 ->  | EU26: =G190 ->  | EV26: =G191 ->  | EW26: =G192 -> 
A27: 1922-12-31 | B27: =INDIRECT(CONCATENATE("'",B$1,"'!",B$4,(YEAR($A27)-1921)*12+MONTH($A27)+3+IF(ISNUMBER(FIND("PRV",B$6)),1,0)))*IF(AND(B$3>0,TRIM(B$9)="CFS"),Conv_Flags!$C27,1) -> 0 | C27: =INDIRECT(CONCATENATE("'",C$1,"'!",C$4,(YEAR($A27)-1921)*12+MONTH($A27)+3+IF(ISNUMBER(FIND("PRV",C$6)),1,0)))*IF(AND(C$3>0,TRIM(C$9)="CFS"),Conv_Flags!$C27,1) -> 0 | D27: =INDIRECT(CONCATENATE("'",D$1,"'!",D$4,(YEAR($A27)-1921)*12+MONTH($A27)+3+IF(ISNUMBER(FIND("PRV",D$6)),1,0)))*IF(AND(D$3>0,TRIM(D$9)="CFS"),Conv_Flags!$C27,1) -> 0 | E27: =INDIRECT(CONCATENATE("'",E$1,"'!",E$4,(YEAR($A27)-1921)*12+MONTH($A27)+3+IF(ISNUMBER(FIND("PRV",E$6)),1,0)))*IF(AND(E$3>0,TRIM(E$9)="CFS"),Conv_Flags!$C27,1) -> 0 | F27: =INDIRECT(CONCATENATE("'",F$1,"'!",F$4,(YEAR($A27)-1921)*12+MONTH($A27)+3+IF(ISNUMBER(FIND("PRV",F$6)),1,0)))*IF(AND(F$3>0,TRIM(F$9)="CFS"),Conv_Flags!$C27,1) ->  | G27: =INDIRECT(CONCATENATE("'",G$1,"'!",G$4,(YEAR($A27)-1921)*12+MONTH($A27)+3+IF(ISNUMBER(FIND("PRV",G$6)),1,0)))*IF(AND(G$3>0,TRIM(G$9)="CFS"),Conv_Flags!$C27,1) ->  | K27: 1937 | L27: =B193 -> 0 | M27: =B194 -> 0 | N27: =B195 -> 0 | O27: =B196 -> 0 | P27: =B197 -> 0 | Q27: =B198 -> 0 | R27: =B199 -> 0 | S27: =B200 -> 0 | T27: =B201 -> 0 | U27: =B202 -> 0 | V27: =B203 -> 0 | W27: =B204 -> 0 | Y27: 0 | Z27: 0 | AA27: 0 | AC27: 0 | AD27: 0 | AE27: 0 | AF27: 0 | AG27: 0 | AH27: 0 | AI27: 0 | AK27: 1937 | AL27: =C193 -> 0 | AM27: =C194 -> 0 | AN27: =C195 -> 0 | AO27: =C196 -> 0 | AP27: =C197 -> 64.48622556 | AQ27: =C198 -> 148.7986709 | AR27: =C199 -> 0 | AS27: =C200 -> 0 | AT27: =C201 -> 0 | AU27: =C202 -> 0.0003170949282 | AV27: =C203 -> 0 | AW27: =C204 -> 0 | AY27: 346.0046003 | AZ27: 507.19267 | BA27: 213.2852136 | BC27: 213.2848965 | BD27: 0 | BE27: 0 | BF27: 64.48622556 | BG27: 148.7986709 | BH27: 0.0003170949282 | BI27: 0 | BK27: 1937 | BL27: =D193 -> 6.167227807e-08 | BM27: =D194 -> 0 | BN27: =D195 -> 0 | BO27: =D196 -> 0 | BP27: =D197 -> 64.50420655 | BQ27: =D198 -> 148.8027282 | BR27: =D199 -> 0 | BS27: =D200 -> 0 | BT27: =D201 -> 0 | BU27: =D202 -> 0.0003922250797 | BV27: =D203 -> 0 | BW27: =D204 -> 0 | BY27: 345.9527311 | BZ27: 507.1470045 | CA27: 213.3073271 | CC27: 213.3069348 | CD27: 0 | CE27: 6.167227807e-08 | CF27: 64.50420655 | CG27: 148.8027282 | CH27: 0.0003922250797 | CI27: 0 | CK27: 1937 | CL27: =E193 -> 0 | CM27: =E194 -> 0 | CN27: =E195 -> 0 | CO27: =E196 -> 0 | CP27: =E197 -> 64.49005008 | CQ27: =E198 -> 148.7995088 | CR27: =E199 -> 0 | CS27: =E200 -> 0 | CT27: =E201 -> 0 | CU27: =E202 -> 0.0003338575224 | CV27: =E203 -> 0 | CW27: =E204 -> 0 | CY27: 346.0097181 | CZ27: 507.1937518 | DA27: 213.2898928 | DC27: 213.2895589 | DD27: 0 | DE27: 0 | DF27: 64.49005008 | DG27: 148.7995088 | DH27: 0.0003338575224 | DI27: 0 | DK27: 1937 | DL27: =F193 ->  | DM27: =F194 ->  | DN27: =F195 ->  | DO27: =F196 ->  | DP27: =F197 ->  | DQ27: =F198 ->  | DR27: =F199 ->  | DS27: =F200 ->  | DT27: =F201 ->  | DU27: =F202 ->  | DV27: =F203 ->  | DW27: =F204 ->  | EK27: 1937 | EL27: =G193 ->  | EM27: =G194 ->  | EN27: =G195 ->  | EO27: =G196 ->  | EP27: =G197 ->  | EQ27: =G198 ->  | ER27: =G199 ->  | ES27: =G200 ->  | ET27: =G201 ->  | EU27: =G202 ->  | EV27: =G203 ->  | EW27: =G204 -> 
A28: 1923-01-31 | B28: =INDIRECT(CONCATENATE("'",B$1,"'!",B$4,(YEAR($A28)-1921)*12+MONTH($A28)+3+IF(ISNUMBER(FIND("PRV",B$6)),1,0)))*IF(AND(B$3>0,TRIM(B$9)="CFS"),Conv_Flags!$C28,1) -> 0 | C28: =INDIRECT(CONCATENATE("'",C$1,"'!",C$4,(YEAR($A28)-1921)*12+MONTH($A28)+3+IF(ISNUMBER(FIND("PRV",C$6)),1,0)))*IF(AND(C$3>0,TRIM(C$9)="CFS"),Conv_Flags!$C28,1) -> 28.89448944 | D28: =INDIRECT(CONCATENATE("'",D$1,"'!",D$4,(YEAR($A28)-1921)*12+MONTH($A28)+3+IF(ISNUMBER(FIND("PRV",D$6)),1,0)))*IF(AND(D$3>0,TRIM(D$9)="CFS"),Conv_Flags!$C28,1) -> 28.90963818 | E28: =INDIRECT(CONCATENATE("'",E$1,"'!",E$4,(YEAR($A28)-1921)*12+MONTH($A28)+3+IF(ISNUMBER(FIND("PRV",E$6)),1,0)))*IF(AND(E$3>0,TRIM(E$9)="CFS"),Conv_Flags!$C28,1) -> 28.89448917 | F28: =INDIRECT(CONCATENATE("'",F$1,"'!",F$4,(YEAR($A28)-1921)*12+MONTH($A28)+3+IF(ISNUMBER(FIND("PRV",F$6)),1,0)))*IF(AND(F$3>0,TRIM(F$9)="CFS"),Conv_Flags!$C28,1) ->  | G28: =INDIRECT(CONCATENATE("'",G$1,"'!",G$4,(YEAR($A28)-1921)*12+MONTH($A28)+3+IF(ISNUMBER(FIND("PRV",G$6)),1,0)))*IF(AND(G$3>0,TRIM(G$9)="CFS"),Conv_Flags!$C28,1) ->  | K28: 1938 | L28: =B205 -> 0 | M28: =B206 -> 0 | N28: =B207 -> 0 | O28: =B208 -> 0 | P28: =B209 -> 0 | Q28: =B210 -> 0 | R28: =B211 -> 0 | S28: =B212 -> 0 | T28: =B213 -> 0 | U28: =B214 -> 0 | V28: =B215 -> 0 | W28: =B216 -> 0 | Y28: 0 | Z28: 0 | AA28: 0 | AC28: 0 | AD28: 0 | AE28: 0 | AF28: 0 | AG28: 0 | AH28: 0 | AI28: 0 | AK28: 1938 | AL28: =C205 -> 0 | AM28: =C206 -> 0 | AN28: =C207 -> 132.7193867 | AO28: =C208 -> 36.40355152 | AP28: =C209 -> 189.2707438 | AQ28: =C210 -> 213.9292562 | AR28: =C211 -> 218.0804457 | AS28: =C212 -> 138.3730034 | AT28: =C213 -> 33.57770272 | AU28: =C214 -> 8.063103684e-05 | AV28: =C215 -> 0 | AW28: =C216 -> 0 | AY28: 829.6347839 | AZ28: 603.9604886 | BA28: 962.3541706 | BC28: 572.3229382 | BD28: 0 | BE28: 169.1229382 | BF28: 358.393682 | BG28: 603.9604079 | BH28: 33.57778335 | BI28: 0 | BK28: 1938 | BL28: =D205 -> 0 | BM28: =D206 -> 0 | BN28: =D207 -> 132.6454041 | BO28: =D208 -> 36.42773617 | BP28: =D209 -> 189.2707438 | BQ28: =D210 -> 213.9292562 | BR28: =D211 -> 218.0804457 | BS28: =D212 -> 138.3730034 | BT28: =D213 -> 33.64573465 | BU28: =D214 -> 8.520939276e-05 | BV28: =D215 -> 0 | BW28: =D216 -> 0 | BY28: 829.7270051 | BZ28: 604.0285251 | CA28: 962.3724092 | CC28: 572.2731403 | CD28: 0 | CE28: 169.0731403 | CF28: 358.3438841 | CG28: 604.0284399 | CH28: 33.64581986 | CI28: 0 | CK28: 1938 | CL28: =E205 -> 0 | CM28: =E206 -> 0 | CN28: =E207 -> 132.7198254 | CO28: =E208 -> 36.40333998 | CP28: =E209 -> 189.2707438 | CQ28: =E210 -> 213.9292562 | CR28: =E211 -> 218.0804457 | CS28: =E212 -> 138.3730034 | CT28: =E213 -> 33.57808436 | CU28: =E214 -> 8.229936082e-05 | CV28: =E215 -> 0 | CW28: =E216 -> 0 | CY28: 829.6349557 | CZ28: 603.9608719 | DA28: 962.354781 | DC28: 572.3231653 | DD28: 0 | DE28: 169.1231653 | DF28: 358.3939091 | DG28: 603.9607896 | DH28: 33.57816666 | DI28: 0 | DK28: 1938 | DL28: =F205 ->  | DM28: =F206 ->  | DN28: =F207 ->  | DO28: =F208 ->  | DP28: =F209 ->  | DQ28: =F210 ->  | DR28: =F211 ->  | DS28: =F212 ->  | DT28: =F213 ->  | DU28: =F214 ->  | DV28: =F215 ->  | DW28: =F216 ->  | EK28: 1938 | EL28: =G205 ->  | EM28: =G206 ->  | EN28: =G207 ->  | EO28: =G208 ->  | EP28: =G209 ->  | EQ28: =G210 ->  | ER28: =G211 ->  | ES28: =G212 ->  | ET28: =G213 ->  | EU28: =G214 ->  | EV28: =G215 ->  | EW28: =G216 -> 
A29: 1923-02-28 | B29: =INDIRECT(CONCATENATE("'",B$1,"'!",B$4,(YEAR($A29)-1921)*12+MONTH($A29)+3+IF(ISNUMBER(FIND("PRV",B$6)),1,0)))*IF(AND(B$3>0,TRIM(B$9)="CFS"),Conv_Flags!$C29,1) -> 0 | C29: =INDIRECT(CONCATENATE("'",C$1,"'!",C$4,(YEAR($A29)-1921)*12+MONTH($A29)+3+IF(ISNUMBER(FIND("PRV",C$6)),1,0)))*IF(AND(C$3>0,TRIM(C$9)="CFS"),Conv_Flags!$C29,1) -> 0 | D29: =INDIRECT(CONCATENATE("'",D$1,"'!",D$4,(YEAR($A29)-1921)*12+MONTH($A29)+3+IF(ISNUMBER(FIND("PRV",D$6)),1,0)))*IF(AND(D$3>0,TRIM(D$9)="CFS"),Conv_Flags!$C29,1) -> 0 | E29: =INDIRECT(CONCATENATE("'",E$1,"'!",E$4,(YEAR($A29)-1921)*12+MONTH($A29)+3+IF(ISNUMBER(FIND("PRV",E$6)),1,0)))*IF(AND(E$3>0,TRIM(E$9)="CFS"),Conv_Flags!$C29,1) -> 0 | F29: =INDIRECT(CONCATENATE("'",F$1,"'!",F$4,(YEAR($A29)-1921)*12+MONTH($A29)+3+IF(ISNUMBER(FIND("PRV",F$6)),1,0)))*IF(AND(F$3>0,TRIM(F$9)="CFS"),Conv_Flags!$C29,1) ->  | G29: =INDIRECT(CONCATENATE("'",G$1,"'!",G$4,(YEAR($A29)-1921)*12+MONTH($A29)+3+IF(ISNUMBER(FIND("PRV",G$6)),1,0)))*IF(AND(G$3>0,TRIM(G$9)="CFS"),Conv_Flags!$C29,1) ->  | K29: 1939 | L29: =B217 -> 0 | M29: =B218 -> 0 | N29: =B219 -> 0 | O29: =B220 -> 0 | P29: =B221 -> 0 | Q29: =B222 -> 0 | R29: =B223 -> 0 | S29: =B224 -> 0 | T29: =B225 -> 0 | U29: =B226 -> 0 | V29: =B227 -> 0 | W29: =B228 -> 0 | Y29: 0 | Z29: 0 | AA29: 0 | AC29: 0 | AD29: 0 | AE29: 0 | AF29: 0 | AG29: 0 | AH29: 0 | AI29: 0 | AK29: 1939 | AL29: =C217 -> 0 | AM29: =C218 -> 0 | AN29: =C219 -> 0 | AO29: =C220 -> 0 | AP29: =C221 -> 0 | AQ29: =C222 -> 0 | AR29: =C223 -> 0 | AS29: =C224 -> 0 | AT29: =C225 -> 0 | AU29: =C226 -> 0 | AV29: =C227 -> 0 | AW29: =C228 -> 0 | AY29: 0 | AZ29: 140.0949577 | BA29: 0 | BC29: 0 | BD29: 0 | BE29: 0 | BF29: 0 | BG29: 0 | BH29: 0 | BI29: 0 | BK29: 1939 | BL29: =D217 -> 0 | BM29: =D218 -> 0 | BN29: =D219 -> 0 | BO29: =D220 -> 0 | BP29: =D221 -> 0 | BQ29: =D222 -> 0 | BR29: =D223 -> 0 | BS29: =D224 -> 0 | BT29: =D225 -> 0 | BU29: =D226 -> 0 | BV29: =D227 -> 0 | BW29: =D228 -> 0 | BY29: 0 | BZ29: 138.3306643 | CA29: 0 | CC29: 0 | CD29: 0 | CE29: 0 | CF29: 0 | CG29: 0 | CH29: 0 | CI29: 0 | CK29: 1939 | CL29: =E217 -> 0 | CM29: =E218 -> 0 | CN29: =E219 -> 0 | CO29: =E220 -> 0 | CP29: =E221 -> 0 | CQ29: =E222 -> 0 | CR29: =E223 -> 0 | CS29: =E224 -> 0 | CT29: =E225 -> 0 | CU29: =E226 -> 0 | CV29: =E227 -> 0 | CW29: =E228 -> 0 | CY29: 0 | CZ29: 140.8589292 | DA29: 0 | DC29: 0 | DD29: 0 | DE29: 0 | DF29: 0 | DG29: 0 | DH29: 0 | DI29: 0 | DK29: 1939 | DL29: =F217 ->  | DM29: =F218 ->  | DN29: =F219 ->  | DO29: =F220 ->  | DP29: =F221 ->  | DQ29: =F222 ->  | DR29: =F223 ->  | DS29: =F224 ->  | DT29: =F225 ->  | DU29: =F226 ->  | DV29: =F227 ->  | DW29: =F228 ->  | EK29: 1939 | EL29: =G217 ->  | EM29: =G218 ->  | EN29: =G219 ->  | EO29: =G220 ->  | EP29: =G221 ->  | EQ29: =G222 ->  | ER29: =G223 ->  | ES29: =G224 ->  | ET29: =G225 ->  | EU29: =G226 ->  | EV29: =G227 ->  | EW29: =G228 -> 
A30: 1923-03-31 | B30: =INDIRECT(CONCATENATE("'",B$1,"'!",B$4,(YEAR($A30)-1921)*12+MONTH($A30)+3+IF(ISNUMBER(FIND("PRV",B$6)),1,0)))*IF(AND(B$3>0,TRIM(B$9)="CFS"),Conv_Flags!$C30,1) -> 0 | C30: =INDIRECT(CONCATENATE("'",C$1,"'!",C$4,(YEAR($A30)-1921)*12+MONTH($A30)+3+IF(ISNUMBER(FIND("PRV",C$6)),1,0)))*IF(AND(C$3>0,TRIM(C$9)="CFS"),Conv_Flags!$C30,1) -> 0 | D30: =INDIRECT(CONCATENATE("'",D$1,"'!",D$4,(YEAR($A30)-1921)*12+MONTH($A30)+3+IF(ISNUMBER(FIND("PRV",D$6)),1,0)))*IF(AND(D$3>0,TRIM(D$9)="CFS"),Conv_Flags!$C30,1) -> 0 | E30: =INDIRECT(CONCATENATE("'",E$1,"'!",E$4,(YEAR($A30)-1921)*12+MONTH($A30)+3+IF(ISNUMBER(FIND("PRV",E$6)),1,0)))*IF(AND(E$3>0,TRIM(E$9)="CFS"),Conv_Flags!$C30,1) -> 0 | F30: =INDIRECT(CONCATENATE("'",F$1,"'!",F$4,(YEAR($A30)-1921)*12+MONTH($A30)+3+IF(ISNUMBER(FIND("PRV",F$6)),1,0)))*IF(AND(F$3>0,TRIM(F$9)="CFS"),Conv_Flags!$C30,1) ->  | G30: =INDIRECT(CONCATENATE("'",G$1,"'!",G$4,(YEAR($A30)-1921)*12+MONTH($A30)+3+IF(ISNUMBER(FIND("PRV",G$6)),1,0)))*IF(AND(G$3>0,TRIM(G$9)="CFS"),Conv_Flags!$C30,1) ->  | K30: 1940 | L30: =B229 -> 0 | M30: =B230 -> 0 | N30: =B231 -> 0 | O30: =B232 -> 0 | P30: =B233 -> 0 | Q30: =B234 -> 0 | R30: =B235 -> 0 | S30: =B236 -> 0 | T30: =B237 -> 0 | U30: =B238 -> 0 | V30: =B239 -> 0 | W30: =B240 -> 0 | Y30: 0 | Z30: 0 | AA30: 0 | AC30: 0 | AD30: 0 | AE30: 0 | AF30: 0 | AG30: 0 | AH30: 0 | AI30: 0 | AK30: 1940 | AL30: =C229 -> 0 | AM30: =C230 -> 0 | AN30: =C231 -> 0 | AO30: =C232 -> 43.16714855 | AP30: =C233 -> 96.92780915 | AQ30: =C234 -> 213.9292562 | AR30: =C235 -> 212.0744 | AS30: =C236 -> 0 | AT30: =C237 -> 0.0001091863119 | AU30: =C238 -> 0 | AV30: =C239 -> 0 | AW30: =C240 -> 0 | AY30: 566.098723 | AZ30: 816.4737294 | BA30: 566.098723 | BC30: 354.0242139 | BD30: 0 | BE30: 43.16714855 | BF30: 140.0949577 | BG30: 426.0037653 | BH30: 0.0001091863119 | BI30: 0 | BK30: 1940 | BL30: =D229 -> 0 | BM30: =D230 -> 0 | BN30: =D231 -> 0 | BO30: =D232 -> 43.42238389 | BP30: =D233 -> 94.90828042 | BQ30: =D234 -> 213.9292562 | BR30: =D235 -> 212.0744 | BS30: =D236 -> 0 | BT30: =D237 -> 0 | BU30: =D238 -> 0.000226959995 | BV30: =D239 -> 0 | BW30: =D240 -> 0 | BY30: 564.3345474 | BZ30: 816.4425844 | CA30: 564.3345474 | CC30: 352.2599205 | CD30: 0 | CE30: 43.42238389 | CF30: 138.3306643 | CG30: 426.0036562 | CH30: 0.000226959995 | CI30: 0 | CK30: 1940 | CL30: =E229 -> 0 | CM30: =E230 -> 0 | CN30: =E231 -> 0 | CO30: =E232 -> 43.18611915 | CP30: =E233 -> 97.67281002 | CQ30: =E234 -> 213.9292562 | CR30: =E235 -> 212.0744 | CS30: =E236 -> 0 | CT30: =E237 -> 0.0001143766965 | CU30: =E238 -> 0 | CV30: =E239 -> 0 | CW30: =E240 -> 0 | CY30: 566.8626997 | CZ30: 816.4797477 | DA30: 566.8626997 | DC30: 354.7881854 | DD30: 0 | DE30: 43.18611915 | DF30: 140.8589292 | DG30: 426.0037705 | DH30: 0.0001143766965 | DI30: 0 | DK30: 1940 | DL30: =F229 ->  | DM30: =F230 ->  | DN30: =F231 ->  | DO30: =F232 ->  | DP30: =F233 ->  | DQ30: =F234 ->  | DR30: =F235 ->  | DS30: =F236 ->  | DT30: =F237 ->  | DU30: =F238 ->  | DV30: =F239 ->  | DW30: =F240 ->  | EK30: 1940 | EL30: =G229 ->  | EM30: =G230 ->  | EN30: =G231 ->  | EO30: =G232 ->  | EP30: =G233 ->  | EQ30: =G234 ->  | ER30: =G235 ->  | ES30: =G236 ->  | ET30: =G237 ->  | EU30: =G238 ->  | EV30: =G239 ->  | EW30: =G240 -> 
A31: 1923-04-30 | B31: =INDIRECT(CONCATENATE("'",B$1,"'!",B$4,(YEAR($A31)-1921)*12+MONTH($A31)+3+IF(ISNUMBER(FIND("PRV",B$6)),1,0)))*IF(AND(B$3>0,TRIM(B$9)="CFS"),Conv_Flags!$C31,1) -> 0 | C31: =INDIRECT(CONCATENATE("'",C$1,"'!",C$4,(YEAR($A31)-1921)*12+MONTH($A31)+3+IF(ISNUMBER(FIND("PRV",C$6)),1,0)))*IF(AND(C$3>0,TRIM(C$9)="CFS"),Conv_Flags!$C31,1) -> 0 | D31: =INDIRECT(CONCATENATE("'",D$1,"'!",D$4,(YEAR($A31)-1921)*12+MONTH($A31)+3+IF(ISNUMBER(FIND("PRV",D$6)),1,0)))*IF(AND(D$3>0,TRIM(D$9)="CFS"),Conv_Flags!$C31,1) -> 0 | E31: =INDIRECT(CONCATENATE("'",E$1,"'!",E$4,(YEAR($A31)-1921)*12+MONTH($A31)+3+IF(ISNUMBER(FIND("PRV",E$6)),1,0)))*IF(AND(E$3>0,TRIM(E$9)="CFS"),Conv_Flags!$C31,1) -> 0 | F31: =INDIRECT(CONCATENATE("'",F$1,"'!",F$4,(YEAR($A31)-1921)*12+MONTH($A31)+3+IF(ISNUMBER(FIND("PRV",F$6)),1,0)))*IF(AND(F$3>0,TRIM(F$9)="CFS"),Conv_Flags!$C31,1) ->  | G31: =INDIRECT(CONCATENATE("'",G$1,"'!",G$4,(YEAR($A31)-1921)*12+MONTH($A31)+3+IF(ISNUMBER(FIND("PRV",G$6)),1,0)))*IF(AND(G$3>0,TRIM(G$9)="CFS"),Conv_Flags!$C31,1) ->  | K31: 1941 | L31: =B241 -> 0 | M31: =B242 -> 0 | N31: =B243 -> 0 | O31: =B244 -> 0 | P31: =B245 -> 0 | Q31: =B246 -> 0 | R31: =B247 -> 0 | S31: =B248 -> 0 | T31: =B249 -> 0 | U31: =B250 -> 0 | V31: =B251 -> 0 | W31: =B252 -> 0 | Y31: 0 | Z31: 0 | AA31: 0 | AC31: 0 | AD31: 0 | AE31: 0 | AF31: 0 | AG31: 0 | AH31: 0 | AI31: 0 | AK31: 1941 | AL31: =C241 -> 0 | AM31: =C242 -> 0 | AN31: =C243 -> 0 | AO31: =C244 -> 201.1992202 | AP31: =C245 -> 189.2707438 | AQ31: =C246 -> 195.8522704 | AR31: =C247 -> 0.01851933761 | AS31: =C248 -> 6.160396957 | AT31: =C249 -> 8.275125673 | AU31: =C250 -> 6.099934413e-05 | AV31: =C251 -> 0 | AW31: =C252 -> 0 | AY31: 600.7765493 | AZ31: 313.6151307 | BA31: 600.7763373 | BC31: 586.3222344 | BD31: 0 | BE31: 201.1992202 | BF31: 390.469964 | BG31: 210.3063123 | BH31: 8.275186672 | BI31: 0.0002119568064 | BK31: 1941 | BL31: =D241 -> 0 | BM31: =D242 -> 0 | BN31: =D243 -> 0 | BO31: =D244 -> 201.1679575 | BP31: =D245 -> 189.2707438 | BQ31: =D246 -> 213.9292562 | BR31: =D247 -> 114.0687655 | BS31: =D248 -> 5.784409724 | BT31: =D249 -> 8.107910909 | BU31: =D250 -> 6.153893336e-05 | BV31: =D251 -> 0 | BW31: =D252 -> 0 | BY31: 732.3293191 | BZ31: 445.9526137 | CA31: 732.3291052 | CC31: 604.3679575 | CD31: 0 | CE31: 201.1679575 | CF31: 390.4387013 | CG31: 341.8903424 | CH31: 8.107972448 | CI31: 0.0002138704935 | CK31: 1941 | CL31: =E241 -> 0 | CM31: =E242 -> 0 | CN31: =E243 -> 0 | CO31: =E244 -> 201.2052334 | CP31: =E245 -> 189.2707438 | CQ31: =E246 -> 3.747078347 | CR31: =E247 -> 0.01734401878 | CS31: =E248 -> 5.769431 | CT31: =E249 -> 7.749949706 | CU31: =E250 -> 6.911339948e-05 | CV31: =E251 -> 0 | CW31: =E252 -> 0 | CY31: 407.767519 | CZ31: 119.4473395 | DA31: 407.7598494 | DC31: 394.2230555 | DD31: 0 | DE31: 201.2052334 | DF31: 390.4759772 | DG31: 17.28380307 | DH31: 7.75001882 | DI31: 0.007669645916 | DK31: 1941 | DL31: =F241 ->  | DM31: =F242 ->  | DN31: =F243 ->  | DO31: =F244 ->  | DP31: =F245 ->  | DQ31: =F246 ->  | DR31: =F247 ->  | DS31: =F248 ->  | DT31: =F249 ->  | DU31: =F250 ->  | DV31: =F251 ->  | DW31: =F252 ->  | EK31: 1941 | EL31: =G241 ->  | EM31: =G242 ->  | EN31: =G243 ->  | EO31: =G244 ->  | EP31: =G245 ->  | EQ31: =G246 ->  | ER31: =G247 ->  | ES31: =G248 ->  | ET31: =G249 ->  | EU31: =G250 ->  | EV31: =G251 ->  | EW31: =G252 -> 
A32: 1923-05-31 | B32: =INDIRECT(CONCATENATE("'",B$1,"'!",B$4,(YEAR($A32)-1921)*12+MONTH($A32)+3+IF(ISNUMBER(FIND("PRV",B$6)),1,0)))*IF(AND(B$3>0,TRIM(B$9)="CFS"),Conv_Flags!$C32,1) -> 0 | C32: =INDIRECT(CONCATENATE("'",C$1,"'!",C$4,(YEAR($A32)-1921)*12+MONTH($A32)+3+IF(ISNUMBER(FIND("PRV",C$6)),1,0)))*IF(AND(C$3>0,TRIM(C$9)="CFS"),Conv_Flags!$C32,1) -> 0 | D32: =INDIRECT(CONCATENATE("'",D$1,"'!",D$4,(YEAR($A32)-1921)*12+MONTH($A32)+3+IF(ISNUMBER(FIND("PRV",D$6)),1,0)))*IF(AND(D$3>0,TRIM(D$9)="CFS"),Conv_Flags!$C32,1) -> 0 | E32: =INDIRECT(CONCATENATE("'",E$1,"'!",E$4,(YEAR($A32)-1921)*12+MONTH($A32)+3+IF(ISNUMBER(FIND("PRV",E$6)),1,0)))*IF(AND(E$3>0,TRIM(E$9)="CFS"),Conv_Flags!$C32,1) -> 0 | F32: =INDIRECT(CONCATENATE("'",F$1,"'!",F$4,(YEAR($A32)-1921)*12+MONTH($A32)+3+IF(ISNUMBER(FIND("PRV",F$6)),1,0)))*IF(AND(F$3>0,TRIM(F$9)="CFS"),Conv_Flags!$C32,1) ->  | G32: =INDIRECT(CONCATENATE("'",G$1,"'!",G$4,(YEAR($A32)-1921)*12+MONTH($A32)+3+IF(ISNUMBER(FIND("PRV",G$6)),1,0)))*IF(AND(G$3>0,TRIM(G$9)="CFS"),Conv_Flags!$C32,1) ->  | K32: 1942 | L32: =B253 -> 0 | M32: =B254 -> 0 | N32: =B255 -> 0 | O32: =B256 -> 0 | P32: =B257 -> 0 | Q32: =B258 -> 0 | R32: =B259 -> 0 | S32: =B260 -> 0 | T32: =B261 -> 0 | U32: =B262 -> 0 | V32: =B263 -> 0 | W32: =B264 -> 0 | Y32: 0 | Z32: 0 | AA32: 0 | AC32: 0 | AD32: 0 | AE32: 0 | AF32: 0 | AG32: 0 | AH32: 0 | AI32: 0 | AK32: 1942 | AL32: =C253 -> 0 | AM32: =C254 -> 0.0002119568064 | AN32: =C255 -> 0 | AO32: =C256 -> 103.3085454 | AP32: =C257 -> 0 | AQ32: =C258 -> 0.8626642729 | AR32: =C259 -> 0 | AS32: =C260 -> 0 | AT32: =C261 -> 13.96816582 | AU32: =C262 -> 6.498523158e-05 | AV32: =C263 -> 0 | AW32: =C264 -> 0 | AY32: 164.4399427 | AZ32: 121.4209337 | BA32: 118.1396524 | BC32: 104.1714216 | BD32: 0 | BE32: 103.3087573 | BF32: 103.3085454 | BG32: 14.83083009 | BH32: 13.9682308 | BI32: 46.30050222 | BK32: 1942 | BL32: =D253 -> 0 | BM32: =D254 -> 0.0002138704935 | BN32: =D255 -> 0 | BO32: =D256 -> 104.0619959 | BP32: =D257 -> 0 | BQ32: =D258 -> 0.8099075483 | BR32: =D259 -> 6.413344181e-06 | BS32: =D260 -> 0 | BT32: =D261 -> 13.11322032 | BU32: =D262 -> 6.553624985e-05 | BV32: =D263 -> 0 | BW32: =D264 -> 0 | BY32: 164.3011841 | BZ32: 127.3905905 | CA32: 117.9854096 | CC32: 104.8721174 | CD32: 0 | CE32: 104.0622098 | CF32: 104.0619959 | CG32: 13.92313429 | CH32: 13.11328586 | CI32: 46.31598831 | CK32: 1942 | CL32: =E253 -> 0 | CM32: =E254 -> 0.007669645916 | CN32: =E255 -> 0 | CO32: =E256 -> 102.1557977 | CP32: =E257 -> 0 | CQ32: =E258 -> 0.807915794 | CR32: =E259 -> 0 | CS32: =E260 -> 0 | CT32: =E261 -> 13.0798748 | CU32: =E262 -> 7.365469037e-05 | CV32: =E263 -> 0 | CW32: =E264 -> 0 | CY32: 162.3474384 | CZ32: 119.2177649 | DA32: 116.0513316 | DC32: 102.9713831 | DD32: 0 | DE32: 102.1634673 | DF32: 102.1557977 | DG32: 13.88779059 | DH32: 13.07994845 | DI32: 46.30377643 | DK32: 1942 | DL32: =F253 ->  | DM32: =F254 ->  | DN32: =F255 ->  | DO32: =F256 ->  | DP32: =F257 ->  | DQ32: =F258 ->  | DR32: =F259 ->  | DS32: =F260 ->  | DT32: =F261 ->  | DU32: =F262 ->  | DV32: =F263 ->  | DW32: =F264 ->  | EK32: 1942 | EL32: =G253 ->  | EM32: =G254 ->  | EN32: =G255 ->  | EO32: =G256 ->  | EP32: =G257 ->  | EQ32: =G258 ->  | ER32: =G259 ->  | ES32: =G260 ->  | ET32: =G261 ->  | EU32: =G262 ->  | EV32: =G263 ->  | EW32: =G264 -> 
A33: 1923-06-30 | B33: =INDIRECT(CONCATENATE("'",B$1,"'!",B$4,(YEAR($A33)-1921)*12+MONTH($A33)+3+IF(ISNUMBER(FIND("PRV",B$6)),1,0)))*IF(AND(B$3>0,TRIM(B$9)="CFS"),Conv_Flags!$C33,1) -> 0 | C33: =INDIRECT(CONCATENATE("'",C$1,"'!",C$4,(YEAR($A33)-1921)*12+MONTH($A33)+3+IF(ISNUMBER(FIND("PRV",C$6)),1,0)))*IF(AND(C$3>0,TRIM(C$9)="CFS"),Conv_Flags!$C33,1) -> 0 | D33: =INDIRECT(CONCATENATE("'",D$1,"'!",D$4,(YEAR($A33)-1921)*12+MONTH($A33)+3+IF(ISNUMBER(FIND("PRV",D$6)),1,0)))*IF(AND(D$3>0,TRIM(D$9)="CFS"),Conv_Flags!$C33,1) -> 0 | E33: =INDIRECT(CONCATENATE("'",E$1,"'!",E$4,(YEAR($A33)-1921)*12+MONTH($A33)+3+IF(ISNUMBER(FIND("PRV",E$6)),1,0)))*IF(AND(E$3>0,TRIM(E$9)="CFS"),Conv_Flags!$C33,1) -> 0 | F33: =INDIRECT(CONCATENATE("'",F$1,"'!",F$4,(YEAR($A33)-1921)*12+MONTH($A33)+3+IF(ISNUMBER(FIND("PRV",F$6)),1,0)))*IF(AND(F$3>0,TRIM(F$9)="CFS"),Conv_Flags!$C33,1) ->  | G33: =INDIRECT(CONCATENATE("'",G$1,"'!",G$4,(YEAR($A33)-1921)*12+MONTH($A33)+3+IF(ISNUMBER(FIND("PRV",G$6)),1,0)))*IF(AND(G$3>0,TRIM(G$9)="CFS"),Conv_Flags!$C33,1) ->  | K33: 1943 | L33: =B265 -> 0 | M33: =B266 -> 0 | N33: =B267 -> 0 | O33: =B268 -> 0 | P33: =B269 -> 0 | Q33: =B270 -> 0 | R33: =B271 -> 0 | S33: =B272 -> 0 | T33: =B273 -> 0 | U33: =B274 -> 0 | V33: =B275 -> 0 | W33: =B276 -> 0 | Y33: 0 | Z33: 0 | AA33: 0 | AC33: 0 | AD33: 0 | AE33: 0 | AF33: 0 | AG33: 0 | AH33: 0 | AI33: 0 | AK33: 1943 | AL33: =C265 -> 0 | AM33: =C266 -> 46.30050222 | AN33: =C267 -> 0 | AO33: =C268 -> 60.2895364 | AP33: =C269 -> 0 | AQ33: =C270 -> 0 | AR33: =C271 -> 0 | AS33: =C272 -> 0 | AT33: =C273 -> 0 | AU33: =C274 -> 0.0001319750871 | AV33: =C275 -> 0 | AW33: =C276 -> 0 | AY33: 60.28966838 | AZ33: 32.80576611 | BA33: 106.5901706 | BC33: 106.5900386 | BD33: 0 | BE33: 106.5900386 | BF33: 60.2895364 | BG33: 0 | BH33: 0.0001319750871 | BI33: 0 | BK33: 1943 | BL33: =D265 -> 0 | BM33: =D266 -> 46.31598831 | BN33: =D267 -> 0 | BO33: =D268 -> 67.15140234 | BP33: =D269 -> 0 | BQ33: =D270 -> 0 | BR33: =D271 -> 0 | BS33: =D272 -> 0 | BT33: =D273 -> 0 | BU33: =D274 -> 0.000133103182 | BV33: =D275 -> 0 | BW33: =D276 -> 0 | BY33: 67.15153544 | BZ33: 32.80149312 | CA33: 113.4675237 | CC33: 113.4673906 | CD33: 0 | CE33: 113.4673906 | CF33: 67.15140234 | CG33: 0 | CH33: 0.000133103182 | CI33: 0 | CK33: 1943 | CL33: =E265 -> 0 | CM33: =E266 -> 46.30377643 | CN33: =E267 -> 0 | CO33: =E268 -> 59.02612421 | CP33: =E269 -> 0 | CQ33: =E270 -> 0 | CR33: =E271 -> 0 | CS33: =E272 -> 0 | CT33: =E273 -> 0 | CU33: =E274 -> 0.0001492796919 | CV33: =E275 -> 0 | CW33: =E276 -> 0 | CY33: 59.02627349 | CZ33: 32.80586199 | DA33: 105.3300499 | DC33: 105.3299006 | DD33: 0 | DE33: 105.3299006 | DF33: 59.02612421 | DG33: 0 | DH33: 0.0001492796919 | DI33: 0 | DK33: 1943 | DL33: =F265 ->  | DM33: =F266 ->  | DN33: =F267 ->  | DO33: =F268 ->  | DP33: =F269 ->  | DQ33: =F270 ->  | DR33: =F271 ->  | DS33: =F272 ->  | DT33: =F273 ->  | DU33: =F274 ->  | DV33: =F275 ->  | DW33: =F276 ->  | EK33: 1943 | EL33: =G265 ->  | EM33: =G266 ->  | EN33: =G267 ->  | EO33: =G268 ->  | EP33: =G269 ->  | EQ33: =G270 ->  | ER33: =G271 ->  | ES33: =G272 ->  | ET33: =G273 ->  | EU33: =G274 ->  | EV33: =G275 ->  | EW33: =G276 -> 
A34: 1923-07-31 | B34: =INDIRECT(CONCATENATE("'",B$1,"'!",B$4,(YEAR($A34)-1921)*12+MONTH($A34)+3+IF(ISNUMBER(FIND("PRV",B$6)),1,0)))*IF(AND(B$3>0,TRIM(B$9)="CFS"),Conv_Flags!$C34,1) -> 0 | C34: =INDIRECT(CONCATENATE("'",C$1,"'!",C$4,(YEAR($A34)-1921)*12+MONTH($A34)+3+IF(ISNUMBER(FIND("PRV",C$6)),1,0)))*IF(AND(C$3>0,TRIM(C$9)="CFS"),Conv_Flags!$C34,1) -> 0 | D34: =INDIRECT(CONCATENATE("'",D$1,"'!",D$4,(YEAR($A34)-1921)*12+MONTH($A34)+3+IF(ISNUMBER(FIND("PRV",D$6)),1,0)))*IF(AND(D$3>0,TRIM(D$9)="CFS"),Conv_Flags!$C34,1) -> 0 | E34: =INDIRECT(CONCATENATE("'",E$1,"'!",E$4,(YEAR($A34)-1921)*12+MONTH($A34)+3+IF(ISNUMBER(FIND("PRV",E$6)),1,0)))*IF(AND(E$3>0,TRIM(E$9)="CFS"),Conv_Flags!$C34,1) -> 0 | F34: =INDIRECT(CONCATENATE("'",F$1,"'!",F$4,(YEAR($A34)-1921)*12+MONTH($A34)+3+IF(ISNUMBER(FIND("PRV",F$6)),1,0)))*IF(AND(F$3>0,TRIM(F$9)="CFS"),Conv_Flags!$C34,1) ->  | G34: =INDIRECT(CONCATENATE("'",G$1,"'!",G$4,(YEAR($A34)-1921)*12+MONTH($A34)+3+IF(ISNUMBER(FIND("PRV",G$6)),1,0)))*IF(AND(G$3>0,TRIM(G$9)="CFS"),Conv_Flags!$C34,1) ->  | K34: 1944 | L34: =B277 -> 0 | M34: =B278 -> 0 | N34: =B279 -> 0 | O34: =B280 -> 0 | P34: =B281 -> 0 | Q34: =B282 -> 0 | R34: =B283 -> 0 | S34: =B284 -> 0 | T34: =B285 -> 0 | U34: =B286 -> 0 | V34: =B287 -> 0 | W34: =B288 -> 0 | Y34: 0 | Z34: 0 | AA34: 0 | AC34: 0 | AD34: 0 | AE34: 0 | AF34: 0 | AG34: 0 | AH34: 0 | AI34: 0 | AK34: 1944 | AL34: =C277 -> 0 | AM34: =C278 -> 0 | AN34: =C279 -> 0 | AO34: =C280 -> 0 | AP34: =C281 -> 32.80563413 | AQ34: =C282 -> 99.42374555 | AR34: =C283 -> 0 | AS34: =C284 -> 0 | AT34: =C285 -> 0 | AU34: =C286 -> 0 | AV34: =C287 -> 0 | AW34: =C288 -> 0 | AY34: 132.2293797 | AZ34: 199.1454637 | BA34: 132.2293797 | BC34: 132.2293797 | BD34: 0 | BE34: 0 | BF34: 32.80563413 | BG34: 99.42374555 | BH34: 0 | BI34: 0 | BK34: 1944 | BL34: =D277 -> 0 | BM34: =D278 -> 0 | BN34: =D279 -> 0 | BO34: =D280 -> 0 | BP34: =D281 -> 32.80136002 | BQ34: =D282 -> 99.41159947 | BR34: =D283 -> 0 | BS34: =D284 -> 0 | BT34: =D285 -> 0 | BU34: =D286 -> 0 | BV34: =D287 -> 0 | BW34: =D288 -> 0 | BY34: 132.2129595 | BZ34: 206.4838615 | CA34: 132.2129595 | CC34: 132.2129595 | CD34: 0 | CE34: 0 | CF34: 32.80136002 | CG34: 99.41159947 | CH34: 0 | CI34: 0 | CK34: 1944 | CL34: =E277 -> 0 | CM34: =E278 -> 0 | CN34: =E279 -> 0 | CO34: =E280 -> 0 | CP34: =E281 -> 32.80571271 | CQ34: =E282 -> 99.42362127 | CR34: =E283 -> 0 | CS34: =E284 -> 0 | CT34: =E285 -> 0 | CU34: =E286 -> 0 | CV34: =E287 -> 0 | CW34: =E288 -> 0 | CY34: 132.229334 | CZ34: 199.1492037 | DA34: 132.229334 | DC34: 132.229334 | DD34: 0 | DE34: 0 | DF34: 32.80571271 | DG34: 99.42362127 | DH34: 0 | DI34: 0 | DK34: 1944 | DL34: =F277 ->  | DM34: =F278 ->  | DN34: =F279 ->  | DO34: =F280 ->  | DP34: =F281 ->  | DQ34: =F282 ->  | DR34: =F283 ->  | DS34: =F284 ->  | DT34: =F285 ->  | DU34: =F286 ->  | DV34: =F287 ->  | DW34: =F288 ->  | EK34: 1944 | EL34: =G277 ->  | EM34: =G278 ->  | EN34: =G279 ->  | EO34: =G280 ->  | EP34: =G281 ->  | EQ34: =G282 ->  | ER34: =G283 ->  | ES34: =G284 ->  | ET34: =G285 ->  | EU34: =G286 ->  | EV34: =G287 ->  | EW34: =G288 -> 
A35: 1923-08-31 | B35: =INDIRECT(CONCATENATE("'",B$1,"'!",B$4,(YEAR($A35)-1921)*12+MONTH($A35)+3+IF(ISNUMBER(FIND("PRV",B$6)),1,0)))*IF(AND(B$3>0,TRIM(B$9)="CFS"),Conv_Flags!$C35,1) -> 0 | C35: =INDIRECT(CONCATENATE("'",C$1,"'!",C$4,(YEAR($A35)-1921)*12+MONTH($A35)+3+IF(ISNUMBER(FIND("PRV",C$6)),1,0)))*IF(AND(C$3>0,TRIM(C$9)="CFS"),Conv_Flags!$C35,1) -> 0 | D35: =INDIRECT(CONCATENATE("'",D$1,"'!",D$4,(YEAR($A35)-1921)*12+MONTH($A35)+3+IF(ISNUMBER(FIND("PRV",D$6)),1,0)))*IF(AND(D$3>0,TRIM(D$9)="CFS"),Conv_Flags!$C35,1) -> 0 | E35: =INDIRECT(CONCATENATE("'",E$1,"'!",E$4,(YEAR($A35)-1921)*12+MONTH($A35)+3+IF(ISNUMBER(FIND("PRV",E$6)),1,0)))*IF(AND(E$3>0,TRIM(E$9)="CFS"),Conv_Flags!$C35,1) -> 0 | F35: =INDIRECT(CONCATENATE("'",F$1,"'!",F$4,(YEAR($A35)-1921)*12+MONTH($A35)+3+IF(ISNUMBER(FIND("PRV",F$6)),1,0)))*IF(AND(F$3>0,TRIM(F$9)="CFS"),Conv_Flags!$C35,1) ->  | G35: =INDIRECT(CONCATENATE("'",G$1,"'!",G$4,(YEAR($A35)-1921)*12+MONTH($A35)+3+IF(ISNUMBER(FIND("PRV",G$6)),1,0)))*IF(AND(G$3>0,TRIM(G$9)="CFS"),Conv_Flags!$C35,1) ->  | K35: 1945 | L35: =B289 -> 0 | M35: =B290 -> 0 | N35: =B291 -> 0 | O35: =B292 -> 0 | P35: =B293 -> 0 | Q35: =B294 -> 0 | R35: =B295 -> 0 | S35: =B296 -> 0 | T35: =B297 -> 0 | U35: =B298 -> 0 | V35: =B299 -> 0 | W35: =B300 -> 0 | Y35: 0 | Z35: 0 | AA35: 0 | AC35: 0 | AD35: 0 | AE35: 0 | AF35: 0 | AG35: 0 | AH35: 0 | AI35: 0 | AK35: 1945 | AL35: =C289 -> 0 | AM35: =C290 -> 0 | AN35: =C291 -> 0 | AO35: =C292 -> 0 | AP35: =C293 -> 99.72171812 | AQ35: =C294 -> 102.9038185 | AR35: =C295 -> 0 | AS35: =C296 -> 0 | AT35: =C297 -> 0 | AU35: =C298 -> 0 | AV35: =C299 -> 0 | AW35: =C300 -> 0 | AY35: 202.6255366 | AZ35: 230.6139853 | BA35: 202.6255366 | BC35: 202.6255366 | BD35: 0 | BE35: 0 | BF35: 99.72171812 | BG35: 102.9038185 | BH35: 0 | BI35: 0 | BK35: 1945 | BL35: =D289 -> 0 | BM35: =D290 -> 0 | BN35: =D291 -> 0 | BO35: =D292 -> 0 | BP35: =D293 -> 107.072262 | BQ35: =D294 -> 102.4107038 | BR35: =D295 -> 0 | BS35: =D296 -> 0 | BT35: =D297 -> 0 | BU35: =D298 -> 0.0001717145839 | BV35: =D299 -> 0 | BW35: =D300 -> 0 | BY35: 209.4831376 | BZ35: 230.1562149 | CA35: 209.4831376 | CC35: 209.4829658 | CD35: 0 | CE35: 0 | CF35: 107.072262 | CG35: 102.4107038 | CH35: 0.0001717145839 | CI35: 0 | CK35: 1945 | CL35: =E289 -> 0 | CM35: =E290 -> 0 | CN35: =E291 -> 0 | CO35: =E292 -> 0 | CP35: =E293 -> 99.72558241 | CQ35: =E294 -> 102.9044847 | CR35: =E295 -> 0 | CS35: =E296 -> 0 | CT35: =E297 -> 0 | CU35: =E298 -> 0 | CV35: =E299 -> 0 | CW35: =E300 -> 0 | CY35: 202.6300671 | CZ35: 230.6157888 | DA35: 202.6300671 | DC35: 202.6300671 | DD35: 0 | DE35: 0 | DF35: 99.72558241 | DG35: 102.9044847 | DH35: 0 | DI35: 0 | DK35: 1945 | DL35: =F289 ->  | DM35: =F290 ->  | DN35: =F291 ->  | DO35: =F292 ->  | DP35: =F293 ->  | DQ35: =F294 ->  | DR35: =F295 ->  | DS35: =F296 ->  | DT35: =F297 ->  | DU35: =F298 ->  | DV35: =F299 ->  | DW35: =F300 ->  | EK35: 1945 | EL35: =G289 ->  | EM35: =G290 ->  | EN35: =G291 ->  | EO35: =G292 ->  | EP35: =G293 ->  | EQ35: =G294 ->  | ER35: =G295 ->  | ES35: =G296 ->  | ET35: =G297 ->  | EU35: =G298 ->  | EV35: =G299 ->  | EW35: =G300 -> 
A36: 1923-09-30 | B36: =INDIRECT(CONCATENATE("'",B$1,"'!",B$4,(YEAR($A36)-1921)*12+MONTH($A36)+3+IF(ISNUMBER(FIND("PRV",B$6)),1,0)))*IF(AND(B$3>0,TRIM(B$9)="CFS"),Conv_Flags!$C36,1) -> 0 | C36: =INDIRECT(CONCATENATE("'",C$1,"'!",C$4,(YEAR($A36)-1921)*12+MONTH($A36)+3+IF(ISNUMBER(FIND("PRV",C$6)),1,0)))*IF(AND(C$3>0,TRIM(C$9)="CFS"),Conv_Flags!$C36,1) -> 0 | D36: =INDIRECT(CONCATENATE("'",D$1,"'!",D$4,(YEAR($A36)-1921)*12+MONTH($A36)+3+IF(ISNUMBER(FIND("PRV",D$6)),1,0)))*IF(AND(D$3>0,TRIM(D$9)="CFS"),Conv_Flags!$C36,1) -> 0 | E36: =INDIRECT(CONCATENATE("'",E$1,"'!",E$4,(YEAR($A36)-1921)*12+MONTH($A36)+3+IF(ISNUMBER(FIND("PRV",E$6)),1,0)))*IF(AND(E$3>0,TRIM(E$9)="CFS"),Conv_Flags!$C36,1) -> 0 | F36: =INDIRECT(CONCATENATE("'",F$1,"'!",F$4,(YEAR($A36)-1921)*12+MONTH($A36)+3+IF(ISNUMBER(FIND("PRV",F$6)),1,0)))*IF(AND(F$3>0,TRIM(F$9)="CFS"),Conv_Flags!$C36,1) ->  | G36: =INDIRECT(CONCATENATE("'",G$1,"'!",G$4,(YEAR($A36)-1921)*12+MONTH($A36)+3+IF(ISNUMBER(FIND("PRV",G$6)),1,0)))*IF(AND(G$3>0,TRIM(G$9)="CFS"),Conv_Flags!$C36,1) ->  | K36: 1946 | L36: =B301 -> 0 | M36: =B302 -> 0 | N36: =B303 -> 0 | O36: =B304 -> 0 | P36: =B305 -> 0 | Q36: =B306 -> 0 | R36: =B307 -> 0 | S36: =B308 -> 0 | T36: =B309 -> 0 | U36: =B310 -> 0 | V36: =B311 -> 0 | W36: =B312 -> 0 | Y36: 0 | Z36: 0 | AA36: 0 | AC36: 0 | AD36: 0 | AE36: 0 | AF36: 0 | AG36: 0 | AH36: 0 | AI36: 0 | AK36: 1946 | AL36: =C301 -> 0 | AM36: =C302 -> 0 | AN36: =C303 -> 0 | AO36: =C304 -> 127.7101668 | AP36: =C305 -> 0 | AQ36: =C306 -> 0 | AR36: =C307 -> 0 | AS36: =C308 -> 0 | AT36: =C309 -> 0.000114189866 | AU36: =C310 -> 0 | AV36: =C311 -> 0 | AW36: =C312 -> 0 | AY36: 127.710281 | AZ36: 15.92519739 | BA36: 127.710281 | BC36: 127.7101668 | BD36: 0 | BE36: 127.7101668 | BF36: 127.7101668 | BG36: 0.000114189866 | BH36: 0.000114189866 | BI36: 0 | BK36: 1946 | BL36: =D301 -> 0 | BM36: =D302 -> 0 | BN36: =D303 -> 0 | BO36: =D304 -> 127.7453394 | BP36: =D305 -> 0 | BQ36: =D306 -> 0 | BR36: =D307 -> 0 | BS36: =D308 -> 0 | BT36: =D309 -> 0 | BU36: =D310 -> 0.0002056016009 | BV36: =D311 -> 0 | BW36: =D312 -> 0 | BY36: 127.745545 | BZ36: 15.92894593 | CA36: 127.745545 | CC36: 127.7453394 | CD36: 0 | CE36: 127.7453394 | CF36: 127.7453394 | CG36: 0 | CH36: 0.0002056016009 | CI36: 0 | CK36: 1946 | CL36: =E301 -> 0 | CM36: =E302 -> 0 | CN36: =E303 -> 0 | CO36: =E304 -> 127.7113041 | CP36: =E305 -> 0 | CQ36: =E306 -> 0 | CR36: =E307 -> 0 | CS36: =E308 -> 0 | CT36: =E309 -> 0.0001372278141 | CU36: =E310 -> 0 | CV36: =E311 -> 0 | CW36: =E312 -> 0 | CY36: 127.7114413 | CZ36: 15.92741191 | DA36: 127.7114413 | DC36: 127.7113041 | DD36: 0 | DE36: 127.7113041 | DF36: 127.7113041 | DG36: 0.0001372278141 | DH36: 0.0001372278141 | DI36: 0 | DK36: 1946 | DL36: =F301 ->  | DM36: =F302 ->  | DN36: =F303 ->  | DO36: =F304 ->  | DP36: =F305 ->  | DQ36: =F306 ->  | DR36: =F307 ->  | DS36: =F308 ->  | DT36: =F309 ->  | DU36: =F310 ->  | DV36: =F311 ->  | DW36: =F312 ->  | EK36: 1946 | EL36: =G301 ->  | EM36: =G302 ->  | EN36: =G303 ->  | EO36: =G304 ->  | EP36: =G305 ->  | EQ36: =G306 ->  | ER36: =G307 ->  | ES36: =G308 ->  | ET36: =G309 ->  | EU36: =G310 ->  | EV36: =G311 ->  | EW36: =G312 -> 
A37: 1923-10-31 | B37: =INDIRECT(CONCATENATE("'",B$1,"'!",B$4,(YEAR($A37)-1921)*12+MONTH($A37)+3+IF(ISNUMBER(FIND("PRV",B$6)),1,0)))*IF(AND(B$3>0,TRIM(B$9)="CFS"),Conv_Flags!$C37,1) -> 0 | C37: =INDIRECT(CONCATENATE("'",C$1,"'!",C$4,(YEAR($A37)-1921)*12+MONTH($A37)+3+IF(ISNUMBER(FIND("PRV",C$6)),1,0)))*IF(AND(C$3>0,TRIM(C$9)="CFS"),Conv_Flags!$C37,1) -> 0 | D37: =INDIRECT(CONCATENATE("'",D$1,"'!",D$4,(YEAR($A37)-1921)*12+MONTH($A37)+3+IF(ISNUMBER(FIND("PRV",D$6)),1,0)))*IF(AND(D$3>0,TRIM(D$9)="CFS"),Conv_Flags!$C37,1) -> 0 | E37: =INDIRECT(CONCATENATE("'",E$1,"'!",E$4,(YEAR($A37)-1921)*12+MONTH($A37)+3+IF(ISNUMBER(FIND("PRV",E$6)),1,0)))*IF(AND(E$3>0,TRIM(E$9)="CFS"),Conv_Flags!$C37,1) -> 0 | F37: =INDIRECT(CONCATENATE("'",F$1,"'!",F$4,(YEAR($A37)-1921)*12+MONTH($A37)+3+IF(ISNUMBER(FIND("PRV",F$6)),1,0)))*IF(AND(F$3>0,TRIM(F$9)="CFS"),Conv_Flags!$C37,1) ->  | G37: =INDIRECT(CONCATENATE("'",G$1,"'!",G$4,(YEAR($A37)-1921)*12+MONTH($A37)+3+IF(ISNUMBER(FIND("PRV",G$6)),1,0)))*IF(AND(G$3>0,TRIM(G$9)="CFS"),Conv_Flags!$C37,1) ->  | K37: 1947 | L37: =B313 -> 0 | M37: =B314 -> 0 | N37: =B315 -> 0 | O37: =B316 -> 0 | P37: =B317 -> 0 | Q37: =B318 -> 0 | R37: =B319 -> 0 | S37: =B320 -> 0 | T37: =B321 -> 0 | U37: =B322 -> 0 | V37: =B323 -> 0 | W37: =B324 -> 0 | Y37: 0 | Z37: 0 | AA37: 0 | AC37: 0 | AD37: 0 | AE37: 0 | AF37: 0 | AG37: 0 | AH37: 0 | AI37: 0 | AK37: 1947 | AL37: =C313 -> 0 | AM37: =C314 -> 0 | AN37: =C315 -> 0 | AO37: =C316 -> 0 | AP37: =C317 -> 15.9250832 | AQ37: =C318 -> 76.76783221 | AR37: =C319 -> 0 | AS37: =C320 -> 0 | AT37: =C321 -> 0 | AU37: =C322 -> 0 | AV37: =C323 -> 0 | AW37: =C324 -> 0 | AY37: 92.69291541 | AZ37: 76.76783221 | BA37: 92.69291541 | BC37: 92.69291541 | BD37: 0 | BE37: 0 | BF37: 15.9250832 | BG37: 76.76783221 | BH37: 0 | BI37: 0 | BK37: 1947 | BL37: =D313 -> 0 | BM37: =D314 -> 0 | BN37: =D315 -> 0 | BO37: =D316 -> 0 | BP37: =D317 -> 15.92874033 | BQ37: =D318 -> 73.09349482 | BR37: =D319 -> 0 | BS37: =D320 -> 0 | BT37: =D321 -> 0 | BU37: =D322 -> 0 | BV37: =D323 -> 0 | BW37: =D324 -> 0 | BY37: 89.02223514 | BZ37: 73.09349482 | CA37: 89.02223514 | CC37: 89.02223514 | CD37: 0 | CE37: 0 | CF37: 15.92874033 | CG37: 73.09349482 | CH37: 0 | CI37: 0 | CK37: 1947 | CL37: =E313 -> 0 | CM37: =E314 -> 0 | CN37: =E315 -> 0 | CO37: =E316 -> 0 | CP37: =E317 -> 15.92727468 | CQ37: =E318 -> 76.82204503 | CR37: =E319 -> 0 | CS37: =E320 -> 0 | CT37: =E321 -> 0 | CU37: =E322 -> 0 | CV37: =E323 -> 0 | CW37: =E324 -> 0 | CY37: 92.7493197 | CZ37: 76.82204503 | DA37: 92.7493197 | DC37: 92.7493197 | DD37: 0 | DE37: 0 | DF37: 15.92727468 | DG37: 76.82204503 | DH37: 0 | DI37: 0 | DK37: 1947 | DL37: =F313 ->  | DM37: =F314 ->  | DN37: =F315 ->  | DO37: =F316 ->  | DP37: =F317 ->  | DQ37: =F318 ->  | DR37: =F319 ->  | DS37: =F320 ->  | DT37: =F321 ->  | DU37: =F322 ->  | DV37: =F323 ->  | DW37: =F324 ->  | EK37: 1947 | EL37: =G313 ->  | EM37: =G314 ->  | EN37: =G315 ->  | EO37: =G316 ->  | EP37: =G317 ->  | EQ37: =G318 ->  | ER37: =G319 ->  | ES37: =G320 ->  | ET37: =G321 ->  | EU37: =G322 ->  | EV37: =G323 ->  | EW37: =G324 -> 
A38: 1923-11-30 | B38: =INDIRECT(CONCATENATE("'",B$1,"'!",B$4,(YEAR($A38)-1921)*12+MONTH($A38)+3+IF(ISNUMBER(FIND("PRV",B$6)),1,0)))*IF(AND(B$3>0,TRIM(B$9)="CFS"),Conv_Flags!$C38,1) -> 0 | C38: =INDIRECT(CONCATENATE("'",C$1,"'!",C$4,(YEAR($A38)-1921)*12+MONTH($A38)+3+IF(ISNUMBER(FIND("PRV",C$6)),1,0)))*IF(AND(C$3>0,TRIM(C$9)="CFS"),Conv_Flags!$C38,1) -> 0 | D38: =INDIRECT(CONCATENATE("'",D$1,"'!",D$4,(YEAR($A38)-1921)*12+MONTH($A38)+3+IF(ISNUMBER(FIND("PRV",D$6)),1,0)))*IF(AND(D$3>0,TRIM(D$9)="CFS"),Conv_Flags!$C38,1) -> 0 | E38: =INDIRECT(CONCATENATE("'",E$1,"'!",E$4,(YEAR($A38)-1921)*12+MONTH($A38)+3+IF(ISNUMBER(FIND("PRV",E$6)),1,0)))*IF(AND(E$3>0,TRIM(E$9)="CFS"),Conv_Flags!$C38,1) -> 0 | F38: =INDIRECT(CONCATENATE("'",F$1,"'!",F$4,(YEAR($A38)-1921)*12+MONTH($A38)+3+IF(ISNUMBER(FIND("PRV",F$6)),1,0)))*IF(AND(F$3>0,TRIM(F$9)="CFS"),Conv_Flags!$C38,1) ->  | G38: =INDIRECT(CONCATENATE("'",G$1,"'!",G$4,(YEAR($A38)-1921)*12+MONTH($A38)+3+IF(ISNUMBER(FIND("PRV",G$6)),1,0)))*IF(AND(G$3>0,TRIM(G$9)="CFS"),Conv_Flags!$C38,1) ->  | K38: 1948 | L38: =B325 -> 0 | M38: =B326 -> 0 | N38: =B327 -> 0 | O38: =B328 -> 0 | P38: =B329 -> 0 | Q38: =B330 -> 0 | R38: =B331 -> 0 | S38: =B332 -> 0 | T38: =B333 -> 0 | U38: =B334 -> 0 | V38: =B335 -> 0 | W38: =B336 -> 0 | Y38: 0 | Z38: 0 | AA38: 0 | AC38: 0 | AD38: 0 | AE38: 0 | AF38: 0 | AG38: 0 | AH38: 0 | AI38: 0 | AK38: 1948 | AL38: =C325 -> 0 | AM38: =C326 -> 0 | AN38: =C327 -> 0 | AO38: =C328 -> 0 | AP38: =C329 -> 0 | AQ38: =C330 -> 84.8983287 | AR38: =C331 -> 0 | AS38: =C332 -> 0 | AT38: =C333 -> 106.3524268 | AU38: =C334 -> 0.0001142988553 | AV38: =C335 -> 0 | AW38: =C336 -> 0 | AY38: 191.2508698 | AZ38: 191.2508698 | BA38: 191.2508698 | BC38: 84.8983287 | BD38: 0 | BE38: 0 | BF38: 0 | BG38: 191.2507555 | BH38: 106.3525411 | BI38: 0 | BK38: 1948 | BL38: =D325 -> 0 | BM38: =D326 -> 0 | BN38: =D327 -> 0 | BO38: =D328 -> 0 | BP38: =D329 -> 0 | BQ38: =D330 -> 84.90004126 | BR38: =D331 -> 0 | BS38: =D332 -> 0 | BT38: =D333 -> 106.4280375 | BU38: =D334 -> 0 | BV38: =D335 -> 0 | BW38: =D336 -> 0 | BY38: 191.3280787 | BZ38: 191.3280787 | CA38: 191.3280787 | CC38: 84.90004126 | CD38: 0 | CE38: 0 | CF38: 0 | CG38: 191.3280787 | CH38: 106.4280375 | CI38: 0 | CK38: 1948 | CL38: =E325 -> 0 | CM38: =E326 -> 0 | CN38: =E327 -> 0 | CO38: =E328 -> 0 | CP38: =E329 -> 0 | CQ38: =E330 -> 84.90306313 | CR38: =E331 -> 0 | CS38: =E332 -> 0 | CT38: =E333 -> 106.3554735 | CU38: =E334 -> 0.0001803666748 | CV38: =E335 -> 0 | CW38: =E336 -> 0 | CY38: 191.258717 | CZ38: 191.258717 | DA38: 191.258717 | DC38: 84.90306313 | DD38: 0 | DE38: 0 | DF38: 0 | DG38: 191.2585367 | DH38: 106.3556539 | DI38: 0 | DK38: 1948 | DL38: =F325 ->  | DM38: =F326 ->  | DN38: =F327 ->  | DO38: =F328 ->  | DP38: =F329 ->  | DQ38: =F330 ->  | DR38: =F331 ->  | DS38: =F332 ->  | DT38: =F333 ->  | DU38: =F334 ->  | DV38: =F335 ->  | DW38: =F336 ->  | EK38: 1948 | EL38: =G325 ->  | EM38: =G326 ->  | EN38: =G327 ->  | EO38: =G328 ->  | EP38: =G329 ->  | EQ38: =G330 ->  | ER38: =G331 ->  | ES38: =G332 ->  | ET38: =G333 ->  | EU38: =G334 ->  | EV38: =G335 ->  | EW38: =G336 -> 
A39: 1923-12-31 | B39: =INDIRECT(CONCATENATE("'",B$1,"'!",B$4,(YEAR($A39)-1921)*12+MONTH($A39)+3+IF(ISNUMBER(FIND("PRV",B$6)),1,0)))*IF(AND(B$3>0,TRIM(B$9)="CFS"),Conv_Flags!$C39,1) -> 0 | C39: =INDIRECT(CONCATENATE("'",C$1,"'!",C$4,(YEAR($A39)-1921)*12+MONTH($A39)+3+IF(ISNUMBER(FIND("PRV",C$6)),1,0)))*IF(AND(C$3>0,TRIM(C$9)="CFS"),Conv_Flags!$C39,1) -> 0 | D39: =INDIRECT(CONCATENATE("'",D$1,"'!",D$4,(YEAR($A39)-1921)*12+MONTH($A39)+3+IF(ISNUMBER(FIND("PRV",D$6)),1,0)))*IF(AND(D$3>0,TRIM(D$9)="CFS"),Conv_Flags!$C39,1) -> 0 | E39: =INDIRECT(CONCATENATE("'",E$1,"'!",E$4,(YEAR($A39)-1921)*12+MONTH($A39)+3+IF(ISNUMBER(FIND("PRV",E$6)),1,0)))*IF(AND(E$3>0,TRIM(E$9)="CFS"),Conv_Flags!$C39,1) -> 0 | F39: =INDIRECT(CONCATENATE("'",F$1,"'!",F$4,(YEAR($A39)-1921)*12+MONTH($A39)+3+IF(ISNUMBER(FIND("PRV",F$6)),1,0)))*IF(AND(F$3>0,TRIM(F$9)="CFS"),Conv_Flags!$C39,1) ->  | G39: =INDIRECT(CONCATENATE("'",G$1,"'!",G$4,(YEAR($A39)-1921)*12+MONTH($A39)+3+IF(ISNUMBER(FIND("PRV",G$6)),1,0)))*IF(AND(G$3>0,TRIM(G$9)="CFS"),Conv_Flags!$C39,1) ->  | K39: 1949 | L39: =B337 -> 0 | M39: =B338 -> 0 | N39: =B339 -> 0 | O39: =B340 -> 0 | P39: =B341 -> 0 | Q39: =B342 -> 0 | R39: =B343 -> 0 | S39: =B344 -> 0 | T39: =B345 -> 0 | U39: =B346 -> 0 | V39: =B347 -> 0 | W39: =B348 -> 0 | Y39: 0 | Z39: 0 | AA39: 0 | AC39: 0 | AD39: 0 | AE39: 0 | AF39: 0 | AG39: 0 | AH39: 0 | AI39: 0 | AK39: 1949 | AL39: =C337 -> 0 | AM39: =C338 -> 0 | AN39: =C339 -> 0 | AO39: =C340 -> 0 | AP39: =C341 -> 0 | AQ39: =C342 -> 176.9717526 | AR39: =C343 -> 0 | AS39: =C344 -> 0 | AT39: =C345 -> 0 | AU39: =C346 -> 0 | AV39: =C347 -> 0 | AW39: =C348 -> 0 | AY39: 176.9717526 | AZ39: 327.8524552 | BA39: 176.9717526 | BC39: 176.9717526 | BD39: 0 | BE39: 0 | BF39: 0 | BG39: 176.9717526 | BH39: 0 | BI39: 0 | BK39: 1949 | BL39: =D337 -> 0 | BM39: =D338 -> 0 | BN39: =D339 -> 0 | BO39: =D340 -> 0 | BP39: =D341 -> 0 | BQ39: =D342 -> 177.0338276 | BR39: =D343 -> 0 | BS39: =D344 -> 0 | BT39: =D345 -> 0 | BU39: =D346 -> 0 | BV39: =D347 -> 0 | BW39: =D348 -> 0 | BY39: 177.0338276 | BZ39: 328.6796054 | CA39: 177.0338276 | CC39: 177.0338276 | CD39: 0 | CE39: 0 | CF39: 0 | CG39: 177.0338276 | CH39: 0 | CI39: 0 | CK39: 1949 | CL39: =E337 -> 0 | CM39: =E338 -> 0 | CN39: =E339 -> 0 | CO39: =E340 -> 0 | CP39: =E341 -> 0 | CQ39: =E342 -> 176.9447809 | CR39: =E343 -> 0 | CS39: =E344 -> 0 | CT39: =E345 -> 0 | CU39: =E346 -> 0 | CV39: =E347 -> 0 | CW39: =E348 -> 0 | CY39: 176.9447809 | CZ39: 328.4327491 | DA39: 176.9447809 | DC39: 176.9447809 | DD39: 0 | DE39: 0 | DF39: 0 | DG39: 176.9447809 | DH39: 0 | DI39: 0 | DK39: 1949 | DL39: =F337 ->  | DM39: =F338 ->  | DN39: =F339 ->  | DO39: =F340 ->  | DP39: =F341 ->  | DQ39: =F342 ->  | DR39: =F343 ->  | DS39: =F344 ->  | DT39: =F345 ->  | DU39: =F346 ->  | DV39: =F347 ->  | DW39: =F348 ->  | EK39: 1949 | EL39: =G337 ->  | EM39: =G338 ->  | EN39: =G339 ->  | EO39: =G340 ->  | EP39: =G341 ->  | EQ39: =G342 ->  | ER39: =G343 ->  | ES39: =G344 ->  | ET39: =G345 ->  | EU39: =G346 ->  | EV39: =G347 ->  | EW39: =G348 -> 
A40: 1924-01-31 | B40: =INDIRECT(CONCATENATE("'",B$1,"'!",B$4,(YEAR($A40)-1921)*12+MONTH($A40)+3+IF(ISNUMBER(FIND("PRV",B$6)),1,0)))*IF(AND(B$3>0,TRIM(B$9)="CFS"),Conv_Flags!$C40,1) -> 0 | C40: =INDIRECT(CONCATENATE("'",C$1,"'!",C$4,(YEAR($A40)-1921)*12+MONTH($A40)+3+IF(ISNUMBER(FIND("PRV",C$6)),1,0)))*IF(AND(C$3>0,TRIM(C$9)="CFS"),Conv_Flags!$C40,1) -> 0 | D40: =INDIRECT(CONCATENATE("'",D$1,"'!",D$4,(YEAR($A40)-1921)*12+MONTH($A40)+3+IF(ISNUMBER(FIND("PRV",D$6)),1,0)))*IF(AND(D$3>0,TRIM(D$9)="CFS"),Conv_Flags!$C40,1) -> 0 | E40: =INDIRECT(CONCATENATE("'",E$1,"'!",E$4,(YEAR($A40)-1921)*12+MONTH($A40)+3+IF(ISNUMBER(FIND("PRV",E$6)),1,0)))*IF(AND(E$3>0,TRIM(E$9)="CFS"),Conv_Flags!$C40,1) -> 0 | F40: =INDIRECT(CONCATENATE("'",F$1,"'!",F$4,(YEAR($A40)-1921)*12+MONTH($A40)+3+IF(ISNUMBER(FIND("PRV",F$6)),1,0)))*IF(AND(F$3>0,TRIM(F$9)="CFS"),Conv_Flags!$C40,1) ->  | G40: =INDIRECT(CONCATENATE("'",G$1,"'!",G$4,(YEAR($A40)-1921)*12+MONTH($A40)+3+IF(ISNUMBER(FIND("PRV",G$6)),1,0)))*IF(AND(G$3>0,TRIM(G$9)="CFS"),Conv_Flags!$C40,1) ->  | K40: 1950 | L40: =B349 -> 0 | M40: =B350 -> 0 | N40: =B351 -> 0 | O40: =B352 -> 0 | P40: =B353 -> 0 | Q40: =B354 -> 0 | R40: =B355 -> 0 | S40: =B356 -> 0 | T40: =B357 -> 0 | U40: =B358 -> 0 | V40: =B359 -> 0 | W40: =B360 -> 0 | Y40: 0 | Z40: 0 | AA40: 0 | AC40: 0 | AD40: 0 | AE40: 0 | AF40: 0 | AG40: 0 | AH40: 0 | AI40: 0 | AK40: 1950 | AL40: =C349 -> 0 | AM40: =C350 -> 0 | AN40: =C351 -> 0 | AO40: =C352 -> 95.52071967 | AP40: =C353 -> 55.35998292 | AQ40: =C354 -> 0 | AR40: =C355 -> 0 | AS40: =C356 -> 0 | AT40: =C357 -> 0 | AU40: =C358 -> 0.0004292676978 | AV40: =C359 -> 0 | AW40: =C360 -> 0 | AY40: 366.7641071 | AZ40: 579.5418484 | BA40: 150.8811319 | BC40: 150.8807026 | BD40: 0 | BE40: 95.52071967 | BF40: 150.8807026 | BG40: 0 | BH40: 0.0004292676978 | BI40: 0 | BK40: 1950 | BL40: =D349 -> 0 | BM40: =D350 -> 0 | BN40: =D351 -> 0 | BO40: =D352 -> 95.48431219 | BP40: =D353 -> 56.16146561 | BQ40: =D354 -> 0 | BR40: =D355 -> 0 | BS40: =D356 -> 0 | BT40: =D357 -> 0 | BU40: =D358 -> 0 | BV40: =D359 -> 0 | BW40: =D360 -> 0 | BY40: 367.528753 | BZ40: 579.6119877 | CA40: 151.6457778 | CC40: 151.6457778 | CD40: 0 | CE40: 95.48431219 | CF40: 151.6457778 | CG40: 0 | CH40: 0 | CI40: 0 | CK40: 1950 | CL40: =E349 -> 0 | CM40: =E350 -> 0 | CN40: =E351 -> 0 | CO40: =E352 -> 95.41349997 | CP40: =E353 -> 56.07446829 | CQ40: =E354 -> 0 | CR40: =E355 -> 0 | CS40: =E356 -> 0 | CT40: =E357 -> 0 | CU40: =E358 -> 0.0005067184954 | CV40: =E359 -> 0 | CW40: =E360 -> 0 | CY40: 423.5060405 | CZ40: 635.6052945 | DA40: 151.488475 | DC40: 151.4879683 | DD40: 0 | DE40: 95.41349997 | DF40: 151.4879683 | DG40: 0 | DH40: 0.0005067184954 | DI40: 56.1345903 | DK40: 1950 | DL40: =F349 ->  | DM40: =F350 ->  | DN40: =F351 ->  | DO40: =F352 ->  | DP40: =F353 ->  | DQ40: =F354 ->  | DR40: =F355 ->  | DS40: =F356 ->  | DT40: =F357 ->  | DU40: =F358 ->  | DV40: =F359 ->  | DW40: =F360 ->  | EK40: 1950 | EL40: =G349 ->  | EM40: =G350 ->  | EN40: =G351 ->  | EO40: =G352 ->  | EP40: =G353 ->  | EQ40: =G354 ->  | ER40: =G355 ->  | ES40: =G356 ->  | ET40: =G357 ->  | EU40: =G358 ->  | EV40: =G359 ->  | EW40: =G360 -> 
A41: 1924-02-29 | B41: =INDIRECT(CONCATENATE("'",B$1,"'!",B$4,(YEAR($A41)-1921)*12+MONTH($A41)+3+IF(ISNUMBER(FIND("PRV",B$6)),1,0)))*IF(AND(B$3>0,TRIM(B$9)="CFS"),Conv_Flags!$C41,1) -> 0 | C41: =INDIRECT(CONCATENATE("'",C$1,"'!",C$4,(YEAR($A41)-1921)*12+MONTH($A41)+3+IF(ISNUMBER(FIND("PRV",C$6)),1,0)))*IF(AND(C$3>0,TRIM(C$9)="CFS"),Conv_Flags!$C41,1) -> 0 | D41: =INDIRECT(CONCATENATE("'",D$1,"'!",D$4,(YEAR($A41)-1921)*12+MONTH($A41)+3+IF(ISNUMBER(FIND("PRV",D$6)),1,0)))*IF(AND(D$3>0,TRIM(D$9)="CFS"),Conv_Flags!$C41,1) -> 0 | E41: =INDIRECT(CONCATENATE("'",E$1,"'!",E$4,(YEAR($A41)-1921)*12+MONTH($A41)+3+IF(ISNUMBER(FIND("PRV",E$6)),1,0)))*IF(AND(E$3>0,TRIM(E$9)="CFS"),Conv_Flags!$C41,1) -> 0 | F41: =INDIRECT(CONCATENATE("'",F$1,"'!",F$4,(YEAR($A41)-1921)*12+MONTH($A41)+3+IF(ISNUMBER(FIND("PRV",F$6)),1,0)))*IF(AND(F$3>0,TRIM(F$9)="CFS"),Conv_Flags!$C41,1) ->  | G41: =INDIRECT(CONCATENATE("'",G$1,"'!",G$4,(YEAR($A41)-1921)*12+MONTH($A41)+3+IF(ISNUMBER(FIND("PRV",G$6)),1,0)))*IF(AND(G$3>0,TRIM(G$9)="CFS"),Conv_Flags!$C41,1) ->  | K41: 1951 | L41: =B361 -> 0 | M41: =B362 -> 0 | N41: =B363 -> 0 | O41: =B364 -> 0 | P41: =B365 -> 0 | Q41: =B366 -> 0 | R41: =B367 -> 0 | S41: =B368 -> 0 | T41: =B369 -> 0 | U41: =B370 -> 0 | V41: =B371 -> 0 | W41: =B372 -> 0 | Y41: 0 | Z41: 0 | AA41: 0 | AC41: 0 | AD41: 0 | AE41: 0 | AF41: 0 | AG41: 0 | AH41: 0 | AI41: 0 | AK41: 1951 | AL41: =C361 -> 0 | AM41: =C362 -> 0 | AN41: =C363 -> 215.8829752 | AO41: =C364 -> 201.0602433 | AP41: =C365 -> 162.5982006 | AQ41: =C366 -> 142.5611867 | AR41: =C367 -> 0 | AS41: =C368 -> 0 | AT41: =C369 -> 0.0001307884049 | AU41: =C370 -> 0 | AV41: =C371 -> 0 | AW41: =C372 -> 0 | AY41: 506.2197614 | AZ41: 539.6204911 | BA41: 722.1027366 | BC41: 722.1026058 | BD41: 0 | BE41: 416.9432185 | BF41: 579.5414191 | BG41: 142.5613175 | BH41: 0.0001307884049 | BI41: 0 | BK41: 1951 | BL41: =D361 -> 0 | BM41: =D362 -> 0 | BN41: =D363 -> 215.8829752 | BO41: =D364 -> 201.1109686 | BP41: =D365 -> 162.6180439 | BQ41: =D366 -> 142.5638242 | BR41: =D367 -> 0 | BS41: =D368 -> 0 | BT41: =D369 -> 0 | BU41: =D370 -> 0.0002281612145 | BV41: =D371 -> 0 | BW41: =D372 -> 0 | BY41: 506.2930649 | BZ41: 539.6232259 | CA41: 722.1760401 | CC41: 722.1758119 | CD41: 0 | CE41: 416.9939438 | CF41: 579.6119877 | CG41: 142.5638242 | CH41: 0.0002281612145 | CI41: 0 | CK41: 1951 | CL41: =E361 -> 0 | CM41: =E362 -> 56.1345903 | CN41: =E363 -> 215.8829752 | CO41: =E364 -> 200.9987495 | CP41: =E365 -> 162.5884728 | CQ41: =E366 -> 142.5607374 | CR41: =E367 -> 0 | CS41: =E368 -> 0 | CT41: =E369 -> 0.0001297568457 | CU41: =E370 -> 0 | CV41: =E371 -> 0 | CW41: =E372 -> 0 | CY41: 506.1480895 | CZ41: 539.6200407 | DA41: 778.165655 | DC41: 778.1655252 | DD41: 0 | DE41: 473.016315 | DF41: 579.4701975 | DG41: 142.5608672 | DH41: 0.0001297568457 | DI41: 0 | DK41: 1951 | DL41: =F361 ->  | DM41: =F362 ->  | DN41: =F363 ->  | DO41: =F364 ->  | DP41: =F365 ->  | DQ41: =F366 ->  | DR41: =F367 ->  | DS41: =F368 ->  | DT41: =F369 ->  | DU41: =F370 ->  | DV41: =F371 ->  | DW41: =F372 ->  | EK41: 1951 | EL41: =G361 ->  | EM41: =G362 ->  | EN41: =G363 ->  | EO41: =G364 ->  | EP41: =G365 ->  | EQ41: =G366 ->  | ER41: =G367 ->  | ES41: =G368 ->  | ET41: =G369 ->  | EU41: =G370 ->  | EV41: =G371 ->  | EW41: =G372 -> 
A42: 1924-03-31 | B42: =INDIRECT(CONCATENATE("'",B$1,"'!",B$4,(YEAR($A42)-1921)*12+MONTH($A42)+3+IF(ISNUMBER(FIND("PRV",B$6)),1,0)))*IF(AND(B$3>0,TRIM(B$9)="CFS"),Conv_Flags!$C42,1) -> 0 | C42: =INDIRECT(CONCATENATE("'",C$1,"'!",C$4,(YEAR($A42)-1921)*12+MONTH($A42)+3+IF(ISNUMBER(FIND("PRV",C$6)),1,0)))*IF(AND(C$3>0,TRIM(C$9)="CFS"),Conv_Flags!$C42,1) -> 0 | D42: =INDIRECT(CONCATENATE("'",D$1,"'!",D$4,(YEAR($A42)-1921)*12+MONTH($A42)+3+IF(ISNUMBER(FIND("PRV",D$6)),1,0)))*IF(AND(D$3>0,TRIM(D$9)="CFS"),Conv_Flags!$C42,1) -> 0 | E42: =INDIRECT(CONCATENATE("'",E$1,"'!",E$4,(YEAR($A42)-1921)*12+MONTH($A42)+3+IF(ISNUMBER(FIND("PRV",E$6)),1,0)))*IF(AND(E$3>0,TRIM(E$9)="CFS"),Conv_Flags!$C42,1) -> 0 | F42: =INDIRECT(CONCATENATE("'",F$1,"'!",F$4,(YEAR($A42)-1921)*12+MONTH($A42)+3+IF(ISNUMBER(FIND("PRV",F$6)),1,0)))*IF(AND(F$3>0,TRIM(F$9)="CFS"),Conv_Flags!$C42,1) ->  | G42: =INDIRECT(CONCATENATE("'",G$1,"'!",G$4,(YEAR($A42)-1921)*12+MONTH($A42)+3+IF(ISNUMBER(FIND("PRV",G$6)),1,0)))*IF(AND(G$3>0,TRIM(G$9)="CFS"),Conv_Flags!$C42,1) ->  | K42: 1952 | L42: =B373 -> 0 | M42: =B374 -> 0 | N42: =B375 -> 0 | O42: =B376 -> 0 | P42: =B377 -> 0 | Q42: =B378 -> 0 | R42: =B379 -> 0 | S42: =B380 -> 0 | T42: =B381 -> 0 | U42: =B382 -> 0 | V42: =B383 -> 0 | W42: =B384 -> 0 | Y42: 0 | Z42: 0 | AA42: 0 | AC42: 0 | AD42: 0 | AE42: 0 | AF42: 0 | AG42: 0 | AH42: 0 | AI42: 0 | AK42: 1952 | AL42: =C373 -> 0 | AM42: =C374 -> 0 | AN42: =C375 -> 0 | AO42: =C376 -> 203.6231405 | AP42: =C377 -> 193.4360331 | AQ42: =C378 -> 213.9292562 | AR42: =C379 -> 77.3868203 | AS42: =C380 -> 7.090164715 | AT42: =C381 -> 8.132455111 | AU42: =C382 -> 12.93656801 | AV42: =C383 -> 0 | AW42: =C384 -> 47.05619789 | AY42: 763.5906358 | AZ42: 394.9513096 | BA42: 763.5906358 | BC42: 610.9884298 | BD42: 47.05619789 | BE42: 203.6231405 | BF42: 397.0591736 | BG42: 306.5386963 | BH42: 68.12522101 | BI42: 47.05619789 | BK42: 1952 | BL42: =D373 -> 0 | BM42: =D374 -> 0 | BN42: =D375 -> 0 | BO42: =D376 -> 203.6231405 | BP42: =D377 -> 193.4360331 | BQ42: =D378 -> 213.9292562 | BR42: =D379 -> 146.3953564 | BS42: =D380 -> 6.89943951 | BT42: =D381 -> 8.179825106 | BU42: =D382 -> 12.6713884 | BV42: =D383 -> 0 | BW42: =D384 -> 0.0001473385263 | BY42: 785.1345865 | BZ42: 500.8937117 | CA42: 785.1345865 | CC42: 610.9884298 | CD42: 0.0001473385263 | CE42: 203.6231405 | CF42: 397.0591736 | CG42: 375.4038772 | CH42: 20.85136085 | CI42: 0.0001473385263 | CK42: 1952 | CL42: =E373 -> 0 | CM42: =E374 -> 0 | CN42: =E375 -> 0 | CO42: =E376 -> 203.6231405 | CP42: =E377 -> 193.4360331 | CQ42: =E378 -> 49.20168347 | CR42: =E379 -> 3.840484941 | CS42: =E380 -> 6.640191597 | CT42: =E381 -> 7.733893564 | CU42: =E382 -> 12.26440174 | CV42: =E383 -> 0 | CW42: =E384 -> 0.004244587506 | CY42: 476.7440734 | CZ42: 173.3634608 | DA42: 476.7440734 | DC42: 446.260857 | DD42: 0.004244587506 | DE42: 203.6231405 | DF42: 397.0591736 | DG42: 67.41625357 | DH42: 20.00253989 | DI42: 0.004244587506 | DK42: 1952 | DL42: =F373 ->  | DM42: =F374 ->  | DN42: =F375 ->  | DO42: =F376 ->  | DP42: =F377 ->  | DQ42: =F378 ->  | DR42: =F379 ->  | DS42: =F380 ->  | DT42: =F381 ->  | DU42: =F382 ->  | DV42: =F383 ->  | DW42: =F384 ->  | EK42: 1952 | EL42: =G373 ->  | EM42: =G374 ->  | EN42: =G375 ->  | EO42: =G376 ->  | EP42: =G377 ->  | EQ42: =G378 ->  | ER42: =G379 ->  | ES42: =G380 ->  | ET42: =G381 ->  | EU42: =G382 ->  | EV42: =G383 ->  | EW42: =G384 -> 
A43: 1924-04-30 | B43: =INDIRECT(CONCATENATE("'",B$1,"'!",B$4,(YEAR($A43)-1921)*12+MONTH($A43)+3+IF(ISNUMBER(FIND("PRV",B$6)),1,0)))*IF(AND(B$3>0,TRIM(B$9)="CFS"),Conv_Flags!$C43,1) -> 0 | C43: =INDIRECT(CONCATENATE("'",C$1,"'!",C$4,(YEAR($A43)-1921)*12+MONTH($A43)+3+IF(ISNUMBER(FIND("PRV",C$6)),1,0)))*IF(AND(C$3>0,TRIM(C$9)="CFS"),Conv_Flags!$C43,1) -> 0 | D43: =INDIRECT(CONCATENATE("'",D$1,"'!",D$4,(YEAR($A43)-1921)*12+MONTH($A43)+3+IF(ISNUMBER(FIND("PRV",D$6)),1,0)))*IF(AND(D$3>0,TRIM(D$9)="CFS"),Conv_Flags!$C43,1) -> 0 | E43: =INDIRECT(CONCATENATE("'",E$1,"'!",E$4,(YEAR($A43)-1921)*12+MONTH($A43)+3+IF(ISNUMBER(FIND("PRV",E$6)),1,0)))*IF(AND(E$3>0,TRIM(E$9)="CFS"),Conv_Flags!$C43,1) -> 0 | F43: =INDIRECT(CONCATENATE("'",F$1,"'!",F$4,(YEAR($A43)-1921)*12+MONTH($A43)+3+IF(ISNUMBER(FIND("PRV",F$6)),1,0)))*IF(AND(F$3>0,TRIM(F$9)="CFS"),Conv_Flags!$C43,1) ->  | G43: =INDIRECT(CONCATENATE("'",G$1,"'!",G$4,(YEAR($A43)-1921)*12+MONTH($A43)+3+IF(ISNUMBER(FIND("PRV",G$6)),1,0)))*IF(AND(G$3>0,TRIM(G$9)="CFS"),Conv_Flags!$C43,1) ->  | K43: 1953 | L43: =B385 -> 0 | M43: =B386 -> 0 | N43: =B387 -> 0 | O43: =B388 -> 0 | P43: =B389 -> 0 | Q43: =B390 -> 0 | R43: =B391 -> 0 | S43: =B392 -> 0 | T43: =B393 -> 0 | U43: =B394 -> 0 | V43: =B395 -> 0 | W43: =B396 -> 0 | Y43: 0 | Z43: 0 | AA43: 0 | AC43: 0 | AD43: 0 | AE43: 0 | AF43: 0 | AG43: 0 | AH43: 0 | AI43: 0 | AK43: 1953 | AL43: =C385 -> 0 | AM43: =C386 -> 0 | AN43: =C387 -> 0 | AO43: =C388 -> 26.80980888 | AP43: =C389 -> 1.61003848 | AQ43: =C390 -> 1.803302913 | AR43: =C391 -> 0 | AS43: =C392 -> 0 | AT43: =C393 -> 16.28717759 | AU43: =C394 -> 5.441501489e-05 | AV43: =C395 -> 0 | AW43: =C396 -> 0 | AY43: 122.1659633 | AZ43: 130.8025351 | BA43: 46.51038228 | BC43: 30.22315028 | BD43: 0 | BE43: 26.80980888 | BF43: 28.41984736 | BG43: 18.09048051 | BH43: 16.28723201 | BI43: 75.655581 | BK43: 1953 | BL43: =D385 -> 0 | BM43: =D386 -> 0 | BN43: =D387 -> 0 | BO43: =D388 -> 111.3065402 | BP43: =D389 -> 1.511758512 | BQ43: =D390 -> 1.711033292 | BR43: =D391 -> 0 | BS43: =D392 -> 0 | BT43: =D393 -> 15.87111225 | BU43: =D394 -> 5.489046317e-05 | BV43: =D395 -> 0 | BW43: =D396 -> 0 | BY43: 206.0958969 | BZ43: 134.7438274 | CA43: 130.4004992 | CC43: 114.529332 | CD43: 0 | CE43: 111.3065402 | CF43: 112.8182987 | CG43: 17.58214554 | CH43: 15.87116714 | CI43: 75.69539775 | CK43: 1953 | CL43: =E385 -> 0 | CM43: =E386 -> 0 | CN43: =E387 -> 0 | CO43: =E388 -> 92.17070257 | CP43: =E389 -> 1.507858338 | CQ43: =E390 -> 1.70730127 | CR43: =E391 -> 0 | CS43: =E392 -> 0 | CT43: =E393 -> 15.38802697 | CU43: =E394 -> 6.168119424e-05 | CV43: =E395 -> 0 | CW43: =E396 -> 0 | CY43: 186.4529479 | CZ43: 129.2970315 | DA43: 110.7739508 | DC43: 95.38586218 | DD43: 0 | DE43: 92.17070257 | DF43: 93.67856091 | DG43: 17.09532824 | DH43: 15.38808865 | DI43: 75.67899704 | DK43: 1953 | DL43: =F385 ->  | DM43: =F386 ->  | DN43: =F387 ->  | DO43: =F388 ->  | DP43: =F389 ->  | DQ43: =F390 ->  | DR43: =F391 ->  | DS43: =F392 ->  | DT43: =F393 ->  | DU43: =F394 ->  | DV43: =F395 ->  | DW43: =F396 ->  | EK43: 1953 | EL43: =G385 ->  | EM43: =G386 ->  | EN43: =G387 ->  | EO43: =G388 ->  | EP43: =G389 ->  | EQ43: =G390 ->  | ER43: =G391 ->  | ES43: =G392 ->  | ET43: =G393 ->  | EU43: =G394 ->  | EV43: =G395 ->  | EW43: =G396 -> 
A44: 1924-05-31 | B44: =INDIRECT(CONCATENATE("'",B$1,"'!",B$4,(YEAR($A44)-1921)*12+MONTH($A44)+3+IF(ISNUMBER(FIND("PRV",B$6)),1,0)))*IF(AND(B$3>0,TRIM(B$9)="CFS"),Conv_Flags!$C44,1) -> 0 | C44: =INDIRECT(CONCATENATE("'",C$1,"'!",C$4,(YEAR($A44)-1921)*12+MONTH($A44)+3+IF(ISNUMBER(FIND("PRV",C$6)),1,0)))*IF(AND(C$3>0,TRIM(C$9)="CFS"),Conv_Flags!$C44,1) -> 0 | D44: =INDIRECT(CONCATENATE("'",D$1,"'!",D$4,(YEAR($A44)-1921)*12+MONTH($A44)+3+IF(ISNUMBER(FIND("PRV",D$6)),1,0)))*IF(AND(D$3>0,TRIM(D$9)="CFS"),Conv_Flags!$C44,1) -> 0 | E44: =INDIRECT(CONCATENATE("'",E$1,"'!",E$4,(YEAR($A44)-1921)*12+MONTH($A44)+3+IF(ISNUMBER(FIND("PRV",E$6)),1,0)))*IF(AND(E$3>0,TRIM(E$9)="CFS"),Conv_Flags!$C44,1) -> 0 | F44: =INDIRECT(CONCATENATE("'",F$1,"'!",F$4,(YEAR($A44)-1921)*12+MONTH($A44)+3+IF(ISNUMBER(FIND("PRV",F$6)),1,0)))*IF(AND(F$3>0,TRIM(F$9)="CFS"),Conv_Flags!$C44,1) ->  | G44: =INDIRECT(CONCATENATE("'",G$1,"'!",G$4,(YEAR($A44)-1921)*12+MONTH($A44)+3+IF(ISNUMBER(FIND("PRV",G$6)),1,0)))*IF(AND(G$3>0,TRIM(G$9)="CFS"),Conv_Flags!$C44,1) ->  | K44: 1954 | L44: =B397 -> 0 | M44: =B398 -> 0 | N44: =B399 -> 0 | O44: =B400 -> 0 | P44: =B401 -> 0 | Q44: =B402 -> 0 | R44: =B403 -> 0 | S44: =B404 -> 0 | T44: =B405 -> 0 | U44: =B406 -> 0 | V44: =B407 -> 0 | W44: =B408 -> 0 | Y44: 0 | Z44: 0 | AA44: 0 | AC44: 0 | AD44: 0 | AE44: =IF(AE$11="AVG",IF(AE$1="INST-VAL",AVERAGE(W43,L44:N44,L44:O44),AVERAGE(L44:O44)),SUM(L44:O44)) -> 0 | AF44: 0 | AG44: 0 | AH44: 0 | AI44: 0 | AK44: 1954 | AL44: =C397 -> 0 | AM44: =C398 -> 75.655581 | AN44: =C399 -> 0 | AO44: =C400 -> 37.00603097 | AP44: =C401 -> 0.05038822897 | AQ44: =C402 -> 0 | AR44: =C403 -> 0 | AS44: =C404 -> 0 | AT44: =C405 -> 8.094992692e-05 | AU44: =C406 -> 0 | AV44: =C407 -> 0 | AW44: =C408 -> 0 | AY44: 37.05677756 | AZ44: 11.74126508 | BA44: 112.7120811 | BC44: 112.7120002 | BD44: 0 | BE44: 112.661612 | BF44: 37.0564192 | BG44: 8.094992692e-05 | BH44: 8.094992692e-05 | BI44: 0.0002774080911 | BK44: 1954 | BL44: =D397 -> 0 | BM44: =D398 -> 75.69539775 | BN44: =D399 -> 0 | BO44: =D400 -> 37.00671478 | BP44: =D401 -> 4.4595144 | BQ44: =D402 -> 0 | BR44: =D403 -> 0 | BS44: =D404 -> 0 | BT44: =D405 -> 0 | BU44: =D406 -> 0.0001369331066 | BV44: =D407 -> 0 | BW44: =D408 -> 0 | BY44: 41.46659889 | BZ44: 18.3054813 | CA44: 117.1617639 | CC44: 117.1616269 | CD44: 0 | CE44: =IF(CE$11="AVG",IF(CE$1="INST-VAL",AVERAGE(BW43,BL44:BN44,BL44:BO44),AVERAGE(BL44:BO44)),SUM(BL44:BO44)) -> 112.7021125 | CF44: =IF(CF$11="AVG",IF(CE$1="INST-VAL",AVERAGE(BM44:BO44,BN44:BP44),AVERAGE(BN44:BP44)),SUM(BN44:BP44)) -> 41.46622918 | CG44: =IF(CG$11="AVG",IF(CE$1="INST-VAL",AVERAGE(BP44:BS44,BQ44:BT44),AVERAGE(BQ44:BT44)),SUM(BQ44:BT44)) -> 0 | CH44: =IF(CH$11="AVG",IF(CE$1="INST-VAL",AVERAGE(BS44:BV44,BT44:BW44),AVERAGE(BT44:BW44)),SUM(BT44:BW44)) -> 0.0001369331066 | CI44: =IF(CI$11="AVG",IF(CE$1="INST-VAL",AVERAGE(BV44:BW44,BL45,BW44,BL45:BM45),AVERAGE(BW44,BL45:BM45)),SUM(BW44,BL45:BM45)) -> 0.0002327760011 | CK44: 1954 | CL44: =E397 -> 0 | CM44: =E398 -> 75.67899704 | CN44: =E399 -> 0 | CO44: =E400 -> 36.52264454 | CP44: =E401 -> 0 | CQ44: =E402 -> 0 | CR44: =E403 -> 0 | CS44: =E404 -> 0 | CT44: =E405 -> 9.172062237e-05 | CU44: =E406 -> 0 | CV44: =E407 -> 0 | CW44: =E408 -> 0 | CY44: 36.52305102 | CZ44: 11.74231956 | DA44: 112.2017333 | DC44: 112.2016416 | DD44: 0 | DE44: 112.2016416 | DF44: 36.52264454 | DG44: 9.172062237e-05 | DH44: 9.172062237e-05 | DI44: 0.0003147614903 | DK44: 1954 | DL44: =F397 ->  | DM44: =F398 ->  | DN44: =F399 ->  | DO44: =F400 ->  | DP44: =F401 ->  | DQ44: =F402 ->  | DR44: =F403 ->  | DS44: =F404 ->  | DT44: =F405 ->  | DU44: =F406 ->  | DV44: =F407 ->  | DW44: =F408 ->  | EK44: 1954 | EL44: =G397 ->  | EM44: =G398 ->  | EN44: =G399 ->  | EO44: =G400 ->  | EP44: =G401 ->  | EQ44: =G402 ->  | ER44: =G403 ->  | ES44: =G404 ->  | ET44: =G405 ->  | EU44: =G406 ->  | EV44: =G407 ->  | EW44: =G408 -> 
A45: 1924-06-30 | B45: =INDIRECT(CONCATENATE("'",B$1,"'!",B$4,(YEAR($A45)-1921)*12+MONTH($A45)+3+IF(ISNUMBER(FIND("PRV",B$6)),1,0)))*IF(AND(B$3>0,TRIM(B$9)="CFS"),Conv_Flags!$C45,1) -> 0 | C45: =INDIRECT(CONCATENATE("'",C$1,"'!",C$4,(YEAR($A45)-1921)*12+MONTH($A45)+3+IF(ISNUMBER(FIND("PRV",C$6)),1,0)))*IF(AND(C$3>0,TRIM(C$9)="CFS"),Conv_Flags!$C45,1) -> 0 | D45: =INDIRECT(CONCATENATE("'",D$1,"'!",D$4,(YEAR($A45)-1921)*12+MONTH($A45)+3+IF(ISNUMBER(FIND("PRV",D$6)),1,0)))*IF(AND(D$3>0,TRIM(D$9)="CFS"),Conv_Flags!$C45,1) -> 0 | E45: =INDIRECT(CONCATENATE("'",E$1,"'!",E$4,(YEAR($A45)-1921)*12+MONTH($A45)+3+IF(ISNUMBER(FIND("PRV",E$6)),1,0)))*IF(AND(E$3>0,TRIM(E$9)="CFS"),Conv_Flags!$C45,1) -> 0 | F45: =INDIRECT(CONCATENATE("'",F$1,"'!",F$4,(YEAR($A45)-1921)*12+MONTH($A45)+3+IF(ISNUMBER(FIND("PRV",F$6)),1,0)))*IF(AND(F$3>0,TRIM(F$9)="CFS"),Conv_Flags!$C45,1) ->  | G45: =INDIRECT(CONCATENATE("'",G$1,"'!",G$4,(YEAR($A45)-1921)*12+MONTH($A45)+3+IF(ISNUMBER(FIND("PRV",G$6)),1,0)))*IF(AND(G$3>0,TRIM(G$9)="CFS"),Conv_Flags!$C45,1) ->  | K45: 1955 | L45: =B409 -> 0 | M45: =B410 -> 0 | N45: =B411 -> 0 | O45: =B412 -> 0 | P45: =B413 -> 0 | Q45: =B414 -> 0 | R45: =B415 -> 0 | S45: =B416 -> 0 | T45: =B417 -> 0 | U45: =B418 -> 0 | V45: =B419 -> 0 | W45: =B420 -> 0 | Y45: 0 | Z45: 0 | AA45: 0 | AC45: 0 | AD45: 0 | AE45: 0 | AF45: 0 | AG45: 0 | AH45: 0 | AI45: 0 | AK45: 1955 | AL45: =C409 -> 0 | AM45: =C410 -> 0.0002774080911 | AN45: =C411 -> 0 | AO45: =C412 -> 11.74090673 | AP45: =C413 -> 0 | AQ45: =C414 -> 0 | AR45: =C415 -> 0 | AS45: =C416 -> 0 | AT45: =C417 -> 0 | AU45: =C418 -> 0 | AV45: =C419 -> 0 | AW45: =C420 -> 0 | AY45: 11.74090673 | AZ45: 349.409449 | BA45: 11.74118413 | BC45: 11.74118413 | BD45: 0 | BE45: 11.74118413 | BF45: 11.74090673 | BG45: 0 | BH45: 0 | BI45: 0 | BK45: 1955 | BL45: =D409 -> 0 | BM45: =D410 -> 0.0002327760011 | BN45: =D411 -> 0 | BO45: =D412 -> 18.30511159 | BP45: =D413 -> 0 | BQ45: =D414 -> 0 | BR45: =D415 -> 0 | BS45: =D416 -> 0 | BT45: =D417 -> 0 | BU45: =D418 -> 0 | BV45: =D419 -> 0 | BW45: =D420 -> 0 | BY45: 18.30511159 | BZ45: 349.5816714 | CA45: 18.30534437 | CC45: 18.30534437 | CD45: 0 | CE45: 18.30534437 | CF45: 18.30511159 | CG45: 0 | CH45: 0 | CI45: 0 | CK45: 1955 | CL45: =E409 -> 0 | CM45: =E410 -> 0.0003147614903 | CN45: =E411 -> 0 | CO45: =E412 -> 11.74191308 | CP45: =E413 -> 0 | CQ45: =E414 -> 0 | CR45: =E415 -> 0 | CS45: =E416 -> 0 | CT45: =E417 -> 0 | CU45: =E418 -> 0 | CV45: =E419 -> 0 | CW45: =E420 -> 0 | CY45: 11.74191308 | CZ45: 349.4103733 | DA45: 11.74222784 | DC45: 11.74222784 | DD45: 0 | DE45: 11.74222784 | DF45: 11.74191308 | DG45: 0 | DH45: 0 | DI45: 0 | DK45: 1955 | DL45: =F409 ->  | DM45: =F410 ->  | DN45: =F411 ->  | DO45: =F412 ->  | DP45: =F413 ->  | DQ45: =F414 ->  | DR45: =F415 ->  | DS45: =F416 ->  | DT45: =F417 ->  | DU45: =F418 ->  | DV45: =F419 ->  | DW45: =F420 ->  | EK45: 1955 | EL45: =G409 ->  | EM45: =G410 ->  | EN45: =G411 ->  | EO45: =G412 ->  | EP45: =G413 ->  | EQ45: =G414 ->  | ER45: =G415 ->  | ES45: =G416 ->  | ET45: =G417 ->  | EU45: =G418 ->  | EV45: =G419 ->  | EW45: =G420 -> 
A46: 1924-07-31 | B46: =INDIRECT(CONCATENATE("'",B$1,"'!",B$4,(YEAR($A46)-1921)*12+MONTH($A46)+3+IF(ISNUMBER(FIND("PRV",B$6)),1,0)))*IF(AND(B$3>0,TRIM(B$9)="CFS"),Conv_Flags!$C46,1) -> 0 | C46: =INDIRECT(CONCATENATE("'",C$1,"'!",C$4,(YEAR($A46)-1921)*12+MONTH($A46)+3+IF(ISNUMBER(FIND("PRV",C$6)),1,0)))*IF(AND(C$3>0,TRIM(C$9)="CFS"),Conv_Flags!$C46,1) -> 0 | D46: =INDIRECT(CONCATENATE("'",D$1,"'!",D$4,(YEAR($A46)-1921)*12+MONTH($A46)+3+IF(ISNUMBER(FIND("PRV",D$6)),1,0)))*IF(AND(D$3>0,TRIM(D$9)="CFS"),Conv_Flags!$C46,1) -> 0 | E46: =INDIRECT(CONCATENATE("'",E$1,"'!",E$4,(YEAR($A46)-1921)*12+MONTH($A46)+3+IF(ISNUMBER(FIND("PRV",E$6)),1,0)))*IF(AND(E$3>0,TRIM(E$9)="CFS"),Conv_Flags!$C46,1) -> 0 | F46: =INDIRECT(CONCATENATE("'",F$1,"'!",F$4,(YEAR($A46)-1921)*12+MONTH($A46)+3+IF(ISNUMBER(FIND("PRV",F$6)),1,0)))*IF(AND(F$3>0,TRIM(F$9)="CFS"),Conv_Flags!$C46,1) ->  | G46: =INDIRECT(CONCATENATE("'",G$1,"'!",G$4,(YEAR($A46)-1921)*12+MONTH($A46)+3+IF(ISNUMBER(FIND("PRV",G$6)),1,0)))*IF(AND(G$3>0,TRIM(G$9)="CFS"),Conv_Flags!$C46,1) ->  | K46: 1956 | L46: =B421 -> 0 | M46: =B422 -> 0 | N46: =B423 -> 0 | O46: =B424 -> 0 | P46: =B425 -> 0 | Q46: =B426 -> 0 | R46: =B427 -> 0 | S46: =B428 -> 0 | T46: =B429 -> 0 | U46: =B430 -> 0 | V46: =B431 -> 0 | W46: =B432 -> 0 | Y46: 0 | Z46: 0 | AA46: 0 | AC46: 0 | AD46: 0 | AE46: 0 | AF46: 0 | AG46: 0 | AH46: 0 | AI46: 0 | AK46: 1956 | AL46: =C421 -> 0 | AM46: =C422 -> 0 | AN46: =C423 -> 0 | AO46: =C424 -> 203.6231405 | AP46: =C425 -> 145.7863085 | AQ46: =C426 -> 171.1348285 | AR46: =C427 -> 0 | AS46: =C428 -> 0 | AT46: =C429 -> 0 | AU46: =C430 -> 0 | AV46: =C431 -> 0 | AW46: =C432 -> 0 | AY46: 520.5446795 | AZ46: 199.7084336 | BA46: 520.5442775 | BC46: 520.5442775 | BD46: 0.0004020110322 | BE46: 203.6231405 | BF46: 349.409449 | BG46: 171.1348285 | BH46: 0 | BI46: 0.0004020110322 | BK46: 1956 | BL46: =D421 -> 0 | BM46: =D422 -> 0 | BN46: =D423 -> 0 | BO46: =D424 -> 203.6231405 | BP46: =D425 -> 145.9585309 | BQ46: =D426 -> 171.1456153 | BR46: =D427 -> 0 | BS46: =D428 -> 0 | BT46: =D429 -> 0 | BU46: =D430 -> 0 | BV46: =D431 -> 0 | BW46: =D432 -> 0 | BY46: 520.7276976 | BZ46: 200.3015146 | CA46: 520.7272867 | CC46: 520.7272867 | CD46: 0.0004108948784 | CE46: 203.6231405 | CF46: 349.5816714 | CG46: 171.1456153 | CH46: 0 | CI46: 0.0004108948784 | CK46: 1956 | CL46: =E421 -> 0 | CM46: =E422 -> 0 | CN46: =E423 -> 0 | CO46: =E424 -> 203.6231405 | CP46: =E425 -> 145.7872328 | CQ46: =E426 -> 171.1352736 | CR46: =E427 -> 0 | CS46: =E428 -> 0 | CT46: =E429 -> 0 | CU46: =E430 -> 0 | CV46: =E431 -> 0 | CW46: =E432 -> 0 | CY46: 520.5456469 | CZ46: 199.7097521 | DA46: 520.5456469 | DC46: 520.5456469 | DD46: 0 | DE46: 203.6231405 | DF46: 349.4103733 | DG46: 171.1352736 | DH46: 0 | DI46: 0 | DK46: 1956 | DL46: =F421 ->  | DM46: =F422 ->  | DN46: =F423 ->  | DO46: =F424 ->  | DP46: =F425 ->  | DQ46: =F426 ->  | DR46: =F427 ->  | DS46: =F428 ->  | DT46: =F429 ->  | DU46: =F430 ->  | DV46: =F431 ->  | DW46: =F432 ->  | EK46: 1956 | EL46: =G421 ->  | EM46: =G422 ->  | EN46: =G423 ->  | EO46: =G424 ->  | EP46: =G425 ->  | EQ46: =G426 ->  | ER46: =G427 ->  | ES46: =G428 ->  | ET46: =G429 ->  | EU46: =G430 ->  | EV46: =G431 ->  | EW46: =G432 -> 
A47: 1924-08-31 | B47: =INDIRECT(CONCATENATE("'",B$1,"'!",B$4,(YEAR($A47)-1921)*12+MONTH($A47)+3+IF(ISNUMBER(FIND("PRV",B$6)),1,0)))*IF(AND(B$3>0,TRIM(B$9)="CFS"),Conv_Flags!$C47,1) -> 0 | C47: =INDIRECT(CONCATENATE("'",C$1,"'!",C$4,(YEAR($A47)-1921)*12+MONTH($A47)+3+IF(ISNUMBER(FIND("PRV",C$6)),1,0)))*IF(AND(C$3>0,TRIM(C$9)="CFS"),Conv_Flags!$C47,1) -> 0 | D47: =INDIRECT(CONCATENATE("'",D$1,"'!",D$4,(YEAR($A47)-1921)*12+MONTH($A47)+3+IF(ISNUMBER(FIND("PRV",D$6)),1,0)))*IF(AND(D$3>0,TRIM(D$9)="CFS"),Conv_Flags!$C47,1) -> 0 | E47: =INDIRECT(CONCATENATE("'",E$1,"'!",E$4,(YEAR($A47)-1921)*12+MONTH($A47)+3+IF(ISNUMBER(FIND("PRV",E$6)),1,0)))*IF(AND(E$3>0,TRIM(E$9)="CFS"),Conv_Flags!$C47,1) -> 0 | F47: =INDIRECT(CONCATENATE("'",F$1,"'!",F$4,(YEAR($A47)-1921)*12+MONTH($A47)+3+IF(ISNUMBER(FIND("PRV",F$6)),1,0)))*IF(AND(F$3>0,TRIM(F$9)="CFS"),Conv_Flags!$C47,1) ->  | G47: =INDIRECT(CONCATENATE("'",G$1,"'!",G$4,(YEAR($A47)-1921)*12+MONTH($A47)+3+IF(ISNUMBER(FIND("PRV",G$6)),1,0)))*IF(AND(G$3>0,TRIM(G$9)="CFS"),Conv_Flags!$C47,1) ->  | K47: 1957 | L47: =B433 -> 0 | M47: =B434 -> 0 | N47: =B435 -> 0 | O47: =B436 -> 0 | P47: =B437 -> 0 | Q47: =B438 -> 0 | R47: =B439 -> 0 | S47: =B440 -> 0 | T47: =B441 -> 0 | U47: =B442 -> 0 | V47: =B443 -> 0 | W47: =B444 -> 0 | Y47: 0 | Z47: 0 | AA47: 0 | AC47: 0 | AD47: 0 | AE47: 0 | AF47: 0 | AG47: 0 | AH47: 0 | AI47: 0 | AK47: 1957 | AL47: =C433 -> 0.0004020110322 | AM47: =C434 -> 0 | AN47: =C435 -> 0 | AO47: =C436 -> 0 | AP47: =C437 -> 28.57320307 | AQ47: =C438 -> 213.9292562 | AR47: =C439 -> 0 | AS47: =C440 -> 0 | AT47: =C441 -> 0 | AU47: =C442 -> 0 | AV47: =C443 -> 0 | AW47: =C444 -> 0 | AY47: 264.3991741 | AZ47: 469.6098967 | BA47: 242.5028613 | BC47: 242.5024593 | BD47: 0.0003560316333 | BE47: 0.0004020110322 | BF47: 28.57320307 | BG47: 213.9292562 | BH47: 0 | BI47: 21.89671483 | BK47: 1957 | BL47: =D433 -> 0.0004108948784 | BM47: =D434 -> 0 | BN47: =D435 -> 0 | BO47: =D436 -> 0 | BP47: =D437 -> 29.15548836 | BQ47: =D438 -> 213.9292562 | BR47: =D439 -> 0 | BS47: =D440 -> 0 | BT47: =D441 -> 0 | BU47: =D442 -> 0.0001624520879 | BV47: =D443 -> 0 | BW47: =D444 -> 0.0001669674789 | BY47: 314.3878081 | BZ47: 540.5724058 | CA47: 243.0854849 | CC47: 243.0847446 | CD47: 49.26364914 | CE47: 0.0004108948784 | CF47: 29.15548836 | CG47: 213.9292562 | CH47: 0.0003294195668 | CI47: 71.30290109 | CK47: 1957 | CL47: =E433 -> 0 | CM47: =E434 -> 0 | CN47: =E435 -> 0 | CO47: =E436 -> 0 | CP47: =E437 -> 28.57447845 | CQ47: =E438 -> 213.9292562 | CR47: =E439 -> 0 | CS47: =E440 -> 0 | CT47: =E441 -> 0 | CU47: =E442 -> 0 | CV47: =E443 -> 0 | CW47: =E444 -> 0 | CY47: 264.4085087 | CZ47: 467.2181929 | DA47: 242.5037346 | DC47: 242.5037346 | DD47: 0.0004098287397 | DE47: 0 | DF47: 28.57447845 | DG47: 213.9292562 | DH47: 0 | DI47: 21.90477407 | DK47: 1957 | DL47: =F433 ->  | DM47: =F434 ->  | DN47: =F435 ->  | DO47: =F436 ->  | DP47: =F437 ->  | DQ47: =F438 ->  | DR47: =F439 ->  | DS47: =F440 ->  | DT47: =F441 ->  | DU47: =F442 ->  | DV47: =F443 ->  | DW47: =F444 ->  | EK47: 1957 | EL47: =G433 ->  | EM47: =G434 ->  | EN47: =G435 ->  | EO47: =G436 ->  | EP47: =G437 ->  | EQ47: =G438 ->  | ER47: =G439 ->  | ES47: =G440 ->  | ET47: =G441 ->  | EU47: =G442 ->  | EV47: =G443 ->  | EW47: =G444 -> 
A48: 1924-09-30 | B48: =INDIRECT(CONCATENATE("'",B$1,"'!",B$4,(YEAR($A48)-1921)*12+MONTH($A48)+3+IF(ISNUMBER(FIND("PRV",B$6)),1,0)))*IF(AND(B$3>0,TRIM(B$9)="CFS"),Conv_Flags!$C48,1) -> 0 | C48: =INDIRECT(CONCATENATE("'",C$1,"'!",C$4,(YEAR($A48)-1921)*12+MONTH($A48)+3+IF(ISNUMBER(FIND("PRV",C$6)),1,0)))*IF(AND(C$3>0,TRIM(C$9)="CFS"),Conv_Flags!$C48,1) -> 0 | D48: =INDIRECT(CONCATENATE("'",D$1,"'!",D$4,(YEAR($A48)-1921)*12+MONTH($A48)+3+IF(ISNUMBER(FIND("PRV",D$6)),1,0)))*IF(AND(D$3>0,TRIM(D$9)="CFS"),Conv_Flags!$C48,1) -> 0 | E48: =INDIRECT(CONCATENATE("'",E$1,"'!",E$4,(YEAR($A48)-1921)*12+MONTH($A48)+3+IF(ISNUMBER(FIND("PRV",E$6)),1,0)))*IF(AND(E$3>0,TRIM(E$9)="CFS"),Conv_Flags!$C48,1) -> 0 | F48: =INDIRECT(CONCATENATE("'",F$1,"'!",F$4,(YEAR($A48)-1921)*12+MONTH($A48)+3+IF(ISNUMBER(FIND("PRV",F$6)),1,0)))*IF(AND(F$3>0,TRIM(F$9)="CFS"),Conv_Flags!$C48,1) ->  | G48: =INDIRECT(CONCATENATE("'",G$1,"'!",G$4,(YEAR($A48)-1921)*12+MONTH($A48)+3+IF(ISNUMBER(FIND("PRV",G$6)),1,0)))*IF(AND(G$3>0,TRIM(G$9)="CFS"),Conv_Flags!$C48,1) ->  | K48: 1958 | L48: =B445 -> 0 | M48: =B446 -> 0 | N48: =B447 -> 0 | O48: =B448 -> 0 | P48: =B449 -> 0 | Q48: =B450 -> 0 | R48: =B451 -> 0 | S48: =B452 -> 0 | T48: =B453 -> 0 | U48: =B454 -> 0 | V48: =B455 -> 0 | W48: =B456 -> 0 | Y48: 0 | Z48: 0 | AA48: 0 | AC48: 0 | AD48: 0 | AE48: 0 | AF48: 0 | AG48: 0 | AH48: 0 | AI48: 0 | AK48: 1958 | AL48: =C445 -> 0.0003560316333 | AM48: =C446 -> 21.8963588 | AN48: =C447 -> 0 | AO48: =C448 -> 70.34045039 | AP48: =C449 -> 163.4434752 | AQ48: =C450 -> 0 | AR48: =C451 -> 2.078911277 | AS48: =C452 -> 6.289692062 | AT48: =C453 -> 8.063637619 | AU48: =C454 -> 5.94487979e-05 | AV48: =C455 -> 0 | AW48: =C456 -> 0 | AY48: 250.216226 | AZ48: 127.235169 | BA48: 272.1129409 | BC48: 255.6802844 | BD48: 0 | BE48: 92.23716522 | BF48: 233.7839256 | BG48: 16.43224096 | BH48: 8.063697068 | BI48: 0 | BK48: 1958 | BL48: =D445 -> 49.26348217 | BM48: =D446 -> 22.03925195 | BN48: =D447 -> 0 | BO48: =D448 -> 70.3732778 | BP48: =D449 -> 184.9668083 | BQ48: =D450 -> 0 | BR48: =D451 -> 1.951445824 | BS48: =D452 -> 5.904156701 | BT48: =D453 -> 7.570428071 | BU48: =D454 -> 5.994691765e-05 | BV48: =D455 -> 0 | BW48: =D456 -> 0 | BY48: 270.7661766 | BZ48: 144.746476 | CA48: 342.0689107 | CC48: 277.379338 | CD48: 0 | CE48: 141.6760119 | CF48: 255.3400861 | CG48: 15.4260306 | CH48: 7.570488018 | CI48: 0 | CK48: 1958 | CL48: =E445 -> 0.0004098287397 | CM48: =E446 -> 21.90436424 | CN48: =E447 -> 0 | CO48: =E448 -> 70.34162433 | CP48: =E449 -> 161.0425383 | CQ48: =E450 -> 0 | CR48: =E451 -> 1.9469744 | CS48: =E452 -> 5.890520468 | CT48: =E453 -> 7.551883617 | CU48: =E454 -> 6.736177889e-05 | CV48: =E455 -> 0 | CW48: =E456 -> 0 | CY48: 246.7736085 | CZ48: 124.5798672 | DA48: 268.6783825 | DC48: 253.2885269 | DD48: 0 | DE48: 92.2463984 | DF48: 231.3841626 | DG48: 15.38937849 | DH48: 7.551950979 | DI48: 0 | DK48: 1958 | DL48: =F445 ->  | DM48: =F446 ->  | DN48: =F447 ->  | DO48: =F448 ->  | DP48: =F449 ->  | DQ48: =F450 ->  | DR48: =F451 ->  | DS48: =F452 ->  | DT48: =F453 ->  | DU48: =F454 ->  | DV48: =F455 ->  | DW48: =F456 ->  | EK48: 1958 | EL48: =G445 ->  | EM48: =G446 ->  | EN48: =G447 ->  | EO48: =G448 ->  | EP48: =G449 ->  | EQ48: =G450 ->  | ER48: =G451 ->  | ES48: =G452 ->  | ET48: =G453 ->  | EU48: =G454 ->  | EV48: =G455 ->  | EW48: =G456 -> 
A49: 1924-10-31 | B49: =INDIRECT(CONCATENATE("'",B$1,"'!",B$4,(YEAR($A49)-1921)*12+MONTH($A49)+3+IF(ISNUMBER(FIND("PRV",B$6)),1,0)))*IF(AND(B$3>0,TRIM(B$9)="CFS"),Conv_Flags!$C49,1) -> 0 | C49: =INDIRECT(CONCATENATE("'",C$1,"'!",C$4,(YEAR($A49)-1921)*12+MONTH($A49)+3+IF(ISNUMBER(FIND("PRV",C$6)),1,0)))*IF(AND(C$3>0,TRIM(C$9)="CFS"),Conv_Flags!$C49,1) -> 0 | D49: =INDIRECT(CONCATENATE("'",D$1,"'!",D$4,(YEAR($A49)-1921)*12+MONTH($A49)+3+IF(ISNUMBER(FIND("PRV",D$6)),1,0)))*IF(AND(D$3>0,TRIM(D$9)="CFS"),Conv_Flags!$C49,1) -> 0 | E49: =INDIRECT(CONCATENATE("'",E$1,"'!",E$4,(YEAR($A49)-1921)*12+MONTH($A49)+3+IF(ISNUMBER(FIND("PRV",E$6)),1,0)))*IF(AND(E$3>0,TRIM(E$9)="CFS"),Conv_Flags!$C49,1) -> 0 | F49: =INDIRECT(CONCATENATE("'",F$1,"'!",F$4,(YEAR($A49)-1921)*12+MONTH($A49)+3+IF(ISNUMBER(FIND("PRV",F$6)),1,0)))*IF(AND(F$3>0,TRIM(F$9)="CFS"),Conv_Flags!$C49,1) ->  | G49: =INDIRECT(CONCATENATE("'",G$1,"'!",G$4,(YEAR($A49)-1921)*12+MONTH($A49)+3+IF(ISNUMBER(FIND("PRV",G$6)),1,0)))*IF(AND(G$3>0,TRIM(G$9)="CFS"),Conv_Flags!$C49,1) ->  | K49: 1959 | L49: =B457 -> 0 | M49: =B458 -> 0 | N49: =B459 -> 0 | O49: =B460 -> 0 | P49: =B461 -> 0 | Q49: =B462 -> 0 | R49: =B463 -> 0 | S49: =B464 -> 0 | T49: =B465 -> 0 | U49: =B466 -> 0 | V49: =B467 -> 0 | W49: =B468 -> 0 | Y49: 0 | Z49: 0 | AA49: 0 | AC49: 0 | AD49: 0 | AE49: 0 | AF49: 0 | AG49: 0 | AH49: 0 | AI49: 0 | AK49: 1959 | AL49: =C457 -> 0 | AM49: =C458 -> 0 | AN49: =C459 -> 0 | AO49: =C460 -> 36.17327832 | AP49: =C461 -> 74.62959028 | AQ49: =C462 -> 0 | AR49: =C463 -> 0 | AS49: =C464 -> 0 | AT49: =C465 -> 0.0001139542739 | AU49: =C466 -> 0 | AV49: =C467 -> 0 | AW49: =C468 -> 0 | AY49: 110.8029826 | AZ49: 64.59286542 | BA49: 110.8029826 | BC49: 110.8028686 | BD49: 0 | BE49: 36.17327832 | BF49: 110.8028686 | BG49: 0.0001139542739 | BH49: 0.0001139542739 | BI49: 0 | BK49: 1959 | BL49: =D457 -> 0 | BM49: =D458 -> 0 | BN49: =D459 -> 0 | BO49: =D460 -> 36.5154499 | BP49: =D461 -> 92.80493555 | BQ49: =D462 -> 0 | BR49: =D463 -> 0 | BS49: =D464 -> 0 | BT49: =D465 -> 0.0001147680104 | BU49: =D466 -> 0 | BV49: =D467 -> 0 | BW49: =D468 -> 0 | BY49: 129.3205002 | BZ49: 64.59680511 | CA49: 129.3205002 | CC49: 129.3203854 | CD49: 0 | CE49: 36.5154499 | CF49: 129.3203854 | CG49: 0.0001147680104 | CH49: 0.0001147680104 | CI49: 0 | CK49: 1959 | CL49: =E457 -> 0 | CM49: =E458 -> 0 | CN49: =E459 -> 0 | CO49: =E460 -> 36.17230433 | CP49: =E461 -> 73.01811707 | CQ49: =E462 -> 0 | CR49: =E463 -> 0 | CS49: =E464 -> 0 | CT49: =E465 -> 0.0001291535734 | CU49: =E466 -> 0 | CV49: =E467 -> 0 | CW49: =E468 -> 0 | CY49: 109.1905506 | CZ49: 64.59330081 | DA49: 109.1905506 | DC49: 109.1904214 | DD49: 0 | DE49: 36.17230433 | DF49: 109.1904214 | DG49: 0.0001291535734 | DH49: 0.0001291535734 | DI49: 0 | DK49: 1959 | DL49: =F457 ->  | DM49: =F458 ->  | DN49: =F459 ->  | DO49: =F460 ->  | DP49: =F461 ->  | DQ49: =F462 ->  | DR49: =F463 ->  | DS49: =F464 ->  | DT49: =F465 ->  | DU49: =F466 ->  | DV49: =F467 ->  | DW49: =F468 ->  | EK49: 1959 | EL49: =G457 ->  | EM49: =G458 ->  | EN49: =G459 ->  | EO49: =G460 ->  | EP49: =G461 ->  | EQ49: =G462 ->  | ER49: =G463 ->  | ES49: =G464 ->  | ET49: =G465 ->  | EU49: =G466 ->  | EV49: =G467 ->  | EW49: =G468 -> 
A50: 1924-11-30 | B50: =INDIRECT(CONCATENATE("'",B$1,"'!",B$4,(YEAR($A50)-1921)*12+MONTH($A50)+3+IF(ISNUMBER(FIND("PRV",B$6)),1,0)))*IF(AND(B$3>0,TRIM(B$9)="CFS"),Conv_Flags!$C50,1) -> 0 | C50: =INDIRECT(CONCATENATE("'",C$1,"'!",C$4,(YEAR($A50)-1921)*12+MONTH($A50)+3+IF(ISNUMBER(FIND("PRV",C$6)),1,0)))*IF(AND(C$3>0,TRIM(C$9)="CFS"),Conv_Flags!$C50,1) -> 0 | D50: =INDIRECT(CONCATENATE("'",D$1,"'!",D$4,(YEAR($A50)-1921)*12+MONTH($A50)+3+IF(ISNUMBER(FIND("PRV",D$6)),1,0)))*IF(AND(D$3>0,TRIM(D$9)="CFS"),Conv_Flags!$C50,1) -> 0 | E50: =INDIRECT(CONCATENATE("'",E$1,"'!",E$4,(YEAR($A50)-1921)*12+MONTH($A50)+3+IF(ISNUMBER(FIND("PRV",E$6)),1,0)))*IF(AND(E$3>0,TRIM(E$9)="CFS"),Conv_Flags!$C50,1) -> 0 | F50: =INDIRECT(CONCATENATE("'",F$1,"'!",F$4,(YEAR($A50)-1921)*12+MONTH($A50)+3+IF(ISNUMBER(FIND("PRV",F$6)),1,0)))*IF(AND(F$3>0,TRIM(F$9)="CFS"),Conv_Flags!$C50,1) ->  | G50: =INDIRECT(CONCATENATE("'",G$1,"'!",G$4,(YEAR($A50)-1921)*12+MONTH($A50)+3+IF(ISNUMBER(FIND("PRV",G$6)),1,0)))*IF(AND(G$3>0,TRIM(G$9)="CFS"),Conv_Flags!$C50,1) ->  | K50: 1960 | L50: =B469 -> 0 | M50: =B470 -> 0 | N50: =B471 -> 0 | O50: =B472 -> 0 | P50: =B473 -> 0 | Q50: =B474 -> 0 | R50: =B475 -> 0 | S50: =B476 -> 0 | T50: =B477 -> 0 | U50: =B478 -> 0 | V50: =B479 -> 0 | W50: =B480 -> 0 | Y50: 0 | Z50: 0 | AA50: 0 | AC50: 0 | AD50: 0 | AE50: 0 | AF50: 0 | AG50: 0 | AH50: 0 | AI50: 0 | AK50: 1960 | AL50: =C469 -> 0 | AM50: =C470 -> 0 | AN50: =C471 -> 0 | AO50: =C472 -> 0 | AP50: =C473 -> 64.59275147 | AQ50: =C474 -> 132.697898 | AR50: =C475 -> 0 | AS50: =C476 -> 0 | AT50: =C477 -> 0 | AU50: =C478 -> 0 | AV50: =C479 -> 0 | AW50: =C480 -> 0 | AY50: 197.2906495 | AZ50: 198.9314591 | BA50: 197.2906495 | BC50: 197.2906495 | BD50: 0 | BE50: 0 | BF50: 64.59275147 | BG50: 132.697898 | BH50: 0 | BI50: 0 | BK50: 1960 | BL50: =D469 -> 0 | BM50: =D470 -> 0 | BN50: =D471 -> 0 | BO50: =D472 -> 0 | BP50: =D473 -> 64.59669034 | BQ50: =D474 -> 132.6975005 | BR50: =D475 -> 0 | BS50: =D476 -> 0 | BT50: =D477 -> 0 | BU50: =D478 -> 0 | BV50: =D479 -> 0 | BW50: =D480 -> 0 | BY50: 197.2941908 | BZ50: 204.8946042 | CA50: 197.2941908 | CC50: 197.2941908 | CD50: 0 | CE50: 0 | CF50: 64.59669034 | CG50: 132.6975005 | CH50: 0 | CI50: 0 | CK50: 1960 | CL50: =E469 -> 0 | CM50: =E470 -> 0 | CN50: =E471 -> 0 | CO50: =E472 -> 0 | CP50: =E473 -> 64.59317166 | CQ50: =E474 -> 132.6982132 | CR50: =E475 -> 0 | CS50: =E476 -> 0 | CT50: =E477 -> 0 | CU50: =E478 -> 0 | CV50: =E479 -> 0 | CW50: =E480 -> 0 | CY50: 197.2913848 | CZ50: 198.9377317 | DA50: 197.2913848 | DC50: 197.2913848 | DD50: 0 | DE50: 0 | DF50: 64.59317166 | DG50: 132.6982132 | DH50: 0 | DI50: 0 | DK50: 1960 | DL50: =F469 ->  | DM50: =F470 ->  | DN50: =F471 ->  | DO50: =F472 ->  | DP50: =F473 ->  | DQ50: =F474 ->  | DR50: =F475 ->  | DS50: =F476 ->  | DT50: =F477 ->  | DU50: =F478 ->  | DV50: =F479 ->  | DW50: =F480 ->  | EK50: 1960 | EL50: =G469 ->  | EM50: =G470 ->  | EN50: =G471 ->  | EO50: =G472 ->  | EP50: =G473 ->  | EQ50: =G474 ->  | ER50: =G475 ->  | ES50: =G476 ->  | ET50: =G477 ->  | EU50: =G478 ->  | EV50: =G479 ->  | EW50: =G480 -> 
A51: 1924-12-31 | B51: =INDIRECT(CONCATENATE("'",B$1,"'!",B$4,(YEAR($A51)-1921)*12+MONTH($A51)+3+IF(ISNUMBER(FIND("PRV",B$6)),1,0)))*IF(AND(B$3>0,TRIM(B$9)="CFS"),Conv_Flags!$C51,1) -> 0 | C51: =INDIRECT(CONCATENATE("'",C$1,"'!",C$4,(YEAR($A51)-1921)*12+MONTH($A51)+3+IF(ISNUMBER(FIND("PRV",C$6)),1,0)))*IF(AND(C$3>0,TRIM(C$9)="CFS"),Conv_Flags!$C51,1) -> 72.97795196 | D51: =INDIRECT(CONCATENATE("'",D$1,"'!",D$4,(YEAR($A51)-1921)*12+MONTH($A51)+3+IF(ISNUMBER(FIND("PRV",D$6)),1,0)))*IF(AND(D$3>0,TRIM(D$9)="CFS"),Conv_Flags!$C51,1) -> 73.08850007 | E51: =INDIRECT(CONCATENATE("'",E$1,"'!",E$4,(YEAR($A51)-1921)*12+MONTH($A51)+3+IF(ISNUMBER(FIND("PRV",E$6)),1,0)))*IF(AND(E$3>0,TRIM(E$9)="CFS"),Conv_Flags!$C51,1) -> 72.68184878 | F51: =INDIRECT(CONCATENATE("'",F$1,"'!",F$4,(YEAR($A51)-1921)*12+MONTH($A51)+3+IF(ISNUMBER(FIND("PRV",F$6)),1,0)))*IF(AND(F$3>0,TRIM(F$9)="CFS"),Conv_Flags!$C51,1) ->  | G51: =INDIRECT(CONCATENATE("'",G$1,"'!",G$4,(YEAR($A51)-1921)*12+MONTH($A51)+3+IF(ISNUMBER(FIND("PRV",G$6)),1,0)))*IF(AND(G$3>0,TRIM(G$9)="CFS"),Conv_Flags!$C51,1) ->  | K51: 1961 | L51: =B481 -> 0 | M51: =B482 -> 0 | N51: =B483 -> 0 | O51: =B484 -> 0 | P51: =B485 -> 0 | Q51: =B486 -> 0 | R51: =B487 -> 0 | S51: =B488 -> 0 | T51: =B489 -> 0 | U51: =B490 -> 0 | V51: =B491 -> 0 | W51: =B492 -> 0 | Y51: 0 | Z51: 0 | AA51: 0 | AC51: 0 | AD51: 0 | AE51: 0 | AF51: 0 | AG51: 0 | AH51: 0 | AI51: 0 | AK51: 1961 | AL51: =C481 -> 0 | AM51: =C482 -> 0 | AN51: =C483 -> 0 | AO51: =C484 -> 0 | AP51: =C485 -> 66.23356101 | AQ51: =C486 -> 4.746052312 | AR51: =C487 -> 0 | AS51: =C488 -> 0 | AT51: =C489 -> 0 | AU51: =C490 -> 0 | AV51: =C491 -> 0 | AW51: =C492 -> 0 | AY51: 174.8290393 | AZ51: 239.8459609 | BA51: 70.97961333 | BC51: 70.97961333 | BD51: 0 | BE51: 0 | BF51: 66.23356101 | BG51: 4.746052312 | BH51: 0 | BI51: 0 | BK51: 1961 | BL51: =D481 -> 0 | BM51: =D482 -> 0 | BN51: =D483 -> 0 | BO51: =D484 -> 0 | BP51: =D485 -> 72.19710376 | BQ51: =D486 -> 18.26009654 | BR51: =D487 -> 0 | BS51: =D488 -> 0 | BT51: =D489 -> 0 | BU51: =D490 -> 0 | BV51: =D491 -> 0 | BW51: =D492 -> 0 | BY51: 194.3581683 | BZ51: 254.0789279 | CA51: 90.45720029 | CC51: 90.45720029 | CD51: 0 | CE51: 0 | CF51: 72.19710376 | CG51: 18.26009654 | CH51: 0 | CI51: 0 | CK51: 1961 | CL51: =E481 -> 0 | CM51: =E482 -> 0 | CN51: =E483 -> 0 | CO51: =E484 -> 0 | CP51: =E485 -> 66.23951852 | CQ51: =E486 -> 4.75125081 | CR51: =E487 -> 0 | CS51: =E488 -> 0 | CT51: =E489 -> 0 | CU51: =E490 -> 0 | CV51: =E491 -> 0 | CW51: =E492 -> 0 | CY51: 173.966639 | CZ51: 239.2375701 | DA51: 70.99076933 | DC51: 70.99076933 | DD51: 0 | DE51: 0 | DF51: 66.23951852 | DG51: 4.75125081 | DH51: 0 | DI51: 0 | DK51: 1961 | DL51: =F481 ->  | DM51: =F482 ->  | DN51: =F483 ->  | DO51: =F484 ->  | DP51: =F485 ->  | DQ51: =F486 ->  | DR51: =F487 ->  | DS51: =F488 ->  | DT51: =F489 ->  | DU51: =F490 ->  | DV51: =F491 ->  | DW51: =F492 ->  | EK51: 1961 | EL51: =G481 ->  | EM51: =G482 ->  | EN51: =G483 ->  | EO51: =G484 ->  | EP51: =G485 ->  | EQ51: =G486 ->  | ER51: =G487 ->  | ES51: =G488 ->  | ET51: =G489 ->  | EU51: =G490 ->  | EV51: =G491 ->  | EW51: =G492 -> 
A52: 1925-01-31 | B52: =INDIRECT(CONCATENATE("'",B$1,"'!",B$4,(YEAR($A52)-1921)*12+MONTH($A52)+3+IF(ISNUMBER(FIND("PRV",B$6)),1,0)))*IF(AND(B$3>0,TRIM(B$9)="CFS"),Conv_Flags!$C52,1) -> 0 | C52: =INDIRECT(CONCATENATE("'",C$1,"'!",C$4,(YEAR($A52)-1921)*12+MONTH($A52)+3+IF(ISNUMBER(FIND("PRV",C$6)),1,0)))*IF(AND(C$3>0,TRIM(C$9)="CFS"),Conv_Flags!$C52,1) -> 0 | D52: =INDIRECT(CONCATENATE("'",D$1,"'!",D$4,(YEAR($A52)-1921)*12+MONTH($A52)+3+IF(ISNUMBER(FIND("PRV",D$6)),1,0)))*IF(AND(D$3>0,TRIM(D$9)="CFS"),Conv_Flags!$C52,1) -> 0 | E52: =INDIRECT(CONCATENATE("'",E$1,"'!",E$4,(YEAR($A52)-1921)*12+MONTH($A52)+3+IF(ISNUMBER(FIND("PRV",E$6)),1,0)))*IF(AND(E$3>0,TRIM(E$9)="CFS"),Conv_Flags!$C52,1) -> 0 | F52: =INDIRECT(CONCATENATE("'",F$1,"'!",F$4,(YEAR($A52)-1921)*12+MONTH($A52)+3+IF(ISNUMBER(FIND("PRV",F$6)),1,0)))*IF(AND(F$3>0,TRIM(F$9)="CFS"),Conv_Flags!$C52,1) ->  | G52: =INDIRECT(CONCATENATE("'",G$1,"'!",G$4,(YEAR($A52)-1921)*12+MONTH($A52)+3+IF(ISNUMBER(FIND("PRV",G$6)),1,0)))*IF(AND(G$3>0,TRIM(G$9)="CFS"),Conv_Flags!$C52,1) ->  | K52: 1962 | L52: =B493 -> 0 | M52: =B494 -> 0 | N52: =B495 -> 0 | O52: =B496 -> 0 | P52: =B497 -> 0 | Q52: =B498 -> 0 | R52: =B499 -> 0 | S52: =B500 -> 0 | T52: =B501 -> 0 | U52: =B502 -> 0 | V52: =B503 -> 0 | W52: =B504 -> 0 | Y52: 0 | Z52: 0 | AA52: 0 | AC52: 0 | AD52: 0 | AE52: 0 | AF52: 0 | AG52: 0 | AH52: 0 | AI52: 0 | AK52: 1962 | AL52: =C493 -> 0 | AM52: =C494 -> 0 | AN52: =C495 -> 103.8494259 | AO52: =C496 -> 0 | AP52: =C497 -> 131.2504827 | AQ52: =C498 -> 134.2124018 | AR52: =C499 -> 0 | AS52: =C500 -> 0 | AT52: =C501 -> 0 | AU52: =C502 -> 0 | AV52: =C503 -> 0 | AW52: =C504 -> 0 | AY52: 300.6137465 | AZ52: 319.9087184 | BA52: 369.3123104 | BC52: 369.3123104 | BD52: 0 | BE52: 103.8494259 | BF52: 235.0999086 | BG52: 134.2124018 | BH52: 0 | BI52: 0.0005884957768 | BK52: 1962 | BL52: =D493 -> 0 | BM52: =D494 -> 0 | BN52: =D495 -> 103.900968 | BO52: =D496 -> 0 | BP52: =D497 -> 131.9178634 | BQ52: =D498 -> 133.0877621 | BR52: =D499 -> 0 | BS52: =D500 -> 0 | BT52: =D501 -> 0 | BU52: =D502 -> 0.0002988721727 | BV52: =D503 -> 0 | BW52: =D504 -> 0 | BY52: 300.1634757 | BZ52: 318.7910669 | CA52: 368.9068923 | CC52: 368.9065935 | CD52: 0 | CE52: 103.900968 | CF52: 235.8188314 | CG52: 133.0877621 | CH52: 0.0002988721727 | CI52: 0.0004111093975 | CK52: 1962 | CL52: =E493 -> 0 | CM52: =E494 -> 0 | CN52: =E495 -> 102.9758697 | CO52: =E496 -> 0 | CP52: =E497 -> 131.5104495 | CQ52: =E498 -> 133.7023147 | CR52: =E499 -> 0 | CS52: =E500 -> 0 | CT52: =E501 -> 0 | CU52: =E502 -> 0 | CV52: =E503 -> 0 | CW52: =E504 -> 0 | CY52: 300.3613252 | CZ52: 319.3963302 | DA52: 368.188634 | DC52: 368.188634 | DD52: 0 | DE52: 102.9758697 | DF52: 234.4863193 | DG52: 133.7023147 | DH52: 0 | DI52: 0.0006773777798 | DK52: 1962 | DL52: =F493 ->  | DM52: =F494 ->  | DN52: =F495 ->  | DO52: =F496 ->  | DP52: =F497 ->  | DQ52: =F498 ->  | DR52: =F499 ->  | DS52: =F500 ->  | DT52: =F501 ->  | DU52: =F502 ->  | DV52: =F503 ->  | DW52: =F504 ->  | EK52: 1962 | EL52: =G493 ->  | EM52: =G494 ->  | EN52: =G495 ->  | EO52: =G496 ->  | EP52: =G497 ->  | EQ52: =G498 ->  | ER52: =G499 ->  | ES52: =G500 ->  | ET52: =G501 ->  | EU52: =G502 ->  | EV52: =G503 ->  | EW52: =G504 -> 
A53: 1925-02-28 | B53: =INDIRECT(CONCATENATE("'",B$1,"'!",B$4,(YEAR($A53)-1921)*12+MONTH($A53)+3+IF(ISNUMBER(FIND("PRV",B$6)),1,0)))*IF(AND(B$3>0,TRIM(B$9)="CFS"),Conv_Flags!$C53,1) -> 0 | C53: =INDIRECT(CONCATENATE("'",C$1,"'!",C$4,(YEAR($A53)-1921)*12+MONTH($A53)+3+IF(ISNUMBER(FIND("PRV",C$6)),1,0)))*IF(AND(C$3>0,TRIM(C$9)="CFS"),Conv_Flags!$C53,1) -> 150.5454545 | D53: =INDIRECT(CONCATENATE("'",D$1,"'!",D$4,(YEAR($A53)-1921)*12+MONTH($A53)+3+IF(ISNUMBER(FIND("PRV",D$6)),1,0)))*IF(AND(D$3>0,TRIM(D$9)="CFS"),Conv_Flags!$C53,1) -> 150.5454545 | E53: =INDIRECT(CONCATENATE("'",E$1,"'!",E$4,(YEAR($A53)-1921)*12+MONTH($A53)+3+IF(ISNUMBER(FIND("PRV",E$6)),1,0)))*IF(AND(E$3>0,TRIM(E$9)="CFS"),Conv_Flags!$C53,1) -> 150.5454545 | F53: =INDIRECT(CONCATENATE("'",F$1,"'!",F$4,(YEAR($A53)-1921)*12+MONTH($A53)+3+IF(ISNUMBER(FIND("PRV",F$6)),1,0)))*IF(AND(F$3>0,TRIM(F$9)="CFS"),Conv_Flags!$C53,1) ->  | G53: =INDIRECT(CONCATENATE("'",G$1,"'!",G$4,(YEAR($A53)-1921)*12+MONTH($A53)+3+IF(ISNUMBER(FIND("PRV",G$6)),1,0)))*IF(AND(G$3>0,TRIM(G$9)="CFS"),Conv_Flags!$C53,1) ->  | K53: 1963 | L53: =B505 -> 0 | M53: =B506 -> 0 | N53: =B507 -> 0 | O53: =B508 -> 0 | P53: =B509 -> 0 | Q53: =B510 -> 0 | R53: =B511 -> 0 | S53: =B512 -> 0 | T53: =B513 -> 0 | U53: =B514 -> 0 | V53: =B515 -> 0 | W53: =B516 -> 0 | Y53: 0 | Z53: 0 | AA53: 0 | AC53: 0 | AD53: 0 | AE53: 0 | AF53: 0 | AG53: 0 | AH53: 0 | AI53: 0 | AK53: 1963 | AL53: =C505 -> 0 | AM53: =C506 -> 0.0005884957768 | AN53: =C507 -> 35.15027356 | AO53: =C508 -> 0 | AP53: =C509 -> 150.5454545 | AQ53: =C510 -> 138.8444008 | AR53: =C511 -> 208.8595041 | AS53: =C512 -> 0 | AT53: =C513 -> 4.751941001e-05 | AU53: =C514 -> 0 | AV53: =C515 -> 0 | AW53: =C516 -> 0 | AY53: 525.7608736 | AZ53: 395.3328985 | BA53: 533.4002691 | BC53: 324.5407175 | BD53: 0.0003237836254 | BE53: 35.15086206 | BF53: 185.6957281 | BG53: 347.7039525 | BH53: 4.751941001e-05 | BI53: 27.51146651 | BK53: 1963 | BL53: =D505 -> 0 | BM53: =D506 -> 0.0004111093975 | BN53: =D507 -> 35.15714027 | BO53: =D508 -> 0 | BP53: =D509 -> 150.5454545 | BQ53: =D510 -> 147.1979604 | BR53: =D511 -> 208.8595041 | BS53: =D512 -> 0 | BT53: =D513 -> 5.235172883e-05 | BU53: =D514 -> 0 | BV53: =D515 -> 0 | BW53: =D516 -> 0 | BY53: 534.1008424 | BZ53: 403.6735837 | CA53: 541.7605228 | CC53: 332.9009663 | CD53: 0 | CE53: 35.15755138 | CF53: 185.7025948 | CG53: 356.0575169 | CH53: 5.235172883e-05 | CI53: 27.49787104 | CK53: 1963 | CL53: =E505 -> 0 | CM53: =E506 -> 0.0006773777798 | CN53: =E507 -> 35.14788362 | CO53: =E508 -> 0 | CP53: =E509 -> 150.5454545 | CQ53: =E510 -> 146.3276962 | CR53: =E511 -> 208.8595041 | CS53: =E512 -> 0 | CT53: =E513 -> 5.15981607e-05 | CU53: =E514 -> 0 | CV53: =E515 -> 0 | CW53: =E516 -> 0 | CY53: 533.2162839 | CZ53: 402.7856827 | DA53: 540.8812674 | DC53: 332.0217117 | DD53: 0 | DE53: 35.148561 | DF53: 185.6933382 | DG53: 355.1872519 | DH53: 5.15981607e-05 | DI53: 27.48357751 | DK53: 1963 | DL53: =F505 ->  | DM53: =F506 ->  | DN53: =F507 ->  | DO53: =F508 ->  | DP53: =F509 ->  | DQ53: =F510 ->  | DR53: =F511 ->  | DS53: =F512 ->  | DT53: =F513 ->  | DU53: =F514 ->  | DV53: =F515 ->  | DW53: =F516 ->  | EK53: 1963 | EL53: =G505 ->  | EM53: =G506 ->  | EN53: =G507 ->  | EO53: =G508 ->  | EP53: =G509 ->  | EQ53: =G510 ->  | ER53: =G511 ->  | ES53: =G512 ->  | ET53: =G513 ->  | EU53: =G514 ->  | EV53: =G515 ->  | EW53: =G516 -> 
A54: 1925-03-31 | B54: =INDIRECT(CONCATENATE("'",B$1,"'!",B$4,(YEAR($A54)-1921)*12+MONTH($A54)+3+IF(ISNUMBER(FIND("PRV",B$6)),1,0)))*IF(AND(B$3>0,TRIM(B$9)="CFS"),Conv_Flags!$C54,1) -> 0 | C54: =INDIRECT(CONCATENATE("'",C$1,"'!",C$4,(YEAR($A54)-1921)*12+MONTH($A54)+3+IF(ISNUMBER(FIND("PRV",C$6)),1,0)))*IF(AND(C$3>0,TRIM(C$9)="CFS"),Conv_Flags!$C54,1) -> 0 | D54: =INDIRECT(CONCATENATE("'",D$1,"'!",D$4,(YEAR($A54)-1921)*12+MONTH($A54)+3+IF(ISNUMBER(FIND("PRV",D$6)),1,0)))*IF(AND(D$3>0,TRIM(D$9)="CFS"),Conv_Flags!$C54,1) -> 0 | E54: =INDIRECT(CONCATENATE("'",E$1,"'!",E$4,(YEAR($A54)-1921)*12+MONTH($A54)+3+IF(ISNUMBER(FIND("PRV",E$6)),1,0)))*IF(AND(E$3>0,TRIM(E$9)="CFS"),Conv_Flags!$C54,1) -> 0 | F54: =INDIRECT(CONCATENATE("'",F$1,"'!",F$4,(YEAR($A54)-1921)*12+MONTH($A54)+3+IF(ISNUMBER(FIND("PRV",F$6)),1,0)))*IF(AND(F$3>0,TRIM(F$9)="CFS"),Conv_Flags!$C54,1) ->  | G54: =INDIRECT(CONCATENATE("'",G$1,"'!",G$4,(YEAR($A54)-1921)*12+MONTH($A54)+3+IF(ISNUMBER(FIND("PRV",G$6)),1,0)))*IF(AND(G$3>0,TRIM(G$9)="CFS"),Conv_Flags!$C54,1) ->  | K54: 1964 | L54: =B517 -> 0 | M54: =B518 -> 0 | N54: =B519 -> 0 | O54: =B520 -> 0 | P54: =B521 -> 0 | Q54: =B522 -> 0 | R54: =B523 -> 0 | S54: =B524 -> 0 | T54: =B525 -> 0 | U54: =B526 -> 0 | V54: =B527 -> 0 | W54: =B528 -> 0 | Y54: 0 | Z54: 0 | AA54: 0 | AC54: 0 | AD54: 0 | AE54: 0 | AF54: 0 | AG54: 0 | AH54: 0 | AI54: 0 | AK54: 1964 | AL54: =C517 -> 0.0003237836254 | AM54: =C518 -> 27.51114273 | AN54: =C519 -> 0 | AO54: =C520 -> 20.1174795 | AP54: =C521 -> 0 | AQ54: =C522 -> 0 | AR54: =C523 -> 0 | AS54: =C524 -> 0 | AT54: =C525 -> 0 | AU54: =C526 -> 0 | AV54: =C527 -> 0 | AW54: =C528 -> 0 | AY54: 20.1174795 | AZ54: 251.354102 | BA54: 47.62894601 | BC54: 47.62862223 | BD54: 0 | BE54: 47.62894601 | BF54: 20.1174795 | BG54: 0 | BH54: 0 | BI54: 0 | BK54: 1964 | BL54: =D517 -> 0 | BM54: =D518 -> 27.49787104 | BN54: =D519 -> 0 | BO54: =D520 -> 20.11819579 | BP54: =D521 -> 0 | BQ54: =D522 -> 0 | BR54: =D523 -> 0 | BS54: =D524 -> 0 | BT54: =D525 -> 0 | BU54: =D526 -> 0 | BV54: =D527 -> 0 | BW54: =D528 -> 0 | BY54: 20.11819579 | BZ54: 251.3576661 | CA54: 47.61606684 | CC54: 47.61606684 | CD54: 0 | CE54: 47.61606684 | CF54: 20.11819579 | CG54: 0 | CH54: 0 | CI54: 0 | CK54: 1964 | CL54: =E517 -> 0 | CM54: =E518 -> 27.48357751 | CN54: =E519 -> 0 | CO54: =E520 -> 20.11485333 | CP54: =E521 -> 0 | CQ54: =E522 -> 0 | CR54: =E523 -> 0 | CS54: =E524 -> 0 | CT54: =E525 -> 0 | CU54: =E526 -> 0 | CV54: =E527 -> 0 | CW54: =E528 -> 0 | CY54: 20.11485333 | CZ54: 251.3543823 | DA54: 47.59843084 | DC54: 47.59843084 | DD54: 0 | DE54: 47.59843084 | DF54: 20.11485333 | DG54: 0 | DH54: 0 | DI54: 0 | DK54: 1964 | DL54: =F517 ->  | DM54: =F518 ->  | DN54: =F519 ->  | DO54: =F520 ->  | DP54: =F521 ->  | DQ54: =F522 ->  | DR54: =F523 ->  | DS54: =F524 ->  | DT54: =F525 ->  | DU54: =F526 ->  | DV54: =F527 ->  | DW54: =F528 ->  | EK54: 1964 | EL54: =G517 ->  | EM54: =G518 ->  | EN54: =G519 ->  | EO54: =G520 ->  | EP54: =G521 ->  | EQ54: =G522 ->  | ER54: =G523 ->  | ES54: =G524 ->  | ET54: =G525 ->  | EU54: =G526 ->  | EV54: =G527 ->  | EW54: =G528 -> 
A55: 1925-04-30 | B55: =INDIRECT(CONCATENATE("'",B$1,"'!",B$4,(YEAR($A55)-1921)*12+MONTH($A55)+3+IF(ISNUMBER(FIND("PRV",B$6)),1,0)))*IF(AND(B$3>0,TRIM(B$9)="CFS"),Conv_Flags!$C55,1) -> 0 | C55: =INDIRECT(CONCATENATE("'",C$1,"'!",C$4,(YEAR($A55)-1921)*12+MONTH($A55)+3+IF(ISNUMBER(FIND("PRV",C$6)),1,0)))*IF(AND(C$3>0,TRIM(C$9)="CFS"),Conv_Flags!$C55,1) -> 0 | D55: =INDIRECT(CONCATENATE("'",D$1,"'!",D$4,(YEAR($A55)-1921)*12+MONTH($A55)+3+IF(ISNUMBER(FIND("PRV",D$6)),1,0)))*IF(AND(D$3>0,TRIM(D$9)="CFS"),Conv_Flags!$C55,1) -> 0 | E55: =INDIRECT(CONCATENATE("'",E$1,"'!",E$4,(YEAR($A55)-1921)*12+MONTH($A55)+3+IF(ISNUMBER(FIND("PRV",E$6)),1,0)))*IF(AND(E$3>0,TRIM(E$9)="CFS"),Conv_Flags!$C55,1) -> 0 | F55: =INDIRECT(CONCATENATE("'",F$1,"'!",F$4,(YEAR($A55)-1921)*12+MONTH($A55)+3+IF(ISNUMBER(FIND("PRV",F$6)),1,0)))*IF(AND(F$3>0,TRIM(F$9)="CFS"),Conv_Flags!$C55,1) ->  | G55: =INDIRECT(CONCATENATE("'",G$1,"'!",G$4,(YEAR($A55)-1921)*12+MONTH($A55)+3+IF(ISNUMBER(FIND("PRV",G$6)),1,0)))*IF(AND(G$3>0,TRIM(G$9)="CFS"),Conv_Flags!$C55,1) ->  | K55: 1965 | L55: =B529 -> 0 | M55: =B530 -> 0 | N55: =B531 -> 0 | O55: =B532 -> 0 | P55: =B533 -> 0 | Q55: =B534 -> 0 | R55: =B535 -> 0 | S55: =B536 -> 0 | T55: =B537 -> 0 | U55: =B538 -> 0 | V55: =B539 -> 0 | W55: =B540 -> 0 | Y55: 0 | Z55: 0 | AA55: 0 | AC55: 0 | AD55: 0 | AE55: 0 | AF55: 0 | AG55: 0 | AH55: 0 | AI55: 0 | AK55: 1965 | AL55: =C529 -> 0 | AM55: =C530 -> 0 | AN55: =C531 -> 0 | AO55: =C532 -> 203.6231405 | AP55: =C533 -> 47.73096152 | AQ55: =C534 -> 104.2805806 | AR55: =C535 -> 177.9173554 | AS55: =C536 -> 0 | AT55: =C537 -> 0 | AU55: =C538 -> 0 | AV55: =C539 -> 0 | AW55: =C540 -> 0 | AY55: 591.6185104 | AZ55: 423.3593827 | BA55: 533.5520379 | BC55: 355.6346826 | BD55: 0 | BE55: 203.6231405 | BF55: 251.354102 | BG55: 282.1979359 | BH55: 0 | BI55: 23.58149851 | BK55: 1965 | BL55: =D529 -> 0 | BM55: =D530 -> 0 | BN55: =D531 -> 0 | BO55: =D532 -> 203.6231405 | BP55: =D533 -> 47.73452565 | BQ55: =D534 -> 104.3030756 | BR55: =D535 -> 177.9173554 | BS55: =D536 -> 0 | BT55: =D537 -> 0 | BU55: =D538 -> 0 | BV55: =D539 -> 0 | BW55: =D540 -> 0 | BY55: 591.6611611 | BZ55: 423.4028283 | CA55: 533.5780972 | CC55: 355.6607418 | CD55: 0 | CE55: 203.6231405 | CF55: 251.3576661 | CG55: 282.220431 | CH55: 0 | CI55: 23.58377464 | CK55: 1965 | CL55: =E529 -> 0 | CM55: =E530 -> 0 | CN55: =E531 -> 0 | CO55: =E532 -> 203.6231405 | CP55: =E533 -> 47.7312418 | CQ55: =E534 -> 104.2788583 | CR55: =E535 -> 177.9173554 | CS55: =E536 -> 0 | CT55: =E537 -> 0 | CU55: =E538 -> 0 | CV55: =E539 -> 0 | CW55: =E540 -> 0 | CY55: 591.6186231 | CZ55: 423.3598048 | DA55: 533.550596 | DC55: 355.6332406 | DD55: 0 | DE55: 203.6231405 | DF55: 251.3543823 | DG55: 282.1962137 | DH55: 0 | DI55: 23.58187513 | DK55: 1965 | DL55: =F529 ->  | DM55: =F530 ->  | DN55: =F531 ->  | DO55: =F532 ->  | DP55: =F533 ->  | DQ55: =F534 ->  | DR55: =F535 ->  | DS55: =F536 ->  | DT55: =F537 ->  | DU55: =F538 ->  | DV55: =F539 ->  | DW55: =F540 ->  | EK55: 1965 | EL55: =G529 ->  | EM55: =G530 ->  | EN55: =G531 ->  | EO55: =G532 ->  | EP55: =G533 ->  | EQ55: =G534 ->  | ER55: =G535 ->  | ES55: =G536 ->  | ET55: =G537 ->  | EU55: =G538 ->  | EV55: =G539 ->  | EW55: =G540 -> 
A56: 1925-05-31 | B56: =INDIRECT(CONCATENATE("'",B$1,"'!",B$4,(YEAR($A56)-1921)*12+MONTH($A56)+3+IF(ISNUMBER(FIND("PRV",B$6)),1,0)))*IF(AND(B$3>0,TRIM(B$9)="CFS"),Conv_Flags!$C56,1) -> 0 | C56: =INDIRECT(CONCATENATE("'",C$1,"'!",C$4,(YEAR($A56)-1921)*12+MONTH($A56)+3+IF(ISNUMBER(FIND("PRV",C$6)),1,0)))*IF(AND(C$3>0,TRIM(C$9)="CFS"),Conv_Flags!$C56,1) -> 0 | D56: =INDIRECT(CONCATENATE("'",D$1,"'!",D$4,(YEAR($A56)-1921)*12+MONTH($A56)+3+IF(ISNUMBER(FIND("PRV",D$6)),1,0)))*IF(AND(D$3>0,TRIM(D$9)="CFS"),Conv_Flags!$C56,1) -> 0 | E56: =INDIRECT(CONCATENATE("'",E$1,"'!",E$4,(YEAR($A56)-1921)*12+MONTH($A56)+3+IF(ISNUMBER(FIND("PRV",E$6)),1,0)))*IF(AND(E$3>0,TRIM(E$9)="CFS"),Conv_Flags!$C56,1) -> 0 | F56: =INDIRECT(CONCATENATE("'",F$1,"'!",F$4,(YEAR($A56)-1921)*12+MONTH($A56)+3+IF(ISNUMBER(FIND("PRV",F$6)),1,0)))*IF(AND(F$3>0,TRIM(F$9)="CFS"),Conv_Flags!$C56,1) ->  | G56: =INDIRECT(CONCATENATE("'",G$1,"'!",G$4,(YEAR($A56)-1921)*12+MONTH($A56)+3+IF(ISNUMBER(FIND("PRV",G$6)),1,0)))*IF(AND(G$3>0,TRIM(G$9)="CFS"),Conv_Flags!$C56,1) ->  | K56: 1966 | L56: =B541 -> 0 | M56: =B542 -> 0 | N56: =B543 -> 0 | O56: =B544 -> 0 | P56: =B545 -> 0 | Q56: =B546 -> 0 | R56: =B547 -> 0 | S56: =B548 -> 0 | T56: =B549 -> 0 | U56: =B550 -> 0 | V56: =B551 -> 0 | W56: =B552 -> 0 | Y56: 0 | Z56: 0 | AA56: 0 | AC56: 0 | AD56: 0 | AE56: 0 | AF56: 0 | AG56: 0 | AH56: 0 | AI56: 0 | AK56: 1966 | AL56: =C541 -> 0 | AM56: =C542 -> 23.58149851 | AN56: =C543 -> 34.4849739 | AO56: =C544 -> 50.70452128 | AP56: =C545 -> 32.39045313 | AQ56: =C546 -> 138.9742091 | AR56: =C547 -> 0 | AS56: =C548 -> 0 | AT56: =C549 -> 0.0001515434264 | AU56: =C550 -> 0 | AV56: =C551 -> 0 | AW56: =C552 -> 0 | AY56: 222.0693351 | AZ56: 383.6815006 | BA56: 280.1358075 | BC56: 280.1356559 | BD56: 0 | BE56: 108.7709937 | BF56: 117.5799483 | BG56: 138.9743607 | BH56: 0.0001515434264 | BI56: 0 | BK56: 1966 | BL56: =D541 -> 0 | BM56: =D542 -> 23.58377464 | BN56: =D543 -> 34.4992893 | BO56: =D544 -> 50.7078709 | BP56: =D545 -> 32.39146242 | BQ56: =D546 -> 138.974834 | BR56: =D547 -> 0 | BS56: =D548 -> 0 | BT56: =D549 -> 0.0001677358606 | BU56: =D550 -> 9.858087592e-05 | BV56: =D551 -> 0 | BW56: =D552 -> 0 | BY56: 222.0744337 | BZ56: 383.7443764 | CA56: 280.1574976 | CC56: 280.1572313 | CD56: 0 | CE56: 108.7909348 | CF56: 117.5986226 | CG56: 138.9750018 | CH56: 0.0002663167365 | CI56: 0 | CK56: 1966 | CL56: =E541 -> 0 | CM56: =E542 -> 23.58187513 | CN56: =E543 -> 34.48615202 | CO56: =E544 -> 50.70495693 | CP56: =E545 -> 32.39060704 | CQ56: =E546 -> 138.9743278 | CR56: =E547 -> 0 | CS56: =E548 -> 0 | CT56: =E549 -> 0.0001668266534 | CU56: =E550 -> 0 | CV56: =E551 -> 0 | CW56: =E552 -> 0 | CY56: 222.0700586 | CZ56: 383.673272 | DA56: 280.1380857 | DC56: 280.1379189 | DD56: 0 | DE56: 108.7729841 | DF56: 117.581716 | DG56: 138.9744946 | DH56: 0.0001668266534 | DI56: 0 | DK56: 1966 | DL56: =F541 ->  | DM56: =F542 ->  | DN56: =F543 ->  | DO56: =F544 ->  | DP56: =F545 ->  | DQ56: =F546 ->  | DR56: =F547 ->  | DS56: =F548 ->  | DT56: =F549 ->  | DU56: =F550 ->  | DV56: =F551 ->  | DW56: =F552 ->  | EK56: 1966 | EL56: =G541 ->  | EM56: =G542 ->  | EN56: =G543 ->  | EO56: =G544 ->  | EP56: =G545 ->  | EQ56: =G546 ->  | ER56: =G547 ->  | ES56: =G548 ->  | ET56: =G549 ->  | EU56: =G550 ->  | EV56: =G551 ->  | EW56: =G552 -> 
A57: 1925-06-30 | B57: =INDIRECT(CONCATENATE("'",B$1,"'!",B$4,(YEAR($A57)-1921)*12+MONTH($A57)+3+IF(ISNUMBER(FIND("PRV",B$6)),1,0)))*IF(AND(B$3>0,TRIM(B$9)="CFS"),Conv_Flags!$C57,1) -> 0 | C57: =INDIRECT(CONCATENATE("'",C$1,"'!",C$4,(YEAR($A57)-1921)*12+MONTH($A57)+3+IF(ISNUMBER(FIND("PRV",C$6)),1,0)))*IF(AND(C$3>0,TRIM(C$9)="CFS"),Conv_Flags!$C57,1) -> 0 | D57: =INDIRECT(CONCATENATE("'",D$1,"'!",D$4,(YEAR($A57)-1921)*12+MONTH($A57)+3+IF(ISNUMBER(FIND("PRV",D$6)),1,0)))*IF(AND(D$3>0,TRIM(D$9)="CFS"),Conv_Flags!$C57,1) -> 0 | E57: =INDIRECT(CONCATENATE("'",E$1,"'!",E$4,(YEAR($A57)-1921)*12+MONTH($A57)+3+IF(ISNUMBER(FIND("PRV",E$6)),1,0)))*IF(AND(E$3>0,TRIM(E$9)="CFS"),Conv_Flags!$C57,1) -> 0 | F57: =INDIRECT(CONCATENATE("'",F$1,"'!",F$4,(YEAR($A57)-1921)*12+MONTH($A57)+3+IF(ISNUMBER(FIND("PRV",F$6)),1,0)))*IF(AND(F$3>0,TRIM(F$9)="CFS"),Conv_Flags!$C57,1) ->  | G57: =INDIRECT(CONCATENATE("'",G$1,"'!",G$4,(YEAR($A57)-1921)*12+MONTH($A57)+3+IF(ISNUMBER(FIND("PRV",G$6)),1,0)))*IF(AND(G$3>0,TRIM(G$9)="CFS"),Conv_Flags!$C57,1) ->  | K57: 1967 | L57: =B553 -> 0 | M57: =B554 -> 0 | N57: =B555 -> 0 | O57: =B556 -> 0 | P57: =B557 -> 0 | Q57: =B558 -> 0 | R57: =B559 -> 0 | S57: =B560 -> 0 | T57: =B561 -> 0 | U57: =B562 -> 0 | V57: =B563 -> 0 | W57: =B564 -> 0 | Y57: 0 | Z57: 0 | AA57: 0 | AC57: 0 | AD57: 0 | AE57: 0 | AF57: 0 | AG57: 0 | AH57: 0 | AI57: 0 | AK57: 1967 | AL57: =C553 -> 0 | AM57: =C554 -> 0 | AN57: =C555 -> 0 | AO57: =C556 -> 83.58006098 | AP57: =C557 -> 161.1270789 | AQ57: =C558 -> 146.9389862 | AR57: =C559 -> 226.0193206 | AS57: =C560 -> 8.026281603 | AT57: =C561 -> 4.824170149 | AU57: =C562 -> 0 | AV57: =C563 -> 0 | AW57: =C564 -> 0.000184225019 | AY57: 662.0741351 | AZ57: 490.8074448 | BA57: 630.5160827 | BC57: 391.6461261 | BD57: 0.0002389980711 | BE57: 83.58006098 | BF57: 244.7071399 | BG57: 385.8087585 | BH57: 4.824354375 | BI57: 31.55823669 | BK57: 1967 | BL57: =D553 -> 0 | BM57: =D554 -> 0 | BN57: =D555 -> 0 | BO57: =D556 -> 83.52617856 | BP57: =D557 -> 161.2430975 | BQ57: =D558 -> 146.99603 | BR57: =D559 -> 226.0193206 | BS57: =D560 -> 136.4728726 | BT57: =D561 -> 49.55995242 | BU57: =D562 -> 0 | BV57: =D563 -> 0 | BW57: =D564 -> 0.00018692095 | BY57: 810.4940577 | BZ57: 655.2167711 | CA57: 803.8176386 | CC57: 391.765306 | CD57: 0.0002424040149 | CE57: 83.52617856 | CF57: 244.7692761 | CG57: 559.0481756 | CH57: 49.56013934 | CI57: 6.67660604 | CK57: 1967 | CL57: =E553 -> 0 | CM57: =E554 -> 0 | CN57: =E555 -> 0 | CO57: =E556 -> 83.57134028 | CP57: =E557 -> 161.1274371 | CQ57: =E558 -> 146.9380325 | CR57: =E559 -> 126.1937131 | CS57: =E560 -> 6.442689378 | CT57: =E561 -> 4.518007038 | CU57: =E562 -> 0 | CV57: =E563 -> 0 | CW57: =E564 -> 0.0002087745462 | CY57: 560.4014653 | CZ57: 387.8143249 | DA57: 528.7914281 | DC57: 391.6368098 | DD57: 0.0002709433923 | DE57: 83.57134028 | DF57: 244.6987773 | DG57: 284.092442 | DH57: 4.518215813 | DI57: 31.61024603 | DK57: 1967 | DL57: =F553 ->  | DM57: =F554 ->  | DN57: =F555 ->  | DO57: =F556 ->  | DP57: =F557 ->  | DQ57: =F558 ->  | DR57: =F559 ->  | DS57: =F560 ->  | DT57: =F561 ->  | DU57: =F562 ->  | DV57: =F563 ->  | DW57: =F564 ->  | EK57: 1967 | EL57: =G553 ->  | EM57: =G554 ->  | EN57: =G555 ->  | EO57: =G556 ->  | EP57: =G557 ->  | EQ57: =G558 ->  | ER57: =G559 ->  | ES57: =G560 ->  | ET57: =G561 ->  | EU57: =G562 ->  | EV57: =G563 ->  | EW57: =G564 -> 
A58: 1925-07-31 | B58: =INDIRECT(CONCATENATE("'",B$1,"'!",B$4,(YEAR($A58)-1921)*12+MONTH($A58)+3+IF(ISNUMBER(FIND("PRV",B$6)),1,0)))*IF(AND(B$3>0,TRIM(B$9)="CFS"),Conv_Flags!$C58,1) -> 0 | C58: =INDIRECT(CONCATENATE("'",C$1,"'!",C$4,(YEAR($A58)-1921)*12+MONTH($A58)+3+IF(ISNUMBER(FIND("PRV",C$6)),1,0)))*IF(AND(C$3>0,TRIM(C$9)="CFS"),Conv_Flags!$C58,1) -> 0 | D58: =INDIRECT(CONCATENATE("'",D$1,"'!",D$4,(YEAR($A58)-1921)*12+MONTH($A58)+3+IF(ISNUMBER(FIND("PRV",D$6)),1,0)))*IF(AND(D$3>0,TRIM(D$9)="CFS"),Conv_Flags!$C58,1) -> 0 | E58: =INDIRECT(CONCATENATE("'",E$1,"'!",E$4,(YEAR($A58)-1921)*12+MONTH($A58)+3+IF(ISNUMBER(FIND("PRV",E$6)),1,0)))*IF(AND(E$3>0,TRIM(E$9)="CFS"),Conv_Flags!$C58,1) -> 0 | F58: =INDIRECT(CONCATENATE("'",F$1,"'!",F$4,(YEAR($A58)-1921)*12+MONTH($A58)+3+IF(ISNUMBER(FIND("PRV",F$6)),1,0)))*IF(AND(F$3>0,TRIM(F$9)="CFS"),Conv_Flags!$C58,1) ->  | G58: =INDIRECT(CONCATENATE("'",G$1,"'!",G$4,(YEAR($A58)-1921)*12+MONTH($A58)+3+IF(ISNUMBER(FIND("PRV",G$6)),1,0)))*IF(AND(G$3>0,TRIM(G$9)="CFS"),Conv_Flags!$C58,1) ->  | K58: 1968 | L58: =B565 -> 0 | M58: =B566 -> 0 | N58: =B567 -> 0 | O58: =B568 -> 0 | P58: =B569 -> 0 | Q58: =B570 -> 0 | R58: =B571 -> 0 | S58: =B572 -> 0 | T58: =B573 -> 0 | U58: =B574 -> 0 | V58: =B575 -> 0 | W58: =B576 -> 0 | Y58: 0 | Z58: 0 | AA58: 0 | AC58: 0 | AD58: 0 | AE58: 0 | AF58: 0 | AG58: 0 | AH58: 0 | AI58: 0 | AK58: 1968 | AL58: =C565 -> 5.477305209e-05 | AM58: =C566 -> 31.55799769 | AN58: =C567 -> 0 | AO58: =C568 -> 26.83487563 | AP58: =C569 -> 46.60557399 | AQ58: =C570 -> 1.400143019 | AR58: =C571 -> 0 | AS58: =C572 -> 0 | AT58: =C573 -> 9.704819755e-05 | AU58: =C574 -> 0 | AV58: =C575 -> 0 | AW58: =C576 -> 0 | AY58: 74.84068968 | AZ58: 217.9168841 | BA58: 106.3987421 | BC58: 106.3985903 | BD58: 0 | BE58: 58.39292809 | BF58: 73.44044962 | BG58: 1.400240068 | BH58: 9.704819755e-05 | BI58: 0 | BK58: 1968 | BL58: =D565 -> 5.548306493e-05 | BM58: =D566 -> 6.676363636 | BN58: =D567 -> 0 | BO58: =D568 -> 27.19252953 | BP58: =D569 -> 62.29945995 | BQ58: =D570 -> 1.314491354 | BR58: =D571 -> 0 | BS58: =D572 -> 0 | BT58: =D573 -> 0 | BU58: =D574 -> 0 | BV58: =D575 -> 0 | BW58: =D576 -> 0 | BY58: 90.80648084 | BZ58: 299.1219355 | CA58: 97.48289996 | CC58: 97.48284448 | CD58: 0 | CE58: 33.86894865 | CF58: 89.49198949 | CG58: 1.314491354 | CH58: 0 | CI58: 0 | CK58: 1968 | CL58: =E565 -> 6.216884606e-05 | CM58: =E566 -> 31.60997508 | CN58: =E567 -> 0 | CO58: =E568 -> 26.86083324 | CP58: =E569 -> 45.25080368 | CQ58: =E570 -> 1.311283769 | CR58: =E571 -> 0 | CS58: =E572 -> 0 | CT58: =E573 -> 0.000110023014 | CU58: =E574 -> 0 | CV58: =E575 -> 0 | CW58: =E576 -> 0 | CY58: 73.42303071 | CZ58: 220.6609377 | DA58: 105.033068 | DC58: 105.0328958 | DD58: 0 | DE58: 58.47087049 | DF58: 72.11163692 | DG58: 1.311393792 | DH58: 0.000110023014 | DI58: 0 | DK58: 1968 | DL58: =F565 ->  | DM58: =F566 ->  | DN58: =F567 ->  | DO58: =F568 ->  | DP58: =F569 ->  | DQ58: =F570 ->  | DR58: =F571 ->  | DS58: =F572 ->  | DT58: =F573 ->  | DU58: =F574 ->  | DV58: =F575 ->  | DW58: =F576 ->  | EK58: 1968 | EL58: =G565 ->  | EM58: =G566 ->  | EN58: =G567 ->  | EO58: =G568 ->  | EP58: =G569 ->  | EQ58: =G570 ->  | ER58: =G571 ->  | ES58: =G572 ->  | ET58: =G573 ->  | EU58: =G574 ->  | EV58: =G575 ->  | EW58: =G576 -> 
A59: 1925-08-31 | B59: =INDIRECT(CONCATENATE("'",B$1,"'!",B$4,(YEAR($A59)-1921)*12+MONTH($A59)+3+IF(ISNUMBER(FIND("PRV",B$6)),1,0)))*IF(AND(B$3>0,TRIM(B$9)="CFS"),Conv_Flags!$C59,1) -> 0 | C59: =INDIRECT(CONCATENATE("'",C$1,"'!",C$4,(YEAR($A59)-1921)*12+MONTH($A59)+3+IF(ISNUMBER(FIND("PRV",C$6)),1,0)))*IF(AND(C$3>0,TRIM(C$9)="CFS"),Conv_Flags!$C59,1) -> 0 | D59: =INDIRECT(CONCATENATE("'",D$1,"'!",D$4,(YEAR($A59)-1921)*12+MONTH($A59)+3+IF(ISNUMBER(FIND("PRV",D$6)),1,0)))*IF(AND(D$3>0,TRIM(D$9)="CFS"),Conv_Flags!$C59,1) -> 0 | E59: =INDIRECT(CONCATENATE("'",E$1,"'!",E$4,(YEAR($A59)-1921)*12+MONTH($A59)+3+IF(ISNUMBER(FIND("PRV",E$6)),1,0)))*IF(AND(E$3>0,TRIM(E$9)="CFS"),Conv_Flags!$C59,1) -> 0 | F59: =INDIRECT(CONCATENATE("'",F$1,"'!",F$4,(YEAR($A59)-1921)*12+MONTH($A59)+3+IF(ISNUMBER(FIND("PRV",F$6)),1,0)))*IF(AND(F$3>0,TRIM(F$9)="CFS"),Conv_Flags!$C59,1) ->  | G59: =INDIRECT(CONCATENATE("'",G$1,"'!",G$4,(YEAR($A59)-1921)*12+MONTH($A59)+3+IF(ISNUMBER(FIND("PRV",G$6)),1,0)))*IF(AND(G$3>0,TRIM(G$9)="CFS"),Conv_Flags!$C59,1) ->  | K59: 1969 | L59: =B577 -> 0 | M59: =B578 -> 0 | N59: =B579 -> 0 | O59: =B580 -> 0 | P59: =B581 -> 0 | Q59: =B582 -> 0 | R59: =B583 -> 0 | S59: =B584 -> 0 | T59: =B585 -> 0 | U59: =B586 -> 0 | V59: =B587 -> 0 | W59: =B588 -> 0 | Y59: 0 | Z59: 0 | AA59: 0 | AC59: 0 | AD59: 0 | AE59: 0 | AF59: 0 | AG59: 0 | AH59: 0 | AI59: 0 | AK59: 1969 | AL59: =C577 -> 0 | AM59: =C578 -> 0 | AN59: =C579 -> 0 | AO59: =C580 -> 166.5132225 | AP59: =C581 -> 50.0034215 | AQ59: =C582 -> 1.187382717 | AR59: =C583 -> 3.585324232 | AS59: =C584 -> 8.333089811 | AT59: =C585 -> 0 | AU59: =C586 -> 0 | AV59: =C587 -> 0 | AW59: =C588 -> 0 | AY59: 236.2991216 | AZ59: 126.8789129 | BA59: 229.6224407 | BC59: 217.7040267 | BD59: 0.0003172137824 | BE59: 166.5132225 | BF59: 216.516644 | BG59: 13.10579676 | BH59: 0 | BI59: 6.67668085 | BK59: 1969 | BL59: =D577 -> 0 | BM59: =D578 -> 0 | BN59: =D579 -> 0 | BO59: =D580 -> 166.6364864 | BP59: =D581 -> 131.1709577 | BQ59: =D582 -> 1.187382717 | BR59: =D583 -> 3.585324232 | BS59: =D584 -> 8.004921035 | BT59: =D585 -> 0 | BU59: =D586 -> 0 | BV59: =D587 -> 0 | BW59: =D588 -> 0 | BY59: 317.2617557 | BZ59: 126.5229717 | CA59: 310.5850721 | CC59: 298.9948268 | CD59: 0.0003199454339 | CE59: 166.6364864 | CF59: 297.8074441 | CG59: 12.77762798 | CH59: 0 | CI59: 6.676683582 | CK59: 1969 | CL59: =E577 -> 0 | CM59: =E578 -> 0 | CN59: =E579 -> 0 | CO59: =E580 -> 166.5102931 | CP59: =E581 -> 52.83925084 | CQ59: =E582 -> 1.112026173 | CR59: =E583 -> 3.357783746 | CS59: =E584 -> 7.804235185 | CT59: =E585 -> 0 | CU59: =E586 -> 0 | CV59: =E587 -> 0 | CW59: =E588 -> 0 | CY59: 238.3003122 | CZ59: 124.6150959 | DA59: 231.623589 | DC59: 220.4615701 | DD59: 0.0003596010691 | DE59: 166.5102931 | DF59: 219.3495439 | DG59: 12.2740451 | DH59: 0 | DI59: 6.676723237 | DK59: 1969 | DL59: =F577 ->  | DM59: =F578 ->  | DN59: =F579 ->  | DO59: =F580 ->  | DP59: =F581 ->  | DQ59: =F582 ->  | DR59: =F583 ->  | DS59: =F584 ->  | DT59: =F585 ->  | DU59: =F586 ->  | DV59: =F587 ->  | DW59: =F588 ->  | EK59: 1969 | EL59: =G577 ->  | EM59: =G578 ->  | EN59: =G579 ->  | EO59: =G580 ->  | EP59: =G581 ->  | EQ59: =G582 ->  | ER59: =G583 ->  | ES59: =G584 ->  | ET59: =G585 ->  | EU59: =G586 ->  | EV59: =G587 ->  | EW59: =G588 -> 
A60: 1925-09-30 | B60: =INDIRECT(CONCATENATE("'",B$1,"'!",B$4,(YEAR($A60)-1921)*12+MONTH($A60)+3+IF(ISNUMBER(FIND("PRV",B$6)),1,0)))*IF(AND(B$3>0,TRIM(B$9)="CFS"),Conv_Flags!$C60,1) -> 0 | C60: =INDIRECT(CONCATENATE("'",C$1,"'!",C$4,(YEAR($A60)-1921)*12+MONTH($A60)+3+IF(ISNUMBER(FIND("PRV",C$6)),1,0)))*IF(AND(C$3>0,TRIM(C$9)="CFS"),Conv_Flags!$C60,1) -> 0 | D60: =INDIRECT(CONCATENATE("'",D$1,"'!",D$4,(YEAR($A60)-1921)*12+MONTH($A60)+3+IF(ISNUMBER(FIND("PRV",D$6)),1,0)))*IF(AND(D$3>0,TRIM(D$9)="CFS"),Conv_Flags!$C60,1) -> 0 | E60: =INDIRECT(CONCATENATE("'",E$1,"'!",E$4,(YEAR($A60)-1921)*12+MONTH($A60)+3+IF(ISNUMBER(FIND("PRV",E$6)),1,0)))*IF(AND(E$3>0,TRIM(E$9)="CFS"),Conv_Flags!$C60,1) -> 0 | F60: =INDIRECT(CONCATENATE("'",F$1,"'!",F$4,(YEAR($A60)-1921)*12+MONTH($A60)+3+IF(ISNUMBER(FIND("PRV",F$6)),1,0)))*IF(AND(F$3>0,TRIM(F$9)="CFS"),Conv_Flags!$C60,1) ->  | G60: =INDIRECT(CONCATENATE("'",G$1,"'!",G$4,(YEAR($A60)-1921)*12+MONTH($A60)+3+IF(ISNUMBER(FIND("PRV",G$6)),1,0)))*IF(AND(G$3>0,TRIM(G$9)="CFS"),Conv_Flags!$C60,1) ->  | K60: 1970 | L60: =B589 -> 0 | M60: =B590 -> 0 | N60: =B591 -> 0 | O60: =B592 -> 0 | P60: =B593 -> 0 | Q60: =B594 -> 0 | R60: =B595 -> 0 | S60: =B596 -> 0 | T60: =B597 -> 0 | U60: =B598 -> 0 | V60: =B599 -> 0 | W60: =B600 -> 0 | Y60: 0 | Z60: 0 | AA60: 0 | AC60: 0 | AD60: 0 | AE60: 0 | AF60: 0 | AG60: 0 | AH60: 0 | AI60: 0 | AK60: 1970 | AL60: =C589 -> 0.0003172137824 | AM60: =C590 -> 6.676363636 | AN60: =C591 -> 0 | AO60: =C592 -> 107.0964353 | AP60: =C593 -> 0 | AQ60: =C594 -> 1.984645923 | AR60: =C595 -> 0 | AS60: =C596 -> 0 | AT60: =C597 -> 0 | AU60: =C598 -> 0 | AV60: =C599 -> 0 | AW60: =C600 -> 0 | AY60: 184.5756886 | AZ60: 79.29691022 | BA60: 115.7577621 | BC60: 115.7574449 | BD60: 0 | BE60: 113.7731162 | BF60: 107.0964353 | BG60: 1.984645923 | BH60: 0 | BI60: 75.49460734 | BK60: 1970 | BL60: =D589 -> 0.0003199454339 | BM60: =D590 -> 6.676363636 | BN60: =D591 -> 0 | BO60: =D592 -> 107.0686602 | BP60: =D593 -> 0 | BQ60: =D594 -> 1.863114504 | BR60: =D595 -> 0 | BS60: =D596 -> 0 | BT60: =D597 -> 0 | BU60: =D598 -> 0 | BV60: =D599 -> 0 | BW60: =D600 -> 0 | BY60: 184.8679579 | BZ60: 79.56896169 | CA60: 115.6084582 | CC60: 115.6081383 | CD60: 0 | CE60: 113.7453437 | CF60: 107.0686602 | CG60: 1.863114504 | CH60: 0 | CI60: 75.93618321 | CK60: 1970 | CL60: =E589 -> 0.0003596010691 | CM60: =E590 -> 6.676363636 | CN60: =E591 -> 0 | CO60: =E592 -> 105.6643276 | CP60: =E593 -> 0 | CQ60: =E594 -> 1.858691541 | CR60: =E595 -> 0 | CS60: =E596 -> 0 | CT60: =E597 -> 0 | CU60: =E598 -> 0 | CV60: =E599 -> 0 | CW60: =E600 -> 0 | CY60: 180.1182648 | CZ60: 76.15623767 | DA60: 114.1997424 | DC60: 114.1993828 | DD60: 0 | DE60: 112.3410508 | DF60: 105.6643276 | DG60: 1.858691541 | DH60: 0 | DI60: 72.59524569 | DK60: 1970 | DL60: =F589 ->  | DM60: =F590 ->  | DN60: =F591 ->  | DO60: =F592 ->  | DP60: =F593 ->  | DQ60: =F594 ->  | DR60: =F595 ->  | DS60: =F596 ->  | DT60: =F597 ->  | DU60: =F598 ->  | DV60: =F599 ->  | DW60: =F600 ->  | EK60: 1970 | EL60: =G589 ->  | EM60: =G590 ->  | EN60: =G591 ->  | EO60: =G592 ->  | EP60: =G593 ->  | EQ60: =G594 ->  | ER60: =G595 ->  | ES60: =G596 ->  | ET60: =G597 ->  | EU60: =G598 ->  | EV60: =G599 ->  | EW60: =G600 -> 
A61: 1925-10-31 | B61: =INDIRECT(CONCATENATE("'",B$1,"'!",B$4,(YEAR($A61)-1921)*12+MONTH($A61)+3+IF(ISNUMBER(FIND("PRV",B$6)),1,0)))*IF(AND(B$3>0,TRIM(B$9)="CFS"),Conv_Flags!$C61,1) -> 0 | C61: =INDIRECT(CONCATENATE("'",C$1,"'!",C$4,(YEAR($A61)-1921)*12+MONTH($A61)+3+IF(ISNUMBER(FIND("PRV",C$6)),1,0)))*IF(AND(C$3>0,TRIM(C$9)="CFS"),Conv_Flags!$C61,1) -> 0 | D61: =INDIRECT(CONCATENATE("'",D$1,"'!",D$4,(YEAR($A61)-1921)*12+MONTH($A61)+3+IF(ISNUMBER(FIND("PRV",D$6)),1,0)))*IF(AND(D$3>0,TRIM(D$9)="CFS"),Conv_Flags!$C61,1) -> 0 | E61: =INDIRECT(CONCATENATE("'",E$1,"'!",E$4,(YEAR($A61)-1921)*12+MONTH($A61)+3+IF(ISNUMBER(FIND("PRV",E$6)),1,0)))*IF(AND(E$3>0,TRIM(E$9)="CFS"),Conv_Flags!$C61,1) -> 0 | F61: =INDIRECT(CONCATENATE("'",F$1,"'!",F$4,(YEAR($A61)-1921)*12+MONTH($A61)+3+IF(ISNUMBER(FIND("PRV",F$6)),1,0)))*IF(AND(F$3>0,TRIM(F$9)="CFS"),Conv_Flags!$C61,1) ->  | G61: =INDIRECT(CONCATENATE("'",G$1,"'!",G$4,(YEAR($A61)-1921)*12+MONTH($A61)+3+IF(ISNUMBER(FIND("PRV",G$6)),1,0)))*IF(AND(G$3>0,TRIM(G$9)="CFS"),Conv_Flags!$C61,1) ->  | K61: 1971 | L61: =B601 -> 0 | M61: =B602 -> 0 | N61: =B603 -> 0 | O61: =B604 -> 0 | P61: =B605 -> 0 | Q61: =B606 -> 0 | R61: =B607 -> 0 | S61: =B608 -> 0 | T61: =B609 -> 0 | U61: =B610 -> 0 | V61: =B611 -> 0 | W61: =B612 -> 0 | Y61: 0 | Z61: 0 | AA61: 0 | AC61: 0 | AD61: 0 | AE61: 0 | AF61: 0 | AG61: 0 | AH61: 0 | AI61: 0 | AK61: 1971 | AL61: =C601 -> 0 | AM61: =C602 -> 75.49460734 | AN61: =C603 -> 0 | AO61: =C604 -> 0 | AP61: =C605 -> 1.817656963 | AQ61: =C606 -> 0.409222848 | AR61: =C607 -> 0 | AS61: =C608 -> 0 | AT61: =C609 -> 19.61770181 | AU61: =C610 -> 6.005111553e-05 | AV61: =C611 -> 0 | AW61: =C612 -> 0 | AY61: 21.84488135 | AZ61: 43.59722212 | BA61: 97.33924901 | BC61: 77.72148715 | BD61: 0.0002057457591 | BE61: 75.49460734 | BF61: 1.817656963 | BG61: 20.02692466 | BH61: 19.61776186 | BI61: 0.0002396806755 | BK61: 1971 | BL61: =D601 -> 0 | BM61: =D602 -> 75.93618321 | BN61: =D603 -> 0 | BO61: =D604 -> 0 | BP61: =D605 -> 1.769663975 | BQ61: =D606 -> 0.3951984913 | BR61: =D607 -> 0 | BS61: =D608 -> 0 | BT61: =D609 -> 18.56707907 | BU61: =D610 -> 6.053317111e-05 | BV61: =D611 -> 0 | BW61: =D612 -> 0 | BY61: 20.73224382 | BZ61: 42.55120399 | CA61: 96.66818528 | CC61: 78.10104568 | CD61: 0.000207517103 | CE61: 75.93618321 | CF61: 1.769663975 | CG61: 18.96227756 | CH61: 18.56713961 | CI61: 0.0002417516451 | CK61: 1971 | CL61: =E601 -> 0 | CM61: =E602 -> 72.59524569 | CN61: =E603 -> 0 | CO61: =E604 -> 0 | CP61: =E605 -> 1.702300436 | CQ61: =E606 -> 0.3946950146 | CR61: =E607 -> 0 | CS61: =E608 -> 0 | CT61: =E609 -> 18.52753072 | CU61: =E610 -> 6.806720154e-05 | CV61: =E611 -> 0 | CW61: =E612 -> 0 | CY61: 20.62486596 | CZ61: 42.50032545 | DA61: 93.21983993 | DC61: 74.69224114 | DD61: 0.0002331236959 | DE61: 72.59524569 | DF61: 1.702300436 | DG61: 18.92222574 | DH61: 18.52759879 | DI61: 0.000271718927 | DK61: 1971 | DL61: =F601 ->  | DM61: =F602 ->  | DN61: =F603 ->  | DO61: =F604 ->  | DP61: =F605 ->  | DQ61: =F606 ->  | DR61: =F607 ->  | DS61: =F608 ->  | DT61: =F609 ->  | DU61: =F610 ->  | DV61: =F611 ->  | DW61: =F612 ->  | EK61: 1971 | EL61: =G601 ->  | EM61: =G602 ->  | EN61: =G603 ->  | EO61: =G604 ->  | EP61: =G605 ->  | EQ61: =G606 ->  | ER61: =G607 ->  | ES61: =G608 ->  | ET61: =G609 ->  | EU61: =G610 ->  | EV61: =G611 ->  | EW61: =G612 -> 
A62: 1925-11-30 | B62: =INDIRECT(CONCATENATE("'",B$1,"'!",B$4,(YEAR($A62)-1921)*12+MONTH($A62)+3+IF(ISNUMBER(FIND("PRV",B$6)),1,0)))*IF(AND(B$3>0,TRIM(B$9)="CFS"),Conv_Flags!$C62,1) -> 0 | C62: =INDIRECT(CONCATENATE("'",C$1,"'!",C$4,(YEAR($A62)-1921)*12+MONTH($A62)+3+IF(ISNUMBER(FIND("PRV",C$6)),1,0)))*IF(AND(C$3>0,TRIM(C$9)="CFS"),Conv_Flags!$C62,1) -> 0 | D62: =INDIRECT(CONCATENATE("'",D$1,"'!",D$4,(YEAR($A62)-1921)*12+MONTH($A62)+3+IF(ISNUMBER(FIND("PRV",D$6)),1,0)))*IF(AND(D$3>0,TRIM(D$9)="CFS"),Conv_Flags!$C62,1) -> 0 | E62: =INDIRECT(CONCATENATE("'",E$1,"'!",E$4,(YEAR($A62)-1921)*12+MONTH($A62)+3+IF(ISNUMBER(FIND("PRV",E$6)),1,0)))*IF(AND(E$3>0,TRIM(E$9)="CFS"),Conv_Flags!$C62,1) -> 0 | F62: =INDIRECT(CONCATENATE("'",F$1,"'!",F$4,(YEAR($A62)-1921)*12+MONTH($A62)+3+IF(ISNUMBER(FIND("PRV",F$6)),1,0)))*IF(AND(F$3>0,TRIM(F$9)="CFS"),Conv_Flags!$C62,1) ->  | G62: =INDIRECT(CONCATENATE("'",G$1,"'!",G$4,(YEAR($A62)-1921)*12+MONTH($A62)+3+IF(ISNUMBER(FIND("PRV",G$6)),1,0)))*IF(AND(G$3>0,TRIM(G$9)="CFS"),Conv_Flags!$C62,1) ->  | K62: 1972 | L62: =B613 -> 0 | M62: =B614 -> 0 | N62: =B615 -> 0 | O62: =B616 -> 0 | P62: =B617 -> 0 | Q62: =B618 -> 0 | R62: =B619 -> 0 | S62: =B620 -> 0 | T62: =B621 -> 0 | U62: =B622 -> 0 | V62: =B623 -> 0 | W62: =B624 -> 0 | Y62: 0 | Z62: 0 | AA62: 0 | AC62: 0 | AD62: 0 | AE62: 0 | AF62: 0 | AG62: 0 | AH62: 0 | AI62: 0 | AK62: 1972 | AL62: =C613 -> 0.0002057457591 | AM62: =C614 -> 3.393491631e-05 | AN62: =C615 -> 0 | AO62: =C616 -> 0 | AP62: =C617 -> 23.56999772 | AQ62: =C618 -> 127.9720501 | AR62: =C619 -> 0 | AS62: =C620 -> 0 | AT62: =C621 -> 0.0001141364808 | AU62: =C622 -> 0 | AV62: =C623 -> 0 | AW62: =C624 -> 0 | AY62: 151.542162 | AZ62: 320.8939494 | BA62: 151.5424017 | BC62: 151.5420818 | BD62: 0 | BE62: 0.0002396806755 | BF62: 23.56999772 | BG62: 127.9721643 | BH62: 0.0001141364808 | BI62: 0 | BK62: 1972 | BL62: =D613 -> 0.000207517103 | BM62: =D614 -> 3.423454206e-05 | BN62: =D615 -> 0 | BO62: =D616 -> 0 | BP62: =D617 -> 23.58862414 | BQ62: =D618 -> 121.8750512 | BR62: =D619 -> 0 | BS62: =D620 -> 0 | BT62: =D621 -> 0 | BU62: =D622 -> 0 | BV62: =D623 -> 0 | BW62: =D624 -> 0 | BY62: 145.4636753 | BZ62: 400.9074573 | CA62: 145.4639171 | CC62: 145.4637096 | CD62: 0 | CE62: 0.0002417516451 | CF62: 23.58862414 | CG62: 121.8750512 | CH62: 0 | CI62: 0 | CK62: 1972 | CL62: =E613 -> 0.0002331236959 | CM62: =E614 -> 3.859523106e-05 | CN62: =E615 -> 0 | CO62: =E616 -> 0 | CP62: =E617 -> 23.57775992 | CQ62: =E618 -> 123.1896313 | CR62: =E619 -> 0 | CS62: =E620 -> 0 | CT62: =E621 -> 0.0001296307491 | CU62: =E622 -> 0 | CV62: =E623 -> 0 | CW62: =E624 -> 0 | CY62: 146.7675208 | CZ62: 314.5590411 | DA62: 146.7677925 | DC62: 146.7674298 | DD62: 0 | DE62: 0.000271718927 | DF62: 23.57775992 | DG62: 123.1897609 | DH62: 0.0001296307491 | DI62: 0 | DK62: 1972 | DL62: =F613 ->  | DM62: =F614 ->  | DN62: =F615 ->  | DO62: =F616 ->  | DP62: =F617 ->  | DQ62: =F618 ->  | DR62: =F619 ->  | DS62: =F620 ->  | DT62: =F621 ->  | DU62: =F622 ->  | DV62: =F623 ->  | DW62: =F624 ->  | EK62: 1972 | EL62: =G613 ->  | EM62: =G614 ->  | EN62: =G615 ->  | EO62: =G616 ->  | EP62: =G617 ->  | EQ62: =G618 ->  | ER62: =G619 ->  | ES62: =G620 ->  | ET62: =G621 ->  | EU62: =G622 ->  | EV62: =G623 ->  | EW62: =G624 -> 
A63: 1925-12-31 | B63: =INDIRECT(CONCATENATE("'",B$1,"'!",B$4,(YEAR($A63)-1921)*12+MONTH($A63)+3+IF(ISNUMBER(FIND("PRV",B$6)),1,0)))*IF(AND(B$3>0,TRIM(B$9)="CFS"),Conv_Flags!$C63,1) -> 0 | C63: =INDIRECT(CONCATENATE("'",C$1,"'!",C$4,(YEAR($A63)-1921)*12+MONTH($A63)+3+IF(ISNUMBER(FIND("PRV",C$6)),1,0)))*IF(AND(C$3>0,TRIM(C$9)="CFS"),Conv_Flags!$C63,1) -> 0 | D63: =INDIRECT(CONCATENATE("'",D$1,"'!",D$4,(YEAR($A63)-1921)*12+MONTH($A63)+3+IF(ISNUMBER(FIND("PRV",D$6)),1,0)))*IF(AND(D$3>0,TRIM(D$9)="CFS"),Conv_Flags!$C63,1) -> 0 | E63: =INDIRECT(CONCATENATE("'",E$1,"'!",E$4,(YEAR($A63)-1921)*12+MONTH($A63)+3+IF(ISNUMBER(FIND("PRV",E$6)),1,0)))*IF(AND(E$3>0,TRIM(E$9)="CFS"),Conv_Flags!$C63,1) -> 0 | F63: =INDIRECT(CONCATENATE("'",F$1,"'!",F$4,(YEAR($A63)-1921)*12+MONTH($A63)+3+IF(ISNUMBER(FIND("PRV",F$6)),1,0)))*IF(AND(F$3>0,TRIM(F$9)="CFS"),Conv_Flags!$C63,1) ->  | G63: =INDIRECT(CONCATENATE("'",G$1,"'!",G$4,(YEAR($A63)-1921)*12+MONTH($A63)+3+IF(ISNUMBER(FIND("PRV",G$6)),1,0)))*IF(AND(G$3>0,TRIM(G$9)="CFS"),Conv_Flags!$C63,1) ->  | K63: 1973 | L63: =B625 -> 0 | M63: =B626 -> 0 | N63: =B627 -> 0 | O63: =B628 -> 0 | P63: =B629 -> 0 | Q63: =B630 -> 0 | R63: =B631 -> 0 | S63: =B632 -> 0 | T63: =B633 -> 0 | U63: =B634 -> 0 | V63: =B635 -> 0 | W63: =B636 -> 0 | Y63: 0 | Z63: 0 | AA63: 0 | AC63: 0 | AD63: 0 | AE63: 0 | AF63: 0 | AG63: 0 | AH63: 0 | AI63: 0 | AK63: 1973 | AL63: =C625 -> 0 | AM63: =C626 -> 0 | AN63: =C627 -> 0 | AO63: =C628 -> 166.3044521 | AP63: =C629 -> 26.61733302 | AQ63: =C630 -> 0 | AR63: =C631 -> 0 | AS63: =C632 -> 0 | AT63: =C633 -> 9.495789457e-05 | AU63: =C634 -> 0 | AV63: =C635 -> 0 | AW63: =C636 -> 0 | AY63: 313.0262355 | AZ63: 121.2605678 | BA63: 192.9218801 | BC63: 192.9217852 | BD63: 0 | BE63: 166.3044521 | BF63: 192.9217852 | BG63: 9.495789457e-05 | BH63: 9.495789457e-05 | BI63: 120.1043553 | BK63: 1973 | BL63: =D625 -> 0 | BM63: =D626 -> 0 | BN63: =D627 -> 0 | BO63: =D628 -> 166.3044521 | BP63: =D629 -> 112.727954 | BQ63: =D630 -> 0 | BR63: =D631 -> 0 | BS63: =D632 -> 0 | BT63: =D633 -> 0 | BU63: =D634 -> 0.0001628168773 | BV63: =D635 -> 0 | BW63: =D636 -> 0 | BY63: 484.9778312 | BZ63: 206.4337774 | CA63: 279.0325689 | CC63: 279.0324061 | CD63: 0 | CE63: 166.3044521 | CF63: 279.0324061 | CG63: 0 | CH63: 0.0001628168773 | CI63: 153.5563636 | CK63: 1973 | CL63: =E625 -> 0 | CM63: =E626 -> 0 | CN63: =E627 -> 0 | CO63: =E628 -> 166.3044521 | CP63: =E629 -> 25.06482803 | CQ63: =E630 -> 0 | CR63: =E631 -> 0 | CS63: =E632 -> 0 | CT63: =E633 -> 0.0001075950182 | CU63: =E634 -> 0 | CV63: =E635 -> 0 | CW63: =E636 -> 0 | CY63: 308.8334071 | CZ63: 118.4397297 | DA63: 191.3693878 | DC63: 191.3692802 | DD63: 0 | DE63: 166.3044521 | DF63: 191.3692802 | DG63: 0.0001075950182 | DH63: 0.0001075950182 | DI63: 117.2708913 | DK63: 1973 | DL63: =F625 ->  | DM63: =F626 ->  | DN63: =F627 ->  | DO63: =F628 ->  | DP63: =F629 ->  | DQ63: =F630 ->  | DR63: =F631 ->  | DS63: =F632 ->  | DT63: =F633 ->  | DU63: =F634 ->  | DV63: =F635 ->  | DW63: =F636 ->  | EK63: 1973 | EL63: =G625 ->  | EM63: =G626 ->  | EN63: =G627 ->  | EO63: =G628 ->  | EP63: =G629 ->  | EQ63: =G630 ->  | ER63: =G631 ->  | ES63: =G632 ->  | ET63: =G633 ->  | EU63: =G634 ->  | EV63: =G635 ->  | EW63: =G636 -> 
A64: 1926-01-31 | B64: =INDIRECT(CONCATENATE("'",B$1,"'!",B$4,(YEAR($A64)-1921)*12+MONTH($A64)+3+IF(ISNUMBER(FIND("PRV",B$6)),1,0)))*IF(AND(B$3>0,TRIM(B$9)="CFS"),Conv_Flags!$C64,1) -> 0 | C64: =INDIRECT(CONCATENATE("'",C$1,"'!",C$4,(YEAR($A64)-1921)*12+MONTH($A64)+3+IF(ISNUMBER(FIND("PRV",C$6)),1,0)))*IF(AND(C$3>0,TRIM(C$9)="CFS"),Conv_Flags!$C64,1) -> 60.65849393 | D64: =INDIRECT(CONCATENATE("'",D$1,"'!",D$4,(YEAR($A64)-1921)*12+MONTH($A64)+3+IF(ISNUMBER(FIND("PRV",D$6)),1,0)))*IF(AND(D$3>0,TRIM(D$9)="CFS"),Conv_Flags!$C64,1) -> 60.7153419 | E64: =INDIRECT(CONCATENATE("'",E$1,"'!",E$4,(YEAR($A64)-1921)*12+MONTH($A64)+3+IF(ISNUMBER(FIND("PRV",E$6)),1,0)))*IF(AND(E$3>0,TRIM(E$9)="CFS"),Conv_Flags!$C64,1) -> 60.9123763 | F64: =INDIRECT(CONCATENATE("'",F$1,"'!",F$4,(YEAR($A64)-1921)*12+MONTH($A64)+3+IF(ISNUMBER(FIND("PRV",F$6)),1,0)))*IF(AND(F$3>0,TRIM(F$9)="CFS"),Conv_Flags!$C64,1) ->  | G64: =INDIRECT(CONCATENATE("'",G$1,"'!",G$4,(YEAR($A64)-1921)*12+MONTH($A64)+3+IF(ISNUMBER(FIND("PRV",G$6)),1,0)))*IF(AND(G$3>0,TRIM(G$9)="CFS"),Conv_Flags!$C64,1) ->  | K64: 1974 | L64: =B637 -> 0 | M64: =B638 -> 0 | N64: =B639 -> 0 | O64: =B640 -> 0 | P64: =B641 -> 0 | Q64: =B642 -> 0 | R64: =B643 -> 0 | S64: =B644 -> 0 | T64: =B645 -> 0 | U64: =B646 -> 0 | V64: =B647 -> 0 | W64: =B648 -> 0 | Y64: 0 | Z64: 0 | AA64: 0 | AC64: 0 | AD64: 0 | AE64: 0 | AF64: 0 | AG64: 0 | AH64: 0 | AI64: 0 | AK64: 1974 | AL64: =C637 -> 0 | AM64: =C638 -> 120.1043553 | AN64: =C639 -> 0 | AO64: =C640 -> 0 | AP64: =C641 -> 1.15611752 | AQ64: =C642 -> 0 | AR64: =C643 -> 2.906370758 | AS64: =C644 -> 0 | AT64: =C645 -> 0 | AU64: =C646 -> 0.0001357421417 | AV64: =C647 -> 0 | AW64: =C648 -> 0 | AY64: 4.062838521 | AZ64: 123.1808919 | BA64: 124.1669794 | BC64: 121.2604729 | BD64: 0.0001871772477 | BE64: 120.1043553 | BF64: 1.15611752 | BG64: 2.906370758 | BH64: 0.0001357421417 | BI64: 0.0002145006538 | BK64: 1974 | BL64: =D637 -> 0 | BM64: =D638 -> 153.5563636 | BN64: =D639 -> 52.38889865 | BO64: =D640 -> 0 | BP64: =D641 -> 0.4883522949 | BQ64: =D642 -> 0 | BR64: =D643 -> 2.906370758 | BS64: =D644 -> 0 | BT64: =D645 -> 0 | BU64: =D646 -> 0.0001369004696 | BV64: =D647 -> 0 | BW64: =D648 -> 0 | BY64: 3.39507632 | BZ64: 123.0370901 | CA64: 209.3401222 | CC64: 206.4336146 | CD64: 0.0001888020474 | CE64: 205.9452623 | CF64: 52.87725094 | CG64: 2.906370758 | CH64: 0.0001369004696 | CI64: 0.000216365993 | CK64: 1974 | CL64: =E637 -> 0 | CM64: =E638 -> 117.2708913 | CN64: =E639 -> 0.1931280541 | CO64: =E640 -> 0.3659090611 | CP64: =E641 -> 0.6096936922 | CQ64: =E642 -> 0 | CR64: =E643 -> 2.721919654 | CS64: =E644 -> 0 | CT64: =E645 -> 0 | CU64: =E646 -> 0.0001538030065 | CV64: =E647 -> 0 | CW64: =E648 -> 0 | CY64: 3.697919582 | CZ64: 120.7241563 | DA64: 121.1616955 | DC64: 118.4396221 | DD64: 0.000212281684 | DE64: 117.8299284 | DF64: 1.168730807 | DG64: 2.721919654 | DH64: 0.0001538030065 | DI64: 0.0002433718016 | DK64: 1974 | DL64: =F637 ->  | DM64: =F638 ->  | DN64: =F639 ->  | DO64: =F640 ->  | DP64: =F641 ->  | DQ64: =F642 ->  | DR64: =F643 ->  | DS64: =F644 ->  | DT64: =F645 ->  | DU64: =F646 ->  | DV64: =F647 ->  | DW64: =F648 ->  | EK64: 1974 | EL64: =G637 ->  | EM64: =G638 ->  | EN64: =G639 ->  | EO64: =G640 ->  | EP64: =G641 ->  | EQ64: =G642 ->  | ER64: =G643 ->  | ES64: =G644 ->  | ET64: =G645 ->  | EU64: =G646 ->  | EV64: =G647 ->  | EW64: =G648 -> 
